Workbook

Sheet Feb_Legacy_Res (hidden)
A1: Table 5A2 Legacy Type 2 Charter Schools | C1: Oct. 1, 2022 MFP Funded Membership (Per SIS) | D1: Feb. 1, 2023 MFP Funded Membership (Per SIS) | E1: Change in MFP Funded Membership | F1: Unweighted Legacy Type 2 Charter School (Includes Final Local Revenue Representation) | J1: Economically Disadvantaged | O1: Students with Disabilities | T1: Gifted & Talented | Y1: Change in Total MFP State Cost Allocation (Levels 1, 2, & 3)
F2: Half the Per Pupil Without Continuation of Prior Year Pay Raises | G2: Change in State Cost Allocation | H2: Continuation of Prior Year Pay Raises Half the Per Pupil | I2: Change in State Cost Allocation | J2: 10/1/22 Student Count | K2: 2/1/23 Student Count | L2: Change in Student Count | M2: Half Per Pupil | N2: Change in State Cost Allocation | O2: 10/1/22 Student Count | P2: 2/1/23 Student Count | Q2: Change in Student Count | R2: Half Per Pupil | S2: Change in State Cost Allocation | T2: 10/1/22 Student Count | U2: 2/1/23 Student Count | V2: Change in Student Count | W2: Half Per Pupil | X2: Change in State Cost Allocation | AB2: column E math ck - mlb 3/4/23 | AC2: column L math ck - mlb 3/4/24 | AD2: column Q math ck - mlb 3/4/25 | AE2: column V math ck - mlb 3/4/26
C4: 1 | D4: =C4+1 -> 2 | E4: =D4+1 -> 3 | F4: 4 | G4: 5 | H4: 6 | I4: 7 | J4: 8 | K4: 9 | L4: 10 | M4: 11 | N4: 12 | O4: 13 | P4: 14 | Q4: 15 | R4: 16 | S4: 17 | T4: 18 | U4: 19 | V4: 20 | W4: 21 | X4: 22 | Y4: 23
C6: Link in File | D6: Link in File | E6: Formula | F6: Values | G6: Formula | H6: Link to "Counts in Budget Letter" | I6: Link in File | J6: Formula | K6: Link to "Counts in Budget Letter" | L6: Link in File | M6: Formula | N6: Link to "Counts in Budget Letter" | O6: Link in File | P6: Formula | Q6: Link to "Counts in Budget Letter" | R6: Link in File | S6: Formula | T6: Formula | U6: Link to Mid-Year File | V6: Link to Mid-Year File | W6: Formula | X6: Formula | Y6: Formula
A7: 1 | B7: Acadia | C7: =#REF!+#REF!+#REF!+#REF!+#REF!+#REF!+#REF! ->  | D7: =#REF!+#REF!+#REF!+#REF!+#REF!+#REF!+#REF! ->  | E7: =#REF!+#REF!+#REF!+#REF!+#REF!+#REF!+#REF! ->  | F7: =#REF!*0.5 ->  | G7: =#REF!+#REF!+#REF!+#REF!+#REF!+#REF!+#REF! ->  | I7: =#REF!+#REF!+#REF!+#REF!+#REF!+#REF!+#REF! ->  | J7: =#REF!+#REF!+#REF!+#REF!+#REF!+#REF!+#REF! ->  | K7: =#REF!+#REF!+#REF!+#REF!+#REF!+#REF!+#REF! ->  | L7: =#REF!+#REF!+#REF!+#REF!+#REF!+#REF!+#REF! ->  | M7: =#REF!*0.5 ->  | N7: =#REF!+#REF!+#REF!+#REF!+#REF!+#REF!+#REF! ->  | O7: =#REF!+#REF!+#REF!+#REF!+#REF!+#REF!+#REF! ->  | P7: =#REF!+#REF!+#REF!+#REF!+#REF!+#REF!+#REF! ->  | Q7: =#REF!+#REF!+#REF!+#REF!+#REF!+#REF!+#REF! ->  | R7: =#REF!*0.5 ->  | S7: =#REF!+#REF!+#REF!+#REF!+#REF!+#REF!+#REF! ->  | T7: =#REF!+#REF!+#REF!+#REF!+#REF!+#REF!+#REF! ->  | U7: =#REF!+#REF!+#REF!+#REF!+#REF!+#REF!+#REF! ->  | V7: =#REF!+#REF!+#REF!+#REF!+#REF!+#REF!+#REF! ->  | W7: =#REF!*0.5 ->  | X7: =#REF!+#REF!+#REF!+#REF!+#REF!+#REF!+#REF! ->  | Y7: =#REF!+#REF!+#REF!+#REF!+#REF!+#REF!+#REF! ->  | AB7: =E7=(D7-C7) ->  | AC7: =L7=(K7-J7) ->  | AD7: =Q7=(P7-O7) ->  | AE7: =V7=(U7-T7) -> 
A8: 2 | B8: Allen | C8: =#REF!+#REF!+#REF!+#REF!+#REF!+#REF!+#REF! ->  | D8: =#REF!+#REF!+#REF!+#REF!+#REF!+#REF!+#REF! ->  | E8: =#REF!+#REF!+#REF!+#REF!+#REF!+#REF!+#REF! ->  | F8: =#REF!*0.5 ->  | G8: =#REF!+#REF!+#REF!+#REF!+#REF!+#REF!+#REF! ->  | I8: =#REF!+#REF!+#REF!+#REF!+#REF!+#REF!+#REF! ->  | J8: =#REF!+#REF!+#REF!+#REF!+#REF!+#REF!+#REF! ->  | K8: =#REF!+#REF!+#REF!+#REF!+#REF!+#REF!+#REF! ->  | L8: =#REF!+#REF!+#REF!+#REF!+#REF!+#REF!+#REF! ->  | M8: =#REF!*0.5 ->  | N8: =#REF!+#REF!+#REF!+#REF!+#REF!+#REF!+#REF! ->  | O8: =#REF!+#REF!+#REF!+#REF!+#REF!+#REF!+#REF! ->  | P8: =#REF!+#REF!+#REF!+#REF!+#REF!+#REF!+#REF! ->  | Q8: =#REF!+#REF!+#REF!+#REF!+#REF!+#REF!+#REF! ->  | R8: =#REF!*0.5 ->  | S8: =#REF!+#REF!+#REF!+#REF!+#REF!+#REF!+#REF! ->  | T8: =#REF!+#REF!+#REF!+#REF!+#REF!+#REF!+#REF! ->  | U8: =#REF!+#REF!+#REF!+#REF!+#REF!+#REF!+#REF! ->  | V8: =#REF!+#REF!+#REF!+#REF!+#REF!+#REF!+#REF! ->  | W8: =#REF!*0.5 ->  | X8: =#REF!+#REF!+#REF!+#REF!+#REF!+#REF!+#REF! ->  | Y8: =#REF!+#REF!+#REF!+#REF!+#REF!+#REF!+#REF! ->  | AB8: =E8=(D8-C8) ->  | AC8: =L8=(K8-J8) ->  | AD8: =Q8=(P8-O8) ->  | AE8: =V8=(U8-T8) -> 
A9: 3 | B9: Ascension | C9: =#REF!+#REF!+#REF!+#REF!+#REF!+#REF!+#REF! ->  | D9: =#REF!+#REF!+#REF!+#REF!+#REF!+#REF!+#REF! ->  | E9: =#REF!+#REF!+#REF!+#REF!+#REF!+#REF!+#REF! ->  | F9: =#REF!*0.5 ->  | G9: =#REF!+#REF!+#REF!+#REF!+#REF!+#REF!+#REF! ->  | I9: =#REF!+#REF!+#REF!+#REF!+#REF!+#REF!+#REF! ->  | J9: =#REF!+#REF!+#REF!+#REF!+#REF!+#REF!+#REF! ->  | K9: =#REF!+#REF!+#REF!+#REF!+#REF!+#REF!+#REF! ->  | L9: =#REF!+#REF!+#REF!+#REF!+#REF!+#REF!+#REF! ->  | M9: =#REF!*0.5 ->  | N9: =#REF!+#REF!+#REF!+#REF!+#REF!+#REF!+#REF! ->  | O9: =#REF!+#REF!+#REF!+#REF!+#REF!+#REF!+#REF! ->  | P9: =#REF!+#REF!+#REF!+#REF!+#REF!+#REF!+#REF! ->  | Q9: =#REF!+#REF!+#REF!+#REF!+#REF!+#REF!+#REF! ->  | R9: =#REF!*0.5 ->  | S9: =#REF!+#REF!+#REF!+#REF!+#REF!+#REF!+#REF! ->  | T9: =#REF!+#REF!+#REF!+#REF!+#REF!+#REF!+#REF! ->  | U9: =#REF!+#REF!+#REF!+#REF!+#REF!+#REF!+#REF! ->  | V9: =#REF!+#REF!+#REF!+#REF!+#REF!+#REF!+#REF! ->  | W9: =#REF!*0.5 ->  | X9: =#REF!+#REF!+#REF!+#REF!+#REF!+#REF!+#REF! ->  | Y9: =#REF!+#REF!+#REF!+#REF!+#REF!+#REF!+#REF! -> 
A10: 4 | B10: Assumption | C10: =#REF!+#REF!+#REF!+#REF!+#REF!+#REF!+#REF! ->  | D10: =#REF!+#REF!+#REF!+#REF!+#REF!+#REF!+#REF! ->  | E10: =#REF!+#REF!+#REF!+#REF!+#REF!+#REF!+#REF! ->  | F10: =#REF!*0.5 ->  | G10: =#REF!+#REF!+#REF!+#REF!+#REF!+#REF!+#REF! ->  | I10: =#REF!+#REF!+#REF!+#REF!+#REF!+#REF!+#REF! ->  | J10: =#REF!+#REF!+#REF!+#REF!+#REF!+#REF!+#REF! ->  | K10: =#REF!+#REF!+#REF!+#REF!+#REF!+#REF!+#REF! ->  | L10: =#REF!+#REF!+#REF!+#REF!+#REF!+#REF!+#REF! ->  | M10: =#REF!*0.5 ->  | N10: =#REF!+#REF!+#REF!+#REF!+#REF!+#REF!+#REF! ->  | O10: =#REF!+#REF!+#REF!+#REF!+#REF!+#REF!+#REF! ->  | P10: =#REF!+#REF!+#REF!+#REF!+#REF!+#REF!+#REF! ->  | Q10: =#REF!+#REF!+#REF!+#REF!+#REF!+#REF!+#REF! ->  | R10: =#REF!*0.5 ->  | S10: =#REF!+#REF!+#REF!+#REF!+#REF!+#REF!+#REF! ->  | T10: =#REF!+#REF!+#REF!+#REF!+#REF!+#REF!+#REF! ->  | U10: =#REF!+#REF!+#REF!+#REF!+#REF!+#REF!+#REF! ->  | V10: =#REF!+#REF!+#REF!+#REF!+#REF!+#REF!+#REF! ->  | W10: =#REF!*0.5 ->  | X10: =#REF!+#REF!+#REF!+#REF!+#REF!+#REF!+#REF! ->  | Y10: =#REF!+#REF!+#REF!+#REF!+#REF!+#REF!+#REF! -> 
A11: 5 | B11: Avoyelles | C11: =#REF!+#REF!+#REF!+#REF!+#REF!+#REF!+#REF! ->  | D11: =#REF!+#REF!+#REF!+#REF!+#REF!+#REF!+#REF! ->  | E11: =#REF!+#REF!+#REF!+#REF!+#REF!+#REF!+#REF! ->  | F11: =#REF!*0.5 ->  | G11: =#REF!+#REF!+#REF!+#REF!+#REF!+#REF!+#REF! ->  | I11: =#REF!+#REF!+#REF!+#REF!+#REF!+#REF!+#REF! ->  | J11: =#REF!+#REF!+#REF!+#REF!+#REF!+#REF!+#REF! ->  | K11: =#REF!+#REF!+#REF!+#REF!+#REF!+#REF!+#REF! ->  | L11: =#REF!+#REF!+#REF!+#REF!+#REF!+#REF!+#REF! ->  | M11: =#REF!*0.5 ->  | N11: =#REF!+#REF!+#REF!+#REF!+#REF!+#REF!+#REF! ->  | O11: =#REF!+#REF!+#REF!+#REF!+#REF!+#REF!+#REF! ->  | P11: =#REF!+#REF!+#REF!+#REF!+#REF!+#REF!+#REF! ->  | Q11: =#REF!+#REF!+#REF!+#REF!+#REF!+#REF!+#REF! ->  | R11: =#REF!*0.5 ->  | S11: =#REF!+#REF!+#REF!+#REF!+#REF!+#REF!+#REF! ->  | T11: =#REF!+#REF!+#REF!+#REF!+#REF!+#REF!+#REF! ->  | U11: =#REF!+#REF!+#REF!+#REF!+#REF!+#REF!+#REF! ->  | V11: =#REF!+#REF!+#REF!+#REF!+#REF!+#REF!+#REF! ->  | W11: =#REF!*0.5 ->  | X11: =#REF!+#REF!+#REF!+#REF!+#REF!+#REF!+#REF! ->  | Y11: =#REF!+#REF!+#REF!+#REF!+#REF!+#REF!+#REF! -> 
A12: 6 | B12: Beauregard | C12: =#REF!+#REF!+#REF!+#REF!+#REF!+#REF!+#REF! ->  | D12: =#REF!+#REF!+#REF!+#REF!+#REF!+#REF!+#REF! ->  | E12: =#REF!+#REF!+#REF!+#REF!+#REF!+#REF!+#REF! ->  | F12: =#REF!*0.5 ->  | G12: =#REF!+#REF!+#REF!+#REF!+#REF!+#REF!+#REF! ->  | I12: =#REF!+#REF!+#REF!+#REF!+#REF!+#REF!+#REF! ->  | J12: =#REF!+#REF!+#REF!+#REF!+#REF!+#REF!+#REF! ->  | K12: =#REF!+#REF!+#REF!+#REF!+#REF!+#REF!+#REF! ->  | L12: =#REF!+#REF!+#REF!+#REF!+#REF!+#REF!+#REF! ->  | M12: =#REF!*0.5 ->  | N12: =#REF!+#REF!+#REF!+#REF!+#REF!+#REF!+#REF! ->  | O12: =#REF!+#REF!+#REF!+#REF!+#REF!+#REF!+#REF! ->  | P12: =#REF!+#REF!+#REF!+#REF!+#REF!+#REF!+#REF! ->  | Q12: =#REF!+#REF!+#REF!+#REF!+#REF!+#REF!+#REF! ->  | R12: =#REF!*0.5 ->  | S12: =#REF!+#REF!+#REF!+#REF!+#REF!+#REF!+#REF! ->  | T12: =#REF!+#REF!+#REF!+#REF!+#REF!+#REF!+#REF! ->  | U12: =#REF!+#REF!+#REF!+#REF!+#REF!+#REF!+#REF! ->  | V12: =#REF!+#REF!+#REF!+#REF!+#REF!+#REF!+#REF! ->  | W12: =#REF!*0.5 ->  | X12: =#REF!+#REF!+#REF!+#REF!+#REF!+#REF!+#REF! ->  | Y12: =#REF!+#REF!+#REF!+#REF!+#REF!+#REF!+#REF! -> 
A13: 7 | B13: Bienville | C13: =#REF!+#REF!+#REF!+#REF!+#REF!+#REF!+#REF! ->  | D13: =#REF!+#REF!+#REF!+#REF!+#REF!+#REF!+#REF! ->  | E13: =#REF!+#REF!+#REF!+#REF!+#REF!+#REF!+#REF! ->  | F13: =#REF!*0.5 ->  | G13: =#REF!+#REF!+#REF!+#REF!+#REF!+#REF!+#REF! ->  | I13: =#REF!+#REF!+#REF!+#REF!+#REF!+#REF!+#REF! ->  | J13: =#REF!+#REF!+#REF!+#REF!+#REF!+#REF!+#REF! ->  | K13: =#REF!+#REF!+#REF!+#REF!+#REF!+#REF!+#REF! ->  | L13: =#REF!+#REF!+#REF!+#REF!+#REF!+#REF!+#REF! ->  | M13: =#REF!*0.5 ->  | N13: =#REF!+#REF!+#REF!+#REF!+#REF!+#REF!+#REF! ->  | O13: =#REF!+#REF!+#REF!+#REF!+#REF!+#REF!+#REF! ->  | P13: =#REF!+#REF!+#REF!+#REF!+#REF!+#REF!+#REF! ->  | Q13: =#REF!+#REF!+#REF!+#REF!+#REF!+#REF!+#REF! ->  | R13: =#REF!*0.5 ->  | S13: =#REF!+#REF!+#REF!+#REF!+#REF!+#REF!+#REF! ->  | T13: =#REF!+#REF!+#REF!+#REF!+#REF!+#REF!+#REF! ->  | U13: =#REF!+#REF!+#REF!+#REF!+#REF!+#REF!+#REF! ->  | V13: =#REF!+#REF!+#REF!+#REF!+#REF!+#REF!+#REF! ->  | W13: =#REF!*0.5 ->  | X13: =#REF!+#REF!+#REF!+#REF!+#REF!+#REF!+#REF! ->  | Y13: =#REF!+#REF!+#REF!+#REF!+#REF!+#REF!+#REF! -> 
A14: 8 | B14: Bossier | C14: =#REF!+#REF!+#REF!+#REF!+#REF!+#REF!+#REF! ->  | D14: =#REF!+#REF!+#REF!+#REF!+#REF!+#REF!+#REF! ->  | E14: =#REF!+#REF!+#REF!+#REF!+#REF!+#REF!+#REF! ->  | F14: =#REF!*0.5 ->  | G14: =#REF!+#REF!+#REF!+#REF!+#REF!+#REF!+#REF! ->  | I14: =#REF!+#REF!+#REF!+#REF!+#REF!+#REF!+#REF! ->  | J14: =#REF!+#REF!+#REF!+#REF!+#REF!+#REF!+#REF! ->  | K14: =#REF!+#REF!+#REF!+#REF!+#REF!+#REF!+#REF! ->  | L14: =#REF!+#REF!+#REF!+#REF!+#REF!+#REF!+#REF! ->  | M14: =#REF!*0.5 ->  | N14: =#REF!+#REF!+#REF!+#REF!+#REF!+#REF!+#REF! ->  | O14: =#REF!+#REF!+#REF!+#REF!+#REF!+#REF!+#REF! ->  | P14: =#REF!+#REF!+#REF!+#REF!+#REF!+#REF!+#REF! ->  | Q14: =#REF!+#REF!+#REF!+#REF!+#REF!+#REF!+#REF! ->  | R14: =#REF!*0.5 ->  | S14: =#REF!+#REF!+#REF!+#REF!+#REF!+#REF!+#REF! ->  | T14: =#REF!+#REF!+#REF!+#REF!+#REF!+#REF!+#REF! ->  | U14: =#REF!+#REF!+#REF!+#REF!+#REF!+#REF!+#REF! ->  | V14: =#REF!+#REF!+#REF!+#REF!+#REF!+#REF!+#REF! ->  | W14: =#REF!*0.5 ->  | X14: =#REF!+#REF!+#REF!+#REF!+#REF!+#REF!+#REF! ->  | Y14: =#REF!+#REF!+#REF!+#REF!+#REF!+#REF!+#REF! -> 
A15: 9 | B15: Caddo | C15: =#REF!+#REF!+#REF!+#REF!+#REF!+#REF!+#REF! ->  | D15: =#REF!+#REF!+#REF!+#REF!+#REF!+#REF!+#REF! ->  | E15: =#REF!+#REF!+#REF!+#REF!+#REF!+#REF!+#REF! ->  | F15: =#REF!*0.5 ->  | G15: =#REF!+#REF!+#REF!+#REF!+#REF!+#REF!+#REF! ->  | I15: =#REF!+#REF!+#REF!+#REF!+#REF!+#REF!+#REF! ->  | J15: =#REF!+#REF!+#REF!+#REF!+#REF!+#REF!+#REF! ->  | K15: =#REF!+#REF!+#REF!+#REF!+#REF!+#REF!+#REF! ->  | L15: =#REF!+#REF!+#REF!+#REF!+#REF!+#REF!+#REF! ->  | M15: =#REF!*0.5 ->  | N15: =#REF!+#REF!+#REF!+#REF!+#REF!+#REF!+#REF! ->  | O15: =#REF!+#REF!+#REF!+#REF!+#REF!+#REF!+#REF! ->  | P15: =#REF!+#REF!+#REF!+#REF!+#REF!+#REF!+#REF! ->  | Q15: =#REF!+#REF!+#REF!+#REF!+#REF!+#REF!+#REF! ->  | R15: =#REF!*0.5 ->  | S15: =#REF!+#REF!+#REF!+#REF!+#REF!+#REF!+#REF! ->  | T15: =#REF!+#REF!+#REF!+#REF!+#REF!+#REF!+#REF! ->  | U15: =#REF!+#REF!+#REF!+#REF!+#REF!+#REF!+#REF! ->  | V15: =#REF!+#REF!+#REF!+#REF!+#REF!+#REF!+#REF! ->  | W15: =#REF!*0.5 ->  | X15: =#REF!+#REF!+#REF!+#REF!+#REF!+#REF!+#REF! ->  | Y15: =#REF!+#REF!+#REF!+#REF!+#REF!+#REF!+#REF! -> 
A16: 10 | B16: Calcasieu | C16: =#REF!+#REF!+#REF!+#REF!+#REF!+#REF!+#REF! ->  | D16: =#REF!+#REF!+#REF!+#REF!+#REF!+#REF!+#REF! ->  | E16: =#REF!+#REF!+#REF!+#REF!+#REF!+#REF!+#REF! ->  | F16: =#REF!*0.5 ->  | G16: =#REF!+#REF!+#REF!+#REF!+#REF!+#REF!+#REF! ->  | I16: =#REF!+#REF!+#REF!+#REF!+#REF!+#REF!+#REF! ->  | J16: =#REF!+#REF!+#REF!+#REF!+#REF!+#REF!+#REF! ->  | K16: =#REF!+#REF!+#REF!+#REF!+#REF!+#REF!+#REF! ->  | L16: =#REF!+#REF!+#REF!+#REF!+#REF!+#REF!+#REF! ->  | M16: =#REF!*0.5 ->  | N16: =#REF!+#REF!+#REF!+#REF!+#REF!+#REF!+#REF! ->  | O16: =#REF!+#REF!+#REF!+#REF!+#REF!+#REF!+#REF! ->  | P16: =#REF!+#REF!+#REF!+#REF!+#REF!+#REF!+#REF! ->  | Q16: =#REF!+#REF!+#REF!+#REF!+#REF!+#REF!+#REF! ->  | R16: =#REF!*0.5 ->  | S16: =#REF!+#REF!+#REF!+#REF!+#REF!+#REF!+#REF! ->  | T16: =#REF!+#REF!+#REF!+#REF!+#REF!+#REF!+#REF! ->  | U16: =#REF!+#REF!+#REF!+#REF!+#REF!+#REF!+#REF! ->  | V16: =#REF!+#REF!+#REF!+#REF!+#REF!+#REF!+#REF! ->  | W16: =#REF!*0.5 ->  | X16: =#REF!+#REF!+#REF!+#REF!+#REF!+#REF!+#REF! ->  | Y16: =#REF!+#REF!+#REF!+#REF!+#REF!+#REF!+#REF! -> 
A17: 11 | B17: Caldwell | C17: =#REF!+#REF!+#REF!+#REF!+#REF!+#REF!+#REF! ->  | D17: =#REF!+#REF!+#REF!+#REF!+#REF!+#REF!+#REF! ->  | E17: =#REF!+#REF!+#REF!+#REF!+#REF!+#REF!+#REF! ->  | F17: =#REF!*0.5 ->  | G17: =#REF!+#REF!+#REF!+#REF!+#REF!+#REF!+#REF! ->  | I17: =#REF!+#REF!+#REF!+#REF!+#REF!+#REF!+#REF! ->  | J17: =#REF!+#REF!+#REF!+#REF!+#REF!+#REF!+#REF! ->  | K17: =#REF!+#REF!+#REF!+#REF!+#REF!+#REF!+#REF! ->  | L17: =#REF!+#REF!+#REF!+#REF!+#REF!+#REF!+#REF! ->  | M17: =#REF!*0.5 ->  | N17: =#REF!+#REF!+#REF!+#REF!+#REF!+#REF!+#REF! ->  | O17: =#REF!+#REF!+#REF!+#REF!+#REF!+#REF!+#REF! ->  | P17: =#REF!+#REF!+#REF!+#REF!+#REF!+#REF!+#REF! ->  | Q17: =#REF!+#REF!+#REF!+#REF!+#REF!+#REF!+#REF! ->  | R17: =#REF!*0.5 ->  | S17: =#REF!+#REF!+#REF!+#REF!+#REF!+#REF!+#REF! ->  | T17: =#REF!+#REF!+#REF!+#REF!+#REF!+#REF!+#REF! ->  | U17: =#REF!+#REF!+#REF!+#REF!+#REF!+#REF!+#REF! ->  | V17: =#REF!+#REF!+#REF!+#REF!+#REF!+#REF!+#REF! ->  | W17: =#REF!*0.5 ->  | X17: =#REF!+#REF!+#REF!+#REF!+#REF!+#REF!+#REF! ->  | Y17: =#REF!+#REF!+#REF!+#REF!+#REF!+#REF!+#REF! -> 
A18: 12 | B18: Cameron | C18: =#REF!+#REF!+#REF!+#REF!+#REF!+#REF!+#REF! ->  | D18: =#REF!+#REF!+#REF!+#REF!+#REF!+#REF!+#REF! ->  | E18: =#REF!+#REF!+#REF!+#REF!+#REF!+#REF!+#REF! ->  | F18: =#REF!*0.5 ->  | G18: =#REF!+#REF!+#REF!+#REF!+#REF!+#REF!+#REF! ->  | I18: =#REF!+#REF!+#REF!+#REF!+#REF!+#REF!+#REF! ->  | J18: =#REF!+#REF!+#REF!+#REF!+#REF!+#REF!+#REF! ->  | K18: =#REF!+#REF!+#REF!+#REF!+#REF!+#REF!+#REF! ->  | L18: =#REF!+#REF!+#REF!+#REF!+#REF!+#REF!+#REF! ->  | M18: =#REF!*0.5 ->  | N18: =#REF!+#REF!+#REF!+#REF!+#REF!+#REF!+#REF! ->  | O18: =#REF!+#REF!+#REF!+#REF!+#REF!+#REF!+#REF! ->  | P18: =#REF!+#REF!+#REF!+#REF!+#REF!+#REF!+#REF! ->  | Q18: =#REF!+#REF!+#REF!+#REF!+#REF!+#REF!+#REF! ->  | R18: =#REF!*0.5 ->  | S18: =#REF!+#REF!+#REF!+#REF!+#REF!+#REF!+#REF! ->  | T18: =#REF!+#REF!+#REF!+#REF!+#REF!+#REF!+#REF! ->  | U18: =#REF!+#REF!+#REF!+#REF!+#REF!+#REF!+#REF! ->  | V18: =#REF!+#REF!+#REF!+#REF!+#REF!+#REF!+#REF! ->  | W18: =#REF!*0.5 ->  | X18: =#REF!+#REF!+#REF!+#REF!+#REF!+#REF!+#REF! ->  | Y18: =#REF!+#REF!+#REF!+#REF!+#REF!+#REF!+#REF! -> 
A19: 13 | B19: Catahoula | C19: =#REF!+#REF!+#REF!+#REF!+#REF!+#REF!+#REF! ->  | D19: =#REF!+#REF!+#REF!+#REF!+#REF!+#REF!+#REF! ->  | E19: =#REF!+#REF!+#REF!+#REF!+#REF!+#REF!+#REF! ->  | F19: =#REF!*0.5 ->  | G19: =#REF!+#REF!+#REF!+#REF!+#REF!+#REF!+#REF! ->  | I19: =#REF!+#REF!+#REF!+#REF!+#REF!+#REF!+#REF! ->  | J19: =#REF!+#REF!+#REF!+#REF!+#REF!+#REF!+#REF! ->  | K19: =#REF!+#REF!+#REF!+#REF!+#REF!+#REF!+#REF! ->  | L19: =#REF!+#REF!+#REF!+#REF!+#REF!+#REF!+#REF! ->  | M19: =#REF!*0.5 ->  | N19: =#REF!+#REF!+#REF!+#REF!+#REF!+#REF!+#REF! ->  | O19: =#REF!+#REF!+#REF!+#REF!+#REF!+#REF!+#REF! ->  | P19: =#REF!+#REF!+#REF!+#REF!+#REF!+#REF!+#REF! ->  | Q19: =#REF!+#REF!+#REF!+#REF!+#REF!+#REF!+#REF! ->  | R19: =#REF!*0.5 ->  | S19: =#REF!+#REF!+#REF!+#REF!+#REF!+#REF!+#REF! ->  | T19: =#REF!+#REF!+#REF!+#REF!+#REF!+#REF!+#REF! ->  | U19: =#REF!+#REF!+#REF!+#REF!+#REF!+#REF!+#REF! ->  | V19: =#REF!+#REF!+#REF!+#REF!+#REF!+#REF!+#REF! ->  | W19: =#REF!*0.5 ->  | X19: =#REF!+#REF!+#REF!+#REF!+#REF!+#REF!+#REF! ->  | Y19: =#REF!+#REF!+#REF!+#REF!+#REF!+#REF!+#REF! -> 
A20: 14 | B20: Claiborne | C20: =#REF!+#REF!+#REF!+#REF!+#REF!+#REF!+#REF! ->  | D20: =#REF!+#REF!+#REF!+#REF!+#REF!+#REF!+#REF! ->  | E20: =#REF!+#REF!+#REF!+#REF!+#REF!+#REF!+#REF! ->  | F20: =#REF!*0.5 ->  | G20: =#REF!+#REF!+#REF!+#REF!+#REF!+#REF!+#REF! ->  | I20: =#REF!+#REF!+#REF!+#REF!+#REF!+#REF!+#REF! ->  | J20: =#REF!+#REF!+#REF!+#REF!+#REF!+#REF!+#REF! ->  | K20: =#REF!+#REF!+#REF!+#REF!+#REF!+#REF!+#REF! ->  | L20: =#REF!+#REF!+#REF!+#REF!+#REF!+#REF!+#REF! ->  | M20: =#REF!*0.5 ->  | N20: =#REF!+#REF!+#REF!+#REF!+#REF!+#REF!+#REF! ->  | O20: =#REF!+#REF!+#REF!+#REF!+#REF!+#REF!+#REF! ->  | P20: =#REF!+#REF!+#REF!+#REF!+#REF!+#REF!+#REF! ->  | Q20: =#REF!+#REF!+#REF!+#REF!+#REF!+#REF!+#REF! ->  | R20: =#REF!*0.5 ->  | S20: =#REF!+#REF!+#REF!+#REF!+#REF!+#REF!+#REF! ->  | T20: =#REF!+#REF!+#REF!+#REF!+#REF!+#REF!+#REF! ->  | U20: =#REF!+#REF!+#REF!+#REF!+#REF!+#REF!+#REF! ->  | V20: =#REF!+#REF!+#REF!+#REF!+#REF!+#REF!+#REF! ->  | W20: =#REF!*0.5 ->  | X20: =#REF!+#REF!+#REF!+#REF!+#REF!+#REF!+#REF! ->  | Y20: =#REF!+#REF!+#REF!+#REF!+#REF!+#REF!+#REF! -> 
A21: 15 | B21: Concordia | C21: =#REF!+#REF!+#REF!+#REF!+#REF!+#REF!+#REF! ->  | D21: =#REF!+#REF!+#REF!+#REF!+#REF!+#REF!+#REF! ->  | E21: =#REF!+#REF!+#REF!+#REF!+#REF!+#REF!+#REF! ->  | F21: =#REF!*0.5 ->  | G21: =#REF!+#REF!+#REF!+#REF!+#REF!+#REF!+#REF! ->  | I21: =#REF!+#REF!+#REF!+#REF!+#REF!+#REF!+#REF! ->  | J21: =#REF!+#REF!+#REF!+#REF!+#REF!+#REF!+#REF! ->  | K21: =#REF!+#REF!+#REF!+#REF!+#REF!+#REF!+#REF! ->  | L21: =#REF!+#REF!+#REF!+#REF!+#REF!+#REF!+#REF! ->  | M21: =#REF!*0.5 ->  | N21: =#REF!+#REF!+#REF!+#REF!+#REF!+#REF!+#REF! ->  | O21: =#REF!+#REF!+#REF!+#REF!+#REF!+#REF!+#REF! ->  | P21: =#REF!+#REF!+#REF!+#REF!+#REF!+#REF!+#REF! ->  | Q21: =#REF!+#REF!+#REF!+#REF!+#REF!+#REF!+#REF! ->  | R21: =#REF!*0.5 ->  | S21: =#REF!+#REF!+#REF!+#REF!+#REF!+#REF!+#REF! ->  | T21: =#REF!+#REF!+#REF!+#REF!+#REF!+#REF!+#REF! ->  | U21: =#REF!+#REF!+#REF!+#REF!+#REF!+#REF!+#REF! ->  | V21: =#REF!+#REF!+#REF!+#REF!+#REF!+#REF!+#REF! ->  | W21: =#REF!*0.5 ->  | X21: =#REF!+#REF!+#REF!+#REF!+#REF!+#REF!+#REF! ->  | Y21: =#REF!+#REF!+#REF!+#REF!+#REF!+#REF!+#REF! -> 
A22: 16 | B22: DeSoto | C22: =#REF!+#REF!+#REF!+#REF!+#REF!+#REF!+#REF! ->  | D22: =#REF!+#REF!+#REF!+#REF!+#REF!+#REF!+#REF! ->  | E22: =#REF!+#REF!+#REF!+#REF!+#REF!+#REF!+#REF! ->  | F22: =#REF!*0.5 ->  | G22: =#REF!+#REF!+#REF!+#REF!+#REF!+#REF!+#REF! ->  | I22: =#REF!+#REF!+#REF!+#REF!+#REF!+#REF!+#REF! ->  | J22: =#REF!+#REF!+#REF!+#REF!+#REF!+#REF!+#REF! ->  | K22: =#REF!+#REF!+#REF!+#REF!+#REF!+#REF!+#REF! ->  | L22: =#REF!+#REF!+#REF!+#REF!+#REF!+#REF!+#REF! ->  | M22: =#REF!*0.5 ->  | N22: =#REF!+#REF!+#REF!+#REF!+#REF!+#REF!+#REF! ->  | O22: =#REF!+#REF!+#REF!+#REF!+#REF!+#REF!+#REF! ->  | P22: =#REF!+#REF!+#REF!+#REF!+#REF!+#REF!+#REF! ->  | Q22: =#REF!+#REF!+#REF!+#REF!+#REF!+#REF!+#REF! ->  | R22: =#REF!*0.5 ->  | S22: =#REF!+#REF!+#REF!+#REF!+#REF!+#REF!+#REF! ->  | T22: =#REF!+#REF!+#REF!+#REF!+#REF!+#REF!+#REF! ->  | U22: =#REF!+#REF!+#REF!+#REF!+#REF!+#REF!+#REF! ->  | V22: =#REF!+#REF!+#REF!+#REF!+#REF!+#REF!+#REF! ->  | W22: =#REF!*0.5 ->  | X22: =#REF!+#REF!+#REF!+#REF!+#REF!+#REF!+#REF! ->  | Y22: =#REF!+#REF!+#REF!+#REF!+#REF!+#REF!+#REF! -> 
A23: 17 | B23: East Baton Rouge | C23: =#REF!+#REF!+#REF!+#REF!+#REF!+#REF!+#REF! ->  | D23: =#REF!+#REF!+#REF!+#REF!+#REF!+#REF!+#REF! ->  | E23: =#REF!+#REF!+#REF!+#REF!+#REF!+#REF!+#REF! ->  | F23: =#REF!*0.5 ->  | G23: =#REF!+#REF!+#REF!+#REF!+#REF!+#REF!+#REF! ->  | I23: =#REF!+#REF!+#REF!+#REF!+#REF!+#REF!+#REF! ->  | J23: =#REF!+#REF!+#REF!+#REF!+#REF!+#REF!+#REF! ->  | K23: =#REF!+#REF!+#REF!+#REF!+#REF!+#REF!+#REF! ->  | L23: =#REF!+#REF!+#REF!+#REF!+#REF!+#REF!+#REF! ->  | M23: =#REF!*0.5 ->  | N23: =#REF!+#REF!+#REF!+#REF!+#REF!+#REF!+#REF! ->  | O23: =#REF!+#REF!+#REF!+#REF!+#REF!+#REF!+#REF! ->  | P23: =#REF!+#REF!+#REF!+#REF!+#REF!+#REF!+#REF! ->  | Q23: =#REF!+#REF!+#REF!+#REF!+#REF!+#REF!+#REF! ->  | R23: =#REF!*0.5 ->  | S23: =#REF!+#REF!+#REF!+#REF!+#REF!+#REF!+#REF! ->  | T23: =#REF!+#REF!+#REF!+#REF!+#REF!+#REF!+#REF! ->  | U23: =#REF!+#REF!+#REF!+#REF!+#REF!+#REF!+#REF! ->  | V23: =#REF!+#REF!+#REF!+#REF!+#REF!+#REF!+#REF! ->  | W23: =#REF!*0.5 ->  | X23: =#REF!+#REF!+#REF!+#REF!+#REF!+#REF!+#REF! ->  | Y23: =#REF!+#REF!+#REF!+#REF!+#REF!+#REF!+#REF! -> 
A24: 18 | B24: East Carroll | C24: =#REF!+#REF!+#REF!+#REF!+#REF!+#REF!+#REF! ->  | D24: =#REF!+#REF!+#REF!+#REF!+#REF!+#REF!+#REF! ->  | E24: =#REF!+#REF!+#REF!+#REF!+#REF!+#REF!+#REF! ->  | F24: =#REF!*0.5 ->  | G24: =#REF!+#REF!+#REF!+#REF!+#REF!+#REF!+#REF! ->  | I24: =#REF!+#REF!+#REF!+#REF!+#REF!+#REF!+#REF! ->  | J24: =#REF!+#REF!+#REF!+#REF!+#REF!+#REF!+#REF! ->  | K24: =#REF!+#REF!+#REF!+#REF!+#REF!+#REF!+#REF! ->  | L24: =#REF!+#REF!+#REF!+#REF!+#REF!+#REF!+#REF! ->  | M24: =#REF!*0.5 ->  | N24: =#REF!+#REF!+#REF!+#REF!+#REF!+#REF!+#REF! ->  | O24: =#REF!+#REF!+#REF!+#REF!+#REF!+#REF!+#REF! ->  | P24: =#REF!+#REF!+#REF!+#REF!+#REF!+#REF!+#REF! ->  | Q24: =#REF!+#REF!+#REF!+#REF!+#REF!+#REF!+#REF! ->  | R24: =#REF!*0.5 ->  | S24: =#REF!+#REF!+#REF!+#REF!+#REF!+#REF!+#REF! ->  | T24: =#REF!+#REF!+#REF!+#REF!+#REF!+#REF!+#REF! ->  | U24: =#REF!+#REF!+#REF!+#REF!+#REF!+#REF!+#REF! ->  | V24: =#REF!+#REF!+#REF!+#REF!+#REF!+#REF!+#REF! ->  | W24: =#REF!*0.5 ->  | X24: =#REF!+#REF!+#REF!+#REF!+#REF!+#REF!+#REF! ->  | Y24: =#REF!+#REF!+#REF!+#REF!+#REF!+#REF!+#REF! -> 
A25: 19 | B25: East Feliciana | C25: =#REF!+#REF!+#REF!+#REF!+#REF!+#REF!+#REF! ->  | D25: =#REF!+#REF!+#REF!+#REF!+#REF!+#REF!+#REF! ->  | E25: =#REF!+#REF!+#REF!+#REF!+#REF!+#REF!+#REF! ->  | F25: =#REF!*0.5 ->  | G25: =#REF!+#REF!+#REF!+#REF!+#REF!+#REF!+#REF! ->  | I25: =#REF!+#REF!+#REF!+#REF!+#REF!+#REF!+#REF! ->  | J25: =#REF!+#REF!+#REF!+#REF!+#REF!+#REF!+#REF! ->  | K25: =#REF!+#REF!+#REF!+#REF!+#REF!+#REF!+#REF! ->  | L25: =#REF!+#REF!+#REF!+#REF!+#REF!+#REF!+#REF! ->  | M25: =#REF!*0.5 ->  | N25: =#REF!+#REF!+#REF!+#REF!+#REF!+#REF!+#REF! ->  | O25: =#REF!+#REF!+#REF!+#REF!+#REF!+#REF!+#REF! ->  | P25: =#REF!+#REF!+#REF!+#REF!+#REF!+#REF!+#REF! ->  | Q25: =#REF!+#REF!+#REF!+#REF!+#REF!+#REF!+#REF! ->  | R25: =#REF!*0.5 ->  | S25: =#REF!+#REF!+#REF!+#REF!+#REF!+#REF!+#REF! ->  | T25: =#REF!+#REF!+#REF!+#REF!+#REF!+#REF!+#REF! ->  | U25: =#REF!+#REF!+#REF!+#REF!+#REF!+#REF!+#REF! ->  | V25: =#REF!+#REF!+#REF!+#REF!+#REF!+#REF!+#REF! ->  | W25: =#REF!*0.5 ->  | X25: =#REF!+#REF!+#REF!+#REF!+#REF!+#REF!+#REF! ->  | Y25: =#REF!+#REF!+#REF!+#REF!+#REF!+#REF!+#REF! -> 
A26: 20 | B26: Evangeline | C26: =#REF!+#REF!+#REF!+#REF!+#REF!+#REF!+#REF! ->  | D26: =#REF!+#REF!+#REF!+#REF!+#REF!+#REF!+#REF! ->  | E26: =#REF!+#REF!+#REF!+#REF!+#REF!+#REF!+#REF! ->  | F26: =#REF!*0.5 ->  | G26: =#REF!+#REF!+#REF!+#REF!+#REF!+#REF!+#REF! ->  | I26: =#REF!+#REF!+#REF!+#REF!+#REF!+#REF!+#REF! ->  | J26: =#REF!+#REF!+#REF!+#REF!+#REF!+#REF!+#REF! ->  | K26: =#REF!+#REF!+#REF!+#REF!+#REF!+#REF!+#REF! ->  | L26: =#REF!+#REF!+#REF!+#REF!+#REF!+#REF!+#REF! ->  | M26: =#REF!*0.5 ->  | N26: =#REF!+#REF!+#REF!+#REF!+#REF!+#REF!+#REF! ->  | O26: =#REF!+#REF!+#REF!+#REF!+#REF!+#REF!+#REF! ->  | P26: =#REF!+#REF!+#REF!+#REF!+#REF!+#REF!+#REF! ->  | Q26: =#REF!+#REF!+#REF!+#REF!+#REF!+#REF!+#REF! ->  | R26: =#REF!*0.5 ->  | S26: =#REF!+#REF!+#REF!+#REF!+#REF!+#REF!+#REF! ->  | T26: =#REF!+#REF!+#REF!+#REF!+#REF!+#REF!+#REF! ->  | U26: =#REF!+#REF!+#REF!+#REF!+#REF!+#REF!+#REF! ->  | V26: =#REF!+#REF!+#REF!+#REF!+#REF!+#REF!+#REF! ->  | W26: =#REF!*0.5 ->  | X26: =#REF!+#REF!+#REF!+#REF!+#REF!+#REF!+#REF! ->  | Y26: =#REF!+#REF!+#REF!+#REF!+#REF!+#REF!+#REF! -> 
A27: 21 | B27: Franklin | C27: =#REF!+#REF!+#REF!+#REF!+#REF!+#REF!+#REF! ->  | D27: =#REF!+#REF!+#REF!+#REF!+#REF!+#REF!+#REF! ->  | E27: =#REF!+#REF!+#REF!+#REF!+#REF!+#REF!+#REF! ->  | F27: =#REF!*0.5 ->  | G27: =#REF!+#REF!+#REF!+#REF!+#REF!+#REF!+#REF! ->  | I27: =#REF!+#REF!+#REF!+#REF!+#REF!+#REF!+#REF! ->  | J27: =#REF!+#REF!+#REF!+#REF!+#REF!+#REF!+#REF! ->  | K27: =#REF!+#REF!+#REF!+#REF!+#REF!+#REF!+#REF! ->  | L27: =#REF!+#REF!+#REF!+#REF!+#REF!+#REF!+#REF! ->  | M27: =#REF!*0.5 ->  | N27: =#REF!+#REF!+#REF!+#REF!+#REF!+#REF!+#REF! ->  | O27: =#REF!+#REF!+#REF!+#REF!+#REF!+#REF!+#REF! ->  | P27: =#REF!+#REF!+#REF!+#REF!+#REF!+#REF!+#REF! ->  | Q27: =#REF!+#REF!+#REF!+#REF!+#REF!+#REF!+#REF! ->  | R27: =#REF!*0.5 ->  | S27: =#REF!+#REF!+#REF!+#REF!+#REF!+#REF!+#REF! ->  | T27: =#REF!+#REF!+#REF!+#REF!+#REF!+#REF!+#REF! ->  | U27: =#REF!+#REF!+#REF!+#REF!+#REF!+#REF!+#REF! ->  | V27: =#REF!+#REF!+#REF!+#REF!+#REF!+#REF!+#REF! ->  | W27: =#REF!*0.5 ->  | X27: =#REF!+#REF!+#REF!+#REF!+#REF!+#REF!+#REF! ->  | Y27: =#REF!+#REF!+#REF!+#REF!+#REF!+#REF!+#REF! -> 
A28: 22 | B28: Grant | C28: =#REF!+#REF!+#REF!+#REF!+#REF!+#REF!+#REF! ->  | D28: =#REF!+#REF!+#REF!+#REF!+#REF!+#REF!+#REF! ->  | E28: =#REF!+#REF!+#REF!+#REF!+#REF!+#REF!+#REF! ->  | F28: =#REF!*0.5 ->  | G28: =#REF!+#REF!+#REF!+#REF!+#REF!+#REF!+#REF! ->  | I28: =#REF!+#REF!+#REF!+#REF!+#REF!+#REF!+#REF! ->  | J28: =#REF!+#REF!+#REF!+#REF!+#REF!+#REF!+#REF! ->  | K28: =#REF!+#REF!+#REF!+#REF!+#REF!+#REF!+#REF! ->  | L28: =#REF!+#REF!+#REF!+#REF!+#REF!+#REF!+#REF! ->  | M28: =#REF!*0.5 ->  | N28: =#REF!+#REF!+#REF!+#REF!+#REF!+#REF!+#REF! ->  | O28: =#REF!+#REF!+#REF!+#REF!+#REF!+#REF!+#REF! ->  | P28: =#REF!+#REF!+#REF!+#REF!+#REF!+#REF!+#REF! ->  | Q28: =#REF!+#REF!+#REF!+#REF!+#REF!+#REF!+#REF! ->  | R28: =#REF!*0.5 ->  | S28: =#REF!+#REF!+#REF!+#REF!+#REF!+#REF!+#REF! ->  | T28: =#REF!+#REF!+#REF!+#REF!+#REF!+#REF!+#REF! ->  | U28: =#REF!+#REF!+#REF!+#REF!+#REF!+#REF!+#REF! ->  | V28: =#REF!+#REF!+#REF!+#REF!+#REF!+#REF!+#REF! ->  | W28: =#REF!*0.5 ->  | X28: =#REF!+#REF!+#REF!+#REF!+#REF!+#REF!+#REF! ->  | Y28: =#REF!+#REF!+#REF!+#REF!+#REF!+#REF!+#REF! -> 
A29: 23 | B29: Iberia | C29: =#REF!+#REF!+#REF!+#REF!+#REF!+#REF!+#REF! ->  | D29: =#REF!+#REF!+#REF!+#REF!+#REF!+#REF!+#REF! ->  | E29: =#REF!+#REF!+#REF!+#REF!+#REF!+#REF!+#REF! ->  | F29: =#REF!*0.5 ->  | G29: =#REF!+#REF!+#REF!+#REF!+#REF!+#REF!+#REF! ->  | I29: =#REF!+#REF!+#REF!+#REF!+#REF!+#REF!+#REF! ->  | J29: =#REF!+#REF!+#REF!+#REF!+#REF!+#REF!+#REF! ->  | K29: =#REF!+#REF!+#REF!+#REF!+#REF!+#REF!+#REF! ->  | L29: =#REF!+#REF!+#REF!+#REF!+#REF!+#REF!+#REF! ->  | M29: =#REF!*0.5 ->  | N29: =#REF!+#REF!+#REF!+#REF!+#REF!+#REF!+#REF! ->  | O29: =#REF!+#REF!+#REF!+#REF!+#REF!+#REF!+#REF! ->  | P29: =#REF!+#REF!+#REF!+#REF!+#REF!+#REF!+#REF! ->  | Q29: =#REF!+#REF!+#REF!+#REF!+#REF!+#REF!+#REF! ->  | R29: =#REF!*0.5 ->  | S29: =#REF!+#REF!+#REF!+#REF!+#REF!+#REF!+#REF! ->  | T29: =#REF!+#REF!+#REF!+#REF!+#REF!+#REF!+#REF! ->  | U29: =#REF!+#REF!+#REF!+#REF!+#REF!+#REF!+#REF! ->  | V29: =#REF!+#REF!+#REF!+#REF!+#REF!+#REF!+#REF! ->  | W29: =#REF!*0.5 ->  | X29: =#REF!+#REF!+#REF!+#REF!+#REF!+#REF!+#REF! ->  | Y29: =#REF!+#REF!+#REF!+#REF!+#REF!+#REF!+#REF! -> 
A30: 24 | B30: Iberville | C30: =#REF!+#REF!+#REF!+#REF!+#REF!+#REF!+#REF! ->  | D30: =#REF!+#REF!+#REF!+#REF!+#REF!+#REF!+#REF! ->  | E30: =#REF!+#REF!+#REF!+#REF!+#REF!+#REF!+#REF! ->  | F30: =#REF!*0.5 ->  | G30: =#REF!+#REF!+#REF!+#REF!+#REF!+#REF!+#REF! ->  | I30: =#REF!+#REF!+#REF!+#REF!+#REF!+#REF!+#REF! ->  | J30: =#REF!+#REF!+#REF!+#REF!+#REF!+#REF!+#REF! ->  | K30: =#REF!+#REF!+#REF!+#REF!+#REF!+#REF!+#REF! ->  | L30: =#REF!+#REF!+#REF!+#REF!+#REF!+#REF!+#REF! ->  | M30: =#REF!*0.5 ->  | N30: =#REF!+#REF!+#REF!+#REF!+#REF!+#REF!+#REF! ->  | O30: =#REF!+#REF!+#REF!+#REF!+#REF!+#REF!+#REF! ->  | P30: =#REF!+#REF!+#REF!+#REF!+#REF!+#REF!+#REF! ->  | Q30: =#REF!+#REF!+#REF!+#REF!+#REF!+#REF!+#REF! ->  | R30: =#REF!*0.5 ->  | S30: =#REF!+#REF!+#REF!+#REF!+#REF!+#REF!+#REF! ->  | T30: =#REF!+#REF!+#REF!+#REF!+#REF!+#REF!+#REF! ->  | U30: =#REF!+#REF!+#REF!+#REF!+#REF!+#REF!+#REF! ->  | V30: =#REF!+#REF!+#REF!+#REF!+#REF!+#REF!+#REF! ->  | W30: =#REF!*0.5 ->  | X30: =#REF!+#REF!+#REF!+#REF!+#REF!+#REF!+#REF! ->  | Y30: =#REF!+#REF!+#REF!+#REF!+#REF!+#REF!+#REF! -> 
A31: 25 | B31: Jackson | C31: =#REF!+#REF!+#REF!+#REF!+#REF!+#REF!+#REF! ->  | D31: =#REF!+#REF!+#REF!+#REF!+#REF!+#REF!+#REF! ->  | E31: =#REF!+#REF!+#REF!+#REF!+#REF!+#REF!+#REF! ->  | F31: =#REF!*0.5 ->  | G31: =#REF!+#REF!+#REF!+#REF!+#REF!+#REF!+#REF! ->  | I31: =#REF!+#REF!+#REF!+#REF!+#REF!+#REF!+#REF! ->  | J31: =#REF!+#REF!+#REF!+#REF!+#REF!+#REF!+#REF! ->  | K31: =#REF!+#REF!+#REF!+#REF!+#REF!+#REF!+#REF! ->  | L31: =#REF!+#REF!+#REF!+#REF!+#REF!+#REF!+#REF! ->  | M31: =#REF!*0.5 ->  | N31: =#REF!+#REF!+#REF!+#REF!+#REF!+#REF!+#REF! ->  | O31: =#REF!+#REF!+#REF!+#REF!+#REF!+#REF!+#REF! ->  | P31: =#REF!+#REF!+#REF!+#REF!+#REF!+#REF!+#REF! ->  | Q31: =#REF!+#REF!+#REF!+#REF!+#REF!+#REF!+#REF! ->  | R31: =#REF!*0.5 ->  | S31: =#REF!+#REF!+#REF!+#REF!+#REF!+#REF!+#REF! ->  | T31: =#REF!+#REF!+#REF!+#REF!+#REF!+#REF!+#REF! ->  | U31: =#REF!+#REF!+#REF!+#REF!+#REF!+#REF!+#REF! ->  | V31: =#REF!+#REF!+#REF!+#REF!+#REF!+#REF!+#REF! ->  | W31: =#REF!*0.5 ->  | X31: =#REF!+#REF!+#REF!+#REF!+#REF!+#REF!+#REF! ->  | Y31: =#REF!+#REF!+#REF!+#REF!+#REF!+#REF!+#REF! -> 
A32: 26 | B32: Jefferson | C32: =#REF!+#REF!+#REF!+#REF!+#REF!+#REF!+#REF! ->  | D32: =#REF!+#REF!+#REF!+#REF!+#REF!+#REF!+#REF! ->  | E32: =#REF!+#REF!+#REF!+#REF!+#REF!+#REF!+#REF! ->  | F32: =#REF!*0.5 ->  | G32: =#REF!+#REF!+#REF!+#REF!+#REF!+#REF!+#REF! ->  | I32: =#REF!+#REF!+#REF!+#REF!+#REF!+#REF!+#REF! ->  | J32: =#REF!+#REF!+#REF!+#REF!+#REF!+#REF!+#REF! ->  | K32: =#REF!+#REF!+#REF!+#REF!+#REF!+#REF!+#REF! ->  | L32: =#REF!+#REF!+#REF!+#REF!+#REF!+#REF!+#REF! ->  | M32: =#REF!*0.5 ->  | N32: =#REF!+#REF!+#REF!+#REF!+#REF!+#REF!+#REF! ->  | O32: =#REF!+#REF!+#REF!+#REF!+#REF!+#REF!+#REF! ->  | P32: =#REF!+#REF!+#REF!+#REF!+#REF!+#REF!+#REF! ->  | Q32: =#REF!+#REF!+#REF!+#REF!+#REF!+#REF!+#REF! ->  | R32: =#REF!*0.5 ->  | S32: =#REF!+#REF!+#REF!+#REF!+#REF!+#REF!+#REF! ->  | T32: =#REF!+#REF!+#REF!+#REF!+#REF!+#REF!+#REF! ->  | U32: =#REF!+#REF!+#REF!+#REF!+#REF!+#REF!+#REF! ->  | V32: =#REF!+#REF!+#REF!+#REF!+#REF!+#REF!+#REF! ->  | W32: =#REF!*0.5 ->  | X32: =#REF!+#REF!+#REF!+#REF!+#REF!+#REF!+#REF! ->  | Y32: =#REF!+#REF!+#REF!+#REF!+#REF!+#REF!+#REF! -> 
A33: 27 | B33: Jefferson Davis | C33: =#REF!+#REF!+#REF!+#REF!+#REF!+#REF!+#REF! ->  | D33: =#REF!+#REF!+#REF!+#REF!+#REF!+#REF!+#REF! ->  | E33: =#REF!+#REF!+#REF!+#REF!+#REF!+#REF!+#REF! ->  | F33: =#REF!*0.5 ->  | G33: =#REF!+#REF!+#REF!+#REF!+#REF!+#REF!+#REF! ->  | I33: =#REF!+#REF!+#REF!+#REF!+#REF!+#REF!+#REF! ->  | J33: =#REF!+#REF!+#REF!+#REF!+#REF!+#REF!+#REF! ->  | K33: =#REF!+#REF!+#REF!+#REF!+#REF!+#REF!+#REF! ->  | L33: =#REF!+#REF!+#REF!+#REF!+#REF!+#REF!+#REF! ->  | M33: =#REF!*0.5 ->  | N33: =#REF!+#REF!+#REF!+#REF!+#REF!+#REF!+#REF! ->  | O33: =#REF!+#REF!+#REF!+#REF!+#REF!+#REF!+#REF! ->  | P33: =#REF!+#REF!+#REF!+#REF!+#REF!+#REF!+#REF! ->  | Q33: =#REF!+#REF!+#REF!+#REF!+#REF!+#REF!+#REF! ->  | R33: =#REF!*0.5 ->  | S33: =#REF!+#REF!+#REF!+#REF!+#REF!+#REF!+#REF! ->  | T33: =#REF!+#REF!+#REF!+#REF!+#REF!+#REF!+#REF! ->  | U33: =#REF!+#REF!+#REF!+#REF!+#REF!+#REF!+#REF! ->  | V33: =#REF!+#REF!+#REF!+#REF!+#REF!+#REF!+#REF! ->  | W33: =#REF!*0.5 ->  | X33: =#REF!+#REF!+#REF!+#REF!+#REF!+#REF!+#REF! ->  | Y33: =#REF!+#REF!+#REF!+#REF!+#REF!+#REF!+#REF! -> 
A34: 28 | B34: Lafayette | C34: =#REF!+#REF!+#REF!+#REF!+#REF!+#REF!+#REF! ->  | D34: =#REF!+#REF!+#REF!+#REF!+#REF!+#REF!+#REF! ->  | E34: =#REF!+#REF!+#REF!+#REF!+#REF!+#REF!+#REF! ->  | F34: =#REF!*0.5 ->  | G34: =#REF!+#REF!+#REF!+#REF!+#REF!+#REF!+#REF! ->  | I34: =#REF!+#REF!+#REF!+#REF!+#REF!+#REF!+#REF! ->  | J34: =#REF!+#REF!+#REF!+#REF!+#REF!+#REF!+#REF! ->  | K34: =#REF!+#REF!+#REF!+#REF!+#REF!+#REF!+#REF! ->  | L34: =#REF!+#REF!+#REF!+#REF!+#REF!+#REF!+#REF! ->  | M34: =#REF!*0.5 ->  | N34: =#REF!+#REF!+#REF!+#REF!+#REF!+#REF!+#REF! ->  | O34: =#REF!+#REF!+#REF!+#REF!+#REF!+#REF!+#REF! ->  | P34: =#REF!+#REF!+#REF!+#REF!+#REF!+#REF!+#REF! ->  | Q34: =#REF!+#REF!+#REF!+#REF!+#REF!+#REF!+#REF! ->  | R34: =#REF!*0.5 ->  | S34: =#REF!+#REF!+#REF!+#REF!+#REF!+#REF!+#REF! ->  | T34: =#REF!+#REF!+#REF!+#REF!+#REF!+#REF!+#REF! ->  | U34: =#REF!+#REF!+#REF!+#REF!+#REF!+#REF!+#REF! ->  | V34: =#REF!+#REF!+#REF!+#REF!+#REF!+#REF!+#REF! ->  | W34: =#REF!*0.5 ->  | X34: =#REF!+#REF!+#REF!+#REF!+#REF!+#REF!+#REF! ->  | Y34: =#REF!+#REF!+#REF!+#REF!+#REF!+#REF!+#REF! -> 
A35: 29 | B35: Lafourche | C35: =#REF!+#REF!+#REF!+#REF!+#REF!+#REF!+#REF! ->  | D35: =#REF!+#REF!+#REF!+#REF!+#REF!+#REF!+#REF! ->  | E35: =#REF!+#REF!+#REF!+#REF!+#REF!+#REF!+#REF! ->  | F35: =#REF!*0.5 ->  | G35: =#REF!+#REF!+#REF!+#REF!+#REF!+#REF!+#REF! ->  | I35: =#REF!+#REF!+#REF!+#REF!+#REF!+#REF!+#REF! ->  | J35: =#REF!+#REF!+#REF!+#REF!+#REF!+#REF!+#REF! ->  | K35: =#REF!+#REF!+#REF!+#REF!+#REF!+#REF!+#REF! ->  | L35: =#REF!+#REF!+#REF!+#REF!+#REF!+#REF!+#REF! ->  | M35: =#REF!*0.5 ->  | N35: =#REF!+#REF!+#REF!+#REF!+#REF!+#REF!+#REF! ->  | O35: =#REF!+#REF!+#REF!+#REF!+#REF!+#REF!+#REF! ->  | P35: =#REF!+#REF!+#REF!+#REF!+#REF!+#REF!+#REF! ->  | Q35: =#REF!+#REF!+#REF!+#REF!+#REF!+#REF!+#REF! ->  | R35: =#REF!*0.5 ->  | S35: =#REF!+#REF!+#REF!+#REF!+#REF!+#REF!+#REF! ->  | T35: =#REF!+#REF!+#REF!+#REF!+#REF!+#REF!+#REF! ->  | U35: =#REF!+#REF!+#REF!+#REF!+#REF!+#REF!+#REF! ->  | V35: =#REF!+#REF!+#REF!+#REF!+#REF!+#REF!+#REF! ->  | W35: =#REF!*0.5 ->  | X35: =#REF!+#REF!+#REF!+#REF!+#REF!+#REF!+#REF! ->  | Y35: =#REF!+#REF!+#REF!+#REF!+#REF!+#REF!+#REF! -> 
A36: 30 | B36: LaSalle | C36: =#REF!+#REF!+#REF!+#REF!+#REF!+#REF!+#REF! ->  | D36: =#REF!+#REF!+#REF!+#REF!+#REF!+#REF!+#REF! ->  | E36: =#REF!+#REF!+#REF!+#REF!+#REF!+#REF!+#REF! ->  | F36: =#REF!*0.5 ->  | G36: =#REF!+#REF!+#REF!+#REF!+#REF!+#REF!+#REF! ->  | I36: =#REF!+#REF!+#REF!+#REF!+#REF!+#REF!+#REF! ->  | J36: =#REF!+#REF!+#REF!+#REF!+#REF!+#REF!+#REF! ->  | K36: =#REF!+#REF!+#REF!+#REF!+#REF!+#REF!+#REF! ->  | L36: =#REF!+#REF!+#REF!+#REF!+#REF!+#REF!+#REF! ->  | M36: =#REF!*0.5 ->  | N36: =#REF!+#REF!+#REF!+#REF!+#REF!+#REF!+#REF! ->  | O36: =#REF!+#REF!+#REF!+#REF!+#REF!+#REF!+#REF! ->  | P36: =#REF!+#REF!+#REF!+#REF!+#REF!+#REF!+#REF! ->  | Q36: =#REF!+#REF!+#REF!+#REF!+#REF!+#REF!+#REF! ->  | R36: =#REF!*0.5 ->  | S36: =#REF!+#REF!+#REF!+#REF!+#REF!+#REF!+#REF! ->  | T36: =#REF!+#REF!+#REF!+#REF!+#REF!+#REF!+#REF! ->  | U36: =#REF!+#REF!+#REF!+#REF!+#REF!+#REF!+#REF! ->  | V36: =#REF!+#REF!+#REF!+#REF!+#REF!+#REF!+#REF! ->  | W36: =#REF!*0.5 ->  | X36: =#REF!+#REF!+#REF!+#REF!+#REF!+#REF!+#REF! ->  | Y36: =#REF!+#REF!+#REF!+#REF!+#REF!+#REF!+#REF! -> 
A37: 31 | B37: Lincoln | C37: =#REF!+#REF!+#REF!+#REF!+#REF!+#REF!+#REF! ->  | D37: =#REF!+#REF!+#REF!+#REF!+#REF!+#REF!+#REF! ->  | E37: =#REF!+#REF!+#REF!+#REF!+#REF!+#REF!+#REF! ->  | F37: =#REF!*0.5 ->  | G37: =#REF!+#REF!+#REF!+#REF!+#REF!+#REF!+#REF! ->  | I37: =#REF!+#REF!+#REF!+#REF!+#REF!+#REF!+#REF! ->  | J37: =#REF!+#REF!+#REF!+#REF!+#REF!+#REF!+#REF! ->  | K37: =#REF!+#REF!+#REF!+#REF!+#REF!+#REF!+#REF! ->  | L37: =#REF!+#REF!+#REF!+#REF!+#REF!+#REF!+#REF! ->  | M37: =#REF!*0.5 ->  | N37: =#REF!+#REF!+#REF!+#REF!+#REF!+#REF!+#REF! ->  | O37: =#REF!+#REF!+#REF!+#REF!+#REF!+#REF!+#REF! ->  | P37: =#REF!+#REF!+#REF!+#REF!+#REF!+#REF!+#REF! ->  | Q37: =#REF!+#REF!+#REF!+#REF!+#REF!+#REF!+#REF! ->  | R37: =#REF!*0.5 ->  | S37: =#REF!+#REF!+#REF!+#REF!+#REF!+#REF!+#REF! ->  | T37: =#REF!+#REF!+#REF!+#REF!+#REF!+#REF!+#REF! ->  | U37: =#REF!+#REF!+#REF!+#REF!+#REF!+#REF!+#REF! ->  | V37: =#REF!+#REF!+#REF!+#REF!+#REF!+#REF!+#REF! ->  | W37: =#REF!*0.5 ->  | X37: =#REF!+#REF!+#REF!+#REF!+#REF!+#REF!+#REF! ->  | Y37: =#REF!+#REF!+#REF!+#REF!+#REF!+#REF!+#REF! -> 
A38: 32 | B38: Livingston | C38: =#REF!+#REF!+#REF!+#REF!+#REF!+#REF!+#REF! ->  | D38: =#REF!+#REF!+#REF!+#REF!+#REF!+#REF!+#REF! ->  | E38: =#REF!+#REF!+#REF!+#REF!+#REF!+#REF!+#REF! ->  | F38: =#REF!*0.5 ->  | G38: =#REF!+#REF!+#REF!+#REF!+#REF!+#REF!+#REF! ->  | I38: =#REF!+#REF!+#REF!+#REF!+#REF!+#REF!+#REF! ->  | J38: =#REF!+#REF!+#REF!+#REF!+#REF!+#REF!+#REF! ->  | K38: =#REF!+#REF!+#REF!+#REF!+#REF!+#REF!+#REF! ->  | L38: =#REF!+#REF!+#REF!+#REF!+#REF!+#REF!+#REF! ->  | M38: =#REF!*0.5 ->  | N38: =#REF!+#REF!+#REF!+#REF!+#REF!+#REF!+#REF! ->  | O38: =#REF!+#REF!+#REF!+#REF!+#REF!+#REF!+#REF! ->  | P38: =#REF!+#REF!+#REF!+#REF!+#REF!+#REF!+#REF! ->  | Q38: =#REF!+#REF!+#REF!+#REF!+#REF!+#REF!+#REF! ->  | R38: =#REF!*0.5 ->  | S38: =#REF!+#REF!+#REF!+#REF!+#REF!+#REF!+#REF! ->  | T38: =#REF!+#REF!+#REF!+#REF!+#REF!+#REF!+#REF! ->  | U38: =#REF!+#REF!+#REF!+#REF!+#REF!+#REF!+#REF! ->  | V38: =#REF!+#REF!+#REF!+#REF!+#REF!+#REF!+#REF! ->  | W38: =#REF!*0.5 ->  | X38: =#REF!+#REF!+#REF!+#REF!+#REF!+#REF!+#REF! ->  | Y38: =#REF!+#REF!+#REF!+#REF!+#REF!+#REF!+#REF! -> 
A39: 33 | B39: Madison | C39: =#REF!+#REF!+#REF!+#REF!+#REF!+#REF!+#REF! ->  | D39: =#REF!+#REF!+#REF!+#REF!+#REF!+#REF!+#REF! ->  | E39: =#REF!+#REF!+#REF!+#REF!+#REF!+#REF!+#REF! ->  | F39: =#REF!*0.5 ->  | G39: =#REF!+#REF!+#REF!+#REF!+#REF!+#REF!+#REF! ->  | I39: =#REF!+#REF!+#REF!+#REF!+#REF!+#REF!+#REF! ->  | J39: =#REF!+#REF!+#REF!+#REF!+#REF!+#REF!+#REF! ->  | K39: =#REF!+#REF!+#REF!+#REF!+#REF!+#REF!+#REF! ->  | L39: =#REF!+#REF!+#REF!+#REF!+#REF!+#REF!+#REF! ->  | M39: =#REF!*0.5 ->  | N39: =#REF!+#REF!+#REF!+#REF!+#REF!+#REF!+#REF! ->  | O39: =#REF!+#REF!+#REF!+#REF!+#REF!+#REF!+#REF! ->  | P39: =#REF!+#REF!+#REF!+#REF!+#REF!+#REF!+#REF! ->  | Q39: =#REF!+#REF!+#REF!+#REF!+#REF!+#REF!+#REF! ->  | R39: =#REF!*0.5 ->  | S39: =#REF!+#REF!+#REF!+#REF!+#REF!+#REF!+#REF! ->  | T39: =#REF!+#REF!+#REF!+#REF!+#REF!+#REF!+#REF! ->  | U39: =#REF!+#REF!+#REF!+#REF!+#REF!+#REF!+#REF! ->  | V39: =#REF!+#REF!+#REF!+#REF!+#REF!+#REF!+#REF! ->  | W39: =#REF!*0.5 ->  | X39: =#REF!+#REF!+#REF!+#REF!+#REF!+#REF!+#REF! ->  | Y39: =#REF!+#REF!+#REF!+#REF!+#REF!+#REF!+#REF! -> 
A40: 34 | B40: Morehouse | C40: =#REF!+#REF!+#REF!+#REF!+#REF!+#REF!+#REF! ->  | D40: =#REF!+#REF!+#REF!+#REF!+#REF!+#REF!+#REF! ->  | E40: =#REF!+#REF!+#REF!+#REF!+#REF!+#REF!+#REF! ->  | F40: =#REF!*0.5 ->  | G40: =#REF!+#REF!+#REF!+#REF!+#REF!+#REF!+#REF! ->  | I40: =#REF!+#REF!+#REF!+#REF!+#REF!+#REF!+#REF! ->  | J40: =#REF!+#REF!+#REF!+#REF!+#REF!+#REF!+#REF! ->  | K40: =#REF!+#REF!+#REF!+#REF!+#REF!+#REF!+#REF! ->  | L40: =#REF!+#REF!+#REF!+#REF!+#REF!+#REF!+#REF! ->  | M40: =#REF!*0.5 ->  | N40: =#REF!+#REF!+#REF!+#REF!+#REF!+#REF!+#REF! ->  | O40: =#REF!+#REF!+#REF!+#REF!+#REF!+#REF!+#REF! ->  | P40: =#REF!+#REF!+#REF!+#REF!+#REF!+#REF!+#REF! ->  | Q40: =#REF!+#REF!+#REF!+#REF!+#REF!+#REF!+#REF! ->  | R40: =#REF!*0.5 ->  | S40: =#REF!+#REF!+#REF!+#REF!+#REF!+#REF!+#REF! ->  | T40: =#REF!+#REF!+#REF!+#REF!+#REF!+#REF!+#REF! ->  | U40: =#REF!+#REF!+#REF!+#REF!+#REF!+#REF!+#REF! ->  | V40: =#REF!+#REF!+#REF!+#REF!+#REF!+#REF!+#REF! ->  | W40: =#REF!*0.5 ->  | X40: =#REF!+#REF!+#REF!+#REF!+#REF!+#REF!+#REF! ->  | Y40: =#REF!+#REF!+#REF!+#REF!+#REF!+#REF!+#REF! -> 
A41: 35 | B41: Natchitoches | C41: =#REF!+#REF!+#REF!+#REF!+#REF!+#REF!+#REF! ->  | D41: =#REF!+#REF!+#REF!+#REF!+#REF!+#REF!+#REF! ->  | E41: =#REF!+#REF!+#REF!+#REF!+#REF!+#REF!+#REF! ->  | F41: =#REF!*0.5 ->  | G41: =#REF!+#REF!+#REF!+#REF!+#REF!+#REF!+#REF! ->  | I41: =#REF!+#REF!+#REF!+#REF!+#REF!+#REF!+#REF! ->  | J41: =#REF!+#REF!+#REF!+#REF!+#REF!+#REF!+#REF! ->  | K41: =#REF!+#REF!+#REF!+#REF!+#REF!+#REF!+#REF! ->  | L41: =#REF!+#REF!+#REF!+#REF!+#REF!+#REF!+#REF! ->  | M41: =#REF!*0.5 ->  | N41: =#REF!+#REF!+#REF!+#REF!+#REF!+#REF!+#REF! ->  | O41: =#REF!+#REF!+#REF!+#REF!+#REF!+#REF!+#REF! ->  | P41: =#REF!+#REF!+#REF!+#REF!+#REF!+#REF!+#REF! ->  | Q41: =#REF!+#REF!+#REF!+#REF!+#REF!+#REF!+#REF! ->  | R41: =#REF!*0.5 ->  | S41: =#REF!+#REF!+#REF!+#REF!+#REF!+#REF!+#REF! ->  | T41: =#REF!+#REF!+#REF!+#REF!+#REF!+#REF!+#REF! ->  | U41: =#REF!+#REF!+#REF!+#REF!+#REF!+#REF!+#REF! ->  | V41: =#REF!+#REF!+#REF!+#REF!+#REF!+#REF!+#REF! ->  | W41: =#REF!*0.5 ->  | X41: =#REF!+#REF!+#REF!+#REF!+#REF!+#REF!+#REF! ->  | Y41: =#REF!+#REF!+#REF!+#REF!+#REF!+#REF!+#REF! -> 
A42: 36 | B42: Orleans | C42: =#REF!+#REF!+#REF!+#REF!+#REF!+#REF!+#REF! ->  | D42: =#REF!+#REF!+#REF!+#REF!+#REF!+#REF!+#REF! ->  | E42: =#REF!+#REF!+#REF!+#REF!+#REF!+#REF!+#REF! ->  | F42: =#REF!*0.5 ->  | G42: =#REF!+#REF!+#REF!+#REF!+#REF!+#REF!+#REF! ->  | I42: =#REF!+#REF!+#REF!+#REF!+#REF!+#REF!+#REF! ->  | J42: =#REF!+#REF!+#REF!+#REF!+#REF!+#REF!+#REF! ->  | K42: =#REF!+#REF!+#REF!+#REF!+#REF!+#REF!+#REF! ->  | L42: =#REF!+#REF!+#REF!+#REF!+#REF!+#REF!+#REF! ->  | M42: =#REF!*0.5 ->  | N42: =#REF!+#REF!+#REF!+#REF!+#REF!+#REF!+#REF! ->  | O42: =#REF!+#REF!+#REF!+#REF!+#REF!+#REF!+#REF! ->  | P42: =#REF!+#REF!+#REF!+#REF!+#REF!+#REF!+#REF! ->  | Q42: =#REF!+#REF!+#REF!+#REF!+#REF!+#REF!+#REF! ->  | R42: =#REF!*0.5 ->  | S42: =#REF!+#REF!+#REF!+#REF!+#REF!+#REF!+#REF! ->  | T42: =#REF!+#REF!+#REF!+#REF!+#REF!+#REF!+#REF! ->  | U42: =#REF!+#REF!+#REF!+#REF!+#REF!+#REF!+#REF! ->  | V42: =#REF!+#REF!+#REF!+#REF!+#REF!+#REF!+#REF! ->  | W42: =#REF!*0.5 ->  | X42: =#REF!+#REF!+#REF!+#REF!+#REF!+#REF!+#REF! ->  | Y42: =#REF!+#REF!+#REF!+#REF!+#REF!+#REF!+#REF! -> 
A43: 37 | B43: Ouachita | C43: =#REF!+#REF!+#REF!+#REF!+#REF!+#REF!+#REF! ->  | D43: =#REF!+#REF!+#REF!+#REF!+#REF!+#REF!+#REF! ->  | E43: =#REF!+#REF!+#REF!+#REF!+#REF!+#REF!+#REF! ->  | F43: =#REF!*0.5 ->  | G43: =#REF!+#REF!+#REF!+#REF!+#REF!+#REF!+#REF! ->  | I43: =#REF!+#REF!+#REF!+#REF!+#REF!+#REF!+#REF! ->  | J43: =#REF!+#REF!+#REF!+#REF!+#REF!+#REF!+#REF! ->  | K43: =#REF!+#REF!+#REF!+#REF!+#REF!+#REF!+#REF! ->  | L43: =#REF!+#REF!+#REF!+#REF!+#REF!+#REF!+#REF! ->  | M43: =#REF!*0.5 ->  | N43: =#REF!+#REF!+#REF!+#REF!+#REF!+#REF!+#REF! ->  | O43: =#REF!+#REF!+#REF!+#REF!+#REF!+#REF!+#REF! ->  | P43: =#REF!+#REF!+#REF!+#REF!+#REF!+#REF!+#REF! ->  | Q43: =#REF!+#REF!+#REF!+#REF!+#REF!+#REF!+#REF! ->  | R43: =#REF!*0.5 ->  | S43: =#REF!+#REF!+#REF!+#REF!+#REF!+#REF!+#REF! ->  | T43: =#REF!+#REF!+#REF!+#REF!+#REF!+#REF!+#REF! ->  | U43: =#REF!+#REF!+#REF!+#REF!+#REF!+#REF!+#REF! ->  | V43: =#REF!+#REF!+#REF!+#REF!+#REF!+#REF!+#REF! ->  | W43: =#REF!*0.5 ->  | X43: =#REF!+#REF!+#REF!+#REF!+#REF!+#REF!+#REF! ->  | Y43: =#REF!+#REF!+#REF!+#REF!+#REF!+#REF!+#REF! -> 
A44: 38 | B44: Plaquemines | C44: =#REF!+#REF!+#REF!+#REF!+#REF!+#REF!+#REF! ->  | D44: =#REF!+#REF!+#REF!+#REF!+#REF!+#REF!+#REF! ->  | E44: =#REF!+#REF!+#REF!+#REF!+#REF!+#REF!+#REF! ->  | F44: =#REF!*0.5 ->  | G44: =#REF!+#REF!+#REF!+#REF!+#REF!+#REF!+#REF! ->  | I44: =#REF!+#REF!+#REF!+#REF!+#REF!+#REF!+#REF! ->  | J44: =#REF!+#REF!+#REF!+#REF!+#REF!+#REF!+#REF! ->  | K44: =#REF!+#REF!+#REF!+#REF!+#REF!+#REF!+#REF! ->  | L44: =#REF!+#REF!+#REF!+#REF!+#REF!+#REF!+#REF! ->  | M44: =#REF!*0.5 ->  | N44: =#REF!+#REF!+#REF!+#REF!+#REF!+#REF!+#REF! ->  | O44: =#REF!+#REF!+#REF!+#REF!+#REF!+#REF!+#REF! ->  | P44: =#REF!+#REF!+#REF!+#REF!+#REF!+#REF!+#REF! ->  | Q44: =#REF!+#REF!+#REF!+#REF!+#REF!+#REF!+#REF! ->  | R44: =#REF!*0.5 ->  | S44: =#REF!+#REF!+#REF!+#REF!+#REF!+#REF!+#REF! ->  | T44: =#REF!+#REF!+#REF!+#REF!+#REF!+#REF!+#REF! ->  | U44: =#REF!+#REF!+#REF!+#REF!+#REF!+#REF!+#REF! ->  | V44: =#REF!+#REF!+#REF!+#REF!+#REF!+#REF!+#REF! ->  | W44: =#REF!*0.5 ->  | X44: =#REF!+#REF!+#REF!+#REF!+#REF!+#REF!+#REF! ->  | Y44: =#REF!+#REF!+#REF!+#REF!+#REF!+#REF!+#REF! -> 
A45: 39 | B45: Pointe Coupee | C45: =#REF!+#REF!+#REF!+#REF!+#REF!+#REF!+#REF! ->  | D45: =#REF!+#REF!+#REF!+#REF!+#REF!+#REF!+#REF! ->  | E45: =#REF!+#REF!+#REF!+#REF!+#REF!+#REF!+#REF! ->  | F45: =#REF!*0.5 ->  | G45: =#REF!+#REF!+#REF!+#REF!+#REF!+#REF!+#REF! ->  | I45: =#REF!+#REF!+#REF!+#REF!+#REF!+#REF!+#REF! ->  | J45: =#REF!+#REF!+#REF!+#REF!+#REF!+#REF!+#REF! ->  | K45: =#REF!+#REF!+#REF!+#REF!+#REF!+#REF!+#REF! ->  | L45: =#REF!+#REF!+#REF!+#REF!+#REF!+#REF!+#REF! ->  | M45: =#REF!*0.5 ->  | N45: =#REF!+#REF!+#REF!+#REF!+#REF!+#REF!+#REF! ->  | O45: =#REF!+#REF!+#REF!+#REF!+#REF!+#REF!+#REF! ->  | P45: =#REF!+#REF!+#REF!+#REF!+#REF!+#REF!+#REF! ->  | Q45: =#REF!+#REF!+#REF!+#REF!+#REF!+#REF!+#REF! ->  | R45: =#REF!*0.5 ->  | S45: =#REF!+#REF!+#REF!+#REF!+#REF!+#REF!+#REF! ->  | T45: =#REF!+#REF!+#REF!+#REF!+#REF!+#REF!+#REF! ->  | U45: =#REF!+#REF!+#REF!+#REF!+#REF!+#REF!+#REF! ->  | V45: =#REF!+#REF!+#REF!+#REF!+#REF!+#REF!+#REF! ->  | W45: =#REF!*0.5 ->  | X45: =#REF!+#REF!+#REF!+#REF!+#REF!+#REF!+#REF! ->  | Y45: =#REF!+#REF!+#REF!+#REF!+#REF!+#REF!+#REF! -> 
A46: 40 | B46: Rapides | C46: =#REF!+#REF!+#REF!+#REF!+#REF!+#REF!+#REF! ->  | D46: =#REF!+#REF!+#REF!+#REF!+#REF!+#REF!+#REF! ->  | E46: =#REF!+#REF!+#REF!+#REF!+#REF!+#REF!+#REF! ->  | F46: =#REF!*0.5 ->  | G46: =#REF!+#REF!+#REF!+#REF!+#REF!+#REF!+#REF! ->  | I46: =#REF!+#REF!+#REF!+#REF!+#REF!+#REF!+#REF! ->  | J46: =#REF!+#REF!+#REF!+#REF!+#REF!+#REF!+#REF! ->  | K46: =#REF!+#REF!+#REF!+#REF!+#REF!+#REF!+#REF! ->  | L46: =#REF!+#REF!+#REF!+#REF!+#REF!+#REF!+#REF! ->  | M46: =#REF!*0.5 ->  | N46: =#REF!+#REF!+#REF!+#REF!+#REF!+#REF!+#REF! ->  | O46: =#REF!+#REF!+#REF!+#REF!+#REF!+#REF!+#REF! ->  | P46: =#REF!+#REF!+#REF!+#REF!+#REF!+#REF!+#REF! ->  | Q46: =#REF!+#REF!+#REF!+#REF!+#REF!+#REF!+#REF! ->  | R46: =#REF!*0.5 ->  | S46: =#REF!+#REF!+#REF!+#REF!+#REF!+#REF!+#REF! ->  | T46: =#REF!+#REF!+#REF!+#REF!+#REF!+#REF!+#REF! ->  | U46: =#REF!+#REF!+#REF!+#REF!+#REF!+#REF!+#REF! ->  | V46: =#REF!+#REF!+#REF!+#REF!+#REF!+#REF!+#REF! ->  | W46: =#REF!*0.5 ->  | X46: =#REF!+#REF!+#REF!+#REF!+#REF!+#REF!+#REF! ->  | Y46: =#REF!+#REF!+#REF!+#REF!+#REF!+#REF!+#REF! -> 
A47: 41 | B47: Red River | C47: =#REF!+#REF!+#REF!+#REF!+#REF!+#REF!+#REF! ->  | D47: =#REF!+#REF!+#REF!+#REF!+#REF!+#REF!+#REF! ->  | E47: =#REF!+#REF!+#REF!+#REF!+#REF!+#REF!+#REF! ->  | F47: =#REF!*0.5 ->  | G47: =#REF!+#REF!+#REF!+#REF!+#REF!+#REF!+#REF! ->  | I47: =#REF!+#REF!+#REF!+#REF!+#REF!+#REF!+#REF! ->  | J47: =#REF!+#REF!+#REF!+#REF!+#REF!+#REF!+#REF! ->  | K47: =#REF!+#REF!+#REF!+#REF!+#REF!+#REF!+#REF! ->  | L47: =#REF!+#REF!+#REF!+#REF!+#REF!+#REF!+#REF! ->  | M47: =#REF!*0.5 ->  | N47: =#REF!+#REF!+#REF!+#REF!+#REF!+#REF!+#REF! ->  | O47: =#REF!+#REF!+#REF!+#REF!+#REF!+#REF!+#REF! ->  | P47: =#REF!+#REF!+#REF!+#REF!+#REF!+#REF!+#REF! ->  | Q47: =#REF!+#REF!+#REF!+#REF!+#REF!+#REF!+#REF! ->  | R47: =#REF!*0.5 ->  | S47: =#REF!+#REF!+#REF!+#REF!+#REF!+#REF!+#REF! ->  | T47: =#REF!+#REF!+#REF!+#REF!+#REF!+#REF!+#REF! ->  | U47: =#REF!+#REF!+#REF!+#REF!+#REF!+#REF!+#REF! ->  | V47: =#REF!+#REF!+#REF!+#REF!+#REF!+#REF!+#REF! ->  | W47: =#REF!*0.5 ->  | X47: =#REF!+#REF!+#REF!+#REF!+#REF!+#REF!+#REF! ->  | Y47: =#REF!+#REF!+#REF!+#REF!+#REF!+#REF!+#REF! -> 
A48: 42 | B48: Richland | C48: =#REF!+#REF!+#REF!+#REF!+#REF!+#REF!+#REF! ->  | D48: =#REF!+#REF!+#REF!+#REF!+#REF!+#REF!+#REF! ->  | E48: =#REF!+#REF!+#REF!+#REF!+#REF!+#REF!+#REF! ->  | F48: =#REF!*0.5 ->  | G48: =#REF!+#REF!+#REF!+#REF!+#REF!+#REF!+#REF! ->  | I48: =#REF!+#REF!+#REF!+#REF!+#REF!+#REF!+#REF! ->  | J48: =#REF!+#REF!+#REF!+#REF!+#REF!+#REF!+#REF! ->  | K48: =#REF!+#REF!+#REF!+#REF!+#REF!+#REF!+#REF! ->  | L48: =#REF!+#REF!+#REF!+#REF!+#REF!+#REF!+#REF! ->  | M48: =#REF!*0.5 ->  | N48: =#REF!+#REF!+#REF!+#REF!+#REF!+#REF!+#REF! ->  | O48: =#REF!+#REF!+#REF!+#REF!+#REF!+#REF!+#REF! ->  | P48: =#REF!+#REF!+#REF!+#REF!+#REF!+#REF!+#REF! ->  | Q48: =#REF!+#REF!+#REF!+#REF!+#REF!+#REF!+#REF! ->  | R48: =#REF!*0.5 ->  | S48: =#REF!+#REF!+#REF!+#REF!+#REF!+#REF!+#REF! ->  | T48: =#REF!+#REF!+#REF!+#REF!+#REF!+#REF!+#REF! ->  | U48: =#REF!+#REF!+#REF!+#REF!+#REF!+#REF!+#REF! ->  | V48: =#REF!+#REF!+#REF!+#REF!+#REF!+#REF!+#REF! ->  | W48: =#REF!*0.5 ->  | X48: =#REF!+#REF!+#REF!+#REF!+#REF!+#REF!+#REF! ->  | Y48: =#REF!+#REF!+#REF!+#REF!+#REF!+#REF!+#REF! -> 
A49: 43 | B49: Sabine | C49: =#REF!+#REF!+#REF!+#REF!+#REF!+#REF!+#REF! ->  | D49: =#REF!+#REF!+#REF!+#REF!+#REF!+#REF!+#REF! ->  | E49: =#REF!+#REF!+#REF!+#REF!+#REF!+#REF!+#REF! ->  | F49: =#REF!*0.5 ->  | G49: =#REF!+#REF!+#REF!+#REF!+#REF!+#REF!+#REF! ->  | I49: =#REF!+#REF!+#REF!+#REF!+#REF!+#REF!+#REF! ->  | J49: =#REF!+#REF!+#REF!+#REF!+#REF!+#REF!+#REF! ->  | K49: =#REF!+#REF!+#REF!+#REF!+#REF!+#REF!+#REF! ->  | L49: =#REF!+#REF!+#REF!+#REF!+#REF!+#REF!+#REF! ->  | M49: =#REF!*0.5 ->  | N49: =#REF!+#REF!+#REF!+#REF!+#REF!+#REF!+#REF! ->  | O49: =#REF!+#REF!+#REF!+#REF!+#REF!+#REF!+#REF! ->  | P49: =#REF!+#REF!+#REF!+#REF!+#REF!+#REF!+#REF! ->  | Q49: =#REF!+#REF!+#REF!+#REF!+#REF!+#REF!+#REF! ->  | R49: =#REF!*0.5 ->  | S49: =#REF!+#REF!+#REF!+#REF!+#REF!+#REF!+#REF! ->  | T49: =#REF!+#REF!+#REF!+#REF!+#REF!+#REF!+#REF! ->  | U49: =#REF!+#REF!+#REF!+#REF!+#REF!+#REF!+#REF! ->  | V49: =#REF!+#REF!+#REF!+#REF!+#REF!+#REF!+#REF! ->  | W49: =#REF!*0.5 ->  | X49: =#REF!+#REF!+#REF!+#REF!+#REF!+#REF!+#REF! ->  | Y49: =#REF!+#REF!+#REF!+#REF!+#REF!+#REF!+#REF! -> 
A50: 44 | B50: St. Bernard | C50: =#REF!+#REF!+#REF!+#REF!+#REF!+#REF!+#REF! ->  | D50: =#REF!+#REF!+#REF!+#REF!+#REF!+#REF!+#REF! ->  | E50: =#REF!+#REF!+#REF!+#REF!+#REF!+#REF!+#REF! ->  | F50: =#REF!*0.5 ->  | G50: =#REF!+#REF!+#REF!+#REF!+#REF!+#REF!+#REF! ->  | I50: =#REF!+#REF!+#REF!+#REF!+#REF!+#REF!+#REF! ->  | J50: =#REF!+#REF!+#REF!+#REF!+#REF!+#REF!+#REF! ->  | K50: =#REF!+#REF!+#REF!+#REF!+#REF!+#REF!+#REF! ->  | L50: =#REF!+#REF!+#REF!+#REF!+#REF!+#REF!+#REF! ->  | M50: =#REF!*0.5 ->  | N50: =#REF!+#REF!+#REF!+#REF!+#REF!+#REF!+#REF! ->  | O50: =#REF!+#REF!+#REF!+#REF!+#REF!+#REF!+#REF! ->  | P50: =#REF!+#REF!+#REF!+#REF!+#REF!+#REF!+#REF! ->  | Q50: =#REF!+#REF!+#REF!+#REF!+#REF!+#REF!+#REF! ->  | R50: =#REF!*0.5 ->  | S50: =#REF!+#REF!+#REF!+#REF!+#REF!+#REF!+#REF! ->  | T50: =#REF!+#REF!+#REF!+#REF!+#REF!+#REF!+#REF! ->  | U50: =#REF!+#REF!+#REF!+#REF!+#REF!+#REF!+#REF! ->  | V50: =#REF!+#REF!+#REF!+#REF!+#REF!+#REF!+#REF! ->  | W50: =#REF!*0.5 ->  | X50: =#REF!+#REF!+#REF!+#REF!+#REF!+#REF!+#REF! ->  | Y50: =#REF!+#REF!+#REF!+#REF!+#REF!+#REF!+#REF! -> 
A51: 45 | B51: St. Charles | C51: =#REF!+#REF!+#REF!+#REF!+#REF!+#REF!+#REF! ->  | D51: =#REF!+#REF!+#REF!+#REF!+#REF!+#REF!+#REF! ->  | E51: =#REF!+#REF!+#REF!+#REF!+#REF!+#REF!+#REF! ->  | F51: =#REF!*0.5 ->  | G51: =#REF!+#REF!+#REF!+#REF!+#REF!+#REF!+#REF! ->  | I51: =#REF!+#REF!+#REF!+#REF!+#REF!+#REF!+#REF! ->  | J51: =#REF!+#REF!+#REF!+#REF!+#REF!+#REF!+#REF! ->  | K51: =#REF!+#REF!+#REF!+#REF!+#REF!+#REF!+#REF! ->  | L51: =#REF!+#REF!+#REF!+#REF!+#REF!+#REF!+#REF! ->  | M51: =#REF!*0.5 ->  | N51: =#REF!+#REF!+#REF!+#REF!+#REF!+#REF!+#REF! ->  | O51: =#REF!+#REF!+#REF!+#REF!+#REF!+#REF!+#REF! ->  | P51: =#REF!+#REF!+#REF!+#REF!+#REF!+#REF!+#REF! ->  | Q51: =#REF!+#REF!+#REF!+#REF!+#REF!+#REF!+#REF! ->  | R51: =#REF!*0.5 ->  | S51: =#REF!+#REF!+#REF!+#REF!+#REF!+#REF!+#REF! ->  | T51: =#REF!+#REF!+#REF!+#REF!+#REF!+#REF!+#REF! ->  | U51: =#REF!+#REF!+#REF!+#REF!+#REF!+#REF!+#REF! ->  | V51: =#REF!+#REF!+#REF!+#REF!+#REF!+#REF!+#REF! ->  | W51: =#REF!*0.5 ->  | X51: =#REF!+#REF!+#REF!+#REF!+#REF!+#REF!+#REF! ->  | Y51: =#REF!+#REF!+#REF!+#REF!+#REF!+#REF!+#REF! -> 
A52: 46 | B52: St. Helena | C52: =#REF!+#REF!+#REF!+#REF!+#REF!+#REF!+#REF! ->  | D52: =#REF!+#REF!+#REF!+#REF!+#REF!+#REF!+#REF! ->  | E52: =#REF!+#REF!+#REF!+#REF!+#REF!+#REF!+#REF! ->  | F52: =#REF!*0.5 ->  | G52: =#REF!+#REF!+#REF!+#REF!+#REF!+#REF!+#REF! ->  | I52: =#REF!+#REF!+#REF!+#REF!+#REF!+#REF!+#REF! ->  | J52: =#REF!+#REF!+#REF!+#REF!+#REF!+#REF!+#REF! ->  | K52: =#REF!+#REF!+#REF!+#REF!+#REF!+#REF!+#REF! ->  | L52: =#REF!+#REF!+#REF!+#REF!+#REF!+#REF!+#REF! ->  | M52: =#REF!*0.5 ->  | N52: =#REF!+#REF!+#REF!+#REF!+#REF!+#REF!+#REF! ->  | O52: =#REF!+#REF!+#REF!+#REF!+#REF!+#REF!+#REF! ->  | P52: =#REF!+#REF!+#REF!+#REF!+#REF!+#REF!+#REF! ->  | Q52: =#REF!+#REF!+#REF!+#REF!+#REF!+#REF!+#REF! ->  | R52: =#REF!*0.5 ->  | S52: =#REF!+#REF!+#REF!+#REF!+#REF!+#REF!+#REF! ->  | T52: =#REF!+#REF!+#REF!+#REF!+#REF!+#REF!+#REF! ->  | U52: =#REF!+#REF!+#REF!+#REF!+#REF!+#REF!+#REF! ->  | V52: =#REF!+#REF!+#REF!+#REF!+#REF!+#REF!+#REF! ->  | W52: =#REF!*0.5 ->  | X52: =#REF!+#REF!+#REF!+#REF!+#REF!+#REF!+#REF! ->  | Y52: =#REF!+#REF!+#REF!+#REF!+#REF!+#REF!+#REF! -> 
A53: 47 | B53: St. James | C53: =#REF!+#REF!+#REF!+#REF!+#REF!+#REF!+#REF! ->  | D53: =#REF!+#REF!+#REF!+#REF!+#REF!+#REF!+#REF! ->  | E53: =#REF!+#REF!+#REF!+#REF!+#REF!+#REF!+#REF! ->  | F53: =#REF!*0.5 ->  | G53: =#REF!+#REF!+#REF!+#REF!+#REF!+#REF!+#REF! ->  | I53: =#REF!+#REF!+#REF!+#REF!+#REF!+#REF!+#REF! ->  | J53: =#REF!+#REF!+#REF!+#REF!+#REF!+#REF!+#REF! ->  | K53: =#REF!+#REF!+#REF!+#REF!+#REF!+#REF!+#REF! ->  | L53: =#REF!+#REF!+#REF!+#REF!+#REF!+#REF!+#REF! ->  | M53: =#REF!*0.5 ->  | N53: =#REF!+#REF!+#REF!+#REF!+#REF!+#REF!+#REF! ->  | O53: =#REF!+#REF!+#REF!+#REF!+#REF!+#REF!+#REF! ->  | P53: =#REF!+#REF!+#REF!+#REF!+#REF!+#REF!+#REF! ->  | Q53: =#REF!+#REF!+#REF!+#REF!+#REF!+#REF!+#REF! ->  | R53: =#REF!*0.5 ->  | S53: =#REF!+#REF!+#REF!+#REF!+#REF!+#REF!+#REF! ->  | T53: =#REF!+#REF!+#REF!+#REF!+#REF!+#REF!+#REF! ->  | U53: =#REF!+#REF!+#REF!+#REF!+#REF!+#REF!+#REF! ->  | V53: =#REF!+#REF!+#REF!+#REF!+#REF!+#REF!+#REF! ->  | W53: =#REF!*0.5 ->  | X53: =#REF!+#REF!+#REF!+#REF!+#REF!+#REF!+#REF! ->  | Y53: =#REF!+#REF!+#REF!+#REF!+#REF!+#REF!+#REF! -> 
A54: 48 | B54: St. John the Baptist | C54: =#REF!+#REF!+#REF!+#REF!+#REF!+#REF!+#REF! ->  | D54: =#REF!+#REF!+#REF!+#REF!+#REF!+#REF!+#REF! ->  | E54: =#REF!+#REF!+#REF!+#REF!+#REF!+#REF!+#REF! ->  | F54: =#REF!*0.5 ->  | G54: =#REF!+#REF!+#REF!+#REF!+#REF!+#REF!+#REF! ->  | I54: =#REF!+#REF!+#REF!+#REF!+#REF!+#REF!+#REF! ->  | J54: =#REF!+#REF!+#REF!+#REF!+#REF!+#REF!+#REF! ->  | K54: =#REF!+#REF!+#REF!+#REF!+#REF!+#REF!+#REF! ->  | L54: =#REF!+#REF!+#REF!+#REF!+#REF!+#REF!+#REF! ->  | M54: =#REF!*0.5 ->  | N54: =#REF!+#REF!+#REF!+#REF!+#REF!+#REF!+#REF! ->  | O54: =#REF!+#REF!+#REF!+#REF!+#REF!+#REF!+#REF! ->  | P54: =#REF!+#REF!+#REF!+#REF!+#REF!+#REF!+#REF! ->  | Q54: =#REF!+#REF!+#REF!+#REF!+#REF!+#REF!+#REF! ->  | R54: =#REF!*0.5 ->  | S54: =#REF!+#REF!+#REF!+#REF!+#REF!+#REF!+#REF! ->  | T54: =#REF!+#REF!+#REF!+#REF!+#REF!+#REF!+#REF! ->  | U54: =#REF!+#REF!+#REF!+#REF!+#REF!+#REF!+#REF! ->  | V54: =#REF!+#REF!+#REF!+#REF!+#REF!+#REF!+#REF! ->  | W54: =#REF!*0.5 ->  | X54: =#REF!+#REF!+#REF!+#REF!+#REF!+#REF!+#REF! ->  | Y54: =#REF!+#REF!+#REF!+#REF!+#REF!+#REF!+#REF! -> 
A55: 49 | B55: St. Landry | C55: =#REF!+#REF!+#REF!+#REF!+#REF!+#REF!+#REF! ->  | D55: =#REF!+#REF!+#REF!+#REF!+#REF!+#REF!+#REF! ->  | E55: =#REF!+#REF!+#REF!+#REF!+#REF!+#REF!+#REF! ->  | F55: =#REF!*0.5 ->  | G55: =#REF!+#REF!+#REF!+#REF!+#REF!+#REF!+#REF! ->  | I55: =#REF!+#REF!+#REF!+#REF!+#REF!+#REF!+#REF! ->  | J55: =#REF!+#REF!+#REF!+#REF!+#REF!+#REF!+#REF! ->  | K55: =#REF!+#REF!+#REF!+#REF!+#REF!+#REF!+#REF! ->  | L55: =#REF!+#REF!+#REF!+#REF!+#REF!+#REF!+#REF! ->  | M55: =#REF!*0.5 ->  | N55: =#REF!+#REF!+#REF!+#REF!+#REF!+#REF!+#REF! ->  | O55: =#REF!+#REF!+#REF!+#REF!+#REF!+#REF!+#REF! ->  | P55: =#REF!+#REF!+#REF!+#REF!+#REF!+#REF!+#REF! ->  | Q55: =#REF!+#REF!+#REF!+#REF!+#REF!+#REF!+#REF! ->  | R55: =#REF!*0.5 ->  | S55: =#REF!+#REF!+#REF!+#REF!+#REF!+#REF!+#REF! ->  | T55: =#REF!+#REF!+#REF!+#REF!+#REF!+#REF!+#REF! ->  | U55: =#REF!+#REF!+#REF!+#REF!+#REF!+#REF!+#REF! ->  | V55: =#REF!+#REF!+#REF!+#REF!+#REF!+#REF!+#REF! ->  | W55: =#REF!*0.5 ->  | X55: =#REF!+#REF!+#REF!+#REF!+#REF!+#REF!+#REF! ->  | Y55: =#REF!+#REF!+#REF!+#REF!+#REF!+#REF!+#REF! -> 
A56: 50 | B56: St. Martin | C56: =#REF!+#REF!+#REF!+#REF!+#REF!+#REF!+#REF! ->  | D56: =#REF!+#REF!+#REF!+#REF!+#REF!+#REF!+#REF! ->  | E56: =#REF!+#REF!+#REF!+#REF!+#REF!+#REF!+#REF! ->  | F56: =#REF!*0.5 ->  | G56: =#REF!+#REF!+#REF!+#REF!+#REF!+#REF!+#REF! ->  | I56: =#REF!+#REF!+#REF!+#REF!+#REF!+#REF!+#REF! ->  | J56: =#REF!+#REF!+#REF!+#REF!+#REF!+#REF!+#REF! ->  | K56: =#REF!+#REF!+#REF!+#REF!+#REF!+#REF!+#REF! ->  | L56: =#REF!+#REF!+#REF!+#REF!+#REF!+#REF!+#REF! ->  | M56: =#REF!*0.5 ->  | N56: =#REF!+#REF!+#REF!+#REF!+#REF!+#REF!+#REF! ->  | O56: =#REF!+#REF!+#REF!+#REF!+#REF!+#REF!+#REF! ->  | P56: =#REF!+#REF!+#REF!+#REF!+#REF!+#REF!+#REF! ->  | Q56: =#REF!+#REF!+#REF!+#REF!+#REF!+#REF!+#REF! ->  | R56: =#REF!*0.5 ->  | S56: =#REF!+#REF!+#REF!+#REF!+#REF!+#REF!+#REF! ->  | T56: =#REF!+#REF!+#REF!+#REF!+#REF!+#REF!+#REF! ->  | U56: =#REF!+#REF!+#REF!+#REF!+#REF!+#REF!+#REF! ->  | V56: =#REF!+#REF!+#REF!+#REF!+#REF!+#REF!+#REF! ->  | W56: =#REF!*0.5 ->  | X56: =#REF!+#REF!+#REF!+#REF!+#REF!+#REF!+#REF! ->  | Y56: =#REF!+#REF!+#REF!+#REF!+#REF!+#REF!+#REF! -> 
A57: 51 | B57: St. Mary | C57: =#REF!+#REF!+#REF!+#REF!+#REF!+#REF!+#REF! ->  | D57: =#REF!+#REF!+#REF!+#REF!+#REF!+#REF!+#REF! ->  | E57: =#REF!+#REF!+#REF!+#REF!+#REF!+#REF!+#REF! ->  | F57: =#REF!*0.5 ->  | G57: =#REF!+#REF!+#REF!+#REF!+#REF!+#REF!+#REF! ->  | I57: =#REF!+#REF!+#REF!+#REF!+#REF!+#REF!+#REF! ->  | J57: =#REF!+#REF!+#REF!+#REF!+#REF!+#REF!+#REF! ->  | K57: =#REF!+#REF!+#REF!+#REF!+#REF!+#REF!+#REF! ->  | L57: =#REF!+#REF!+#REF!+#REF!+#REF!+#REF!+#REF! ->  | M57: =#REF!*0.5 ->  | N57: =#REF!+#REF!+#REF!+#REF!+#REF!+#REF!+#REF! ->  | O57: =#REF!+#REF!+#REF!+#REF!+#REF!+#REF!+#REF! ->  | P57: =#REF!+#REF!+#REF!+#REF!+#REF!+#REF!+#REF! ->  | Q57: =#REF!+#REF!+#REF!+#REF!+#REF!+#REF!+#REF! ->  | R57: =#REF!*0.5 ->  | S57: =#REF!+#REF!+#REF!+#REF!+#REF!+#REF!+#REF! ->  | T57: =#REF!+#REF!+#REF!+#REF!+#REF!+#REF!+#REF! ->  | U57: =#REF!+#REF!+#REF!+#REF!+#REF!+#REF!+#REF! ->  | V57: =#REF!+#REF!+#REF!+#REF!+#REF!+#REF!+#REF! ->  | W57: =#REF!*0.5 ->  | X57: =#REF!+#REF!+#REF!+#REF!+#REF!+#REF!+#REF! ->  | Y57: =#REF!+#REF!+#REF!+#REF!+#REF!+#REF!+#REF! -> 
A58: 52 | B58: St. Tammany | C58: =#REF!+#REF!+#REF!+#REF!+#REF!+#REF!+#REF! ->  | D58: =#REF!+#REF!+#REF!+#REF!+#REF!+#REF!+#REF! ->  | E58: =#REF!+#REF!+#REF!+#REF!+#REF!+#REF!+#REF! ->  | F58: =#REF!*0.5 ->  | G58: =#REF!+#REF!+#REF!+#REF!+#REF!+#REF!+#REF! ->  | I58: =#REF!+#REF!+#REF!+#REF!+#REF!+#REF!+#REF! ->  | J58: =#REF!+#REF!+#REF!+#REF!+#REF!+#REF!+#REF! ->  | K58: =#REF!+#REF!+#REF!+#REF!+#REF!+#REF!+#REF! ->  | L58: =#REF!+#REF!+#REF!+#REF!+#REF!+#REF!+#REF! ->  | M58: =#REF!*0.5 ->  | N58: =#REF!+#REF!+#REF!+#REF!+#REF!+#REF!+#REF! ->  | O58: =#REF!+#REF!+#REF!+#REF!+#REF!+#REF!+#REF! ->  | P58: =#REF!+#REF!+#REF!+#REF!+#REF!+#REF!+#REF! ->  | Q58: =#REF!+#REF!+#REF!+#REF!+#REF!+#REF!+#REF! ->  | R58: =#REF!*0.5 ->  | S58: =#REF!+#REF!+#REF!+#REF!+#REF!+#REF!+#REF! ->  | T58: =#REF!+#REF!+#REF!+#REF!+#REF!+#REF!+#REF! ->  | U58: =#REF!+#REF!+#REF!+#REF!+#REF!+#REF!+#REF! ->  | V58: =#REF!+#REF!+#REF!+#REF!+#REF!+#REF!+#REF! ->  | W58: =#REF!*0.5 ->  | X58: =#REF!+#REF!+#REF!+#REF!+#REF!+#REF!+#REF! ->  | Y58: =#REF!+#REF!+#REF!+#REF!+#REF!+#REF!+#REF! -> 
A59: 53 | B59: Tangipahoa | C59: =#REF!+#REF!+#REF!+#REF!+#REF!+#REF!+#REF! ->  | D59: =#REF!+#REF!+#REF!+#REF!+#REF!+#REF!+#REF! ->  | E59: =#REF!+#REF!+#REF!+#REF!+#REF!+#REF!+#REF! ->  | F59: =#REF!*0.5 ->  | G59: =#REF!+#REF!+#REF!+#REF!+#REF!+#REF!+#REF! ->  | I59: =#REF!+#REF!+#REF!+#REF!+#REF!+#REF!+#REF! ->  | J59: =#REF!+#REF!+#REF!+#REF!+#REF!+#REF!+#REF! ->  | K59: =#REF!+#REF!+#REF!+#REF!+#REF!+#REF!+#REF! ->  | L59: =#REF!+#REF!+#REF!+#REF!+#REF!+#REF!+#REF! ->  | M59: =#REF!*0.5 ->  | N59: =#REF!+#REF!+#REF!+#REF!+#REF!+#REF!+#REF! ->  | O59: =#REF!+#REF!+#REF!+#REF!+#REF!+#REF!+#REF! ->  | P59: =#REF!+#REF!+#REF!+#REF!+#REF!+#REF!+#REF! ->  | Q59: =#REF!+#REF!+#REF!+#REF!+#REF!+#REF!+#REF! ->  | R59: =#REF!*0.5 ->  | S59: =#REF!+#REF!+#REF!+#REF!+#REF!+#REF!+#REF! ->  | T59: =#REF!+#REF!+#REF!+#REF!+#REF!+#REF!+#REF! ->  | U59: =#REF!+#REF!+#REF!+#REF!+#REF!+#REF!+#REF! ->  | V59: =#REF!+#REF!+#REF!+#REF!+#REF!+#REF!+#REF! ->  | W59: =#REF!*0.5 ->  | X59: =#REF!+#REF!+#REF!+#REF!+#REF!+#REF!+#REF! ->  | Y59: =#REF!+#REF!+#REF!+#REF!+#REF!+#REF!+#REF! -> 
A60: 54 | B60: Tensas | C60: =#REF!+#REF!+#REF!+#REF!+#REF!+#REF!+#REF! ->  | D60: =#REF!+#REF!+#REF!+#REF!+#REF!+#REF!+#REF! ->  | E60: =#REF!+#REF!+#REF!+#REF!+#REF!+#REF!+#REF! ->  | F60: =#REF!*0.5 ->  | G60: =#REF!+#REF!+#REF!+#REF!+#REF!+#REF!+#REF! ->  | I60: =#REF!+#REF!+#REF!+#REF!+#REF!+#REF!+#REF! ->  | J60: =#REF!+#REF!+#REF!+#REF!+#REF!+#REF!+#REF! ->  | K60: =#REF!+#REF!+#REF!+#REF!+#REF!+#REF!+#REF! ->  | L60: =#REF!+#REF!+#REF!+#REF!+#REF!+#REF!+#REF! ->  | M60: =#REF!*0.5 ->  | N60: =#REF!+#REF!+#REF!+#REF!+#REF!+#REF!+#REF! ->  | O60: =#REF!+#REF!+#REF!+#REF!+#REF!+#REF!+#REF! ->  | P60: =#REF!+#REF!+#REF!+#REF!+#REF!+#REF!+#REF! ->  | Q60: =#REF!+#REF!+#REF!+#REF!+#REF!+#REF!+#REF! ->  | R60: =#REF!*0.5 ->  | S60: =#REF!+#REF!+#REF!+#REF!+#REF!+#REF!+#REF! ->  | T60: =#REF!+#REF!+#REF!+#REF!+#REF!+#REF!+#REF! ->  | U60: =#REF!+#REF!+#REF!+#REF!+#REF!+#REF!+#REF! ->  | V60: =#REF!+#REF!+#REF!+#REF!+#REF!+#REF!+#REF! ->  | W60: =#REF!*0.5 ->  | X60: =#REF!+#REF!+#REF!+#REF!+#REF!+#REF!+#REF! ->  | Y60: =#REF!+#REF!+#REF!+#REF!+#REF!+#REF!+#REF! -> 
A61: 55 | B61: Terrebonne | C61: =#REF!+#REF!+#REF!+#REF!+#REF!+#REF!+#REF! ->  | D61: =#REF!+#REF!+#REF!+#REF!+#REF!+#REF!+#REF! ->  | E61: =#REF!+#REF!+#REF!+#REF!+#REF!+#REF!+#REF! ->  | F61: =#REF!*0.5 ->  | G61: =#REF!+#REF!+#REF!+#REF!+#REF!+#REF!+#REF! ->  | I61: =#REF!+#REF!+#REF!+#REF!+#REF!+#REF!+#REF! ->  | J61: =#REF!+#REF!+#REF!+#REF!+#REF!+#REF!+#REF! ->  | K61: =#REF!+#REF!+#REF!+#REF!+#REF!+#REF!+#REF! ->  | L61: =#REF!+#REF!+#REF!+#REF!+#REF!+#REF!+#REF! ->  | M61: =#REF!*0.5 ->  | N61: =#REF!+#REF!+#REF!+#REF!+#REF!+#REF!+#REF! ->  | O61: =#REF!+#REF!+#REF!+#REF!+#REF!+#REF!+#REF! ->  | P61: =#REF!+#REF!+#REF!+#REF!+#REF!+#REF!+#REF! ->  | Q61: =#REF!+#REF!+#REF!+#REF!+#REF!+#REF!+#REF! ->  | R61: =#REF!*0.5 ->  | S61: =#REF!+#REF!+#REF!+#REF!+#REF!+#REF!+#REF! ->  | T61: =#REF!+#REF!+#REF!+#REF!+#REF!+#REF!+#REF! ->  | U61: =#REF!+#REF!+#REF!+#REF!+#REF!+#REF!+#REF! ->  | V61: =#REF!+#REF!+#REF!+#REF!+#REF!+#REF!+#REF! ->  | W61: =#REF!*0.5 ->  | X61: =#REF!+#REF!+#REF!+#REF!+#REF!+#REF!+#REF! ->  | Y61: =#REF!+#REF!+#REF!+#REF!+#REF!+#REF!+#REF! -> 
A62: 56 | B62: Union | C62: =#REF!+#REF!+#REF!+#REF!+#REF!+#REF!+#REF! ->  | D62: =#REF!+#REF!+#REF!+#REF!+#REF!+#REF!+#REF! ->  | E62: =#REF!+#REF!+#REF!+#REF!+#REF!+#REF!+#REF! ->  | F62: =#REF!*0.5 ->  | G62: =#REF!+#REF!+#REF!+#REF!+#REF!+#REF!+#REF! ->  | I62: =#REF!+#REF!+#REF!+#REF!+#REF!+#REF!+#REF! ->  | J62: =#REF!+#REF!+#REF!+#REF!+#REF!+#REF!+#REF! ->  | K62: =#REF!+#REF!+#REF!+#REF!+#REF!+#REF!+#REF! ->  | L62: =#REF!+#REF!+#REF!+#REF!+#REF!+#REF!+#REF! ->  | M62: =#REF!*0.5 ->  | N62: =#REF!+#REF!+#REF!+#REF!+#REF!+#REF!+#REF! ->  | O62: =#REF!+#REF!+#REF!+#REF!+#REF!+#REF!+#REF! ->  | P62: =#REF!+#REF!+#REF!+#REF!+#REF!+#REF!+#REF! ->  | Q62: =#REF!+#REF!+#REF!+#REF!+#REF!+#REF!+#REF! ->  | R62: =#REF!*0.5 ->  | S62: =#REF!+#REF!+#REF!+#REF!+#REF!+#REF!+#REF! ->  | T62: =#REF!+#REF!+#REF!+#REF!+#REF!+#REF!+#REF! ->  | U62: =#REF!+#REF!+#REF!+#REF!+#REF!+#REF!+#REF! ->  | V62: =#REF!+#REF!+#REF!+#REF!+#REF!+#REF!+#REF! ->  | W62: =#REF!*0.5 ->  | X62: =#REF!+#REF!+#REF!+#REF!+#REF!+#REF!+#REF! ->  | Y62: =#REF!+#REF!+#REF!+#REF!+#REF!+#REF!+#REF! -> 
A63: 57 | B63: Vermilion | C63: =#REF!+#REF!+#REF!+#REF!+#REF!+#REF!+#REF! ->  | D63: =#REF!+#REF!+#REF!+#REF!+#REF!+#REF!+#REF! ->  | E63: =#REF!+#REF!+#REF!+#REF!+#REF!+#REF!+#REF! ->  | F63: =#REF!*0.5 ->  | G63: =#REF!+#REF!+#REF!+#REF!+#REF!+#REF!+#REF! ->  | I63: =#REF!+#REF!+#REF!+#REF!+#REF!+#REF!+#REF! ->  | J63: =#REF!+#REF!+#REF!+#REF!+#REF!+#REF!+#REF! ->  | K63: =#REF!+#REF!+#REF!+#REF!+#REF!+#REF!+#REF! ->  | L63: =#REF!+#REF!+#REF!+#REF!+#REF!+#REF!+#REF! ->  | M63: =#REF!*0.5 ->  | N63: =#REF!+#REF!+#REF!+#REF!+#REF!+#REF!+#REF! ->  | O63: =#REF!+#REF!+#REF!+#REF!+#REF!+#REF!+#REF! ->  | P63: =#REF!+#REF!+#REF!+#REF!+#REF!+#REF!+#REF! ->  | Q63: =#REF!+#REF!+#REF!+#REF!+#REF!+#REF!+#REF! ->  | R63: =#REF!*0.5 ->  | S63: =#REF!+#REF!+#REF!+#REF!+#REF!+#REF!+#REF! ->  | T63: =#REF!+#REF!+#REF!+#REF!+#REF!+#REF!+#REF! ->  | U63: =#REF!+#REF!+#REF!+#REF!+#REF!+#REF!+#REF! ->  | V63: =#REF!+#REF!+#REF!+#REF!+#REF!+#REF!+#REF! ->  | W63: =#REF!*0.5 ->  | X63: =#REF!+#REF!+#REF!+#REF!+#REF!+#REF!+#REF! ->  | Y63: =#REF!+#REF!+#REF!+#REF!+#REF!+#REF!+#REF! -> 
A64: 58 | B64: Vernon | C64: =#REF!+#REF!+#REF!+#REF!+#REF!+#REF!+#REF! ->  | D64: =#REF!+#REF!+#REF!+#REF!+#REF!+#REF!+#REF! ->  | E64: =#REF!+#REF!+#REF!+#REF!+#REF!+#REF!+#REF! ->  | F64: =#REF!*0.5 ->  | G64: =#REF!+#REF!+#REF!+#REF!+#REF!+#REF!+#REF! ->  | I64: =#REF!+#REF!+#REF!+#REF!+#REF!+#REF!+#REF! ->  | J64: =#REF!+#REF!+#REF!+#REF!+#REF!+#REF!+#REF! ->  | K64: =#REF!+#REF!+#REF!+#REF!+#REF!+#REF!+#REF! ->  | L64: =#REF!+#REF!+#REF!+#REF!+#REF!+#REF!+#REF! ->  | M64: =#REF!*0.5 ->  | N64: =#REF!+#REF!+#REF!+#REF!+#REF!+#REF!+#REF! ->  | O64: =#REF!+#REF!+#REF!+#REF!+#REF!+#REF!+#REF! ->  | P64: =#REF!+#REF!+#REF!+#REF!+#REF!+#REF!+#REF! ->  | Q64: =#REF!+#REF!+#REF!+#REF!+#REF!+#REF!+#REF! ->  | R64: =#REF!*0.5 ->  | S64: =#REF!+#REF!+#REF!+#REF!+#REF!+#REF!+#REF! ->  | T64: =#REF!+#REF!+#REF!+#REF!+#REF!+#REF!+#REF! ->  | U64: =#REF!+#REF!+#REF!+#REF!+#REF!+#REF!+#REF! ->  | V64: =#REF!+#REF!+#REF!+#REF!+#REF!+#REF!+#REF! ->  | W64: =#REF!*0.5 ->  | X64: =#REF!+#REF!+#REF!+#REF!+#REF!+#REF!+#REF! ->  | Y64: =#REF!+#REF!+#REF!+#REF!+#REF!+#REF!+#REF! -> 
A65: 59 | B65: Washington | C65: =#REF!+#REF!+#REF!+#REF!+#REF!+#REF!+#REF! ->  | D65: =#REF!+#REF!+#REF!+#REF!+#REF!+#REF!+#REF! ->  | E65: =#REF!+#REF!+#REF!+#REF!+#REF!+#REF!+#REF! ->  | F65: =#REF!*0.5 ->  | G65: =#REF!+#REF!+#REF!+#REF!+#REF!+#REF!+#REF! ->  | I65: =#REF!+#REF!+#REF!+#REF!+#REF!+#REF!+#REF! ->  | J65: =#REF!+#REF!+#REF!+#REF!+#REF!+#REF!+#REF! ->  | K65: =#REF!+#REF!+#REF!+#REF!+#REF!+#REF!+#REF! ->  | L65: =#REF!+#REF!+#REF!+#REF!+#REF!+#REF!+#REF! ->  | M65: =#REF!*0.5 ->  | N65: =#REF!+#REF!+#REF!+#REF!+#REF!+#REF!+#REF! ->  | O65: =#REF!+#REF!+#REF!+#REF!+#REF!+#REF!+#REF! ->  | P65: =#REF!+#REF!+#REF!+#REF!+#REF!+#REF!+#REF! ->  | Q65: =#REF!+#REF!+#REF!+#REF!+#REF!+#REF!+#REF! ->  | R65: =#REF!*0.5 ->  | S65: =#REF!+#REF!+#REF!+#REF!+#REF!+#REF!+#REF! ->  | T65: =#REF!+#REF!+#REF!+#REF!+#REF!+#REF!+#REF! ->  | U65: =#REF!+#REF!+#REF!+#REF!+#REF!+#REF!+#REF! ->  | V65: =#REF!+#REF!+#REF!+#REF!+#REF!+#REF!+#REF! ->  | W65: =#REF!*0.5 ->  | X65: =#REF!+#REF!+#REF!+#REF!+#REF!+#REF!+#REF! ->  | Y65: =#REF!+#REF!+#REF!+#REF!+#REF!+#REF!+#REF! -> 
A66: 60 | B66: Webster | C66: =#REF!+#REF!+#REF!+#REF!+#REF!+#REF!+#REF! ->  | D66: =#REF!+#REF!+#REF!+#REF!+#REF!+#REF!+#REF! ->  | E66: =#REF!+#REF!+#REF!+#REF!+#REF!+#REF!+#REF! ->  | F66: =#REF!*0.5 ->  | G66: =#REF!+#REF!+#REF!+#REF!+#REF!+#REF!+#REF! ->  | I66: =#REF!+#REF!+#REF!+#REF!+#REF!+#REF!+#REF! ->  | J66: =#REF!+#REF!+#REF!+#REF!+#REF!+#REF!+#REF! ->  | K66: =#REF!+#REF!+#REF!+#REF!+#REF!+#REF!+#REF! ->  | L66: =#REF!+#REF!+#REF!+#REF!+#REF!+#REF!+#REF! ->  | M66: =#REF!*0.5 ->  | N66: =#REF!+#REF!+#REF!+#REF!+#REF!+#REF!+#REF! ->  | O66: =#REF!+#REF!+#REF!+#REF!+#REF!+#REF!+#REF! ->  | P66: =#REF!+#REF!+#REF!+#REF!+#REF!+#REF!+#REF! ->  | Q66: =#REF!+#REF!+#REF!+#REF!+#REF!+#REF!+#REF! ->  | R66: =#REF!*0.5 ->  | S66: =#REF!+#REF!+#REF!+#REF!+#REF!+#REF!+#REF! ->  | T66: =#REF!+#REF!+#REF!+#REF!+#REF!+#REF!+#REF! ->  | U66: =#REF!+#REF!+#REF!+#REF!+#REF!+#REF!+#REF! ->  | V66: =#REF!+#REF!+#REF!+#REF!+#REF!+#REF!+#REF! ->  | W66: =#REF!*0.5 ->  | X66: =#REF!+#REF!+#REF!+#REF!+#REF!+#REF!+#REF! ->  | Y66: =#REF!+#REF!+#REF!+#REF!+#REF!+#REF!+#REF! -> 
A67: 61 | B67: West Baton Rouge | C67: =#REF!+#REF!+#REF!+#REF!+#REF!+#REF!+#REF! ->  | D67: =#REF!+#REF!+#REF!+#REF!+#REF!+#REF!+#REF! ->  | E67: =#REF!+#REF!+#REF!+#REF!+#REF!+#REF!+#REF! ->  | F67: =#REF!*0.5 ->  | G67: =#REF!+#REF!+#REF!+#REF!+#REF!+#REF!+#REF! ->  | I67: =#REF!+#REF!+#REF!+#REF!+#REF!+#REF!+#REF! ->  | J67: =#REF!+#REF!+#REF!+#REF!+#REF!+#REF!+#REF! ->  | K67: =#REF!+#REF!+#REF!+#REF!+#REF!+#REF!+#REF! ->  | L67: =#REF!+#REF!+#REF!+#REF!+#REF!+#REF!+#REF! ->  | M67: =#REF!*0.5 ->  | N67: =#REF!+#REF!+#REF!+#REF!+#REF!+#REF!+#REF! ->  | O67: =#REF!+#REF!+#REF!+#REF!+#REF!+#REF!+#REF! ->  | P67: =#REF!+#REF!+#REF!+#REF!+#REF!+#REF!+#REF! ->  | Q67: =#REF!+#REF!+#REF!+#REF!+#REF!+#REF!+#REF! ->  | R67: =#REF!*0.5 ->  | S67: =#REF!+#REF!+#REF!+#REF!+#REF!+#REF!+#REF! ->  | T67: =#REF!+#REF!+#REF!+#REF!+#REF!+#REF!+#REF! ->  | U67: =#REF!+#REF!+#REF!+#REF!+#REF!+#REF!+#REF! ->  | V67: =#REF!+#REF!+#REF!+#REF!+#REF!+#REF!+#REF! ->  | W67: =#REF!*0.5 ->  | X67: =#REF!+#REF!+#REF!+#REF!+#REF!+#REF!+#REF! ->  | Y67: =#REF!+#REF!+#REF!+#REF!+#REF!+#REF!+#REF! -> 
A68: 62 | B68: West Carroll | C68: =#REF!+#REF!+#REF!+#REF!+#REF!+#REF!+#REF! ->  | D68: =#REF!+#REF!+#REF!+#REF!+#REF!+#REF!+#REF! ->  | E68: =#REF!+#REF!+#REF!+#REF!+#REF!+#REF!+#REF! ->  | F68: =#REF!*0.5 ->  | G68: =#REF!+#REF!+#REF!+#REF!+#REF!+#REF!+#REF! ->  | I68: =#REF!+#REF!+#REF!+#REF!+#REF!+#REF!+#REF! ->  | J68: =#REF!+#REF!+#REF!+#REF!+#REF!+#REF!+#REF! ->  | K68: =#REF!+#REF!+#REF!+#REF!+#REF!+#REF!+#REF! ->  | L68: =#REF!+#REF!+#REF!+#REF!+#REF!+#REF!+#REF! ->  | M68: =#REF!*0.5 ->  | N68: =#REF!+#REF!+#REF!+#REF!+#REF!+#REF!+#REF! ->  | O68: =#REF!+#REF!+#REF!+#REF!+#REF!+#REF!+#REF! ->  | P68: =#REF!+#REF!+#REF!+#REF!+#REF!+#REF!+#REF! ->  | Q68: =#REF!+#REF!+#REF!+#REF!+#REF!+#REF!+#REF! ->  | R68: =#REF!*0.5 ->  | S68: =#REF!+#REF!+#REF!+#REF!+#REF!+#REF!+#REF! ->  | T68: =#REF!+#REF!+#REF!+#REF!+#REF!+#REF!+#REF! ->  | U68: =#REF!+#REF!+#REF!+#REF!+#REF!+#REF!+#REF! ->  | V68: =#REF!+#REF!+#REF!+#REF!+#REF!+#REF!+#REF! ->  | W68: =#REF!*0.5 ->  | X68: =#REF!+#REF!+#REF!+#REF!+#REF!+#REF!+#REF! ->  | Y68: =#REF!+#REF!+#REF!+#REF!+#REF!+#REF!+#REF! -> 
A69: 63 | B69: West Feliciana | C69: =#REF!+#REF!+#REF!+#REF!+#REF!+#REF!+#REF! ->  | D69: =#REF!+#REF!+#REF!+#REF!+#REF!+#REF!+#REF! ->  | E69: =#REF!+#REF!+#REF!+#REF!+#REF!+#REF!+#REF! ->  | F69: =#REF!*0.5 ->  | G69: =#REF!+#REF!+#REF!+#REF!+#REF!+#REF!+#REF! ->  | I69: =#REF!+#REF!+#REF!+#REF!+#REF!+#REF!+#REF! ->  | J69: =#REF!+#REF!+#REF!+#REF!+#REF!+#REF!+#REF! ->  | K69: =#REF!+#REF!+#REF!+#REF!+#REF!+#REF!+#REF! ->  | L69: =#REF!+#REF!+#REF!+#REF!+#REF!+#REF!+#REF! ->  | M69: =#REF!*0.5 ->  | N69: =#REF!+#REF!+#REF!+#REF!+#REF!+#REF!+#REF! ->  | O69: =#REF!+#REF!+#REF!+#REF!+#REF!+#REF!+#REF! ->  | P69: =#REF!+#REF!+#REF!+#REF!+#REF!+#REF!+#REF! ->  | Q69: =#REF!+#REF!+#REF!+#REF!+#REF!+#REF!+#REF! ->  | R69: =#REF!*0.5 ->  | S69: =#REF!+#REF!+#REF!+#REF!+#REF!+#REF!+#REF! ->  | T69: =#REF!+#REF!+#REF!+#REF!+#REF!+#REF!+#REF! ->  | U69: =#REF!+#REF!+#REF!+#REF!+#REF!+#REF!+#REF! ->  | V69: =#REF!+#REF!+#REF!+#REF!+#REF!+#REF!+#REF! ->  | W69: =#REF!*0.5 ->  | X69: =#REF!+#REF!+#REF!+#REF!+#REF!+#REF!+#REF! ->  | Y69: =#REF!+#REF!+#REF!+#REF!+#REF!+#REF!+#REF! -> 
A70: 64 | B70: Winn | C70: =#REF!+#REF!+#REF!+#REF!+#REF!+#REF!+#REF! ->  | D70: =#REF!+#REF!+#REF!+#REF!+#REF!+#REF!+#REF! ->  | E70: =#REF!+#REF!+#REF!+#REF!+#REF!+#REF!+#REF! ->  | F70: =#REF!*0.5 ->  | G70: =#REF!+#REF!+#REF!+#REF!+#REF!+#REF!+#REF! ->  | I70: =#REF!+#REF!+#REF!+#REF!+#REF!+#REF!+#REF! ->  | J70: =#REF!+#REF!+#REF!+#REF!+#REF!+#REF!+#REF! ->  | K70: =#REF!+#REF!+#REF!+#REF!+#REF!+#REF!+#REF! ->  | L70: =#REF!+#REF!+#REF!+#REF!+#REF!+#REF!+#REF! ->  | M70: =#REF!*0.5 ->  | N70: =#REF!+#REF!+#REF!+#REF!+#REF!+#REF!+#REF! ->  | O70: =#REF!+#REF!+#REF!+#REF!+#REF!+#REF!+#REF! ->  | P70: =#REF!+#REF!+#REF!+#REF!+#REF!+#REF!+#REF! ->  | Q70: =#REF!+#REF!+#REF!+#REF!+#REF!+#REF!+#REF! ->  | R70: =#REF!*0.5 ->  | S70: =#REF!+#REF!+#REF!+#REF!+#REF!+#REF!+#REF! ->  | T70: =#REF!+#REF!+#REF!+#REF!+#REF!+#REF!+#REF! ->  | U70: =#REF!+#REF!+#REF!+#REF!+#REF!+#REF!+#REF! ->  | V70: =#REF!+#REF!+#REF!+#REF!+#REF!+#REF!+#REF! ->  | W70: =#REF!*0.5 ->  | X70: =#REF!+#REF!+#REF!+#REF!+#REF!+#REF!+#REF! ->  | Y70: =#REF!+#REF!+#REF!+#REF!+#REF!+#REF!+#REF! -> 
A71: 65 | B71: City of Monroe | C71: =#REF!+#REF!+#REF!+#REF!+#REF!+#REF!+#REF! ->  | D71: =#REF!+#REF!+#REF!+#REF!+#REF!+#REF!+#REF! ->  | E71: =#REF!+#REF!+#REF!+#REF!+#REF!+#REF!+#REF! ->  | F71: =#REF!*0.5 ->  | G71: =#REF!+#REF!+#REF!+#REF!+#REF!+#REF!+#REF! ->  | I71: =#REF!+#REF!+#REF!+#REF!+#REF!+#REF!+#REF! ->  | J71: =#REF!+#REF!+#REF!+#REF!+#REF!+#REF!+#REF! ->  | K71: =#REF!+#REF!+#REF!+#REF!+#REF!+#REF!+#REF! ->  | L71: =#REF!+#REF!+#REF!+#REF!+#REF!+#REF!+#REF! ->  | M71: =#REF!*0.5 ->  | N71: =#REF!+#REF!+#REF!+#REF!+#REF!+#REF!+#REF! ->  | O71: =#REF!+#REF!+#REF!+#REF!+#REF!+#REF!+#REF! ->  | P71: =#REF!+#REF!+#REF!+#REF!+#REF!+#REF!+#REF! ->  | Q71: =#REF!+#REF!+#REF!+#REF!+#REF!+#REF!+#REF! ->  | R71: =#REF!*0.5 ->  | S71: =#REF!+#REF!+#REF!+#REF!+#REF!+#REF!+#REF! ->  | T71: =#REF!+#REF!+#REF!+#REF!+#REF!+#REF!+#REF! ->  | U71: =#REF!+#REF!+#REF!+#REF!+#REF!+#REF!+#REF! ->  | V71: =#REF!+#REF!+#REF!+#REF!+#REF!+#REF!+#REF! ->  | W71: =#REF!*0.5 ->  | X71: =#REF!+#REF!+#REF!+#REF!+#REF!+#REF!+#REF! ->  | Y71: =#REF!+#REF!+#REF!+#REF!+#REF!+#REF!+#REF! -> 
A72: 66 | B72: City of Bogalusa | C72: =#REF!+#REF!+#REF!+#REF!+#REF!+#REF!+#REF! ->  | D72: =#REF!+#REF!+#REF!+#REF!+#REF!+#REF!+#REF! ->  | E72: =#REF!+#REF!+#REF!+#REF!+#REF!+#REF!+#REF! ->  | F72: =#REF!*0.5 ->  | G72: =#REF!+#REF!+#REF!+#REF!+#REF!+#REF!+#REF! ->  | I72: =#REF!+#REF!+#REF!+#REF!+#REF!+#REF!+#REF! ->  | J72: =#REF!+#REF!+#REF!+#REF!+#REF!+#REF!+#REF! ->  | K72: =#REF!+#REF!+#REF!+#REF!+#REF!+#REF!+#REF! ->  | L72: =#REF!+#REF!+#REF!+#REF!+#REF!+#REF!+#REF! ->  | M72: =#REF!*0.5 ->  | N72: =#REF!+#REF!+#REF!+#REF!+#REF!+#REF!+#REF! ->  | O72: =#REF!+#REF!+#REF!+#REF!+#REF!+#REF!+#REF! ->  | P72: =#REF!+#REF!+#REF!+#REF!+#REF!+#REF!+#REF! ->  | Q72: =#REF!+#REF!+#REF!+#REF!+#REF!+#REF!+#REF! ->  | R72: =#REF!*0.5 ->  | S72: =#REF!+#REF!+#REF!+#REF!+#REF!+#REF!+#REF! ->  | T72: =#REF!+#REF!+#REF!+#REF!+#REF!+#REF!+#REF! ->  | U72: =#REF!+#REF!+#REF!+#REF!+#REF!+#REF!+#REF! ->  | V72: =#REF!+#REF!+#REF!+#REF!+#REF!+#REF!+#REF! ->  | W72: =#REF!*0.5 ->  | X72: =#REF!+#REF!+#REF!+#REF!+#REF!+#REF!+#REF! ->  | Y72: =#REF!+#REF!+#REF!+#REF!+#REF!+#REF!+#REF! ->  | AB72: =E72=(D72-C72) ->  | AC72: =L72=(K72-J72) ->  | AD72: =Q72=(P72-O72) ->  | AE72: =V72=(U72-T72) -> 
A73: 67 | B73: Zachary Community | C73: =#REF!+#REF!+#REF!+#REF!+#REF!+#REF!+#REF! ->  | D73: =#REF!+#REF!+#REF!+#REF!+#REF!+#REF!+#REF! ->  | E73: =#REF!+#REF!+#REF!+#REF!+#REF!+#REF!+#REF! ->  | F73: =#REF!*0.5 ->  | G73: =#REF!+#REF!+#REF!+#REF!+#REF!+#REF!+#REF! ->  | I73: =#REF!+#REF!+#REF!+#REF!+#REF!+#REF!+#REF! ->  | J73: =#REF!+#REF!+#REF!+#REF!+#REF!+#REF!+#REF! ->  | K73: =#REF!+#REF!+#REF!+#REF!+#REF!+#REF!+#REF! ->  | L73: =#REF!+#REF!+#REF!+#REF!+#REF!+#REF!+#REF! ->  | M73: =#REF!*0.5 ->  | N73: =#REF!+#REF!+#REF!+#REF!+#REF!+#REF!+#REF! ->  | O73: =#REF!+#REF!+#REF!+#REF!+#REF!+#REF!+#REF! ->  | P73: =#REF!+#REF!+#REF!+#REF!+#REF!+#REF!+#REF! ->  | Q73: =#REF!+#REF!+#REF!+#REF!+#REF!+#REF!+#REF! ->  | R73: =#REF!*0.5 ->  | S73: =#REF!+#REF!+#REF!+#REF!+#REF!+#REF!+#REF! ->  | T73: =#REF!+#REF!+#REF!+#REF!+#REF!+#REF!+#REF! ->  | U73: =#REF!+#REF!+#REF!+#REF!+#REF!+#REF!+#REF! ->  | V73: =#REF!+#REF!+#REF!+#REF!+#REF!+#REF!+#REF! ->  | W73: =#REF!*0.5 ->  | X73: =#REF!+#REF!+#REF!+#REF!+#REF!+#REF!+#REF! ->  | Y73: =#REF!+#REF!+#REF!+#REF!+#REF!+#REF!+#REF! -> 
A74: 68 | B74: City of Baker | C74: =#REF!+#REF!+#REF!+#REF!+#REF!+#REF!+#REF! ->  | D74: =#REF!+#REF!+#REF!+#REF!+#REF!+#REF!+#REF! ->  | E74: =#REF!+#REF!+#REF!+#REF!+#REF!+#REF!+#REF! ->  | F74: =#REF!*0.5 ->  | G74: =#REF!+#REF!+#REF!+#REF!+#REF!+#REF!+#REF! ->  | I74: =#REF!+#REF!+#REF!+#REF!+#REF!+#REF!+#REF! ->  | J74: =#REF!+#REF!+#REF!+#REF!+#REF!+#REF!+#REF! ->  | K74: =#REF!+#REF!+#REF!+#REF!+#REF!+#REF!+#REF! ->  | L74: =#REF!+#REF!+#REF!+#REF!+#REF!+#REF!+#REF! ->  | M74: =#REF!*0.5 ->  | N74: =#REF!+#REF!+#REF!+#REF!+#REF!+#REF!+#REF! ->  | O74: =#REF!+#REF!+#REF!+#REF!+#REF!+#REF!+#REF! ->  | P74: =#REF!+#REF!+#REF!+#REF!+#REF!+#REF!+#REF! ->  | Q74: =#REF!+#REF!+#REF!+#REF!+#REF!+#REF!+#REF! ->  | R74: =#REF!*0.5 ->  | S74: =#REF!+#REF!+#REF!+#REF!+#REF!+#REF!+#REF! ->  | T74: =#REF!+#REF!+#REF!+#REF!+#REF!+#REF!+#REF! ->  | U74: =#REF!+#REF!+#REF!+#REF!+#REF!+#REF!+#REF! ->  | V74: =#REF!+#REF!+#REF!+#REF!+#REF!+#REF!+#REF! ->  | W74: =#REF!*0.5 ->  | X74: =#REF!+#REF!+#REF!+#REF!+#REF!+#REF!+#REF! ->  | Y74: =#REF!+#REF!+#REF!+#REF!+#REF!+#REF!+#REF! -> 
A75: 69 | B75: Central Community | C75: =#REF!+#REF!+#REF!+#REF!+#REF!+#REF!+#REF! ->  | D75: =#REF!+#REF!+#REF!+#REF!+#REF!+#REF!+#REF! ->  | E75: =#REF!+#REF!+#REF!+#REF!+#REF!+#REF!+#REF! ->  | F75: =#REF!*0.5 ->  | G75: =#REF!+#REF!+#REF!+#REF!+#REF!+#REF!+#REF! ->  | I75: =#REF!+#REF!+#REF!+#REF!+#REF!+#REF!+#REF! ->  | J75: =#REF!+#REF!+#REF!+#REF!+#REF!+#REF!+#REF! ->  | K75: =#REF!+#REF!+#REF!+#REF!+#REF!+#REF!+#REF! ->  | L75: =#REF!+#REF!+#REF!+#REF!+#REF!+#REF!+#REF! ->  | M75: =#REF!*0.5 ->  | N75: =#REF!+#REF!+#REF!+#REF!+#REF!+#REF!+#REF! ->  | O75: =#REF!+#REF!+#REF!+#REF!+#REF!+#REF!+#REF! ->  | P75: =#REF!+#REF!+#REF!+#REF!+#REF!+#REF!+#REF! ->  | Q75: =#REF!+#REF!+#REF!+#REF!+#REF!+#REF!+#REF! ->  | R75: =#REF!*0.5 ->  | S75: =#REF!+#REF!+#REF!+#REF!+#REF!+#REF!+#REF! ->  | T75: =#REF!+#REF!+#REF!+#REF!+#REF!+#REF!+#REF! ->  | U75: =#REF!+#REF!+#REF!+#REF!+#REF!+#REF!+#REF! ->  | V75: =#REF!+#REF!+#REF!+#REF!+#REF!+#REF!+#REF! ->  | W75: =#REF!*0.5 ->  | X75: =#REF!+#REF!+#REF!+#REF!+#REF!+#REF!+#REF! ->  | Y75: =#REF!+#REF!+#REF!+#REF!+#REF!+#REF!+#REF! -> 
A76: State Subtotal | C76: =SUM(C7:C75) ->  | D76: =SUM(D7:D75) ->  | E76: =SUM(E7:E75) ->  | G76: =SUM(G7:G75) ->  | I76: =SUM(I7:I75) ->  | J76: =SUM(J7:J75) ->  | K76: =SUM(K7:K75) ->  | L76: =SUM(L7:L75) ->  | N76: =SUM(N7:N75) ->  | O76: =SUM(O7:O75) ->  | P76: =SUM(P7:P75) ->  | Q76: =SUM(Q7:Q75) ->  | S76: =SUM(S7:S75) ->  | T76: =SUM(T7:T75) ->  | U76: =SUM(U7:U75) ->  | V76: =SUM(V7:V75) ->  | X76: =SUM(X7:X75) ->  | Y76: =SUM(Y7:Y75) ->  | AB76: =E76=(D76-C76) ->  | AC76: =L76=(K76-J76) ->  | AD76: =Q76=(P76-O76) ->  | AE76: =V76=(U76-T76) -> 
A77: FY2022-23 Feb MYA (3/4/23) | C77: 4008 | D77: 3984 | E77: -24 | G77: -93371.62051 | I77: -6805.19 | J77: 2374 | K77: 2425 | L77: 51 | N77: 14853.38473 | O77: 0 | P77: 0 | Q77: 0 | S77: 0 | T77: 0 | U77: 0 | V77: 0 | X77: 0 | Y77: -85322
C78: =C76-C77 ->  | D78: =D76-D77 ->  | F78: 0 | H78: 0 | M78: 0 | R78: 0 | W78: 0
C79: N/A | D79: N/A | E79: N/A
C80: N/A | D80: N/A | E80: N/A
C81: N/A | D81: N/A | E81: N/A
B90: checks to SIS file (mlb) 3/4/23 | C90: =C76=[3]Base!$AW$76+[3]Base!$AX$76+[3]Base!$AY$76+[3]Base!$AZ$76+[3]Base!$BA$76+[3]Base!$BB$76+[3]Base!$BC$76 ->  | D90: =D76=[4]Base!$AW$76+[4]Base!$AX$76+[4]Base!$AY$76+[4]Base!$AZ$76+[4]Base!$BA$76+[4]Base!$BB$76+[4]Base!$BC$76 -> 
B91: checks to tabs in this file (mlb) 3/4/23 | C91: =C76=#REF!+#REF!+#REF!+#REF!+#REF!+#REF!+#REF! ->  | D91: =D76=#REF!+#REF!+#REF!+#REF!+#REF!+#REF!+#REF! ->  | E91: checks to tabs in this file (mlb) 3/4/23 | G91: =G76=(#REF!+#REF!+#REF!+#REF!+#REF!+#REF!+#REF!) ->  | I91: =+I76=((#REF!*#REF!)+(#REF!*#REF!)+(#REF!*#REF!)+(#REF!*#REF!)+(#REF!*#REF!)+(#REF!*#REF!)+(#REF!*#REF!)) ->  | J91: =J76=(#REF!+#REF!+#REF!+#REF!+#REF!+#REF!+#REF!) ->  | K91: =K76=(#REF!+#REF!+#REF!+#REF!+#REF!+#REF!+#REF!) ->  | O91: =O76=(#REF!+#REF!+#REF!+#REF!+#REF!+#REF!+#REF!) ->  | P91: =P76=(#REF!+#REF!+#REF!+#REF!+#REF!+#REF!+#REF!) ->  | T91: =T76=(#REF!+#REF!+#REF!+#REF!+#REF!+#REF!+#REF!) ->  | U91: =U76=(#REF!+#REF!+#REF!+#REF!+#REF!+#REF!+#REF!) -> 
B92: checks to feB_MidYear Adj (mlb) 3/4/23 | C92: =C76='Feb_MidYear Adj'!D93 ->  | D92: =D76='Feb_MidYear Adj'!E93 -> 

Sheet Feb_New Type 2_Res (hidden)
A1: Table 5C1 New Type 2 Charter Schools | C1: Oct. 1, 2022 MFP Funded Membership (Per SIS) | D1: Feb. 1, 2023 MFP Funded Membership (Per SIS) | E1: Change in MFP Funded Membership | F1: Unweighted | H1: Economically Disadvantaged | M1: Students with Disabilities | R1: Gifted & Talented | W1: Change in Total MFP State Cost Allocation (Levels 1, 2, & 3) | X1: Half Final FY2021-22 Local Revenue Representation Per Pupil (per charter law) | Y1: Change in Local Revenue Representation
F2: Half the Unweighted Per Pupil With Continuation of Prior Year Pay Raises | G2: Change in State Cost Allocation | H2: 10/1/22 Student Count | I2: 2/1/23 Student Count | J2: Change in Student Count | K2: Half Per Pupil | L2: Change in State Cost Allocation | M2: 10/1/22 Student Count (pending) | N2: 2/1/23 Student Count (pending) | O2: Change in Student Count | P2: Half Per Pupil | Q2: Change in State Cost Allocation | R2: 10/1/22 Student Count (pending) | S2: 2/1/23 Student Count (pending) | T2: Change in Student Count | U2: Half Per Pupil | V2: Change in State Cost Allocation | AB2: column E math ck - mlb 3/4/23 | AC2: column J math ck - mlb 3/4/24 | AD2: column O math ck - mlb 3/4/25 | AE2: column T math ck - mlb 3/4/26
C4: 1 | D4: =C4+1 -> 2 | E4: 3 | F4: 4 | G4: 5 | H4: 6 | I4: 7 | J4: 8 | K4: 9 | L4: 10 | M4: 11 | N4: 12 | O4: 13 | P4: 14 | Q4: 15 | R4: 16 | S4: 17 | T4: 18 | U4: 19 | V4: 20 | W4: 21
C6: Link in File | D6: Link in File | E6: Formula | F6: Link to "Counts in Budget Letter" | G6: Link in File | H6: Formula | I6: Link to "Counts in Budget Letter" | J6: Link in File | K6: Formula | L6: Link to "Counts in Budget Letter" | M6: Link in File | N6: Formula | O6: Link to "Counts in Budget Letter" | P6: Link in File | Q6: Formula | R6: Formula | S6: Link to Mid-Year File | T6: Link to Mid-Year File | U6: Formula | V6: Formula | W6: Formula
A7: 1 | B7: Acadia | C7: =#REF!+#REF!+#REF!+#REF!+#REF!+#REF!+#REF!+#REF!+#REF!+#REF!+#REF!+#REF!+#REF!+#REF!+#REF!+#REF!+#REF!+#REF!+#REF!+#REF!+#REF!+#REF!+#REF!+#REF!+#REF!+#REF!+#REF!+#REF!+#REF!+#REF!+#REF!+Feb_Williams!C7+#REF!+#REF!+#REF! ->  | D7: =#REF!+#REF!+#REF!+#REF!+#REF!+#REF!+#REF!+#REF!+#REF!+#REF!+#REF!+#REF!+#REF!+#REF!+#REF!+#REF!+#REF!+#REF!+#REF!+#REF!+#REF!+#REF!+#REF!+#REF!+#REF!+#REF!+#REF!+#REF!+#REF!+#REF!+#REF!+Feb_Williams!D7+#REF!+#REF!+#REF! ->  | E7: =#REF!+#REF!+#REF!+#REF!+#REF!+#REF!+#REF!+#REF!+#REF!+#REF!+#REF!+#REF!+#REF!+#REF!+#REF!+#REF!+#REF!+#REF!+#REF!+#REF!+#REF!+#REF!+#REF!+#REF!+#REF!+#REF!+#REF!+#REF!+#REF!+#REF!+#REF!+Feb_Williams!E7+#REF!+#REF!+#REF! ->  | F7: =#REF!*0.5 ->  | G7: =#REF!+#REF!+#REF!+#REF!+#REF!+#REF!+#REF!+#REF!+#REF!+#REF!+#REF!+#REF!+#REF!+#REF!+#REF!+#REF!+#REF!+#REF!+#REF!+#REF!+#REF!+#REF!+#REF!+#REF!+#REF!+#REF!+#REF!+#REF!+#REF!+#REF!+#REF!+Feb_Williams!G7+#REF! ->  | H7: =#REF!+#REF!+#REF!+#REF!+#REF!+#REF!+#REF!+#REF!+#REF!+#REF!+#REF!+#REF!+#REF!+#REF!+#REF!+#REF!+#REF!+#REF!+#REF!+#REF!+#REF!+#REF!+#REF!+#REF!+#REF!+#REF!+#REF!+#REF!+#REF!+#REF!+#REF!+Feb_Williams!H7+#REF!+#REF!+#REF! ->  | I7: =#REF!+#REF!+#REF!+#REF!+#REF!+#REF!+#REF!+#REF!+#REF!+#REF!+#REF!+#REF!+#REF!+#REF!+#REF!+#REF!+#REF!+#REF!+#REF!+#REF!+#REF!+#REF!+#REF!+#REF!+#REF!+#REF!+#REF!+#REF!+#REF!+#REF!+#REF!+Feb_Williams!I7+#REF!+#REF!+#REF! ->  | J7: =#REF!+#REF!+#REF!+#REF!+#REF!+#REF!+#REF!+#REF!+#REF!+#REF!+#REF!+#REF!+#REF!+#REF!+#REF!+#REF!+#REF!+#REF!+#REF!+#REF!+#REF!+#REF!+#REF!+#REF!+#REF!+#REF!+#REF!+#REF!+#REF!+#REF!+#REF!+Feb_Williams!J7+#REF!+#REF!+#REF! ->  | K7: =#REF!*0.5 ->  | L7: =#REF!+#REF!+#REF!+#REF!+#REF!+#REF!+#REF!+#REF!+#REF!+#REF!+#REF!+#REF!+#REF!+#REF!+#REF!+#REF!+#REF!+#REF!+#REF!+#REF!+#REF!+#REF!+#REF!+#REF!+#REF!+#REF!+#REF!+#REF!+#REF!+#REF!+#REF!+Feb_Williams!L7+#REF! ->  | O7: =#REF!+#REF!+#REF!+#REF!+#REF!+#REF!+#REF!+#REF!+#REF!+#REF!+#REF!+#REF!+#REF!+#REF!+#REF!+#REF!+#REF!+#REF!+#REF!+#REF!+#REF!+#REF!+#REF!+#REF!+#REF!+#REF!+#REF!+#REF!+#REF!+#REF!+#REF!+Feb_Williams!O7+#REF! ->  | P7: =#REF!*0.5 ->  | Q7: =#REF!+#REF!+#REF!+#REF!+#REF!+#REF!+#REF!+#REF!+#REF!+#REF!+#REF!+#REF!+#REF!+#REF!+#REF!+#REF!+#REF!+#REF!+#REF!+#REF!+#REF!+#REF!+#REF!+#REF!+#REF!+#REF!+#REF!+#REF!+#REF!+#REF!+#REF!+Feb_Williams!Q7+#REF! ->  | T7: =#REF!+#REF!+#REF!+#REF!+#REF!+#REF!+#REF!+#REF!+#REF!+#REF!+#REF!+#REF!+#REF!+#REF!+#REF!+#REF!+#REF!+#REF!+#REF!+#REF!+#REF!+#REF!+#REF!+#REF!+#REF!+#REF!+#REF!+#REF!+#REF!+#REF!+#REF!+Feb_Williams!T7+#REF! ->  | U7: =#REF!*0.5 ->  | V7: =#REF!+#REF!+#REF!+#REF!+#REF!+#REF!+#REF!+#REF!+#REF!+#REF!+#REF!+#REF!+#REF!+#REF!+#REF!+#REF!+#REF!+#REF!+#REF!+#REF!+#REF!+#REF!+#REF!+#REF!+#REF!+#REF!+#REF!+#REF!+#REF!+#REF!+#REF!+Feb_Williams!V7+#REF! ->  | W7: =#REF!+#REF!+#REF!+#REF!+#REF!+#REF!+#REF!+#REF!+#REF!+#REF!+#REF!+#REF!+#REF!+#REF!+#REF!+#REF!+#REF!+#REF!+#REF!+#REF!+#REF!+#REF!+#REF!+#REF!+#REF!+#REF!+#REF!+#REF!+#REF!+#REF!+#REF!+Feb_Williams!W7+#REF! ->  | X7: =#REF!*0.5 ->  | Y7: =#REF!+#REF!+#REF!+#REF!+#REF!+#REF!+#REF!+#REF!+#REF!+#REF!+#REF!+#REF!+#REF!+#REF!+#REF!+#REF!+#REF!+#REF!+#REF!+#REF!+#REF!+#REF!+#REF!+#REF!+#REF!+#REF!+#REF!+#REF!+#REF!+#REF!+#REF!+Feb_Williams!Y7+#REF! ->  | AB7: =E7=(D7-C7) ->  | AC7: =J7=(I7-H7) ->  | AD7: =O7=(N7-M7) ->  | AE7: =T7=(S7-R7) -> 
A8: 2 | B8: Allen | C8: =#REF!+#REF!+#REF!+#REF!+#REF!+#REF!+#REF!+#REF!+#REF!+#REF!+#REF!+#REF!+#REF!+#REF!+#REF!+#REF!+#REF!+#REF!+#REF!+#REF!+#REF!+#REF!+#REF!+#REF!+#REF!+#REF!+#REF!+#REF!+#REF!+#REF!+#REF!+Feb_Williams!C8+#REF!+#REF!+#REF! ->  | D8: =#REF!+#REF!+#REF!+#REF!+#REF!+#REF!+#REF!+#REF!+#REF!+#REF!+#REF!+#REF!+#REF!+#REF!+#REF!+#REF!+#REF!+#REF!+#REF!+#REF!+#REF!+#REF!+#REF!+#REF!+#REF!+#REF!+#REF!+#REF!+#REF!+#REF!+#REF!+Feb_Williams!D8+#REF!+#REF!+#REF! ->  | E8: =#REF!+#REF!+#REF!+#REF!+#REF!+#REF!+#REF!+#REF!+#REF!+#REF!+#REF!+#REF!+#REF!+#REF!+#REF!+#REF!+#REF!+#REF!+#REF!+#REF!+#REF!+#REF!+#REF!+#REF!+#REF!+#REF!+#REF!+#REF!+#REF!+#REF!+#REF!+Feb_Williams!E8+#REF!+#REF!+#REF! ->  | F8: =#REF!*0.5 ->  | G8: =#REF!+#REF!+#REF!+#REF!+#REF!+#REF!+#REF!+#REF!+#REF!+#REF!+#REF!+#REF!+#REF!+#REF!+#REF!+#REF!+#REF!+#REF!+#REF!+#REF!+#REF!+#REF!+#REF!+#REF!+#REF!+#REF!+#REF!+#REF!+#REF!+#REF!+#REF!+Feb_Williams!G8+#REF! ->  | H8: =#REF!+#REF!+#REF!+#REF!+#REF!+#REF!+#REF!+#REF!+#REF!+#REF!+#REF!+#REF!+#REF!+#REF!+#REF!+#REF!+#REF!+#REF!+#REF!+#REF!+#REF!+#REF!+#REF!+#REF!+#REF!+#REF!+#REF!+#REF!+#REF!+#REF!+#REF!+Feb_Williams!H8+#REF!+#REF!+#REF! ->  | I8: =#REF!+#REF!+#REF!+#REF!+#REF!+#REF!+#REF!+#REF!+#REF!+#REF!+#REF!+#REF!+#REF!+#REF!+#REF!+#REF!+#REF!+#REF!+#REF!+#REF!+#REF!+#REF!+#REF!+#REF!+#REF!+#REF!+#REF!+#REF!+#REF!+#REF!+#REF!+Feb_Williams!I8+#REF!+#REF!+#REF! ->  | J8: =#REF!+#REF!+#REF!+#REF!+#REF!+#REF!+#REF!+#REF!+#REF!+#REF!+#REF!+#REF!+#REF!+#REF!+#REF!+#REF!+#REF!+#REF!+#REF!+#REF!+#REF!+#REF!+#REF!+#REF!+#REF!+#REF!+#REF!+#REF!+#REF!+#REF!+#REF!+Feb_Williams!J8+#REF!+#REF!+#REF! ->  | K8: =#REF!*0.5 ->  | L8: =#REF!+#REF!+#REF!+#REF!+#REF!+#REF!+#REF!+#REF!+#REF!+#REF!+#REF!+#REF!+#REF!+#REF!+#REF!+#REF!+#REF!+#REF!+#REF!+#REF!+#REF!+#REF!+#REF!+#REF!+#REF!+#REF!+#REF!+#REF!+#REF!+#REF!+#REF!+Feb_Williams!L8+#REF! ->  | O8: =#REF!+#REF!+#REF!+#REF!+#REF!+#REF!+#REF!+#REF!+#REF!+#REF!+#REF!+#REF!+#REF!+#REF!+#REF!+#REF!+#REF!+#REF!+#REF!+#REF!+#REF!+#REF!+#REF!+#REF!+#REF!+#REF!+#REF!+#REF!+#REF!+#REF!+#REF!+Feb_Williams!O8+#REF! ->  | P8: =#REF!*0.5 ->  | Q8: =#REF!+#REF!+#REF!+#REF!+#REF!+#REF!+#REF!+#REF!+#REF!+#REF!+#REF!+#REF!+#REF!+#REF!+#REF!+#REF!+#REF!+#REF!+#REF!+#REF!+#REF!+#REF!+#REF!+#REF!+#REF!+#REF!+#REF!+#REF!+#REF!+#REF!+#REF!+Feb_Williams!Q8+#REF! ->  | T8: =#REF!+#REF!+#REF!+#REF!+#REF!+#REF!+#REF!+#REF!+#REF!+#REF!+#REF!+#REF!+#REF!+#REF!+#REF!+#REF!+#REF!+#REF!+#REF!+#REF!+#REF!+#REF!+#REF!+#REF!+#REF!+#REF!+#REF!+#REF!+#REF!+#REF!+#REF!+Feb_Williams!T8+#REF! ->  | U8: =#REF!*0.5 ->  | V8: =#REF!+#REF!+#REF!+#REF!+#REF!+#REF!+#REF!+#REF!+#REF!+#REF!+#REF!+#REF!+#REF!+#REF!+#REF!+#REF!+#REF!+#REF!+#REF!+#REF!+#REF!+#REF!+#REF!+#REF!+#REF!+#REF!+#REF!+#REF!+#REF!+#REF!+#REF!+Feb_Williams!V8+#REF! ->  | W8: =#REF!+#REF!+#REF!+#REF!+#REF!+#REF!+#REF!+#REF!+#REF!+#REF!+#REF!+#REF!+#REF!+#REF!+#REF!+#REF!+#REF!+#REF!+#REF!+#REF!+#REF!+#REF!+#REF!+#REF!+#REF!+#REF!+#REF!+#REF!+#REF!+#REF!+#REF!+Feb_Williams!W8+#REF! ->  | X8: =#REF!*0.5 ->  | Y8: =#REF!+#REF!+#REF!+#REF!+#REF!+#REF!+#REF!+#REF!+#REF!+#REF!+#REF!+#REF!+#REF!+#REF!+#REF!+#REF!+#REF!+#REF!+#REF!+#REF!+#REF!+#REF!+#REF!+#REF!+#REF!+#REF!+#REF!+#REF!+#REF!+#REF!+#REF!+Feb_Williams!Y8+#REF! ->  | AB8: =E8=(D8-C8) ->  | AC8: =J8=(I8-H8) ->  | AD8: =O8=(N8-M8) ->  | AE8: =T8=(S8-R8) -> 
A9: 3 | B9: Ascension | C9: =#REF!+#REF!+#REF!+#REF!+#REF!+#REF!+#REF!+#REF!+#REF!+#REF!+#REF!+#REF!+#REF!+#REF!+#REF!+#REF!+#REF!+#REF!+#REF!+#REF!+#REF!+#REF!+#REF!+#REF!+#REF!+#REF!+#REF!+#REF!+#REF!+#REF!+#REF!+Feb_Williams!C9+#REF!+#REF!+#REF! ->  | D9: =#REF!+#REF!+#REF!+#REF!+#REF!+#REF!+#REF!+#REF!+#REF!+#REF!+#REF!+#REF!+#REF!+#REF!+#REF!+#REF!+#REF!+#REF!+#REF!+#REF!+#REF!+#REF!+#REF!+#REF!+#REF!+#REF!+#REF!+#REF!+#REF!+#REF!+#REF!+Feb_Williams!D9+#REF!+#REF!+#REF! ->  | E9: =#REF!+#REF!+#REF!+#REF!+#REF!+#REF!+#REF!+#REF!+#REF!+#REF!+#REF!+#REF!+#REF!+#REF!+#REF!+#REF!+#REF!+#REF!+#REF!+#REF!+#REF!+#REF!+#REF!+#REF!+#REF!+#REF!+#REF!+#REF!+#REF!+#REF!+#REF!+Feb_Williams!E9+#REF!+#REF!+#REF! ->  | F9: =#REF!*0.5 ->  | G9: =#REF!+#REF!+#REF!+#REF!+#REF!+#REF!+#REF!+#REF!+#REF!+#REF!+#REF!+#REF!+#REF!+#REF!+#REF!+#REF!+#REF!+#REF!+#REF!+#REF!+#REF!+#REF!+#REF!+#REF!+#REF!+#REF!+#REF!+#REF!+#REF!+#REF!+#REF!+Feb_Williams!G9+#REF! ->  | H9: =#REF!+#REF!+#REF!+#REF!+#REF!+#REF!+#REF!+#REF!+#REF!+#REF!+#REF!+#REF!+#REF!+#REF!+#REF!+#REF!+#REF!+#REF!+#REF!+#REF!+#REF!+#REF!+#REF!+#REF!+#REF!+#REF!+#REF!+#REF!+#REF!+#REF!+#REF!+Feb_Williams!H9+#REF!+#REF!+#REF! ->  | I9: =#REF!+#REF!+#REF!+#REF!+#REF!+#REF!+#REF!+#REF!+#REF!+#REF!+#REF!+#REF!+#REF!+#REF!+#REF!+#REF!+#REF!+#REF!+#REF!+#REF!+#REF!+#REF!+#REF!+#REF!+#REF!+#REF!+#REF!+#REF!+#REF!+#REF!+#REF!+Feb_Williams!I9+#REF!+#REF!+#REF! ->  | J9: =#REF!+#REF!+#REF!+#REF!+#REF!+#REF!+#REF!+#REF!+#REF!+#REF!+#REF!+#REF!+#REF!+#REF!+#REF!+#REF!+#REF!+#REF!+#REF!+#REF!+#REF!+#REF!+#REF!+#REF!+#REF!+#REF!+#REF!+#REF!+#REF!+#REF!+#REF!+Feb_Williams!J9+#REF!+#REF!+#REF! ->  | K9: =#REF!*0.5 ->  | L9: =#REF!+#REF!+#REF!+#REF!+#REF!+#REF!+#REF!+#REF!+#REF!+#REF!+#REF!+#REF!+#REF!+#REF!+#REF!+#REF!+#REF!+#REF!+#REF!+#REF!+#REF!+#REF!+#REF!+#REF!+#REF!+#REF!+#REF!+#REF!+#REF!+#REF!+#REF!+Feb_Williams!L9+#REF! ->  | O9: =#REF!+#REF!+#REF!+#REF!+#REF!+#REF!+#REF!+#REF!+#REF!+#REF!+#REF!+#REF!+#REF!+#REF!+#REF!+#REF!+#REF!+#REF!+#REF!+#REF!+#REF!+#REF!+#REF!+#REF!+#REF!+#REF!+#REF!+#REF!+#REF!+#REF!+#REF!+Feb_Williams!O9+#REF! ->  | P9: =#REF!*0.5 ->  | Q9: =#REF!+#REF!+#REF!+#REF!+#REF!+#REF!+#REF!+#REF!+#REF!+#REF!+#REF!+#REF!+#REF!+#REF!+#REF!+#REF!+#REF!+#REF!+#REF!+#REF!+#REF!+#REF!+#REF!+#REF!+#REF!+#REF!+#REF!+#REF!+#REF!+#REF!+#REF!+Feb_Williams!Q9+#REF! ->  | T9: =#REF!+#REF!+#REF!+#REF!+#REF!+#REF!+#REF!+#REF!+#REF!+#REF!+#REF!+#REF!+#REF!+#REF!+#REF!+#REF!+#REF!+#REF!+#REF!+#REF!+#REF!+#REF!+#REF!+#REF!+#REF!+#REF!+#REF!+#REF!+#REF!+#REF!+#REF!+Feb_Williams!T9+#REF! ->  | U9: =#REF!*0.5 ->  | V9: =#REF!+#REF!+#REF!+#REF!+#REF!+#REF!+#REF!+#REF!+#REF!+#REF!+#REF!+#REF!+#REF!+#REF!+#REF!+#REF!+#REF!+#REF!+#REF!+#REF!+#REF!+#REF!+#REF!+#REF!+#REF!+#REF!+#REF!+#REF!+#REF!+#REF!+#REF!+Feb_Williams!V9+#REF! ->  | W9: =#REF!+#REF!+#REF!+#REF!+#REF!+#REF!+#REF!+#REF!+#REF!+#REF!+#REF!+#REF!+#REF!+#REF!+#REF!+#REF!+#REF!+#REF!+#REF!+#REF!+#REF!+#REF!+#REF!+#REF!+#REF!+#REF!+#REF!+#REF!+#REF!+#REF!+#REF!+Feb_Williams!W9+#REF! ->  | X9: =#REF!*0.5 ->  | Y9: =#REF!+#REF!+#REF!+#REF!+#REF!+#REF!+#REF!+#REF!+#REF!+#REF!+#REF!+#REF!+#REF!+#REF!+#REF!+#REF!+#REF!+#REF!+#REF!+#REF!+#REF!+#REF!+#REF!+#REF!+#REF!+#REF!+#REF!+#REF!+#REF!+#REF!+#REF!+Feb_Williams!Y9+#REF! -> 
A10: 4 | B10: Assumption | C10: =#REF!+#REF!+#REF!+#REF!+#REF!+#REF!+#REF!+#REF!+#REF!+#REF!+#REF!+#REF!+#REF!+#REF!+#REF!+#REF!+#REF!+#REF!+#REF!+#REF!+#REF!+#REF!+#REF!+#REF!+#REF!+#REF!+#REF!+#REF!+#REF!+#REF!+#REF!+Feb_Williams!C10+#REF!+#REF!+#REF! ->  | D10: =#REF!+#REF!+#REF!+#REF!+#REF!+#REF!+#REF!+#REF!+#REF!+#REF!+#REF!+#REF!+#REF!+#REF!+#REF!+#REF!+#REF!+#REF!+#REF!+#REF!+#REF!+#REF!+#REF!+#REF!+#REF!+#REF!+#REF!+#REF!+#REF!+#REF!+#REF!+Feb_Williams!D10+#REF!+#REF!+#REF! ->  | E10: =#REF!+#REF!+#REF!+#REF!+#REF!+#REF!+#REF!+#REF!+#REF!+#REF!+#REF!+#REF!+#REF!+#REF!+#REF!+#REF!+#REF!+#REF!+#REF!+#REF!+#REF!+#REF!+#REF!+#REF!+#REF!+#REF!+#REF!+#REF!+#REF!+#REF!+#REF!+Feb_Williams!E10+#REF!+#REF!+#REF! ->  | F10: =#REF!*0.5 ->  | G10: =#REF!+#REF!+#REF!+#REF!+#REF!+#REF!+#REF!+#REF!+#REF!+#REF!+#REF!+#REF!+#REF!+#REF!+#REF!+#REF!+#REF!+#REF!+#REF!+#REF!+#REF!+#REF!+#REF!+#REF!+#REF!+#REF!+#REF!+#REF!+#REF!+#REF!+#REF!+Feb_Williams!G10+#REF! ->  | H10: =#REF!+#REF!+#REF!+#REF!+#REF!+#REF!+#REF!+#REF!+#REF!+#REF!+#REF!+#REF!+#REF!+#REF!+#REF!+#REF!+#REF!+#REF!+#REF!+#REF!+#REF!+#REF!+#REF!+#REF!+#REF!+#REF!+#REF!+#REF!+#REF!+#REF!+#REF!+Feb_Williams!H10+#REF!+#REF!+#REF! ->  | I10: =#REF!+#REF!+#REF!+#REF!+#REF!+#REF!+#REF!+#REF!+#REF!+#REF!+#REF!+#REF!+#REF!+#REF!+#REF!+#REF!+#REF!+#REF!+#REF!+#REF!+#REF!+#REF!+#REF!+#REF!+#REF!+#REF!+#REF!+#REF!+#REF!+#REF!+#REF!+Feb_Williams!I10+#REF!+#REF!+#REF! ->  | J10: =#REF!+#REF!+#REF!+#REF!+#REF!+#REF!+#REF!+#REF!+#REF!+#REF!+#REF!+#REF!+#REF!+#REF!+#REF!+#REF!+#REF!+#REF!+#REF!+#REF!+#REF!+#REF!+#REF!+#REF!+#REF!+#REF!+#REF!+#REF!+#REF!+#REF!+#REF!+Feb_Williams!J10+#REF!+#REF!+#REF! ->  | K10: =#REF!*0.5 ->  | L10: =#REF!+#REF!+#REF!+#REF!+#REF!+#REF!+#REF!+#REF!+#REF!+#REF!+#REF!+#REF!+#REF!+#REF!+#REF!+#REF!+#REF!+#REF!+#REF!+#REF!+#REF!+#REF!+#REF!+#REF!+#REF!+#REF!+#REF!+#REF!+#REF!+#REF!+#REF!+Feb_Williams!L10+#REF! ->  | O10: =#REF!+#REF!+#REF!+#REF!+#REF!+#REF!+#REF!+#REF!+#REF!+#REF!+#REF!+#REF!+#REF!+#REF!+#REF!+#REF!+#REF!+#REF!+#REF!+#REF!+#REF!+#REF!+#REF!+#REF!+#REF!+#REF!+#REF!+#REF!+#REF!+#REF!+#REF!+Feb_Williams!O10+#REF! ->  | P10: =#REF!*0.5 ->  | Q10: =#REF!+#REF!+#REF!+#REF!+#REF!+#REF!+#REF!+#REF!+#REF!+#REF!+#REF!+#REF!+#REF!+#REF!+#REF!+#REF!+#REF!+#REF!+#REF!+#REF!+#REF!+#REF!+#REF!+#REF!+#REF!+#REF!+#REF!+#REF!+#REF!+#REF!+#REF!+Feb_Williams!Q10+#REF! ->  | T10: =#REF!+#REF!+#REF!+#REF!+#REF!+#REF!+#REF!+#REF!+#REF!+#REF!+#REF!+#REF!+#REF!+#REF!+#REF!+#REF!+#REF!+#REF!+#REF!+#REF!+#REF!+#REF!+#REF!+#REF!+#REF!+#REF!+#REF!+#REF!+#REF!+#REF!+#REF!+Feb_Williams!T10+#REF! ->  | U10: =#REF!*0.5 ->  | V10: =#REF!+#REF!+#REF!+#REF!+#REF!+#REF!+#REF!+#REF!+#REF!+#REF!+#REF!+#REF!+#REF!+#REF!+#REF!+#REF!+#REF!+#REF!+#REF!+#REF!+#REF!+#REF!+#REF!+#REF!+#REF!+#REF!+#REF!+#REF!+#REF!+#REF!+#REF!+Feb_Williams!V10+#REF! ->  | W10: =#REF!+#REF!+#REF!+#REF!+#REF!+#REF!+#REF!+#REF!+#REF!+#REF!+#REF!+#REF!+#REF!+#REF!+#REF!+#REF!+#REF!+#REF!+#REF!+#REF!+#REF!+#REF!+#REF!+#REF!+#REF!+#REF!+#REF!+#REF!+#REF!+#REF!+#REF!+Feb_Williams!W10+#REF! ->  | X10: =#REF!*0.5 ->  | Y10: =#REF!+#REF!+#REF!+#REF!+#REF!+#REF!+#REF!+#REF!+#REF!+#REF!+#REF!+#REF!+#REF!+#REF!+#REF!+#REF!+#REF!+#REF!+#REF!+#REF!+#REF!+#REF!+#REF!+#REF!+#REF!+#REF!+#REF!+#REF!+#REF!+#REF!+#REF!+Feb_Williams!Y10+#REF! -> 
A11: 5 | B11: Avoyelles | C11: =#REF!+#REF!+#REF!+#REF!+#REF!+#REF!+#REF!+#REF!+#REF!+#REF!+#REF!+#REF!+#REF!+#REF!+#REF!+#REF!+#REF!+#REF!+#REF!+#REF!+#REF!+#REF!+#REF!+#REF!+#REF!+#REF!+#REF!+#REF!+#REF!+#REF!+#REF!+Feb_Williams!C11+#REF!+#REF!+#REF! ->  | D11: =#REF!+#REF!+#REF!+#REF!+#REF!+#REF!+#REF!+#REF!+#REF!+#REF!+#REF!+#REF!+#REF!+#REF!+#REF!+#REF!+#REF!+#REF!+#REF!+#REF!+#REF!+#REF!+#REF!+#REF!+#REF!+#REF!+#REF!+#REF!+#REF!+#REF!+#REF!+Feb_Williams!D11+#REF!+#REF!+#REF! ->  | E11: =#REF!+#REF!+#REF!+#REF!+#REF!+#REF!+#REF!+#REF!+#REF!+#REF!+#REF!+#REF!+#REF!+#REF!+#REF!+#REF!+#REF!+#REF!+#REF!+#REF!+#REF!+#REF!+#REF!+#REF!+#REF!+#REF!+#REF!+#REF!+#REF!+#REF!+#REF!+Feb_Williams!E11+#REF!+#REF!+#REF! ->  | F11: =#REF!*0.5 ->  | G11: =#REF!+#REF!+#REF!+#REF!+#REF!+#REF!+#REF!+#REF!+#REF!+#REF!+#REF!+#REF!+#REF!+#REF!+#REF!+#REF!+#REF!+#REF!+#REF!+#REF!+#REF!+#REF!+#REF!+#REF!+#REF!+#REF!+#REF!+#REF!+#REF!+#REF!+#REF!+Feb_Williams!G11+#REF! ->  | H11: =#REF!+#REF!+#REF!+#REF!+#REF!+#REF!+#REF!+#REF!+#REF!+#REF!+#REF!+#REF!+#REF!+#REF!+#REF!+#REF!+#REF!+#REF!+#REF!+#REF!+#REF!+#REF!+#REF!+#REF!+#REF!+#REF!+#REF!+#REF!+#REF!+#REF!+#REF!+Feb_Williams!H11+#REF!+#REF!+#REF! ->  | I11: =#REF!+#REF!+#REF!+#REF!+#REF!+#REF!+#REF!+#REF!+#REF!+#REF!+#REF!+#REF!+#REF!+#REF!+#REF!+#REF!+#REF!+#REF!+#REF!+#REF!+#REF!+#REF!+#REF!+#REF!+#REF!+#REF!+#REF!+#REF!+#REF!+#REF!+#REF!+Feb_Williams!I11+#REF!+#REF!+#REF! ->  | J11: =#REF!+#REF!+#REF!+#REF!+#REF!+#REF!+#REF!+#REF!+#REF!+#REF!+#REF!+#REF!+#REF!+#REF!+#REF!+#REF!+#REF!+#REF!+#REF!+#REF!+#REF!+#REF!+#REF!+#REF!+#REF!+#REF!+#REF!+#REF!+#REF!+#REF!+#REF!+Feb_Williams!J11+#REF!+#REF!+#REF! ->  | K11: =#REF!*0.5 ->  | L11: =#REF!+#REF!+#REF!+#REF!+#REF!+#REF!+#REF!+#REF!+#REF!+#REF!+#REF!+#REF!+#REF!+#REF!+#REF!+#REF!+#REF!+#REF!+#REF!+#REF!+#REF!+#REF!+#REF!+#REF!+#REF!+#REF!+#REF!+#REF!+#REF!+#REF!+#REF!+Feb_Williams!L11+#REF! ->  | O11: =#REF!+#REF!+#REF!+#REF!+#REF!+#REF!+#REF!+#REF!+#REF!+#REF!+#REF!+#REF!+#REF!+#REF!+#REF!+#REF!+#REF!+#REF!+#REF!+#REF!+#REF!+#REF!+#REF!+#REF!+#REF!+#REF!+#REF!+#REF!+#REF!+#REF!+#REF!+Feb_Williams!O11+#REF! ->  | P11: =#REF!*0.5 ->  | Q11: =#REF!+#REF!+#REF!+#REF!+#REF!+#REF!+#REF!+#REF!+#REF!+#REF!+#REF!+#REF!+#REF!+#REF!+#REF!+#REF!+#REF!+#REF!+#REF!+#REF!+#REF!+#REF!+#REF!+#REF!+#REF!+#REF!+#REF!+#REF!+#REF!+#REF!+#REF!+Feb_Williams!Q11+#REF! ->  | T11: =#REF!+#REF!+#REF!+#REF!+#REF!+#REF!+#REF!+#REF!+#REF!+#REF!+#REF!+#REF!+#REF!+#REF!+#REF!+#REF!+#REF!+#REF!+#REF!+#REF!+#REF!+#REF!+#REF!+#REF!+#REF!+#REF!+#REF!+#REF!+#REF!+#REF!+#REF!+Feb_Williams!T11+#REF! ->  | U11: =#REF!*0.5 ->  | V11: =#REF!+#REF!+#REF!+#REF!+#REF!+#REF!+#REF!+#REF!+#REF!+#REF!+#REF!+#REF!+#REF!+#REF!+#REF!+#REF!+#REF!+#REF!+#REF!+#REF!+#REF!+#REF!+#REF!+#REF!+#REF!+#REF!+#REF!+#REF!+#REF!+#REF!+#REF!+Feb_Williams!V11+#REF! ->  | W11: =#REF!+#REF!+#REF!+#REF!+#REF!+#REF!+#REF!+#REF!+#REF!+#REF!+#REF!+#REF!+#REF!+#REF!+#REF!+#REF!+#REF!+#REF!+#REF!+#REF!+#REF!+#REF!+#REF!+#REF!+#REF!+#REF!+#REF!+#REF!+#REF!+#REF!+#REF!+Feb_Williams!W11+#REF! ->  | X11: =#REF!*0.5 ->  | Y11: =#REF!+#REF!+#REF!+#REF!+#REF!+#REF!+#REF!+#REF!+#REF!+#REF!+#REF!+#REF!+#REF!+#REF!+#REF!+#REF!+#REF!+#REF!+#REF!+#REF!+#REF!+#REF!+#REF!+#REF!+#REF!+#REF!+#REF!+#REF!+#REF!+#REF!+#REF!+Feb_Williams!Y11+#REF! -> 
A12: 6 | B12: Beauregard | C12: =#REF!+#REF!+#REF!+#REF!+#REF!+#REF!+#REF!+#REF!+#REF!+#REF!+#REF!+#REF!+#REF!+#REF!+#REF!+#REF!+#REF!+#REF!+#REF!+#REF!+#REF!+#REF!+#REF!+#REF!+#REF!+#REF!+#REF!+#REF!+#REF!+#REF!+#REF!+Feb_Williams!C12+#REF!+#REF!+#REF! ->  | D12: =#REF!+#REF!+#REF!+#REF!+#REF!+#REF!+#REF!+#REF!+#REF!+#REF!+#REF!+#REF!+#REF!+#REF!+#REF!+#REF!+#REF!+#REF!+#REF!+#REF!+#REF!+#REF!+#REF!+#REF!+#REF!+#REF!+#REF!+#REF!+#REF!+#REF!+#REF!+Feb_Williams!D12+#REF!+#REF!+#REF! ->  | E12: =#REF!+#REF!+#REF!+#REF!+#REF!+#REF!+#REF!+#REF!+#REF!+#REF!+#REF!+#REF!+#REF!+#REF!+#REF!+#REF!+#REF!+#REF!+#REF!+#REF!+#REF!+#REF!+#REF!+#REF!+#REF!+#REF!+#REF!+#REF!+#REF!+#REF!+#REF!+Feb_Williams!E12+#REF!+#REF!+#REF! ->  | F12: =#REF!*0.5 ->  | G12: =#REF!+#REF!+#REF!+#REF!+#REF!+#REF!+#REF!+#REF!+#REF!+#REF!+#REF!+#REF!+#REF!+#REF!+#REF!+#REF!+#REF!+#REF!+#REF!+#REF!+#REF!+#REF!+#REF!+#REF!+#REF!+#REF!+#REF!+#REF!+#REF!+#REF!+#REF!+Feb_Williams!G12+#REF! ->  | H12: =#REF!+#REF!+#REF!+#REF!+#REF!+#REF!+#REF!+#REF!+#REF!+#REF!+#REF!+#REF!+#REF!+#REF!+#REF!+#REF!+#REF!+#REF!+#REF!+#REF!+#REF!+#REF!+#REF!+#REF!+#REF!+#REF!+#REF!+#REF!+#REF!+#REF!+#REF!+Feb_Williams!H12+#REF!+#REF!+#REF! ->  | I12: =#REF!+#REF!+#REF!+#REF!+#REF!+#REF!+#REF!+#REF!+#REF!+#REF!+#REF!+#REF!+#REF!+#REF!+#REF!+#REF!+#REF!+#REF!+#REF!+#REF!+#REF!+#REF!+#REF!+#REF!+#REF!+#REF!+#REF!+#REF!+#REF!+#REF!+#REF!+Feb_Williams!I12+#REF!+#REF!+#REF! ->  | J12: =#REF!+#REF!+#REF!+#REF!+#REF!+#REF!+#REF!+#REF!+#REF!+#REF!+#REF!+#REF!+#REF!+#REF!+#REF!+#REF!+#REF!+#REF!+#REF!+#REF!+#REF!+#REF!+#REF!+#REF!+#REF!+#REF!+#REF!+#REF!+#REF!+#REF!+#REF!+Feb_Williams!J12+#REF!+#REF!+#REF! ->  | K12: =#REF!*0.5 ->  | L12: =#REF!+#REF!+#REF!+#REF!+#REF!+#REF!+#REF!+#REF!+#REF!+#REF!+#REF!+#REF!+#REF!+#REF!+#REF!+#REF!+#REF!+#REF!+#REF!+#REF!+#REF!+#REF!+#REF!+#REF!+#REF!+#REF!+#REF!+#REF!+#REF!+#REF!+#REF!+Feb_Williams!L12+#REF! ->  | O12: =#REF!+#REF!+#REF!+#REF!+#REF!+#REF!+#REF!+#REF!+#REF!+#REF!+#REF!+#REF!+#REF!+#REF!+#REF!+#REF!+#REF!+#REF!+#REF!+#REF!+#REF!+#REF!+#REF!+#REF!+#REF!+#REF!+#REF!+#REF!+#REF!+#REF!+#REF!+Feb_Williams!O12+#REF! ->  | P12: =#REF!*0.5 ->  | Q12: =#REF!+#REF!+#REF!+#REF!+#REF!+#REF!+#REF!+#REF!+#REF!+#REF!+#REF!+#REF!+#REF!+#REF!+#REF!+#REF!+#REF!+#REF!+#REF!+#REF!+#REF!+#REF!+#REF!+#REF!+#REF!+#REF!+#REF!+#REF!+#REF!+#REF!+#REF!+Feb_Williams!Q12+#REF! ->  | T12: =#REF!+#REF!+#REF!+#REF!+#REF!+#REF!+#REF!+#REF!+#REF!+#REF!+#REF!+#REF!+#REF!+#REF!+#REF!+#REF!+#REF!+#REF!+#REF!+#REF!+#REF!+#REF!+#REF!+#REF!+#REF!+#REF!+#REF!+#REF!+#REF!+#REF!+#REF!+Feb_Williams!T12+#REF! ->  | U12: =#REF!*0.5 ->  | V12: =#REF!+#REF!+#REF!+#REF!+#REF!+#REF!+#REF!+#REF!+#REF!+#REF!+#REF!+#REF!+#REF!+#REF!+#REF!+#REF!+#REF!+#REF!+#REF!+#REF!+#REF!+#REF!+#REF!+#REF!+#REF!+#REF!+#REF!+#REF!+#REF!+#REF!+#REF!+Feb_Williams!V12+#REF! ->  | W12: =#REF!+#REF!+#REF!+#REF!+#REF!+#REF!+#REF!+#REF!+#REF!+#REF!+#REF!+#REF!+#REF!+#REF!+#REF!+#REF!+#REF!+#REF!+#REF!+#REF!+#REF!+#REF!+#REF!+#REF!+#REF!+#REF!+#REF!+#REF!+#REF!+#REF!+#REF!+Feb_Williams!W12+#REF! ->  | X12: =#REF!*0.5 ->  | Y12: =#REF!+#REF!+#REF!+#REF!+#REF!+#REF!+#REF!+#REF!+#REF!+#REF!+#REF!+#REF!+#REF!+#REF!+#REF!+#REF!+#REF!+#REF!+#REF!+#REF!+#REF!+#REF!+#REF!+#REF!+#REF!+#REF!+#REF!+#REF!+#REF!+#REF!+#REF!+Feb_Williams!Y12+#REF! -> 
A13: 7 | B13: Bienville | C13: =#REF!+#REF!+#REF!+#REF!+#REF!+#REF!+#REF!+#REF!+#REF!+#REF!+#REF!+#REF!+#REF!+#REF!+#REF!+#REF!+#REF!+#REF!+#REF!+#REF!+#REF!+#REF!+#REF!+#REF!+#REF!+#REF!+#REF!+#REF!+#REF!+#REF!+#REF!+Feb_Williams!C13+#REF!+#REF!+#REF! ->  | D13: =#REF!+#REF!+#REF!+#REF!+#REF!+#REF!+#REF!+#REF!+#REF!+#REF!+#REF!+#REF!+#REF!+#REF!+#REF!+#REF!+#REF!+#REF!+#REF!+#REF!+#REF!+#REF!+#REF!+#REF!+#REF!+#REF!+#REF!+#REF!+#REF!+#REF!+#REF!+Feb_Williams!D13+#REF!+#REF!+#REF! ->  | E13: =#REF!+#REF!+#REF!+#REF!+#REF!+#REF!+#REF!+#REF!+#REF!+#REF!+#REF!+#REF!+#REF!+#REF!+#REF!+#REF!+#REF!+#REF!+#REF!+#REF!+#REF!+#REF!+#REF!+#REF!+#REF!+#REF!+#REF!+#REF!+#REF!+#REF!+#REF!+Feb_Williams!E13+#REF!+#REF!+#REF! ->  | F13: =#REF!*0.5 ->  | G13: =#REF!+#REF!+#REF!+#REF!+#REF!+#REF!+#REF!+#REF!+#REF!+#REF!+#REF!+#REF!+#REF!+#REF!+#REF!+#REF!+#REF!+#REF!+#REF!+#REF!+#REF!+#REF!+#REF!+#REF!+#REF!+#REF!+#REF!+#REF!+#REF!+#REF!+#REF!+Feb_Williams!G13+#REF! ->  | H13: =#REF!+#REF!+#REF!+#REF!+#REF!+#REF!+#REF!+#REF!+#REF!+#REF!+#REF!+#REF!+#REF!+#REF!+#REF!+#REF!+#REF!+#REF!+#REF!+#REF!+#REF!+#REF!+#REF!+#REF!+#REF!+#REF!+#REF!+#REF!+#REF!+#REF!+#REF!+Feb_Williams!H13+#REF!+#REF!+#REF! ->  | I13: =#REF!+#REF!+#REF!+#REF!+#REF!+#REF!+#REF!+#REF!+#REF!+#REF!+#REF!+#REF!+#REF!+#REF!+#REF!+#REF!+#REF!+#REF!+#REF!+#REF!+#REF!+#REF!+#REF!+#REF!+#REF!+#REF!+#REF!+#REF!+#REF!+#REF!+#REF!+Feb_Williams!I13+#REF!+#REF!+#REF! ->  | J13: =#REF!+#REF!+#REF!+#REF!+#REF!+#REF!+#REF!+#REF!+#REF!+#REF!+#REF!+#REF!+#REF!+#REF!+#REF!+#REF!+#REF!+#REF!+#REF!+#REF!+#REF!+#REF!+#REF!+#REF!+#REF!+#REF!+#REF!+#REF!+#REF!+#REF!+#REF!+Feb_Williams!J13+#REF!+#REF!+#REF! ->  | K13: =#REF!*0.5 ->  | L13: =#REF!+#REF!+#REF!+#REF!+#REF!+#REF!+#REF!+#REF!+#REF!+#REF!+#REF!+#REF!+#REF!+#REF!+#REF!+#REF!+#REF!+#REF!+#REF!+#REF!+#REF!+#REF!+#REF!+#REF!+#REF!+#REF!+#REF!+#REF!+#REF!+#REF!+#REF!+Feb_Williams!L13+#REF! ->  | O13: =#REF!+#REF!+#REF!+#REF!+#REF!+#REF!+#REF!+#REF!+#REF!+#REF!+#REF!+#REF!+#REF!+#REF!+#REF!+#REF!+#REF!+#REF!+#REF!+#REF!+#REF!+#REF!+#REF!+#REF!+#REF!+#REF!+#REF!+#REF!+#REF!+#REF!+#REF!+Feb_Williams!O13+#REF! ->  | P13: =#REF!*0.5 ->  | Q13: =#REF!+#REF!+#REF!+#REF!+#REF!+#REF!+#REF!+#REF!+#REF!+#REF!+#REF!+#REF!+#REF!+#REF!+#REF!+#REF!+#REF!+#REF!+#REF!+#REF!+#REF!+#REF!+#REF!+#REF!+#REF!+#REF!+#REF!+#REF!+#REF!+#REF!+#REF!+Feb_Williams!Q13+#REF! ->  | T13: =#REF!+#REF!+#REF!+#REF!+#REF!+#REF!+#REF!+#REF!+#REF!+#REF!+#REF!+#REF!+#REF!+#REF!+#REF!+#REF!+#REF!+#REF!+#REF!+#REF!+#REF!+#REF!+#REF!+#REF!+#REF!+#REF!+#REF!+#REF!+#REF!+#REF!+#REF!+Feb_Williams!T13+#REF! ->  | U13: =#REF!*0.5 ->  | V13: =#REF!+#REF!+#REF!+#REF!+#REF!+#REF!+#REF!+#REF!+#REF!+#REF!+#REF!+#REF!+#REF!+#REF!+#REF!+#REF!+#REF!+#REF!+#REF!+#REF!+#REF!+#REF!+#REF!+#REF!+#REF!+#REF!+#REF!+#REF!+#REF!+#REF!+#REF!+Feb_Williams!V13+#REF! ->  | W13: =#REF!+#REF!+#REF!+#REF!+#REF!+#REF!+#REF!+#REF!+#REF!+#REF!+#REF!+#REF!+#REF!+#REF!+#REF!+#REF!+#REF!+#REF!+#REF!+#REF!+#REF!+#REF!+#REF!+#REF!+#REF!+#REF!+#REF!+#REF!+#REF!+#REF!+#REF!+Feb_Williams!W13+#REF! ->  | X13: =#REF!*0.5 ->  | Y13: =#REF!+#REF!+#REF!+#REF!+#REF!+#REF!+#REF!+#REF!+#REF!+#REF!+#REF!+#REF!+#REF!+#REF!+#REF!+#REF!+#REF!+#REF!+#REF!+#REF!+#REF!+#REF!+#REF!+#REF!+#REF!+#REF!+#REF!+#REF!+#REF!+#REF!+#REF!+Feb_Williams!Y13+#REF! -> 
A14: 8 | B14: Bossier | C14: =#REF!+#REF!+#REF!+#REF!+#REF!+#REF!+#REF!+#REF!+#REF!+#REF!+#REF!+#REF!+#REF!+#REF!+#REF!+#REF!+#REF!+#REF!+#REF!+#REF!+#REF!+#REF!+#REF!+#REF!+#REF!+#REF!+#REF!+#REF!+#REF!+#REF!+#REF!+Feb_Williams!C14+#REF!+#REF!+#REF! ->  | D14: =#REF!+#REF!+#REF!+#REF!+#REF!+#REF!+#REF!+#REF!+#REF!+#REF!+#REF!+#REF!+#REF!+#REF!+#REF!+#REF!+#REF!+#REF!+#REF!+#REF!+#REF!+#REF!+#REF!+#REF!+#REF!+#REF!+#REF!+#REF!+#REF!+#REF!+#REF!+Feb_Williams!D14+#REF!+#REF!+#REF! ->  | E14: =#REF!+#REF!+#REF!+#REF!+#REF!+#REF!+#REF!+#REF!+#REF!+#REF!+#REF!+#REF!+#REF!+#REF!+#REF!+#REF!+#REF!+#REF!+#REF!+#REF!+#REF!+#REF!+#REF!+#REF!+#REF!+#REF!+#REF!+#REF!+#REF!+#REF!+#REF!+Feb_Williams!E14+#REF!+#REF!+#REF! ->  | F14: =#REF!*0.5 ->  | G14: =#REF!+#REF!+#REF!+#REF!+#REF!+#REF!+#REF!+#REF!+#REF!+#REF!+#REF!+#REF!+#REF!+#REF!+#REF!+#REF!+#REF!+#REF!+#REF!+#REF!+#REF!+#REF!+#REF!+#REF!+#REF!+#REF!+#REF!+#REF!+#REF!+#REF!+#REF!+Feb_Williams!G14+#REF! ->  | H14: =#REF!+#REF!+#REF!+#REF!+#REF!+#REF!+#REF!+#REF!+#REF!+#REF!+#REF!+#REF!+#REF!+#REF!+#REF!+#REF!+#REF!+#REF!+#REF!+#REF!+#REF!+#REF!+#REF!+#REF!+#REF!+#REF!+#REF!+#REF!+#REF!+#REF!+#REF!+Feb_Williams!H14+#REF!+#REF!+#REF! ->  | I14: =#REF!+#REF!+#REF!+#REF!+#REF!+#REF!+#REF!+#REF!+#REF!+#REF!+#REF!+#REF!+#REF!+#REF!+#REF!+#REF!+#REF!+#REF!+#REF!+#REF!+#REF!+#REF!+#REF!+#REF!+#REF!+#REF!+#REF!+#REF!+#REF!+#REF!+#REF!+Feb_Williams!I14+#REF!+#REF!+#REF! ->  | J14: =#REF!+#REF!+#REF!+#REF!+#REF!+#REF!+#REF!+#REF!+#REF!+#REF!+#REF!+#REF!+#REF!+#REF!+#REF!+#REF!+#REF!+#REF!+#REF!+#REF!+#REF!+#REF!+#REF!+#REF!+#REF!+#REF!+#REF!+#REF!+#REF!+#REF!+#REF!+Feb_Williams!J14+#REF!+#REF!+#REF! ->  | K14: =#REF!*0.5 ->  | L14: =#REF!+#REF!+#REF!+#REF!+#REF!+#REF!+#REF!+#REF!+#REF!+#REF!+#REF!+#REF!+#REF!+#REF!+#REF!+#REF!+#REF!+#REF!+#REF!+#REF!+#REF!+#REF!+#REF!+#REF!+#REF!+#REF!+#REF!+#REF!+#REF!+#REF!+#REF!+Feb_Williams!L14+#REF! ->  | O14: =#REF!+#REF!+#REF!+#REF!+#REF!+#REF!+#REF!+#REF!+#REF!+#REF!+#REF!+#REF!+#REF!+#REF!+#REF!+#REF!+#REF!+#REF!+#REF!+#REF!+#REF!+#REF!+#REF!+#REF!+#REF!+#REF!+#REF!+#REF!+#REF!+#REF!+#REF!+Feb_Williams!O14+#REF! ->  | P14: =#REF!*0.5 ->  | Q14: =#REF!+#REF!+#REF!+#REF!+#REF!+#REF!+#REF!+#REF!+#REF!+#REF!+#REF!+#REF!+#REF!+#REF!+#REF!+#REF!+#REF!+#REF!+#REF!+#REF!+#REF!+#REF!+#REF!+#REF!+#REF!+#REF!+#REF!+#REF!+#REF!+#REF!+#REF!+Feb_Williams!Q14+#REF! ->  | T14: =#REF!+#REF!+#REF!+#REF!+#REF!+#REF!+#REF!+#REF!+#REF!+#REF!+#REF!+#REF!+#REF!+#REF!+#REF!+#REF!+#REF!+#REF!+#REF!+#REF!+#REF!+#REF!+#REF!+#REF!+#REF!+#REF!+#REF!+#REF!+#REF!+#REF!+#REF!+Feb_Williams!T14+#REF! ->  | U14: =#REF!*0.5 ->  | V14: =#REF!+#REF!+#REF!+#REF!+#REF!+#REF!+#REF!+#REF!+#REF!+#REF!+#REF!+#REF!+#REF!+#REF!+#REF!+#REF!+#REF!+#REF!+#REF!+#REF!+#REF!+#REF!+#REF!+#REF!+#REF!+#REF!+#REF!+#REF!+#REF!+#REF!+#REF!+Feb_Williams!V14+#REF! ->  | W14: =#REF!+#REF!+#REF!+#REF!+#REF!+#REF!+#REF!+#REF!+#REF!+#REF!+#REF!+#REF!+#REF!+#REF!+#REF!+#REF!+#REF!+#REF!+#REF!+#REF!+#REF!+#REF!+#REF!+#REF!+#REF!+#REF!+#REF!+#REF!+#REF!+#REF!+#REF!+Feb_Williams!W14+#REF! ->  | X14: =#REF!*0.5 ->  | Y14: =#REF!+#REF!+#REF!+#REF!+#REF!+#REF!+#REF!+#REF!+#REF!+#REF!+#REF!+#REF!+#REF!+#REF!+#REF!+#REF!+#REF!+#REF!+#REF!+#REF!+#REF!+#REF!+#REF!+#REF!+#REF!+#REF!+#REF!+#REF!+#REF!+#REF!+#REF!+Feb_Williams!Y14+#REF! -> 
A15: 9 | B15: Caddo | C15: =#REF!+#REF!+#REF!+#REF!+#REF!+#REF!+#REF!+#REF!+#REF!+#REF!+#REF!+#REF!+#REF!+#REF!+#REF!+#REF!+#REF!+#REF!+#REF!+#REF!+#REF!+#REF!+#REF!+#REF!+#REF!+#REF!+#REF!+#REF!+#REF!+#REF!+#REF!+Feb_Williams!C15+#REF!+#REF!+#REF! ->  | D15: =#REF!+#REF!+#REF!+#REF!+#REF!+#REF!+#REF!+#REF!+#REF!+#REF!+#REF!+#REF!+#REF!+#REF!+#REF!+#REF!+#REF!+#REF!+#REF!+#REF!+#REF!+#REF!+#REF!+#REF!+#REF!+#REF!+#REF!+#REF!+#REF!+#REF!+#REF!+Feb_Williams!D15+#REF!+#REF!+#REF! ->  | E15: =#REF!+#REF!+#REF!+#REF!+#REF!+#REF!+#REF!+#REF!+#REF!+#REF!+#REF!+#REF!+#REF!+#REF!+#REF!+#REF!+#REF!+#REF!+#REF!+#REF!+#REF!+#REF!+#REF!+#REF!+#REF!+#REF!+#REF!+#REF!+#REF!+#REF!+#REF!+Feb_Williams!E15+#REF!+#REF!+#REF! ->  | F15: =#REF!*0.5 ->  | G15: =#REF!+#REF!+#REF!+#REF!+#REF!+#REF!+#REF!+#REF!+#REF!+#REF!+#REF!+#REF!+#REF!+#REF!+#REF!+#REF!+#REF!+#REF!+#REF!+#REF!+#REF!+#REF!+#REF!+#REF!+#REF!+#REF!+#REF!+#REF!+#REF!+#REF!+#REF!+Feb_Williams!G15+#REF! ->  | H15: =#REF!+#REF!+#REF!+#REF!+#REF!+#REF!+#REF!+#REF!+#REF!+#REF!+#REF!+#REF!+#REF!+#REF!+#REF!+#REF!+#REF!+#REF!+#REF!+#REF!+#REF!+#REF!+#REF!+#REF!+#REF!+#REF!+#REF!+#REF!+#REF!+#REF!+#REF!+Feb_Williams!H15+#REF!+#REF!+#REF! ->  | I15: =#REF!+#REF!+#REF!+#REF!+#REF!+#REF!+#REF!+#REF!+#REF!+#REF!+#REF!+#REF!+#REF!+#REF!+#REF!+#REF!+#REF!+#REF!+#REF!+#REF!+#REF!+#REF!+#REF!+#REF!+#REF!+#REF!+#REF!+#REF!+#REF!+#REF!+#REF!+Feb_Williams!I15+#REF!+#REF!+#REF! ->  | J15: =#REF!+#REF!+#REF!+#REF!+#REF!+#REF!+#REF!+#REF!+#REF!+#REF!+#REF!+#REF!+#REF!+#REF!+#REF!+#REF!+#REF!+#REF!+#REF!+#REF!+#REF!+#REF!+#REF!+#REF!+#REF!+#REF!+#REF!+#REF!+#REF!+#REF!+#REF!+Feb_Williams!J15+#REF!+#REF!+#REF! ->  | K15: =#REF!*0.5 ->  | L15: =#REF!+#REF!+#REF!+#REF!+#REF!+#REF!+#REF!+#REF!+#REF!+#REF!+#REF!+#REF!+#REF!+#REF!+#REF!+#REF!+#REF!+#REF!+#REF!+#REF!+#REF!+#REF!+#REF!+#REF!+#REF!+#REF!+#REF!+#REF!+#REF!+#REF!+#REF!+Feb_Williams!L15+#REF! ->  | O15: =#REF!+#REF!+#REF!+#REF!+#REF!+#REF!+#REF!+#REF!+#REF!+#REF!+#REF!+#REF!+#REF!+#REF!+#REF!+#REF!+#REF!+#REF!+#REF!+#REF!+#REF!+#REF!+#REF!+#REF!+#REF!+#REF!+#REF!+#REF!+#REF!+#REF!+#REF!+Feb_Williams!O15+#REF! ->  | P15: =#REF!*0.5 ->  | Q15: =#REF!+#REF!+#REF!+#REF!+#REF!+#REF!+#REF!+#REF!+#REF!+#REF!+#REF!+#REF!+#REF!+#REF!+#REF!+#REF!+#REF!+#REF!+#REF!+#REF!+#REF!+#REF!+#REF!+#REF!+#REF!+#REF!+#REF!+#REF!+#REF!+#REF!+#REF!+Feb_Williams!Q15+#REF! ->  | T15: =#REF!+#REF!+#REF!+#REF!+#REF!+#REF!+#REF!+#REF!+#REF!+#REF!+#REF!+#REF!+#REF!+#REF!+#REF!+#REF!+#REF!+#REF!+#REF!+#REF!+#REF!+#REF!+#REF!+#REF!+#REF!+#REF!+#REF!+#REF!+#REF!+#REF!+#REF!+Feb_Williams!T15+#REF! ->  | U15: =#REF!*0.5 ->  | V15: =#REF!+#REF!+#REF!+#REF!+#REF!+#REF!+#REF!+#REF!+#REF!+#REF!+#REF!+#REF!+#REF!+#REF!+#REF!+#REF!+#REF!+#REF!+#REF!+#REF!+#REF!+#REF!+#REF!+#REF!+#REF!+#REF!+#REF!+#REF!+#REF!+#REF!+#REF!+Feb_Williams!V15+#REF! ->  | W15: =#REF!+#REF!+#REF!+#REF!+#REF!+#REF!+#REF!+#REF!+#REF!+#REF!+#REF!+#REF!+#REF!+#REF!+#REF!+#REF!+#REF!+#REF!+#REF!+#REF!+#REF!+#REF!+#REF!+#REF!+#REF!+#REF!+#REF!+#REF!+#REF!+#REF!+#REF!+Feb_Williams!W15+#REF! ->  | X15: =#REF!*0.5 ->  | Y15: =#REF!+#REF!+#REF!+#REF!+#REF!+#REF!+#REF!+#REF!+#REF!+#REF!+#REF!+#REF!+#REF!+#REF!+#REF!+#REF!+#REF!+#REF!+#REF!+#REF!+#REF!+#REF!+#REF!+#REF!+#REF!+#REF!+#REF!+#REF!+#REF!+#REF!+#REF!+Feb_Williams!Y15+#REF! -> 
A16: 10 | B16: Calcasieu | C16: =#REF!+#REF!+#REF!+#REF!+#REF!+#REF!+#REF!+#REF!+#REF!+#REF!+#REF!+#REF!+#REF!+#REF!+#REF!+#REF!+#REF!+#REF!+#REF!+#REF!+#REF!+#REF!+#REF!+#REF!+#REF!+#REF!+#REF!+#REF!+#REF!+#REF!+#REF!+Feb_Williams!C16+#REF!+#REF!+#REF! ->  | D16: =#REF!+#REF!+#REF!+#REF!+#REF!+#REF!+#REF!+#REF!+#REF!+#REF!+#REF!+#REF!+#REF!+#REF!+#REF!+#REF!+#REF!+#REF!+#REF!+#REF!+#REF!+#REF!+#REF!+#REF!+#REF!+#REF!+#REF!+#REF!+#REF!+#REF!+#REF!+Feb_Williams!D16+#REF!+#REF!+#REF! ->  | E16: =#REF!+#REF!+#REF!+#REF!+#REF!+#REF!+#REF!+#REF!+#REF!+#REF!+#REF!+#REF!+#REF!+#REF!+#REF!+#REF!+#REF!+#REF!+#REF!+#REF!+#REF!+#REF!+#REF!+#REF!+#REF!+#REF!+#REF!+#REF!+#REF!+#REF!+#REF!+Feb_Williams!E16+#REF!+#REF!+#REF! ->  | F16: =#REF!*0.5 ->  | G16: =#REF!+#REF!+#REF!+#REF!+#REF!+#REF!+#REF!+#REF!+#REF!+#REF!+#REF!+#REF!+#REF!+#REF!+#REF!+#REF!+#REF!+#REF!+#REF!+#REF!+#REF!+#REF!+#REF!+#REF!+#REF!+#REF!+#REF!+#REF!+#REF!+#REF!+#REF!+Feb_Williams!G16+#REF! ->  | H16: =#REF!+#REF!+#REF!+#REF!+#REF!+#REF!+#REF!+#REF!+#REF!+#REF!+#REF!+#REF!+#REF!+#REF!+#REF!+#REF!+#REF!+#REF!+#REF!+#REF!+#REF!+#REF!+#REF!+#REF!+#REF!+#REF!+#REF!+#REF!+#REF!+#REF!+#REF!+Feb_Williams!H16+#REF!+#REF!+#REF! ->  | I16: =#REF!+#REF!+#REF!+#REF!+#REF!+#REF!+#REF!+#REF!+#REF!+#REF!+#REF!+#REF!+#REF!+#REF!+#REF!+#REF!+#REF!+#REF!+#REF!+#REF!+#REF!+#REF!+#REF!+#REF!+#REF!+#REF!+#REF!+#REF!+#REF!+#REF!+#REF!+Feb_Williams!I16+#REF!+#REF!+#REF! ->  | J16: =#REF!+#REF!+#REF!+#REF!+#REF!+#REF!+#REF!+#REF!+#REF!+#REF!+#REF!+#REF!+#REF!+#REF!+#REF!+#REF!+#REF!+#REF!+#REF!+#REF!+#REF!+#REF!+#REF!+#REF!+#REF!+#REF!+#REF!+#REF!+#REF!+#REF!+#REF!+Feb_Williams!J16+#REF!+#REF!+#REF! ->  | K16: =#REF!*0.5 ->  | L16: =#REF!+#REF!+#REF!+#REF!+#REF!+#REF!+#REF!+#REF!+#REF!+#REF!+#REF!+#REF!+#REF!+#REF!+#REF!+#REF!+#REF!+#REF!+#REF!+#REF!+#REF!+#REF!+#REF!+#REF!+#REF!+#REF!+#REF!+#REF!+#REF!+#REF!+#REF!+Feb_Williams!L16+#REF! ->  | O16: =#REF!+#REF!+#REF!+#REF!+#REF!+#REF!+#REF!+#REF!+#REF!+#REF!+#REF!+#REF!+#REF!+#REF!+#REF!+#REF!+#REF!+#REF!+#REF!+#REF!+#REF!+#REF!+#REF!+#REF!+#REF!+#REF!+#REF!+#REF!+#REF!+#REF!+#REF!+Feb_Williams!O16+#REF! ->  | P16: =#REF!*0.5 ->  | Q16: =#REF!+#REF!+#REF!+#REF!+#REF!+#REF!+#REF!+#REF!+#REF!+#REF!+#REF!+#REF!+#REF!+#REF!+#REF!+#REF!+#REF!+#REF!+#REF!+#REF!+#REF!+#REF!+#REF!+#REF!+#REF!+#REF!+#REF!+#REF!+#REF!+#REF!+#REF!+Feb_Williams!Q16+#REF! ->  | T16: =#REF!+#REF!+#REF!+#REF!+#REF!+#REF!+#REF!+#REF!+#REF!+#REF!+#REF!+#REF!+#REF!+#REF!+#REF!+#REF!+#REF!+#REF!+#REF!+#REF!+#REF!+#REF!+#REF!+#REF!+#REF!+#REF!+#REF!+#REF!+#REF!+#REF!+#REF!+Feb_Williams!T16+#REF! ->  | U16: =#REF!*0.5 ->  | V16: =#REF!+#REF!+#REF!+#REF!+#REF!+#REF!+#REF!+#REF!+#REF!+#REF!+#REF!+#REF!+#REF!+#REF!+#REF!+#REF!+#REF!+#REF!+#REF!+#REF!+#REF!+#REF!+#REF!+#REF!+#REF!+#REF!+#REF!+#REF!+#REF!+#REF!+#REF!+Feb_Williams!V16+#REF! ->  | W16: =#REF!+#REF!+#REF!+#REF!+#REF!+#REF!+#REF!+#REF!+#REF!+#REF!+#REF!+#REF!+#REF!+#REF!+#REF!+#REF!+#REF!+#REF!+#REF!+#REF!+#REF!+#REF!+#REF!+#REF!+#REF!+#REF!+#REF!+#REF!+#REF!+#REF!+#REF!+Feb_Williams!W16+#REF! ->  | X16: =#REF!*0.5 ->  | Y16: =#REF!+#REF!+#REF!+#REF!+#REF!+#REF!+#REF!+#REF!+#REF!+#REF!+#REF!+#REF!+#REF!+#REF!+#REF!+#REF!+#REF!+#REF!+#REF!+#REF!+#REF!+#REF!+#REF!+#REF!+#REF!+#REF!+#REF!+#REF!+#REF!+#REF!+#REF!+Feb_Williams!Y16+#REF! -> 
A17: 11 | B17: Caldwell | C17: =#REF!+#REF!+#REF!+#REF!+#REF!+#REF!+#REF!+#REF!+#REF!+#REF!+#REF!+#REF!+#REF!+#REF!+#REF!+#REF!+#REF!+#REF!+#REF!+#REF!+#REF!+#REF!+#REF!+#REF!+#REF!+#REF!+#REF!+#REF!+#REF!+#REF!+#REF!+Feb_Williams!C17+#REF!+#REF!+#REF! ->  | D17: =#REF!+#REF!+#REF!+#REF!+#REF!+#REF!+#REF!+#REF!+#REF!+#REF!+#REF!+#REF!+#REF!+#REF!+#REF!+#REF!+#REF!+#REF!+#REF!+#REF!+#REF!+#REF!+#REF!+#REF!+#REF!+#REF!+#REF!+#REF!+#REF!+#REF!+#REF!+Feb_Williams!D17+#REF!+#REF!+#REF! ->  | E17: =#REF!+#REF!+#REF!+#REF!+#REF!+#REF!+#REF!+#REF!+#REF!+#REF!+#REF!+#REF!+#REF!+#REF!+#REF!+#REF!+#REF!+#REF!+#REF!+#REF!+#REF!+#REF!+#REF!+#REF!+#REF!+#REF!+#REF!+#REF!+#REF!+#REF!+#REF!+Feb_Williams!E17+#REF!+#REF!+#REF! ->  | F17: =#REF!*0.5 ->  | G17: =#REF!+#REF!+#REF!+#REF!+#REF!+#REF!+#REF!+#REF!+#REF!+#REF!+#REF!+#REF!+#REF!+#REF!+#REF!+#REF!+#REF!+#REF!+#REF!+#REF!+#REF!+#REF!+#REF!+#REF!+#REF!+#REF!+#REF!+#REF!+#REF!+#REF!+#REF!+Feb_Williams!G17+#REF! ->  | H17: =#REF!+#REF!+#REF!+#REF!+#REF!+#REF!+#REF!+#REF!+#REF!+#REF!+#REF!+#REF!+#REF!+#REF!+#REF!+#REF!+#REF!+#REF!+#REF!+#REF!+#REF!+#REF!+#REF!+#REF!+#REF!+#REF!+#REF!+#REF!+#REF!+#REF!+#REF!+Feb_Williams!H17+#REF!+#REF!+#REF! ->  | I17: =#REF!+#REF!+#REF!+#REF!+#REF!+#REF!+#REF!+#REF!+#REF!+#REF!+#REF!+#REF!+#REF!+#REF!+#REF!+#REF!+#REF!+#REF!+#REF!+#REF!+#REF!+#REF!+#REF!+#REF!+#REF!+#REF!+#REF!+#REF!+#REF!+#REF!+#REF!+Feb_Williams!I17+#REF!+#REF!+#REF! ->  | J17: =#REF!+#REF!+#REF!+#REF!+#REF!+#REF!+#REF!+#REF!+#REF!+#REF!+#REF!+#REF!+#REF!+#REF!+#REF!+#REF!+#REF!+#REF!+#REF!+#REF!+#REF!+#REF!+#REF!+#REF!+#REF!+#REF!+#REF!+#REF!+#REF!+#REF!+#REF!+Feb_Williams!J17+#REF!+#REF!+#REF! ->  | K17: =#REF!*0.5 ->  | L17: =#REF!+#REF!+#REF!+#REF!+#REF!+#REF!+#REF!+#REF!+#REF!+#REF!+#REF!+#REF!+#REF!+#REF!+#REF!+#REF!+#REF!+#REF!+#REF!+#REF!+#REF!+#REF!+#REF!+#REF!+#REF!+#REF!+#REF!+#REF!+#REF!+#REF!+#REF!+Feb_Williams!L17+#REF! ->  | O17: =#REF!+#REF!+#REF!+#REF!+#REF!+#REF!+#REF!+#REF!+#REF!+#REF!+#REF!+#REF!+#REF!+#REF!+#REF!+#REF!+#REF!+#REF!+#REF!+#REF!+#REF!+#REF!+#REF!+#REF!+#REF!+#REF!+#REF!+#REF!+#REF!+#REF!+#REF!+Feb_Williams!O17+#REF! ->  | P17: =#REF!*0.5 ->  | Q17: =#REF!+#REF!+#REF!+#REF!+#REF!+#REF!+#REF!+#REF!+#REF!+#REF!+#REF!+#REF!+#REF!+#REF!+#REF!+#REF!+#REF!+#REF!+#REF!+#REF!+#REF!+#REF!+#REF!+#REF!+#REF!+#REF!+#REF!+#REF!+#REF!+#REF!+#REF!+Feb_Williams!Q17+#REF! ->  | T17: =#REF!+#REF!+#REF!+#REF!+#REF!+#REF!+#REF!+#REF!+#REF!+#REF!+#REF!+#REF!+#REF!+#REF!+#REF!+#REF!+#REF!+#REF!+#REF!+#REF!+#REF!+#REF!+#REF!+#REF!+#REF!+#REF!+#REF!+#REF!+#REF!+#REF!+#REF!+Feb_Williams!T17+#REF! ->  | U17: =#REF!*0.5 ->  | V17: =#REF!+#REF!+#REF!+#REF!+#REF!+#REF!+#REF!+#REF!+#REF!+#REF!+#REF!+#REF!+#REF!+#REF!+#REF!+#REF!+#REF!+#REF!+#REF!+#REF!+#REF!+#REF!+#REF!+#REF!+#REF!+#REF!+#REF!+#REF!+#REF!+#REF!+#REF!+Feb_Williams!V17+#REF! ->  | W17: =#REF!+#REF!+#REF!+#REF!+#REF!+#REF!+#REF!+#REF!+#REF!+#REF!+#REF!+#REF!+#REF!+#REF!+#REF!+#REF!+#REF!+#REF!+#REF!+#REF!+#REF!+#REF!+#REF!+#REF!+#REF!+#REF!+#REF!+#REF!+#REF!+#REF!+#REF!+Feb_Williams!W17+#REF! ->  | X17: =#REF!*0.5 ->  | Y17: =#REF!+#REF!+#REF!+#REF!+#REF!+#REF!+#REF!+#REF!+#REF!+#REF!+#REF!+#REF!+#REF!+#REF!+#REF!+#REF!+#REF!+#REF!+#REF!+#REF!+#REF!+#REF!+#REF!+#REF!+#REF!+#REF!+#REF!+#REF!+#REF!+#REF!+#REF!+Feb_Williams!Y17+#REF! -> 
A18: 12 | B18: Cameron | C18: =#REF!+#REF!+#REF!+#REF!+#REF!+#REF!+#REF!+#REF!+#REF!+#REF!+#REF!+#REF!+#REF!+#REF!+#REF!+#REF!+#REF!+#REF!+#REF!+#REF!+#REF!+#REF!+#REF!+#REF!+#REF!+#REF!+#REF!+#REF!+#REF!+#REF!+#REF!+Feb_Williams!C18+#REF!+#REF!+#REF! ->  | D18: =#REF!+#REF!+#REF!+#REF!+#REF!+#REF!+#REF!+#REF!+#REF!+#REF!+#REF!+#REF!+#REF!+#REF!+#REF!+#REF!+#REF!+#REF!+#REF!+#REF!+#REF!+#REF!+#REF!+#REF!+#REF!+#REF!+#REF!+#REF!+#REF!+#REF!+#REF!+Feb_Williams!D18+#REF!+#REF!+#REF! ->  | E18: =#REF!+#REF!+#REF!+#REF!+#REF!+#REF!+#REF!+#REF!+#REF!+#REF!+#REF!+#REF!+#REF!+#REF!+#REF!+#REF!+#REF!+#REF!+#REF!+#REF!+#REF!+#REF!+#REF!+#REF!+#REF!+#REF!+#REF!+#REF!+#REF!+#REF!+#REF!+Feb_Williams!E18+#REF!+#REF!+#REF! ->  | F18: =#REF!*0.5 ->  | G18: =#REF!+#REF!+#REF!+#REF!+#REF!+#REF!+#REF!+#REF!+#REF!+#REF!+#REF!+#REF!+#REF!+#REF!+#REF!+#REF!+#REF!+#REF!+#REF!+#REF!+#REF!+#REF!+#REF!+#REF!+#REF!+#REF!+#REF!+#REF!+#REF!+#REF!+#REF!+Feb_Williams!G18+#REF! ->  | H18: =#REF!+#REF!+#REF!+#REF!+#REF!+#REF!+#REF!+#REF!+#REF!+#REF!+#REF!+#REF!+#REF!+#REF!+#REF!+#REF!+#REF!+#REF!+#REF!+#REF!+#REF!+#REF!+#REF!+#REF!+#REF!+#REF!+#REF!+#REF!+#REF!+#REF!+#REF!+Feb_Williams!H18+#REF!+#REF!+#REF! ->  | I18: =#REF!+#REF!+#REF!+#REF!+#REF!+#REF!+#REF!+#REF!+#REF!+#REF!+#REF!+#REF!+#REF!+#REF!+#REF!+#REF!+#REF!+#REF!+#REF!+#REF!+#REF!+#REF!+#REF!+#REF!+#REF!+#REF!+#REF!+#REF!+#REF!+#REF!+#REF!+Feb_Williams!I18+#REF!+#REF!+#REF! ->  | J18: =#REF!+#REF!+#REF!+#REF!+#REF!+#REF!+#REF!+#REF!+#REF!+#REF!+#REF!+#REF!+#REF!+#REF!+#REF!+#REF!+#REF!+#REF!+#REF!+#REF!+#REF!+#REF!+#REF!+#REF!+#REF!+#REF!+#REF!+#REF!+#REF!+#REF!+#REF!+Feb_Williams!J18+#REF!+#REF!+#REF! ->  | K18: =#REF!*0.5 ->  | L18: =#REF!+#REF!+#REF!+#REF!+#REF!+#REF!+#REF!+#REF!+#REF!+#REF!+#REF!+#REF!+#REF!+#REF!+#REF!+#REF!+#REF!+#REF!+#REF!+#REF!+#REF!+#REF!+#REF!+#REF!+#REF!+#REF!+#REF!+#REF!+#REF!+#REF!+#REF!+Feb_Williams!L18+#REF! ->  | O18: =#REF!+#REF!+#REF!+#REF!+#REF!+#REF!+#REF!+#REF!+#REF!+#REF!+#REF!+#REF!+#REF!+#REF!+#REF!+#REF!+#REF!+#REF!+#REF!+#REF!+#REF!+#REF!+#REF!+#REF!+#REF!+#REF!+#REF!+#REF!+#REF!+#REF!+#REF!+Feb_Williams!O18+#REF! ->  | P18: =#REF!*0.5 ->  | Q18: =#REF!+#REF!+#REF!+#REF!+#REF!+#REF!+#REF!+#REF!+#REF!+#REF!+#REF!+#REF!+#REF!+#REF!+#REF!+#REF!+#REF!+#REF!+#REF!+#REF!+#REF!+#REF!+#REF!+#REF!+#REF!+#REF!+#REF!+#REF!+#REF!+#REF!+#REF!+Feb_Williams!Q18+#REF! ->  | T18: =#REF!+#REF!+#REF!+#REF!+#REF!+#REF!+#REF!+#REF!+#REF!+#REF!+#REF!+#REF!+#REF!+#REF!+#REF!+#REF!+#REF!+#REF!+#REF!+#REF!+#REF!+#REF!+#REF!+#REF!+#REF!+#REF!+#REF!+#REF!+#REF!+#REF!+#REF!+Feb_Williams!T18+#REF! ->  | U18: =#REF!*0.5 ->  | V18: =#REF!+#REF!+#REF!+#REF!+#REF!+#REF!+#REF!+#REF!+#REF!+#REF!+#REF!+#REF!+#REF!+#REF!+#REF!+#REF!+#REF!+#REF!+#REF!+#REF!+#REF!+#REF!+#REF!+#REF!+#REF!+#REF!+#REF!+#REF!+#REF!+#REF!+#REF!+Feb_Williams!V18+#REF! ->  | W18: =#REF!+#REF!+#REF!+#REF!+#REF!+#REF!+#REF!+#REF!+#REF!+#REF!+#REF!+#REF!+#REF!+#REF!+#REF!+#REF!+#REF!+#REF!+#REF!+#REF!+#REF!+#REF!+#REF!+#REF!+#REF!+#REF!+#REF!+#REF!+#REF!+#REF!+#REF!+Feb_Williams!W18+#REF! ->  | X18: =#REF!*0.5 ->  | Y18: =#REF!+#REF!+#REF!+#REF!+#REF!+#REF!+#REF!+#REF!+#REF!+#REF!+#REF!+#REF!+#REF!+#REF!+#REF!+#REF!+#REF!+#REF!+#REF!+#REF!+#REF!+#REF!+#REF!+#REF!+#REF!+#REF!+#REF!+#REF!+#REF!+#REF!+#REF!+Feb_Williams!Y18+#REF! -> 
A19: 13 | B19: Catahoula | C19: =#REF!+#REF!+#REF!+#REF!+#REF!+#REF!+#REF!+#REF!+#REF!+#REF!+#REF!+#REF!+#REF!+#REF!+#REF!+#REF!+#REF!+#REF!+#REF!+#REF!+#REF!+#REF!+#REF!+#REF!+#REF!+#REF!+#REF!+#REF!+#REF!+#REF!+#REF!+Feb_Williams!C19+#REF!+#REF!+#REF! ->  | D19: =#REF!+#REF!+#REF!+#REF!+#REF!+#REF!+#REF!+#REF!+#REF!+#REF!+#REF!+#REF!+#REF!+#REF!+#REF!+#REF!+#REF!+#REF!+#REF!+#REF!+#REF!+#REF!+#REF!+#REF!+#REF!+#REF!+#REF!+#REF!+#REF!+#REF!+#REF!+Feb_Williams!D19+#REF!+#REF!+#REF! ->  | E19: =#REF!+#REF!+#REF!+#REF!+#REF!+#REF!+#REF!+#REF!+#REF!+#REF!+#REF!+#REF!+#REF!+#REF!+#REF!+#REF!+#REF!+#REF!+#REF!+#REF!+#REF!+#REF!+#REF!+#REF!+#REF!+#REF!+#REF!+#REF!+#REF!+#REF!+#REF!+Feb_Williams!E19+#REF!+#REF!+#REF! ->  | F19: =#REF!*0.5 ->  | G19: =#REF!+#REF!+#REF!+#REF!+#REF!+#REF!+#REF!+#REF!+#REF!+#REF!+#REF!+#REF!+#REF!+#REF!+#REF!+#REF!+#REF!+#REF!+#REF!+#REF!+#REF!+#REF!+#REF!+#REF!+#REF!+#REF!+#REF!+#REF!+#REF!+#REF!+#REF!+Feb_Williams!G19+#REF! ->  | H19: =#REF!+#REF!+#REF!+#REF!+#REF!+#REF!+#REF!+#REF!+#REF!+#REF!+#REF!+#REF!+#REF!+#REF!+#REF!+#REF!+#REF!+#REF!+#REF!+#REF!+#REF!+#REF!+#REF!+#REF!+#REF!+#REF!+#REF!+#REF!+#REF!+#REF!+#REF!+Feb_Williams!H19+#REF!+#REF!+#REF! ->  | I19: =#REF!+#REF!+#REF!+#REF!+#REF!+#REF!+#REF!+#REF!+#REF!+#REF!+#REF!+#REF!+#REF!+#REF!+#REF!+#REF!+#REF!+#REF!+#REF!+#REF!+#REF!+#REF!+#REF!+#REF!+#REF!+#REF!+#REF!+#REF!+#REF!+#REF!+#REF!+Feb_Williams!I19+#REF!+#REF!+#REF! ->  | J19: =#REF!+#REF!+#REF!+#REF!+#REF!+#REF!+#REF!+#REF!+#REF!+#REF!+#REF!+#REF!+#REF!+#REF!+#REF!+#REF!+#REF!+#REF!+#REF!+#REF!+#REF!+#REF!+#REF!+#REF!+#REF!+#REF!+#REF!+#REF!+#REF!+#REF!+#REF!+Feb_Williams!J19+#REF!+#REF!+#REF! ->  | K19: =#REF!*0.5 ->  | L19: =#REF!+#REF!+#REF!+#REF!+#REF!+#REF!+#REF!+#REF!+#REF!+#REF!+#REF!+#REF!+#REF!+#REF!+#REF!+#REF!+#REF!+#REF!+#REF!+#REF!+#REF!+#REF!+#REF!+#REF!+#REF!+#REF!+#REF!+#REF!+#REF!+#REF!+#REF!+Feb_Williams!L19+#REF! ->  | O19: =#REF!+#REF!+#REF!+#REF!+#REF!+#REF!+#REF!+#REF!+#REF!+#REF!+#REF!+#REF!+#REF!+#REF!+#REF!+#REF!+#REF!+#REF!+#REF!+#REF!+#REF!+#REF!+#REF!+#REF!+#REF!+#REF!+#REF!+#REF!+#REF!+#REF!+#REF!+Feb_Williams!O19+#REF! ->  | P19: =#REF!*0.5 ->  | Q19: =#REF!+#REF!+#REF!+#REF!+#REF!+#REF!+#REF!+#REF!+#REF!+#REF!+#REF!+#REF!+#REF!+#REF!+#REF!+#REF!+#REF!+#REF!+#REF!+#REF!+#REF!+#REF!+#REF!+#REF!+#REF!+#REF!+#REF!+#REF!+#REF!+#REF!+#REF!+Feb_Williams!Q19+#REF! ->  | T19: =#REF!+#REF!+#REF!+#REF!+#REF!+#REF!+#REF!+#REF!+#REF!+#REF!+#REF!+#REF!+#REF!+#REF!+#REF!+#REF!+#REF!+#REF!+#REF!+#REF!+#REF!+#REF!+#REF!+#REF!+#REF!+#REF!+#REF!+#REF!+#REF!+#REF!+#REF!+Feb_Williams!T19+#REF! ->  | U19: =#REF!*0.5 ->  | V19: =#REF!+#REF!+#REF!+#REF!+#REF!+#REF!+#REF!+#REF!+#REF!+#REF!+#REF!+#REF!+#REF!+#REF!+#REF!+#REF!+#REF!+#REF!+#REF!+#REF!+#REF!+#REF!+#REF!+#REF!+#REF!+#REF!+#REF!+#REF!+#REF!+#REF!+#REF!+Feb_Williams!V19+#REF! ->  | W19: =#REF!+#REF!+#REF!+#REF!+#REF!+#REF!+#REF!+#REF!+#REF!+#REF!+#REF!+#REF!+#REF!+#REF!+#REF!+#REF!+#REF!+#REF!+#REF!+#REF!+#REF!+#REF!+#REF!+#REF!+#REF!+#REF!+#REF!+#REF!+#REF!+#REF!+#REF!+Feb_Williams!W19+#REF! ->  | X19: =#REF!*0.5 ->  | Y19: =#REF!+#REF!+#REF!+#REF!+#REF!+#REF!+#REF!+#REF!+#REF!+#REF!+#REF!+#REF!+#REF!+#REF!+#REF!+#REF!+#REF!+#REF!+#REF!+#REF!+#REF!+#REF!+#REF!+#REF!+#REF!+#REF!+#REF!+#REF!+#REF!+#REF!+#REF!+Feb_Williams!Y19+#REF! -> 
A20: 14 | B20: Claiborne | C20: =#REF!+#REF!+#REF!+#REF!+#REF!+#REF!+#REF!+#REF!+#REF!+#REF!+#REF!+#REF!+#REF!+#REF!+#REF!+#REF!+#REF!+#REF!+#REF!+#REF!+#REF!+#REF!+#REF!+#REF!+#REF!+#REF!+#REF!+#REF!+#REF!+#REF!+#REF!+Feb_Williams!C20+#REF!+#REF!+#REF! ->  | D20: =#REF!+#REF!+#REF!+#REF!+#REF!+#REF!+#REF!+#REF!+#REF!+#REF!+#REF!+#REF!+#REF!+#REF!+#REF!+#REF!+#REF!+#REF!+#REF!+#REF!+#REF!+#REF!+#REF!+#REF!+#REF!+#REF!+#REF!+#REF!+#REF!+#REF!+#REF!+Feb_Williams!D20+#REF!+#REF!+#REF! ->  | E20: =#REF!+#REF!+#REF!+#REF!+#REF!+#REF!+#REF!+#REF!+#REF!+#REF!+#REF!+#REF!+#REF!+#REF!+#REF!+#REF!+#REF!+#REF!+#REF!+#REF!+#REF!+#REF!+#REF!+#REF!+#REF!+#REF!+#REF!+#REF!+#REF!+#REF!+#REF!+Feb_Williams!E20+#REF!+#REF!+#REF! ->  | F20: =#REF!*0.5 ->  | G20: =#REF!+#REF!+#REF!+#REF!+#REF!+#REF!+#REF!+#REF!+#REF!+#REF!+#REF!+#REF!+#REF!+#REF!+#REF!+#REF!+#REF!+#REF!+#REF!+#REF!+#REF!+#REF!+#REF!+#REF!+#REF!+#REF!+#REF!+#REF!+#REF!+#REF!+#REF!+Feb_Williams!G20+#REF! ->  | H20: =#REF!+#REF!+#REF!+#REF!+#REF!+#REF!+#REF!+#REF!+#REF!+#REF!+#REF!+#REF!+#REF!+#REF!+#REF!+#REF!+#REF!+#REF!+#REF!+#REF!+#REF!+#REF!+#REF!+#REF!+#REF!+#REF!+#REF!+#REF!+#REF!+#REF!+#REF!+Feb_Williams!H20+#REF!+#REF!+#REF! ->  | I20: =#REF!+#REF!+#REF!+#REF!+#REF!+#REF!+#REF!+#REF!+#REF!+#REF!+#REF!+#REF!+#REF!+#REF!+#REF!+#REF!+#REF!+#REF!+#REF!+#REF!+#REF!+#REF!+#REF!+#REF!+#REF!+#REF!+#REF!+#REF!+#REF!+#REF!+#REF!+Feb_Williams!I20+#REF!+#REF!+#REF! ->  | J20: =#REF!+#REF!+#REF!+#REF!+#REF!+#REF!+#REF!+#REF!+#REF!+#REF!+#REF!+#REF!+#REF!+#REF!+#REF!+#REF!+#REF!+#REF!+#REF!+#REF!+#REF!+#REF!+#REF!+#REF!+#REF!+#REF!+#REF!+#REF!+#REF!+#REF!+#REF!+Feb_Williams!J20+#REF!+#REF!+#REF! ->  | K20: =#REF!*0.5 ->  | L20: =#REF!+#REF!+#REF!+#REF!+#REF!+#REF!+#REF!+#REF!+#REF!+#REF!+#REF!+#REF!+#REF!+#REF!+#REF!+#REF!+#REF!+#REF!+#REF!+#REF!+#REF!+#REF!+#REF!+#REF!+#REF!+#REF!+#REF!+#REF!+#REF!+#REF!+#REF!+Feb_Williams!L20+#REF! ->  | O20: =#REF!+#REF!+#REF!+#REF!+#REF!+#REF!+#REF!+#REF!+#REF!+#REF!+#REF!+#REF!+#REF!+#REF!+#REF!+#REF!+#REF!+#REF!+#REF!+#REF!+#REF!+#REF!+#REF!+#REF!+#REF!+#REF!+#REF!+#REF!+#REF!+#REF!+#REF!+Feb_Williams!O20+#REF! ->  | P20: =#REF!*0.5 ->  | Q20: =#REF!+#REF!+#REF!+#REF!+#REF!+#REF!+#REF!+#REF!+#REF!+#REF!+#REF!+#REF!+#REF!+#REF!+#REF!+#REF!+#REF!+#REF!+#REF!+#REF!+#REF!+#REF!+#REF!+#REF!+#REF!+#REF!+#REF!+#REF!+#REF!+#REF!+#REF!+Feb_Williams!Q20+#REF! ->  | T20: =#REF!+#REF!+#REF!+#REF!+#REF!+#REF!+#REF!+#REF!+#REF!+#REF!+#REF!+#REF!+#REF!+#REF!+#REF!+#REF!+#REF!+#REF!+#REF!+#REF!+#REF!+#REF!+#REF!+#REF!+#REF!+#REF!+#REF!+#REF!+#REF!+#REF!+#REF!+Feb_Williams!T20+#REF! ->  | U20: =#REF!*0.5 ->  | V20: =#REF!+#REF!+#REF!+#REF!+#REF!+#REF!+#REF!+#REF!+#REF!+#REF!+#REF!+#REF!+#REF!+#REF!+#REF!+#REF!+#REF!+#REF!+#REF!+#REF!+#REF!+#REF!+#REF!+#REF!+#REF!+#REF!+#REF!+#REF!+#REF!+#REF!+#REF!+Feb_Williams!V20+#REF! ->  | W20: =#REF!+#REF!+#REF!+#REF!+#REF!+#REF!+#REF!+#REF!+#REF!+#REF!+#REF!+#REF!+#REF!+#REF!+#REF!+#REF!+#REF!+#REF!+#REF!+#REF!+#REF!+#REF!+#REF!+#REF!+#REF!+#REF!+#REF!+#REF!+#REF!+#REF!+#REF!+Feb_Williams!W20+#REF! ->  | X20: =#REF!*0.5 ->  | Y20: =#REF!+#REF!+#REF!+#REF!+#REF!+#REF!+#REF!+#REF!+#REF!+#REF!+#REF!+#REF!+#REF!+#REF!+#REF!+#REF!+#REF!+#REF!+#REF!+#REF!+#REF!+#REF!+#REF!+#REF!+#REF!+#REF!+#REF!+#REF!+#REF!+#REF!+#REF!+Feb_Williams!Y20+#REF! -> 
A21: 15 | B21: Concordia | C21: =#REF!+#REF!+#REF!+#REF!+#REF!+#REF!+#REF!+#REF!+#REF!+#REF!+#REF!+#REF!+#REF!+#REF!+#REF!+#REF!+#REF!+#REF!+#REF!+#REF!+#REF!+#REF!+#REF!+#REF!+#REF!+#REF!+#REF!+#REF!+#REF!+#REF!+#REF!+Feb_Williams!C21+#REF!+#REF!+#REF! ->  | D21: =#REF!+#REF!+#REF!+#REF!+#REF!+#REF!+#REF!+#REF!+#REF!+#REF!+#REF!+#REF!+#REF!+#REF!+#REF!+#REF!+#REF!+#REF!+#REF!+#REF!+#REF!+#REF!+#REF!+#REF!+#REF!+#REF!+#REF!+#REF!+#REF!+#REF!+#REF!+Feb_Williams!D21+#REF!+#REF!+#REF! ->  | E21: =#REF!+#REF!+#REF!+#REF!+#REF!+#REF!+#REF!+#REF!+#REF!+#REF!+#REF!+#REF!+#REF!+#REF!+#REF!+#REF!+#REF!+#REF!+#REF!+#REF!+#REF!+#REF!+#REF!+#REF!+#REF!+#REF!+#REF!+#REF!+#REF!+#REF!+#REF!+Feb_Williams!E21+#REF!+#REF!+#REF! ->  | F21: =#REF!*0.5 ->  | G21: =#REF!+#REF!+#REF!+#REF!+#REF!+#REF!+#REF!+#REF!+#REF!+#REF!+#REF!+#REF!+#REF!+#REF!+#REF!+#REF!+#REF!+#REF!+#REF!+#REF!+#REF!+#REF!+#REF!+#REF!+#REF!+#REF!+#REF!+#REF!+#REF!+#REF!+#REF!+Feb_Williams!G21+#REF! ->  | H21: =#REF!+#REF!+#REF!+#REF!+#REF!+#REF!+#REF!+#REF!+#REF!+#REF!+#REF!+#REF!+#REF!+#REF!+#REF!+#REF!+#REF!+#REF!+#REF!+#REF!+#REF!+#REF!+#REF!+#REF!+#REF!+#REF!+#REF!+#REF!+#REF!+#REF!+#REF!+Feb_Williams!H21+#REF!+#REF!+#REF! ->  | I21: =#REF!+#REF!+#REF!+#REF!+#REF!+#REF!+#REF!+#REF!+#REF!+#REF!+#REF!+#REF!+#REF!+#REF!+#REF!+#REF!+#REF!+#REF!+#REF!+#REF!+#REF!+#REF!+#REF!+#REF!+#REF!+#REF!+#REF!+#REF!+#REF!+#REF!+#REF!+Feb_Williams!I21+#REF!+#REF!+#REF! ->  | J21: =#REF!+#REF!+#REF!+#REF!+#REF!+#REF!+#REF!+#REF!+#REF!+#REF!+#REF!+#REF!+#REF!+#REF!+#REF!+#REF!+#REF!+#REF!+#REF!+#REF!+#REF!+#REF!+#REF!+#REF!+#REF!+#REF!+#REF!+#REF!+#REF!+#REF!+#REF!+Feb_Williams!J21+#REF!+#REF!+#REF! ->  | K21: =#REF!*0.5 ->  | L21: =#REF!+#REF!+#REF!+#REF!+#REF!+#REF!+#REF!+#REF!+#REF!+#REF!+#REF!+#REF!+#REF!+#REF!+#REF!+#REF!+#REF!+#REF!+#REF!+#REF!+#REF!+#REF!+#REF!+#REF!+#REF!+#REF!+#REF!+#REF!+#REF!+#REF!+#REF!+Feb_Williams!L21+#REF! ->  | O21: =#REF!+#REF!+#REF!+#REF!+#REF!+#REF!+#REF!+#REF!+#REF!+#REF!+#REF!+#REF!+#REF!+#REF!+#REF!+#REF!+#REF!+#REF!+#REF!+#REF!+#REF!+#REF!+#REF!+#REF!+#REF!+#REF!+#REF!+#REF!+#REF!+#REF!+#REF!+Feb_Williams!O21+#REF! ->  | P21: =#REF!*0.5 ->  | Q21: =#REF!+#REF!+#REF!+#REF!+#REF!+#REF!+#REF!+#REF!+#REF!+#REF!+#REF!+#REF!+#REF!+#REF!+#REF!+#REF!+#REF!+#REF!+#REF!+#REF!+#REF!+#REF!+#REF!+#REF!+#REF!+#REF!+#REF!+#REF!+#REF!+#REF!+#REF!+Feb_Williams!Q21+#REF! ->  | T21: =#REF!+#REF!+#REF!+#REF!+#REF!+#REF!+#REF!+#REF!+#REF!+#REF!+#REF!+#REF!+#REF!+#REF!+#REF!+#REF!+#REF!+#REF!+#REF!+#REF!+#REF!+#REF!+#REF!+#REF!+#REF!+#REF!+#REF!+#REF!+#REF!+#REF!+#REF!+Feb_Williams!T21+#REF! ->  | U21: =#REF!*0.5 ->  | V21: =#REF!+#REF!+#REF!+#REF!+#REF!+#REF!+#REF!+#REF!+#REF!+#REF!+#REF!+#REF!+#REF!+#REF!+#REF!+#REF!+#REF!+#REF!+#REF!+#REF!+#REF!+#REF!+#REF!+#REF!+#REF!+#REF!+#REF!+#REF!+#REF!+#REF!+#REF!+Feb_Williams!V21+#REF! ->  | W21: =#REF!+#REF!+#REF!+#REF!+#REF!+#REF!+#REF!+#REF!+#REF!+#REF!+#REF!+#REF!+#REF!+#REF!+#REF!+#REF!+#REF!+#REF!+#REF!+#REF!+#REF!+#REF!+#REF!+#REF!+#REF!+#REF!+#REF!+#REF!+#REF!+#REF!+#REF!+Feb_Williams!W21+#REF! ->  | X21: =#REF!*0.5 ->  | Y21: =#REF!+#REF!+#REF!+#REF!+#REF!+#REF!+#REF!+#REF!+#REF!+#REF!+#REF!+#REF!+#REF!+#REF!+#REF!+#REF!+#REF!+#REF!+#REF!+#REF!+#REF!+#REF!+#REF!+#REF!+#REF!+#REF!+#REF!+#REF!+#REF!+#REF!+#REF!+Feb_Williams!Y21+#REF! -> 
A22: 16 | B22: DeSoto | C22: =#REF!+#REF!+#REF!+#REF!+#REF!+#REF!+#REF!+#REF!+#REF!+#REF!+#REF!+#REF!+#REF!+#REF!+#REF!+#REF!+#REF!+#REF!+#REF!+#REF!+#REF!+#REF!+#REF!+#REF!+#REF!+#REF!+#REF!+#REF!+#REF!+#REF!+#REF!+Feb_Williams!C22+#REF!+#REF!+#REF! ->  | D22: =#REF!+#REF!+#REF!+#REF!+#REF!+#REF!+#REF!+#REF!+#REF!+#REF!+#REF!+#REF!+#REF!+#REF!+#REF!+#REF!+#REF!+#REF!+#REF!+#REF!+#REF!+#REF!+#REF!+#REF!+#REF!+#REF!+#REF!+#REF!+#REF!+#REF!+#REF!+Feb_Williams!D22+#REF!+#REF!+#REF! ->  | E22: =#REF!+#REF!+#REF!+#REF!+#REF!+#REF!+#REF!+#REF!+#REF!+#REF!+#REF!+#REF!+#REF!+#REF!+#REF!+#REF!+#REF!+#REF!+#REF!+#REF!+#REF!+#REF!+#REF!+#REF!+#REF!+#REF!+#REF!+#REF!+#REF!+#REF!+#REF!+Feb_Williams!E22+#REF!+#REF!+#REF! ->  | F22: =#REF!*0.5 ->  | G22: =#REF!+#REF!+#REF!+#REF!+#REF!+#REF!+#REF!+#REF!+#REF!+#REF!+#REF!+#REF!+#REF!+#REF!+#REF!+#REF!+#REF!+#REF!+#REF!+#REF!+#REF!+#REF!+#REF!+#REF!+#REF!+#REF!+#REF!+#REF!+#REF!+#REF!+#REF!+Feb_Williams!G22+#REF! ->  | H22: =#REF!+#REF!+#REF!+#REF!+#REF!+#REF!+#REF!+#REF!+#REF!+#REF!+#REF!+#REF!+#REF!+#REF!+#REF!+#REF!+#REF!+#REF!+#REF!+#REF!+#REF!+#REF!+#REF!+#REF!+#REF!+#REF!+#REF!+#REF!+#REF!+#REF!+#REF!+Feb_Williams!H22+#REF!+#REF!+#REF! ->  | I22: =#REF!+#REF!+#REF!+#REF!+#REF!+#REF!+#REF!+#REF!+#REF!+#REF!+#REF!+#REF!+#REF!+#REF!+#REF!+#REF!+#REF!+#REF!+#REF!+#REF!+#REF!+#REF!+#REF!+#REF!+#REF!+#REF!+#REF!+#REF!+#REF!+#REF!+#REF!+Feb_Williams!I22+#REF!+#REF!+#REF! ->  | J22: =#REF!+#REF!+#REF!+#REF!+#REF!+#REF!+#REF!+#REF!+#REF!+#REF!+#REF!+#REF!+#REF!+#REF!+#REF!+#REF!+#REF!+#REF!+#REF!+#REF!+#REF!+#REF!+#REF!+#REF!+#REF!+#REF!+#REF!+#REF!+#REF!+#REF!+#REF!+Feb_Williams!J22+#REF!+#REF!+#REF! ->  | K22: =#REF!*0.5 ->  | L22: =#REF!+#REF!+#REF!+#REF!+#REF!+#REF!+#REF!+#REF!+#REF!+#REF!+#REF!+#REF!+#REF!+#REF!+#REF!+#REF!+#REF!+#REF!+#REF!+#REF!+#REF!+#REF!+#REF!+#REF!+#REF!+#REF!+#REF!+#REF!+#REF!+#REF!+#REF!+Feb_Williams!L22+#REF! ->  | O22: =#REF!+#REF!+#REF!+#REF!+#REF!+#REF!+#REF!+#REF!+#REF!+#REF!+#REF!+#REF!+#REF!+#REF!+#REF!+#REF!+#REF!+#REF!+#REF!+#REF!+#REF!+#REF!+#REF!+#REF!+#REF!+#REF!+#REF!+#REF!+#REF!+#REF!+#REF!+Feb_Williams!O22+#REF! ->  | P22: =#REF!*0.5 ->  | Q22: =#REF!+#REF!+#REF!+#REF!+#REF!+#REF!+#REF!+#REF!+#REF!+#REF!+#REF!+#REF!+#REF!+#REF!+#REF!+#REF!+#REF!+#REF!+#REF!+#REF!+#REF!+#REF!+#REF!+#REF!+#REF!+#REF!+#REF!+#REF!+#REF!+#REF!+#REF!+Feb_Williams!Q22+#REF! ->  | T22: =#REF!+#REF!+#REF!+#REF!+#REF!+#REF!+#REF!+#REF!+#REF!+#REF!+#REF!+#REF!+#REF!+#REF!+#REF!+#REF!+#REF!+#REF!+#REF!+#REF!+#REF!+#REF!+#REF!+#REF!+#REF!+#REF!+#REF!+#REF!+#REF!+#REF!+#REF!+Feb_Williams!T22+#REF! ->  | U22: =#REF!*0.5 ->  | V22: =#REF!+#REF!+#REF!+#REF!+#REF!+#REF!+#REF!+#REF!+#REF!+#REF!+#REF!+#REF!+#REF!+#REF!+#REF!+#REF!+#REF!+#REF!+#REF!+#REF!+#REF!+#REF!+#REF!+#REF!+#REF!+#REF!+#REF!+#REF!+#REF!+#REF!+#REF!+Feb_Williams!V22+#REF! ->  | W22: =#REF!+#REF!+#REF!+#REF!+#REF!+#REF!+#REF!+#REF!+#REF!+#REF!+#REF!+#REF!+#REF!+#REF!+#REF!+#REF!+#REF!+#REF!+#REF!+#REF!+#REF!+#REF!+#REF!+#REF!+#REF!+#REF!+#REF!+#REF!+#REF!+#REF!+#REF!+Feb_Williams!W22+#REF! ->  | X22: =#REF!*0.5 ->  | Y22: =#REF!+#REF!+#REF!+#REF!+#REF!+#REF!+#REF!+#REF!+#REF!+#REF!+#REF!+#REF!+#REF!+#REF!+#REF!+#REF!+#REF!+#REF!+#REF!+#REF!+#REF!+#REF!+#REF!+#REF!+#REF!+#REF!+#REF!+#REF!+#REF!+#REF!+#REF!+Feb_Williams!Y22+#REF! -> 
A23: 17 | B23: East Baton Rouge | C23: =#REF!+#REF!+#REF!+#REF!+#REF!+#REF!+#REF!+#REF!+#REF!+#REF!+#REF!+#REF!+#REF!+#REF!+#REF!+#REF!+#REF!+#REF!+#REF!+#REF!+#REF!+#REF!+#REF!+#REF!+#REF!+#REF!+#REF!+#REF!+#REF!+#REF!+#REF!+Feb_Williams!C23+#REF!+#REF!+#REF! ->  | D23: =#REF!+#REF!+#REF!+#REF!+#REF!+#REF!+#REF!+#REF!+#REF!+#REF!+#REF!+#REF!+#REF!+#REF!+#REF!+#REF!+#REF!+#REF!+#REF!+#REF!+#REF!+#REF!+#REF!+#REF!+#REF!+#REF!+#REF!+#REF!+#REF!+#REF!+#REF!+Feb_Williams!D23+#REF!+#REF!+#REF! ->  | E23: =#REF!+#REF!+#REF!+#REF!+#REF!+#REF!+#REF!+#REF!+#REF!+#REF!+#REF!+#REF!+#REF!+#REF!+#REF!+#REF!+#REF!+#REF!+#REF!+#REF!+#REF!+#REF!+#REF!+#REF!+#REF!+#REF!+#REF!+#REF!+#REF!+#REF!+#REF!+Feb_Williams!E23+#REF!+#REF!+#REF! ->  | F23: =#REF!*0.5 ->  | G23: =#REF!+#REF!+#REF!+#REF!+#REF!+#REF!+#REF!+#REF!+#REF!+#REF!+#REF!+#REF!+#REF!+#REF!+#REF!+#REF!+#REF!+#REF!+#REF!+#REF!+#REF!+#REF!+#REF!+#REF!+#REF!+#REF!+#REF!+#REF!+#REF!+#REF!+#REF!+Feb_Williams!G23+#REF! ->  | H23: =#REF!+#REF!+#REF!+#REF!+#REF!+#REF!+#REF!+#REF!+#REF!+#REF!+#REF!+#REF!+#REF!+#REF!+#REF!+#REF!+#REF!+#REF!+#REF!+#REF!+#REF!+#REF!+#REF!+#REF!+#REF!+#REF!+#REF!+#REF!+#REF!+#REF!+#REF!+Feb_Williams!H23+#REF!+#REF!+#REF! ->  | I23: =#REF!+#REF!+#REF!+#REF!+#REF!+#REF!+#REF!+#REF!+#REF!+#REF!+#REF!+#REF!+#REF!+#REF!+#REF!+#REF!+#REF!+#REF!+#REF!+#REF!+#REF!+#REF!+#REF!+#REF!+#REF!+#REF!+#REF!+#REF!+#REF!+#REF!+#REF!+Feb_Williams!I23+#REF!+#REF!+#REF! ->  | J23: =#REF!+#REF!+#REF!+#REF!+#REF!+#REF!+#REF!+#REF!+#REF!+#REF!+#REF!+#REF!+#REF!+#REF!+#REF!+#REF!+#REF!+#REF!+#REF!+#REF!+#REF!+#REF!+#REF!+#REF!+#REF!+#REF!+#REF!+#REF!+#REF!+#REF!+#REF!+Feb_Williams!J23+#REF!+#REF!+#REF! ->  | K23: =#REF!*0.5 ->  | L23: =#REF!+#REF!+#REF!+#REF!+#REF!+#REF!+#REF!+#REF!+#REF!+#REF!+#REF!+#REF!+#REF!+#REF!+#REF!+#REF!+#REF!+#REF!+#REF!+#REF!+#REF!+#REF!+#REF!+#REF!+#REF!+#REF!+#REF!+#REF!+#REF!+#REF!+#REF!+Feb_Williams!L23+#REF! ->  | O23: =#REF!+#REF!+#REF!+#REF!+#REF!+#REF!+#REF!+#REF!+#REF!+#REF!+#REF!+#REF!+#REF!+#REF!+#REF!+#REF!+#REF!+#REF!+#REF!+#REF!+#REF!+#REF!+#REF!+#REF!+#REF!+#REF!+#REF!+#REF!+#REF!+#REF!+#REF!+Feb_Williams!O23+#REF! ->  | P23: =#REF!*0.5 ->  | Q23: =#REF!+#REF!+#REF!+#REF!+#REF!+#REF!+#REF!+#REF!+#REF!+#REF!+#REF!+#REF!+#REF!+#REF!+#REF!+#REF!+#REF!+#REF!+#REF!+#REF!+#REF!+#REF!+#REF!+#REF!+#REF!+#REF!+#REF!+#REF!+#REF!+#REF!+#REF!+Feb_Williams!Q23+#REF! ->  | T23: =#REF!+#REF!+#REF!+#REF!+#REF!+#REF!+#REF!+#REF!+#REF!+#REF!+#REF!+#REF!+#REF!+#REF!+#REF!+#REF!+#REF!+#REF!+#REF!+#REF!+#REF!+#REF!+#REF!+#REF!+#REF!+#REF!+#REF!+#REF!+#REF!+#REF!+#REF!+Feb_Williams!T23+#REF! ->  | U23: =#REF!*0.5 ->  | V23: =#REF!+#REF!+#REF!+#REF!+#REF!+#REF!+#REF!+#REF!+#REF!+#REF!+#REF!+#REF!+#REF!+#REF!+#REF!+#REF!+#REF!+#REF!+#REF!+#REF!+#REF!+#REF!+#REF!+#REF!+#REF!+#REF!+#REF!+#REF!+#REF!+#REF!+#REF!+Feb_Williams!V23+#REF! ->  | W23: =#REF!+#REF!+#REF!+#REF!+#REF!+#REF!+#REF!+#REF!+#REF!+#REF!+#REF!+#REF!+#REF!+#REF!+#REF!+#REF!+#REF!+#REF!+#REF!+#REF!+#REF!+#REF!+#REF!+#REF!+#REF!+#REF!+#REF!+#REF!+#REF!+#REF!+#REF!+Feb_Williams!W23+#REF! ->  | X23: =#REF!*0.5 ->  | Y23: =#REF!+#REF!+#REF!+#REF!+#REF!+#REF!+#REF!+#REF!+#REF!+#REF!+#REF!+#REF!+#REF!+#REF!+#REF!+#REF!+#REF!+#REF!+#REF!+#REF!+#REF!+#REF!+#REF!+#REF!+#REF!+#REF!+#REF!+#REF!+#REF!+#REF!+#REF!+Feb_Williams!Y23+#REF! -> 
A24: 18 | B24: East Carroll | C24: =#REF!+#REF!+#REF!+#REF!+#REF!+#REF!+#REF!+#REF!+#REF!+#REF!+#REF!+#REF!+#REF!+#REF!+#REF!+#REF!+#REF!+#REF!+#REF!+#REF!+#REF!+#REF!+#REF!+#REF!+#REF!+#REF!+#REF!+#REF!+#REF!+#REF!+#REF!+Feb_Williams!C24+#REF!+#REF!+#REF! ->  | D24: =#REF!+#REF!+#REF!+#REF!+#REF!+#REF!+#REF!+#REF!+#REF!+#REF!+#REF!+#REF!+#REF!+#REF!+#REF!+#REF!+#REF!+#REF!+#REF!+#REF!+#REF!+#REF!+#REF!+#REF!+#REF!+#REF!+#REF!+#REF!+#REF!+#REF!+#REF!+Feb_Williams!D24+#REF!+#REF!+#REF! ->  | E24: =#REF!+#REF!+#REF!+#REF!+#REF!+#REF!+#REF!+#REF!+#REF!+#REF!+#REF!+#REF!+#REF!+#REF!+#REF!+#REF!+#REF!+#REF!+#REF!+#REF!+#REF!+#REF!+#REF!+#REF!+#REF!+#REF!+#REF!+#REF!+#REF!+#REF!+#REF!+Feb_Williams!E24+#REF!+#REF!+#REF! ->  | F24: =#REF!*0.5 ->  | G24: =#REF!+#REF!+#REF!+#REF!+#REF!+#REF!+#REF!+#REF!+#REF!+#REF!+#REF!+#REF!+#REF!+#REF!+#REF!+#REF!+#REF!+#REF!+#REF!+#REF!+#REF!+#REF!+#REF!+#REF!+#REF!+#REF!+#REF!+#REF!+#REF!+#REF!+#REF!+Feb_Williams!G24+#REF! ->  | H24: =#REF!+#REF!+#REF!+#REF!+#REF!+#REF!+#REF!+#REF!+#REF!+#REF!+#REF!+#REF!+#REF!+#REF!+#REF!+#REF!+#REF!+#REF!+#REF!+#REF!+#REF!+#REF!+#REF!+#REF!+#REF!+#REF!+#REF!+#REF!+#REF!+#REF!+#REF!+Feb_Williams!H24+#REF!+#REF!+#REF! ->  | I24: =#REF!+#REF!+#REF!+#REF!+#REF!+#REF!+#REF!+#REF!+#REF!+#REF!+#REF!+#REF!+#REF!+#REF!+#REF!+#REF!+#REF!+#REF!+#REF!+#REF!+#REF!+#REF!+#REF!+#REF!+#REF!+#REF!+#REF!+#REF!+#REF!+#REF!+#REF!+Feb_Williams!I24+#REF!+#REF!+#REF! ->  | J24: =#REF!+#REF!+#REF!+#REF!+#REF!+#REF!+#REF!+#REF!+#REF!+#REF!+#REF!+#REF!+#REF!+#REF!+#REF!+#REF!+#REF!+#REF!+#REF!+#REF!+#REF!+#REF!+#REF!+#REF!+#REF!+#REF!+#REF!+#REF!+#REF!+#REF!+#REF!+Feb_Williams!J24+#REF!+#REF!+#REF! ->  | K24: =#REF!*0.5 ->  | L24: =#REF!+#REF!+#REF!+#REF!+#REF!+#REF!+#REF!+#REF!+#REF!+#REF!+#REF!+#REF!+#REF!+#REF!+#REF!+#REF!+#REF!+#REF!+#REF!+#REF!+#REF!+#REF!+#REF!+#REF!+#REF!+#REF!+#REF!+#REF!+#REF!+#REF!+#REF!+Feb_Williams!L24+#REF! ->  | O24: =#REF!+#REF!+#REF!+#REF!+#REF!+#REF!+#REF!+#REF!+#REF!+#REF!+#REF!+#REF!+#REF!+#REF!+#REF!+#REF!+#REF!+#REF!+#REF!+#REF!+#REF!+#REF!+#REF!+#REF!+#REF!+#REF!+#REF!+#REF!+#REF!+#REF!+#REF!+Feb_Williams!O24+#REF! ->  | P24: =#REF!*0.5 ->  | Q24: =#REF!+#REF!+#REF!+#REF!+#REF!+#REF!+#REF!+#REF!+#REF!+#REF!+#REF!+#REF!+#REF!+#REF!+#REF!+#REF!+#REF!+#REF!+#REF!+#REF!+#REF!+#REF!+#REF!+#REF!+#REF!+#REF!+#REF!+#REF!+#REF!+#REF!+#REF!+Feb_Williams!Q24+#REF! ->  | T24: =#REF!+#REF!+#REF!+#REF!+#REF!+#REF!+#REF!+#REF!+#REF!+#REF!+#REF!+#REF!+#REF!+#REF!+#REF!+#REF!+#REF!+#REF!+#REF!+#REF!+#REF!+#REF!+#REF!+#REF!+#REF!+#REF!+#REF!+#REF!+#REF!+#REF!+#REF!+Feb_Williams!T24+#REF! ->  | U24: =#REF!*0.5 ->  | V24: =#REF!+#REF!+#REF!+#REF!+#REF!+#REF!+#REF!+#REF!+#REF!+#REF!+#REF!+#REF!+#REF!+#REF!+#REF!+#REF!+#REF!+#REF!+#REF!+#REF!+#REF!+#REF!+#REF!+#REF!+#REF!+#REF!+#REF!+#REF!+#REF!+#REF!+#REF!+Feb_Williams!V24+#REF! ->  | W24: =#REF!+#REF!+#REF!+#REF!+#REF!+#REF!+#REF!+#REF!+#REF!+#REF!+#REF!+#REF!+#REF!+#REF!+#REF!+#REF!+#REF!+#REF!+#REF!+#REF!+#REF!+#REF!+#REF!+#REF!+#REF!+#REF!+#REF!+#REF!+#REF!+#REF!+#REF!+Feb_Williams!W24+#REF! ->  | X24: =#REF!*0.5 ->  | Y24: =#REF!+#REF!+#REF!+#REF!+#REF!+#REF!+#REF!+#REF!+#REF!+#REF!+#REF!+#REF!+#REF!+#REF!+#REF!+#REF!+#REF!+#REF!+#REF!+#REF!+#REF!+#REF!+#REF!+#REF!+#REF!+#REF!+#REF!+#REF!+#REF!+#REF!+#REF!+Feb_Williams!Y24+#REF! -> 
A25: 19 | B25: East Feliciana | C25: =#REF!+#REF!+#REF!+#REF!+#REF!+#REF!+#REF!+#REF!+#REF!+#REF!+#REF!+#REF!+#REF!+#REF!+#REF!+#REF!+#REF!+#REF!+#REF!+#REF!+#REF!+#REF!+#REF!+#REF!+#REF!+#REF!+#REF!+#REF!+#REF!+#REF!+#REF!+Feb_Williams!C25+#REF!+#REF!+#REF! ->  | D25: =#REF!+#REF!+#REF!+#REF!+#REF!+#REF!+#REF!+#REF!+#REF!+#REF!+#REF!+#REF!+#REF!+#REF!+#REF!+#REF!+#REF!+#REF!+#REF!+#REF!+#REF!+#REF!+#REF!+#REF!+#REF!+#REF!+#REF!+#REF!+#REF!+#REF!+#REF!+Feb_Williams!D25+#REF!+#REF!+#REF! ->  | E25: =#REF!+#REF!+#REF!+#REF!+#REF!+#REF!+#REF!+#REF!+#REF!+#REF!+#REF!+#REF!+#REF!+#REF!+#REF!+#REF!+#REF!+#REF!+#REF!+#REF!+#REF!+#REF!+#REF!+#REF!+#REF!+#REF!+#REF!+#REF!+#REF!+#REF!+#REF!+Feb_Williams!E25+#REF!+#REF!+#REF! ->  | F25: =#REF!*0.5 ->  | G25: =#REF!+#REF!+#REF!+#REF!+#REF!+#REF!+#REF!+#REF!+#REF!+#REF!+#REF!+#REF!+#REF!+#REF!+#REF!+#REF!+#REF!+#REF!+#REF!+#REF!+#REF!+#REF!+#REF!+#REF!+#REF!+#REF!+#REF!+#REF!+#REF!+#REF!+#REF!+Feb_Williams!G25+#REF! ->  | H25: =#REF!+#REF!+#REF!+#REF!+#REF!+#REF!+#REF!+#REF!+#REF!+#REF!+#REF!+#REF!+#REF!+#REF!+#REF!+#REF!+#REF!+#REF!+#REF!+#REF!+#REF!+#REF!+#REF!+#REF!+#REF!+#REF!+#REF!+#REF!+#REF!+#REF!+#REF!+Feb_Williams!H25+#REF!+#REF!+#REF! ->  | I25: =#REF!+#REF!+#REF!+#REF!+#REF!+#REF!+#REF!+#REF!+#REF!+#REF!+#REF!+#REF!+#REF!+#REF!+#REF!+#REF!+#REF!+#REF!+#REF!+#REF!+#REF!+#REF!+#REF!+#REF!+#REF!+#REF!+#REF!+#REF!+#REF!+#REF!+#REF!+Feb_Williams!I25+#REF!+#REF!+#REF! ->  | J25: =#REF!+#REF!+#REF!+#REF!+#REF!+#REF!+#REF!+#REF!+#REF!+#REF!+#REF!+#REF!+#REF!+#REF!+#REF!+#REF!+#REF!+#REF!+#REF!+#REF!+#REF!+#REF!+#REF!+#REF!+#REF!+#REF!+#REF!+#REF!+#REF!+#REF!+#REF!+Feb_Williams!J25+#REF!+#REF!+#REF! ->  | K25: =#REF!*0.5 ->  | L25: =#REF!+#REF!+#REF!+#REF!+#REF!+#REF!+#REF!+#REF!+#REF!+#REF!+#REF!+#REF!+#REF!+#REF!+#REF!+#REF!+#REF!+#REF!+#REF!+#REF!+#REF!+#REF!+#REF!+#REF!+#REF!+#REF!+#REF!+#REF!+#REF!+#REF!+#REF!+Feb_Williams!L25+#REF! ->  | O25: =#REF!+#REF!+#REF!+#REF!+#REF!+#REF!+#REF!+#REF!+#REF!+#REF!+#REF!+#REF!+#REF!+#REF!+#REF!+#REF!+#REF!+#REF!+#REF!+#REF!+#REF!+#REF!+#REF!+#REF!+#REF!+#REF!+#REF!+#REF!+#REF!+#REF!+#REF!+Feb_Williams!O25+#REF! ->  | P25: =#REF!*0.5 ->  | Q25: =#REF!+#REF!+#REF!+#REF!+#REF!+#REF!+#REF!+#REF!+#REF!+#REF!+#REF!+#REF!+#REF!+#REF!+#REF!+#REF!+#REF!+#REF!+#REF!+#REF!+#REF!+#REF!+#REF!+#REF!+#REF!+#REF!+#REF!+#REF!+#REF!+#REF!+#REF!+Feb_Williams!Q25+#REF! ->  | T25: =#REF!+#REF!+#REF!+#REF!+#REF!+#REF!+#REF!+#REF!+#REF!+#REF!+#REF!+#REF!+#REF!+#REF!+#REF!+#REF!+#REF!+#REF!+#REF!+#REF!+#REF!+#REF!+#REF!+#REF!+#REF!+#REF!+#REF!+#REF!+#REF!+#REF!+#REF!+Feb_Williams!T25+#REF! ->  | U25: =#REF!*0.5 ->  | V25: =#REF!+#REF!+#REF!+#REF!+#REF!+#REF!+#REF!+#REF!+#REF!+#REF!+#REF!+#REF!+#REF!+#REF!+#REF!+#REF!+#REF!+#REF!+#REF!+#REF!+#REF!+#REF!+#REF!+#REF!+#REF!+#REF!+#REF!+#REF!+#REF!+#REF!+#REF!+Feb_Williams!V25+#REF! ->  | W25: =#REF!+#REF!+#REF!+#REF!+#REF!+#REF!+#REF!+#REF!+#REF!+#REF!+#REF!+#REF!+#REF!+#REF!+#REF!+#REF!+#REF!+#REF!+#REF!+#REF!+#REF!+#REF!+#REF!+#REF!+#REF!+#REF!+#REF!+#REF!+#REF!+#REF!+#REF!+Feb_Williams!W25+#REF! ->  | X25: =#REF!*0.5 ->  | Y25: =#REF!+#REF!+#REF!+#REF!+#REF!+#REF!+#REF!+#REF!+#REF!+#REF!+#REF!+#REF!+#REF!+#REF!+#REF!+#REF!+#REF!+#REF!+#REF!+#REF!+#REF!+#REF!+#REF!+#REF!+#REF!+#REF!+#REF!+#REF!+#REF!+#REF!+#REF!+Feb_Williams!Y25+#REF! -> 
A26: 20 | B26: Evangeline | C26: =#REF!+#REF!+#REF!+#REF!+#REF!+#REF!+#REF!+#REF!+#REF!+#REF!+#REF!+#REF!+#REF!+#REF!+#REF!+#REF!+#REF!+#REF!+#REF!+#REF!+#REF!+#REF!+#REF!+#REF!+#REF!+#REF!+#REF!+#REF!+#REF!+#REF!+#REF!+Feb_Williams!C26+#REF!+#REF!+#REF! ->  | D26: =#REF!+#REF!+#REF!+#REF!+#REF!+#REF!+#REF!+#REF!+#REF!+#REF!+#REF!+#REF!+#REF!+#REF!+#REF!+#REF!+#REF!+#REF!+#REF!+#REF!+#REF!+#REF!+#REF!+#REF!+#REF!+#REF!+#REF!+#REF!+#REF!+#REF!+#REF!+Feb_Williams!D26+#REF!+#REF!+#REF! ->  | E26: =#REF!+#REF!+#REF!+#REF!+#REF!+#REF!+#REF!+#REF!+#REF!+#REF!+#REF!+#REF!+#REF!+#REF!+#REF!+#REF!+#REF!+#REF!+#REF!+#REF!+#REF!+#REF!+#REF!+#REF!+#REF!+#REF!+#REF!+#REF!+#REF!+#REF!+#REF!+Feb_Williams!E26+#REF!+#REF!+#REF! ->  | F26: =#REF!*0.5 ->  | G26: =#REF!+#REF!+#REF!+#REF!+#REF!+#REF!+#REF!+#REF!+#REF!+#REF!+#REF!+#REF!+#REF!+#REF!+#REF!+#REF!+#REF!+#REF!+#REF!+#REF!+#REF!+#REF!+#REF!+#REF!+#REF!+#REF!+#REF!+#REF!+#REF!+#REF!+#REF!+Feb_Williams!G26+#REF! ->  | H26: =#REF!+#REF!+#REF!+#REF!+#REF!+#REF!+#REF!+#REF!+#REF!+#REF!+#REF!+#REF!+#REF!+#REF!+#REF!+#REF!+#REF!+#REF!+#REF!+#REF!+#REF!+#REF!+#REF!+#REF!+#REF!+#REF!+#REF!+#REF!+#REF!+#REF!+#REF!+Feb_Williams!H26+#REF!+#REF!+#REF! ->  | I26: =#REF!+#REF!+#REF!+#REF!+#REF!+#REF!+#REF!+#REF!+#REF!+#REF!+#REF!+#REF!+#REF!+#REF!+#REF!+#REF!+#REF!+#REF!+#REF!+#REF!+#REF!+#REF!+#REF!+#REF!+#REF!+#REF!+#REF!+#REF!+#REF!+#REF!+#REF!+Feb_Williams!I26+#REF!+#REF!+#REF! ->  | J26: =#REF!+#REF!+#REF!+#REF!+#REF!+#REF!+#REF!+#REF!+#REF!+#REF!+#REF!+#REF!+#REF!+#REF!+#REF!+#REF!+#REF!+#REF!+#REF!+#REF!+#REF!+#REF!+#REF!+#REF!+#REF!+#REF!+#REF!+#REF!+#REF!+#REF!+#REF!+Feb_Williams!J26+#REF!+#REF!+#REF! ->  | K26: =#REF!*0.5 ->  | L26: =#REF!+#REF!+#REF!+#REF!+#REF!+#REF!+#REF!+#REF!+#REF!+#REF!+#REF!+#REF!+#REF!+#REF!+#REF!+#REF!+#REF!+#REF!+#REF!+#REF!+#REF!+#REF!+#REF!+#REF!+#REF!+#REF!+#REF!+#REF!+#REF!+#REF!+#REF!+Feb_Williams!L26+#REF! ->  | O26: =#REF!+#REF!+#REF!+#REF!+#REF!+#REF!+#REF!+#REF!+#REF!+#REF!+#REF!+#REF!+#REF!+#REF!+#REF!+#REF!+#REF!+#REF!+#REF!+#REF!+#REF!+#REF!+#REF!+#REF!+#REF!+#REF!+#REF!+#REF!+#REF!+#REF!+#REF!+Feb_Williams!O26+#REF! ->  | P26: =#REF!*0.5 ->  | Q26: =#REF!+#REF!+#REF!+#REF!+#REF!+#REF!+#REF!+#REF!+#REF!+#REF!+#REF!+#REF!+#REF!+#REF!+#REF!+#REF!+#REF!+#REF!+#REF!+#REF!+#REF!+#REF!+#REF!+#REF!+#REF!+#REF!+#REF!+#REF!+#REF!+#REF!+#REF!+Feb_Williams!Q26+#REF! ->  | T26: =#REF!+#REF!+#REF!+#REF!+#REF!+#REF!+#REF!+#REF!+#REF!+#REF!+#REF!+#REF!+#REF!+#REF!+#REF!+#REF!+#REF!+#REF!+#REF!+#REF!+#REF!+#REF!+#REF!+#REF!+#REF!+#REF!+#REF!+#REF!+#REF!+#REF!+#REF!+Feb_Williams!T26+#REF! ->  | U26: =#REF!*0.5 ->  | V26: =#REF!+#REF!+#REF!+#REF!+#REF!+#REF!+#REF!+#REF!+#REF!+#REF!+#REF!+#REF!+#REF!+#REF!+#REF!+#REF!+#REF!+#REF!+#REF!+#REF!+#REF!+#REF!+#REF!+#REF!+#REF!+#REF!+#REF!+#REF!+#REF!+#REF!+#REF!+Feb_Williams!V26+#REF! ->  | W26: =#REF!+#REF!+#REF!+#REF!+#REF!+#REF!+#REF!+#REF!+#REF!+#REF!+#REF!+#REF!+#REF!+#REF!+#REF!+#REF!+#REF!+#REF!+#REF!+#REF!+#REF!+#REF!+#REF!+#REF!+#REF!+#REF!+#REF!+#REF!+#REF!+#REF!+#REF!+Feb_Williams!W26+#REF! ->  | X26: =#REF!*0.5 ->  | Y26: =#REF!+#REF!+#REF!+#REF!+#REF!+#REF!+#REF!+#REF!+#REF!+#REF!+#REF!+#REF!+#REF!+#REF!+#REF!+#REF!+#REF!+#REF!+#REF!+#REF!+#REF!+#REF!+#REF!+#REF!+#REF!+#REF!+#REF!+#REF!+#REF!+#REF!+#REF!+Feb_Williams!Y26+#REF! -> 
A27: 21 | B27: Franklin | C27: =#REF!+#REF!+#REF!+#REF!+#REF!+#REF!+#REF!+#REF!+#REF!+#REF!+#REF!+#REF!+#REF!+#REF!+#REF!+#REF!+#REF!+#REF!+#REF!+#REF!+#REF!+#REF!+#REF!+#REF!+#REF!+#REF!+#REF!+#REF!+#REF!+#REF!+#REF!+Feb_Williams!C27+#REF!+#REF!+#REF! ->  | D27: =#REF!+#REF!+#REF!+#REF!+#REF!+#REF!+#REF!+#REF!+#REF!+#REF!+#REF!+#REF!+#REF!+#REF!+#REF!+#REF!+#REF!+#REF!+#REF!+#REF!+#REF!+#REF!+#REF!+#REF!+#REF!+#REF!+#REF!+#REF!+#REF!+#REF!+#REF!+Feb_Williams!D27+#REF!+#REF!+#REF! ->  | E27: =#REF!+#REF!+#REF!+#REF!+#REF!+#REF!+#REF!+#REF!+#REF!+#REF!+#REF!+#REF!+#REF!+#REF!+#REF!+#REF!+#REF!+#REF!+#REF!+#REF!+#REF!+#REF!+#REF!+#REF!+#REF!+#REF!+#REF!+#REF!+#REF!+#REF!+#REF!+Feb_Williams!E27+#REF!+#REF!+#REF! ->  | F27: =#REF!*0.5 ->  | G27: =#REF!+#REF!+#REF!+#REF!+#REF!+#REF!+#REF!+#REF!+#REF!+#REF!+#REF!+#REF!+#REF!+#REF!+#REF!+#REF!+#REF!+#REF!+#REF!+#REF!+#REF!+#REF!+#REF!+#REF!+#REF!+#REF!+#REF!+#REF!+#REF!+#REF!+#REF!+Feb_Williams!G27+#REF! ->  | H27: =#REF!+#REF!+#REF!+#REF!+#REF!+#REF!+#REF!+#REF!+#REF!+#REF!+#REF!+#REF!+#REF!+#REF!+#REF!+#REF!+#REF!+#REF!+#REF!+#REF!+#REF!+#REF!+#REF!+#REF!+#REF!+#REF!+#REF!+#REF!+#REF!+#REF!+#REF!+Feb_Williams!H27+#REF!+#REF!+#REF! ->  | I27: =#REF!+#REF!+#REF!+#REF!+#REF!+#REF!+#REF!+#REF!+#REF!+#REF!+#REF!+#REF!+#REF!+#REF!+#REF!+#REF!+#REF!+#REF!+#REF!+#REF!+#REF!+#REF!+#REF!+#REF!+#REF!+#REF!+#REF!+#REF!+#REF!+#REF!+#REF!+Feb_Williams!I27+#REF!+#REF!+#REF! ->  | J27: =#REF!+#REF!+#REF!+#REF!+#REF!+#REF!+#REF!+#REF!+#REF!+#REF!+#REF!+#REF!+#REF!+#REF!+#REF!+#REF!+#REF!+#REF!+#REF!+#REF!+#REF!+#REF!+#REF!+#REF!+#REF!+#REF!+#REF!+#REF!+#REF!+#REF!+#REF!+Feb_Williams!J27+#REF!+#REF!+#REF! ->  | K27: =#REF!*0.5 ->  | L27: =#REF!+#REF!+#REF!+#REF!+#REF!+#REF!+#REF!+#REF!+#REF!+#REF!+#REF!+#REF!+#REF!+#REF!+#REF!+#REF!+#REF!+#REF!+#REF!+#REF!+#REF!+#REF!+#REF!+#REF!+#REF!+#REF!+#REF!+#REF!+#REF!+#REF!+#REF!+Feb_Williams!L27+#REF! ->  | O27: =#REF!+#REF!+#REF!+#REF!+#REF!+#REF!+#REF!+#REF!+#REF!+#REF!+#REF!+#REF!+#REF!+#REF!+#REF!+#REF!+#REF!+#REF!+#REF!+#REF!+#REF!+#REF!+#REF!+#REF!+#REF!+#REF!+#REF!+#REF!+#REF!+#REF!+#REF!+Feb_Williams!O27+#REF! ->  | P27: =#REF!*0.5 ->  | Q27: =#REF!+#REF!+#REF!+#REF!+#REF!+#REF!+#REF!+#REF!+#REF!+#REF!+#REF!+#REF!+#REF!+#REF!+#REF!+#REF!+#REF!+#REF!+#REF!+#REF!+#REF!+#REF!+#REF!+#REF!+#REF!+#REF!+#REF!+#REF!+#REF!+#REF!+#REF!+Feb_Williams!Q27+#REF! ->  | T27: =#REF!+#REF!+#REF!+#REF!+#REF!+#REF!+#REF!+#REF!+#REF!+#REF!+#REF!+#REF!+#REF!+#REF!+#REF!+#REF!+#REF!+#REF!+#REF!+#REF!+#REF!+#REF!+#REF!+#REF!+#REF!+#REF!+#REF!+#REF!+#REF!+#REF!+#REF!+Feb_Williams!T27+#REF! ->  | U27: =#REF!*0.5 ->  | V27: =#REF!+#REF!+#REF!+#REF!+#REF!+#REF!+#REF!+#REF!+#REF!+#REF!+#REF!+#REF!+#REF!+#REF!+#REF!+#REF!+#REF!+#REF!+#REF!+#REF!+#REF!+#REF!+#REF!+#REF!+#REF!+#REF!+#REF!+#REF!+#REF!+#REF!+#REF!+Feb_Williams!V27+#REF! ->  | W27: =#REF!+#REF!+#REF!+#REF!+#REF!+#REF!+#REF!+#REF!+#REF!+#REF!+#REF!+#REF!+#REF!+#REF!+#REF!+#REF!+#REF!+#REF!+#REF!+#REF!+#REF!+#REF!+#REF!+#REF!+#REF!+#REF!+#REF!+#REF!+#REF!+#REF!+#REF!+Feb_Williams!W27+#REF! ->  | X27: =#REF!*0.5 ->  | Y27: =#REF!+#REF!+#REF!+#REF!+#REF!+#REF!+#REF!+#REF!+#REF!+#REF!+#REF!+#REF!+#REF!+#REF!+#REF!+#REF!+#REF!+#REF!+#REF!+#REF!+#REF!+#REF!+#REF!+#REF!+#REF!+#REF!+#REF!+#REF!+#REF!+#REF!+#REF!+Feb_Williams!Y27+#REF! -> 
A28: 22 | B28: Grant | C28: =#REF!+#REF!+#REF!+#REF!+#REF!+#REF!+#REF!+#REF!+#REF!+#REF!+#REF!+#REF!+#REF!+#REF!+#REF!+#REF!+#REF!+#REF!+#REF!+#REF!+#REF!+#REF!+#REF!+#REF!+#REF!+#REF!+#REF!+#REF!+#REF!+#REF!+#REF!+Feb_Williams!C28+#REF!+#REF!+#REF! ->  | D28: =#REF!+#REF!+#REF!+#REF!+#REF!+#REF!+#REF!+#REF!+#REF!+#REF!+#REF!+#REF!+#REF!+#REF!+#REF!+#REF!+#REF!+#REF!+#REF!+#REF!+#REF!+#REF!+#REF!+#REF!+#REF!+#REF!+#REF!+#REF!+#REF!+#REF!+#REF!+Feb_Williams!D28+#REF!+#REF!+#REF! ->  | E28: =#REF!+#REF!+#REF!+#REF!+#REF!+#REF!+#REF!+#REF!+#REF!+#REF!+#REF!+#REF!+#REF!+#REF!+#REF!+#REF!+#REF!+#REF!+#REF!+#REF!+#REF!+#REF!+#REF!+#REF!+#REF!+#REF!+#REF!+#REF!+#REF!+#REF!+#REF!+Feb_Williams!E28+#REF!+#REF!+#REF! ->  | F28: =#REF!*0.5 ->  | G28: =#REF!+#REF!+#REF!+#REF!+#REF!+#REF!+#REF!+#REF!+#REF!+#REF!+#REF!+#REF!+#REF!+#REF!+#REF!+#REF!+#REF!+#REF!+#REF!+#REF!+#REF!+#REF!+#REF!+#REF!+#REF!+#REF!+#REF!+#REF!+#REF!+#REF!+#REF!+Feb_Williams!G28+#REF! ->  | H28: =#REF!+#REF!+#REF!+#REF!+#REF!+#REF!+#REF!+#REF!+#REF!+#REF!+#REF!+#REF!+#REF!+#REF!+#REF!+#REF!+#REF!+#REF!+#REF!+#REF!+#REF!+#REF!+#REF!+#REF!+#REF!+#REF!+#REF!+#REF!+#REF!+#REF!+#REF!+Feb_Williams!H28+#REF!+#REF!+#REF! ->  | I28: =#REF!+#REF!+#REF!+#REF!+#REF!+#REF!+#REF!+#REF!+#REF!+#REF!+#REF!+#REF!+#REF!+#REF!+#REF!+#REF!+#REF!+#REF!+#REF!+#REF!+#REF!+#REF!+#REF!+#REF!+#REF!+#REF!+#REF!+#REF!+#REF!+#REF!+#REF!+Feb_Williams!I28+#REF!+#REF!+#REF! ->  | J28: =#REF!+#REF!+#REF!+#REF!+#REF!+#REF!+#REF!+#REF!+#REF!+#REF!+#REF!+#REF!+#REF!+#REF!+#REF!+#REF!+#REF!+#REF!+#REF!+#REF!+#REF!+#REF!+#REF!+#REF!+#REF!+#REF!+#REF!+#REF!+#REF!+#REF!+#REF!+Feb_Williams!J28+#REF!+#REF!+#REF! ->  | K28: =#REF!*0.5 ->  | L28: =#REF!+#REF!+#REF!+#REF!+#REF!+#REF!+#REF!+#REF!+#REF!+#REF!+#REF!+#REF!+#REF!+#REF!+#REF!+#REF!+#REF!+#REF!+#REF!+#REF!+#REF!+#REF!+#REF!+#REF!+#REF!+#REF!+#REF!+#REF!+#REF!+#REF!+#REF!+Feb_Williams!L28+#REF! ->  | O28: =#REF!+#REF!+#REF!+#REF!+#REF!+#REF!+#REF!+#REF!+#REF!+#REF!+#REF!+#REF!+#REF!+#REF!+#REF!+#REF!+#REF!+#REF!+#REF!+#REF!+#REF!+#REF!+#REF!+#REF!+#REF!+#REF!+#REF!+#REF!+#REF!+#REF!+#REF!+Feb_Williams!O28+#REF! ->  | P28: =#REF!*0.5 ->  | Q28: =#REF!+#REF!+#REF!+#REF!+#REF!+#REF!+#REF!+#REF!+#REF!+#REF!+#REF!+#REF!+#REF!+#REF!+#REF!+#REF!+#REF!+#REF!+#REF!+#REF!+#REF!+#REF!+#REF!+#REF!+#REF!+#REF!+#REF!+#REF!+#REF!+#REF!+#REF!+Feb_Williams!Q28+#REF! ->  | T28: =#REF!+#REF!+#REF!+#REF!+#REF!+#REF!+#REF!+#REF!+#REF!+#REF!+#REF!+#REF!+#REF!+#REF!+#REF!+#REF!+#REF!+#REF!+#REF!+#REF!+#REF!+#REF!+#REF!+#REF!+#REF!+#REF!+#REF!+#REF!+#REF!+#REF!+#REF!+Feb_Williams!T28+#REF! ->  | U28: =#REF!*0.5 ->  | V28: =#REF!+#REF!+#REF!+#REF!+#REF!+#REF!+#REF!+#REF!+#REF!+#REF!+#REF!+#REF!+#REF!+#REF!+#REF!+#REF!+#REF!+#REF!+#REF!+#REF!+#REF!+#REF!+#REF!+#REF!+#REF!+#REF!+#REF!+#REF!+#REF!+#REF!+#REF!+Feb_Williams!V28+#REF! ->  | W28: =#REF!+#REF!+#REF!+#REF!+#REF!+#REF!+#REF!+#REF!+#REF!+#REF!+#REF!+#REF!+#REF!+#REF!+#REF!+#REF!+#REF!+#REF!+#REF!+#REF!+#REF!+#REF!+#REF!+#REF!+#REF!+#REF!+#REF!+#REF!+#REF!+#REF!+#REF!+Feb_Williams!W28+#REF! ->  | X28: =#REF!*0.5 ->  | Y28: =#REF!+#REF!+#REF!+#REF!+#REF!+#REF!+#REF!+#REF!+#REF!+#REF!+#REF!+#REF!+#REF!+#REF!+#REF!+#REF!+#REF!+#REF!+#REF!+#REF!+#REF!+#REF!+#REF!+#REF!+#REF!+#REF!+#REF!+#REF!+#REF!+#REF!+#REF!+Feb_Williams!Y28+#REF! -> 
A29: 23 | B29: Iberia | C29: =#REF!+#REF!+#REF!+#REF!+#REF!+#REF!+#REF!+#REF!+#REF!+#REF!+#REF!+#REF!+#REF!+#REF!+#REF!+#REF!+#REF!+#REF!+#REF!+#REF!+#REF!+#REF!+#REF!+#REF!+#REF!+#REF!+#REF!+#REF!+#REF!+#REF!+#REF!+Feb_Williams!C29+#REF!+#REF!+#REF! ->  | D29: =#REF!+#REF!+#REF!+#REF!+#REF!+#REF!+#REF!+#REF!+#REF!+#REF!+#REF!+#REF!+#REF!+#REF!+#REF!+#REF!+#REF!+#REF!+#REF!+#REF!+#REF!+#REF!+#REF!+#REF!+#REF!+#REF!+#REF!+#REF!+#REF!+#REF!+#REF!+Feb_Williams!D29+#REF!+#REF!+#REF! ->  | E29: =#REF!+#REF!+#REF!+#REF!+#REF!+#REF!+#REF!+#REF!+#REF!+#REF!+#REF!+#REF!+#REF!+#REF!+#REF!+#REF!+#REF!+#REF!+#REF!+#REF!+#REF!+#REF!+#REF!+#REF!+#REF!+#REF!+#REF!+#REF!+#REF!+#REF!+#REF!+Feb_Williams!E29+#REF!+#REF!+#REF! ->  | F29: =#REF!*0.5 ->  | G29: =#REF!+#REF!+#REF!+#REF!+#REF!+#REF!+#REF!+#REF!+#REF!+#REF!+#REF!+#REF!+#REF!+#REF!+#REF!+#REF!+#REF!+#REF!+#REF!+#REF!+#REF!+#REF!+#REF!+#REF!+#REF!+#REF!+#REF!+#REF!+#REF!+#REF!+#REF!+Feb_Williams!G29+#REF! ->  | H29: =#REF!+#REF!+#REF!+#REF!+#REF!+#REF!+#REF!+#REF!+#REF!+#REF!+#REF!+#REF!+#REF!+#REF!+#REF!+#REF!+#REF!+#REF!+#REF!+#REF!+#REF!+#REF!+#REF!+#REF!+#REF!+#REF!+#REF!+#REF!+#REF!+#REF!+#REF!+Feb_Williams!H29+#REF!+#REF!+#REF! ->  | I29: =#REF!+#REF!+#REF!+#REF!+#REF!+#REF!+#REF!+#REF!+#REF!+#REF!+#REF!+#REF!+#REF!+#REF!+#REF!+#REF!+#REF!+#REF!+#REF!+#REF!+#REF!+#REF!+#REF!+#REF!+#REF!+#REF!+#REF!+#REF!+#REF!+#REF!+#REF!+Feb_Williams!I29+#REF!+#REF!+#REF! ->  | J29: =#REF!+#REF!+#REF!+#REF!+#REF!+#REF!+#REF!+#REF!+#REF!+#REF!+#REF!+#REF!+#REF!+#REF!+#REF!+#REF!+#REF!+#REF!+#REF!+#REF!+#REF!+#REF!+#REF!+#REF!+#REF!+#REF!+#REF!+#REF!+#REF!+#REF!+#REF!+Feb_Williams!J29+#REF!+#REF!+#REF! ->  | K29: =#REF!*0.5 ->  | L29: =#REF!+#REF!+#REF!+#REF!+#REF!+#REF!+#REF!+#REF!+#REF!+#REF!+#REF!+#REF!+#REF!+#REF!+#REF!+#REF!+#REF!+#REF!+#REF!+#REF!+#REF!+#REF!+#REF!+#REF!+#REF!+#REF!+#REF!+#REF!+#REF!+#REF!+#REF!+Feb_Williams!L29+#REF! ->  | O29: =#REF!+#REF!+#REF!+#REF!+#REF!+#REF!+#REF!+#REF!+#REF!+#REF!+#REF!+#REF!+#REF!+#REF!+#REF!+#REF!+#REF!+#REF!+#REF!+#REF!+#REF!+#REF!+#REF!+#REF!+#REF!+#REF!+#REF!+#REF!+#REF!+#REF!+#REF!+Feb_Williams!O29+#REF! ->  | P29: =#REF!*0.5 ->  | Q29: =#REF!+#REF!+#REF!+#REF!+#REF!+#REF!+#REF!+#REF!+#REF!+#REF!+#REF!+#REF!+#REF!+#REF!+#REF!+#REF!+#REF!+#REF!+#REF!+#REF!+#REF!+#REF!+#REF!+#REF!+#REF!+#REF!+#REF!+#REF!+#REF!+#REF!+#REF!+Feb_Williams!Q29+#REF! ->  | T29: =#REF!+#REF!+#REF!+#REF!+#REF!+#REF!+#REF!+#REF!+#REF!+#REF!+#REF!+#REF!+#REF!+#REF!+#REF!+#REF!+#REF!+#REF!+#REF!+#REF!+#REF!+#REF!+#REF!+#REF!+#REF!+#REF!+#REF!+#REF!+#REF!+#REF!+#REF!+Feb_Williams!T29+#REF! ->  | U29: =#REF!*0.5 ->  | V29: =#REF!+#REF!+#REF!+#REF!+#REF!+#REF!+#REF!+#REF!+#REF!+#REF!+#REF!+#REF!+#REF!+#REF!+#REF!+#REF!+#REF!+#REF!+#REF!+#REF!+#REF!+#REF!+#REF!+#REF!+#REF!+#REF!+#REF!+#REF!+#REF!+#REF!+#REF!+Feb_Williams!V29+#REF! ->  | W29: =#REF!+#REF!+#REF!+#REF!+#REF!+#REF!+#REF!+#REF!+#REF!+#REF!+#REF!+#REF!+#REF!+#REF!+#REF!+#REF!+#REF!+#REF!+#REF!+#REF!+#REF!+#REF!+#REF!+#REF!+#REF!+#REF!+#REF!+#REF!+#REF!+#REF!+#REF!+Feb_Williams!W29+#REF! ->  | X29: =#REF!*0.5 ->  | Y29: =#REF!+#REF!+#REF!+#REF!+#REF!+#REF!+#REF!+#REF!+#REF!+#REF!+#REF!+#REF!+#REF!+#REF!+#REF!+#REF!+#REF!+#REF!+#REF!+#REF!+#REF!+#REF!+#REF!+#REF!+#REF!+#REF!+#REF!+#REF!+#REF!+#REF!+#REF!+Feb_Williams!Y29+#REF! -> 
A30: 24 | B30: Iberville | C30: =#REF!+#REF!+#REF!+#REF!+#REF!+#REF!+#REF!+#REF!+#REF!+#REF!+#REF!+#REF!+#REF!+#REF!+#REF!+#REF!+#REF!+#REF!+#REF!+#REF!+#REF!+#REF!+#REF!+#REF!+#REF!+#REF!+#REF!+#REF!+#REF!+#REF!+#REF!+Feb_Williams!C30+#REF!+#REF!+#REF! ->  | D30: =#REF!+#REF!+#REF!+#REF!+#REF!+#REF!+#REF!+#REF!+#REF!+#REF!+#REF!+#REF!+#REF!+#REF!+#REF!+#REF!+#REF!+#REF!+#REF!+#REF!+#REF!+#REF!+#REF!+#REF!+#REF!+#REF!+#REF!+#REF!+#REF!+#REF!+#REF!+Feb_Williams!D30+#REF!+#REF!+#REF! ->  | E30: =#REF!+#REF!+#REF!+#REF!+#REF!+#REF!+#REF!+#REF!+#REF!+#REF!+#REF!+#REF!+#REF!+#REF!+#REF!+#REF!+#REF!+#REF!+#REF!+#REF!+#REF!+#REF!+#REF!+#REF!+#REF!+#REF!+#REF!+#REF!+#REF!+#REF!+#REF!+Feb_Williams!E30+#REF!+#REF!+#REF! ->  | F30: =#REF!*0.5 ->  | G30: =#REF!+#REF!+#REF!+#REF!+#REF!+#REF!+#REF!+#REF!+#REF!+#REF!+#REF!+#REF!+#REF!+#REF!+#REF!+#REF!+#REF!+#REF!+#REF!+#REF!+#REF!+#REF!+#REF!+#REF!+#REF!+#REF!+#REF!+#REF!+#REF!+#REF!+#REF!+Feb_Williams!G30+#REF! ->  | H30: =#REF!+#REF!+#REF!+#REF!+#REF!+#REF!+#REF!+#REF!+#REF!+#REF!+#REF!+#REF!+#REF!+#REF!+#REF!+#REF!+#REF!+#REF!+#REF!+#REF!+#REF!+#REF!+#REF!+#REF!+#REF!+#REF!+#REF!+#REF!+#REF!+#REF!+#REF!+Feb_Williams!H30+#REF!+#REF!+#REF! ->  | I30: =#REF!+#REF!+#REF!+#REF!+#REF!+#REF!+#REF!+#REF!+#REF!+#REF!+#REF!+#REF!+#REF!+#REF!+#REF!+#REF!+#REF!+#REF!+#REF!+#REF!+#REF!+#REF!+#REF!+#REF!+#REF!+#REF!+#REF!+#REF!+#REF!+#REF!+#REF!+Feb_Williams!I30+#REF!+#REF!+#REF! ->  | J30: =#REF!+#REF!+#REF!+#REF!+#REF!+#REF!+#REF!+#REF!+#REF!+#REF!+#REF!+#REF!+#REF!+#REF!+#REF!+#REF!+#REF!+#REF!+#REF!+#REF!+#REF!+#REF!+#REF!+#REF!+#REF!+#REF!+#REF!+#REF!+#REF!+#REF!+#REF!+Feb_Williams!J30+#REF!+#REF!+#REF! ->  | K30: =#REF!*0.5 ->  | L30: =#REF!+#REF!+#REF!+#REF!+#REF!+#REF!+#REF!+#REF!+#REF!+#REF!+#REF!+#REF!+#REF!+#REF!+#REF!+#REF!+#REF!+#REF!+#REF!+#REF!+#REF!+#REF!+#REF!+#REF!+#REF!+#REF!+#REF!+#REF!+#REF!+#REF!+#REF!+Feb_Williams!L30+#REF! ->  | O30: =#REF!+#REF!+#REF!+#REF!+#REF!+#REF!+#REF!+#REF!+#REF!+#REF!+#REF!+#REF!+#REF!+#REF!+#REF!+#REF!+#REF!+#REF!+#REF!+#REF!+#REF!+#REF!+#REF!+#REF!+#REF!+#REF!+#REF!+#REF!+#REF!+#REF!+#REF!+Feb_Williams!O30+#REF! ->  | P30: =#REF!*0.5 ->  | Q30: =#REF!+#REF!+#REF!+#REF!+#REF!+#REF!+#REF!+#REF!+#REF!+#REF!+#REF!+#REF!+#REF!+#REF!+#REF!+#REF!+#REF!+#REF!+#REF!+#REF!+#REF!+#REF!+#REF!+#REF!+#REF!+#REF!+#REF!+#REF!+#REF!+#REF!+#REF!+Feb_Williams!Q30+#REF! ->  | T30: =#REF!+#REF!+#REF!+#REF!+#REF!+#REF!+#REF!+#REF!+#REF!+#REF!+#REF!+#REF!+#REF!+#REF!+#REF!+#REF!+#REF!+#REF!+#REF!+#REF!+#REF!+#REF!+#REF!+#REF!+#REF!+#REF!+#REF!+#REF!+#REF!+#REF!+#REF!+Feb_Williams!T30+#REF! ->  | U30: =#REF!*0.5 ->  | V30: =#REF!+#REF!+#REF!+#REF!+#REF!+#REF!+#REF!+#REF!+#REF!+#REF!+#REF!+#REF!+#REF!+#REF!+#REF!+#REF!+#REF!+#REF!+#REF!+#REF!+#REF!+#REF!+#REF!+#REF!+#REF!+#REF!+#REF!+#REF!+#REF!+#REF!+#REF!+Feb_Williams!V30+#REF! ->  | W30: =#REF!+#REF!+#REF!+#REF!+#REF!+#REF!+#REF!+#REF!+#REF!+#REF!+#REF!+#REF!+#REF!+#REF!+#REF!+#REF!+#REF!+#REF!+#REF!+#REF!+#REF!+#REF!+#REF!+#REF!+#REF!+#REF!+#REF!+#REF!+#REF!+#REF!+#REF!+Feb_Williams!W30+#REF! ->  | X30: =#REF!*0.5 ->  | Y30: =#REF!+#REF!+#REF!+#REF!+#REF!+#REF!+#REF!+#REF!+#REF!+#REF!+#REF!+#REF!+#REF!+#REF!+#REF!+#REF!+#REF!+#REF!+#REF!+#REF!+#REF!+#REF!+#REF!+#REF!+#REF!+#REF!+#REF!+#REF!+#REF!+#REF!+#REF!+Feb_Williams!Y30+#REF! -> 
A31: 25 | B31: Jackson | C31: =#REF!+#REF!+#REF!+#REF!+#REF!+#REF!+#REF!+#REF!+#REF!+#REF!+#REF!+#REF!+#REF!+#REF!+#REF!+#REF!+#REF!+#REF!+#REF!+#REF!+#REF!+#REF!+#REF!+#REF!+#REF!+#REF!+#REF!+#REF!+#REF!+#REF!+#REF!+Feb_Williams!C31+#REF!+#REF!+#REF! ->  | D31: =#REF!+#REF!+#REF!+#REF!+#REF!+#REF!+#REF!+#REF!+#REF!+#REF!+#REF!+#REF!+#REF!+#REF!+#REF!+#REF!+#REF!+#REF!+#REF!+#REF!+#REF!+#REF!+#REF!+#REF!+#REF!+#REF!+#REF!+#REF!+#REF!+#REF!+#REF!+Feb_Williams!D31+#REF!+#REF!+#REF! ->  | E31: =#REF!+#REF!+#REF!+#REF!+#REF!+#REF!+#REF!+#REF!+#REF!+#REF!+#REF!+#REF!+#REF!+#REF!+#REF!+#REF!+#REF!+#REF!+#REF!+#REF!+#REF!+#REF!+#REF!+#REF!+#REF!+#REF!+#REF!+#REF!+#REF!+#REF!+#REF!+Feb_Williams!E31+#REF!+#REF!+#REF! ->  | F31: =#REF!*0.5 ->  | G31: =#REF!+#REF!+#REF!+#REF!+#REF!+#REF!+#REF!+#REF!+#REF!+#REF!+#REF!+#REF!+#REF!+#REF!+#REF!+#REF!+#REF!+#REF!+#REF!+#REF!+#REF!+#REF!+#REF!+#REF!+#REF!+#REF!+#REF!+#REF!+#REF!+#REF!+#REF!+Feb_Williams!G31+#REF! ->  | H31: =#REF!+#REF!+#REF!+#REF!+#REF!+#REF!+#REF!+#REF!+#REF!+#REF!+#REF!+#REF!+#REF!+#REF!+#REF!+#REF!+#REF!+#REF!+#REF!+#REF!+#REF!+#REF!+#REF!+#REF!+#REF!+#REF!+#REF!+#REF!+#REF!+#REF!+#REF!+Feb_Williams!H31+#REF!+#REF!+#REF! ->  | I31: =#REF!+#REF!+#REF!+#REF!+#REF!+#REF!+#REF!+#REF!+#REF!+#REF!+#REF!+#REF!+#REF!+#REF!+#REF!+#REF!+#REF!+#REF!+#REF!+#REF!+#REF!+#REF!+#REF!+#REF!+#REF!+#REF!+#REF!+#REF!+#REF!+#REF!+#REF!+Feb_Williams!I31+#REF!+#REF!+#REF! ->  | J31: =#REF!+#REF!+#REF!+#REF!+#REF!+#REF!+#REF!+#REF!+#REF!+#REF!+#REF!+#REF!+#REF!+#REF!+#REF!+#REF!+#REF!+#REF!+#REF!+#REF!+#REF!+#REF!+#REF!+#REF!+#REF!+#REF!+#REF!+#REF!+#REF!+#REF!+#REF!+Feb_Williams!J31+#REF!+#REF!+#REF! ->  | K31: =#REF!*0.5 ->  | L31: =#REF!+#REF!+#REF!+#REF!+#REF!+#REF!+#REF!+#REF!+#REF!+#REF!+#REF!+#REF!+#REF!+#REF!+#REF!+#REF!+#REF!+#REF!+#REF!+#REF!+#REF!+#REF!+#REF!+#REF!+#REF!+#REF!+#REF!+#REF!+#REF!+#REF!+#REF!+Feb_Williams!L31+#REF! ->  | O31: =#REF!+#REF!+#REF!+#REF!+#REF!+#REF!+#REF!+#REF!+#REF!+#REF!+#REF!+#REF!+#REF!+#REF!+#REF!+#REF!+#REF!+#REF!+#REF!+#REF!+#REF!+#REF!+#REF!+#REF!+#REF!+#REF!+#REF!+#REF!+#REF!+#REF!+#REF!+Feb_Williams!O31+#REF! ->  | P31: =#REF!*0.5 ->  | Q31: =#REF!+#REF!+#REF!+#REF!+#REF!+#REF!+#REF!+#REF!+#REF!+#REF!+#REF!+#REF!+#REF!+#REF!+#REF!+#REF!+#REF!+#REF!+#REF!+#REF!+#REF!+#REF!+#REF!+#REF!+#REF!+#REF!+#REF!+#REF!+#REF!+#REF!+#REF!+Feb_Williams!Q31+#REF! ->  | T31: =#REF!+#REF!+#REF!+#REF!+#REF!+#REF!+#REF!+#REF!+#REF!+#REF!+#REF!+#REF!+#REF!+#REF!+#REF!+#REF!+#REF!+#REF!+#REF!+#REF!+#REF!+#REF!+#REF!+#REF!+#REF!+#REF!+#REF!+#REF!+#REF!+#REF!+#REF!+Feb_Williams!T31+#REF! ->  | U31: =#REF!*0.5 ->  | V31: =#REF!+#REF!+#REF!+#REF!+#REF!+#REF!+#REF!+#REF!+#REF!+#REF!+#REF!+#REF!+#REF!+#REF!+#REF!+#REF!+#REF!+#REF!+#REF!+#REF!+#REF!+#REF!+#REF!+#REF!+#REF!+#REF!+#REF!+#REF!+#REF!+#REF!+#REF!+Feb_Williams!V31+#REF! ->  | W31: =#REF!+#REF!+#REF!+#REF!+#REF!+#REF!+#REF!+#REF!+#REF!+#REF!+#REF!+#REF!+#REF!+#REF!+#REF!+#REF!+#REF!+#REF!+#REF!+#REF!+#REF!+#REF!+#REF!+#REF!+#REF!+#REF!+#REF!+#REF!+#REF!+#REF!+#REF!+Feb_Williams!W31+#REF! ->  | X31: =#REF!*0.5 ->  | Y31: =#REF!+#REF!+#REF!+#REF!+#REF!+#REF!+#REF!+#REF!+#REF!+#REF!+#REF!+#REF!+#REF!+#REF!+#REF!+#REF!+#REF!+#REF!+#REF!+#REF!+#REF!+#REF!+#REF!+#REF!+#REF!+#REF!+#REF!+#REF!+#REF!+#REF!+#REF!+Feb_Williams!Y31+#REF! -> 
A32: 26 | B32: Jefferson | C32: =#REF!+#REF!+#REF!+#REF!+#REF!+#REF!+#REF!+#REF!+#REF!+#REF!+#REF!+#REF!+#REF!+#REF!+#REF!+#REF!+#REF!+#REF!+#REF!+#REF!+#REF!+#REF!+#REF!+#REF!+#REF!+#REF!+#REF!+#REF!+#REF!+#REF!+#REF!+Feb_Williams!C32+#REF!+#REF!+#REF! ->  | D32: =#REF!+#REF!+#REF!+#REF!+#REF!+#REF!+#REF!+#REF!+#REF!+#REF!+#REF!+#REF!+#REF!+#REF!+#REF!+#REF!+#REF!+#REF!+#REF!+#REF!+#REF!+#REF!+#REF!+#REF!+#REF!+#REF!+#REF!+#REF!+#REF!+#REF!+#REF!+Feb_Williams!D32+#REF!+#REF!+#REF! ->  | E32: =#REF!+#REF!+#REF!+#REF!+#REF!+#REF!+#REF!+#REF!+#REF!+#REF!+#REF!+#REF!+#REF!+#REF!+#REF!+#REF!+#REF!+#REF!+#REF!+#REF!+#REF!+#REF!+#REF!+#REF!+#REF!+#REF!+#REF!+#REF!+#REF!+#REF!+#REF!+Feb_Williams!E32+#REF!+#REF!+#REF! ->  | F32: =#REF!*0.5 ->  | G32: =#REF!+#REF!+#REF!+#REF!+#REF!+#REF!+#REF!+#REF!+#REF!+#REF!+#REF!+#REF!+#REF!+#REF!+#REF!+#REF!+#REF!+#REF!+#REF!+#REF!+#REF!+#REF!+#REF!+#REF!+#REF!+#REF!+#REF!+#REF!+#REF!+#REF!+#REF!+Feb_Williams!G32+#REF! ->  | H32: =#REF!+#REF!+#REF!+#REF!+#REF!+#REF!+#REF!+#REF!+#REF!+#REF!+#REF!+#REF!+#REF!+#REF!+#REF!+#REF!+#REF!+#REF!+#REF!+#REF!+#REF!+#REF!+#REF!+#REF!+#REF!+#REF!+#REF!+#REF!+#REF!+#REF!+#REF!+Feb_Williams!H32+#REF!+#REF!+#REF! ->  | I32: =#REF!+#REF!+#REF!+#REF!+#REF!+#REF!+#REF!+#REF!+#REF!+#REF!+#REF!+#REF!+#REF!+#REF!+#REF!+#REF!+#REF!+#REF!+#REF!+#REF!+#REF!+#REF!+#REF!+#REF!+#REF!+#REF!+#REF!+#REF!+#REF!+#REF!+#REF!+Feb_Williams!I32+#REF!+#REF!+#REF! ->  | J32: =#REF!+#REF!+#REF!+#REF!+#REF!+#REF!+#REF!+#REF!+#REF!+#REF!+#REF!+#REF!+#REF!+#REF!+#REF!+#REF!+#REF!+#REF!+#REF!+#REF!+#REF!+#REF!+#REF!+#REF!+#REF!+#REF!+#REF!+#REF!+#REF!+#REF!+#REF!+Feb_Williams!J32+#REF!+#REF!+#REF! ->  | K32: =#REF!*0.5 ->  | L32: =#REF!+#REF!+#REF!+#REF!+#REF!+#REF!+#REF!+#REF!+#REF!+#REF!+#REF!+#REF!+#REF!+#REF!+#REF!+#REF!+#REF!+#REF!+#REF!+#REF!+#REF!+#REF!+#REF!+#REF!+#REF!+#REF!+#REF!+#REF!+#REF!+#REF!+#REF!+Feb_Williams!L32+#REF! ->  | O32: =#REF!+#REF!+#REF!+#REF!+#REF!+#REF!+#REF!+#REF!+#REF!+#REF!+#REF!+#REF!+#REF!+#REF!+#REF!+#REF!+#REF!+#REF!+#REF!+#REF!+#REF!+#REF!+#REF!+#REF!+#REF!+#REF!+#REF!+#REF!+#REF!+#REF!+#REF!+Feb_Williams!O32+#REF! ->  | P32: =#REF!*0.5 ->  | Q32: =#REF!+#REF!+#REF!+#REF!+#REF!+#REF!+#REF!+#REF!+#REF!+#REF!+#REF!+#REF!+#REF!+#REF!+#REF!+#REF!+#REF!+#REF!+#REF!+#REF!+#REF!+#REF!+#REF!+#REF!+#REF!+#REF!+#REF!+#REF!+#REF!+#REF!+#REF!+Feb_Williams!Q32+#REF! ->  | T32: =#REF!+#REF!+#REF!+#REF!+#REF!+#REF!+#REF!+#REF!+#REF!+#REF!+#REF!+#REF!+#REF!+#REF!+#REF!+#REF!+#REF!+#REF!+#REF!+#REF!+#REF!+#REF!+#REF!+#REF!+#REF!+#REF!+#REF!+#REF!+#REF!+#REF!+#REF!+Feb_Williams!T32+#REF! ->  | U32: =#REF!*0.5 ->  | V32: =#REF!+#REF!+#REF!+#REF!+#REF!+#REF!+#REF!+#REF!+#REF!+#REF!+#REF!+#REF!+#REF!+#REF!+#REF!+#REF!+#REF!+#REF!+#REF!+#REF!+#REF!+#REF!+#REF!+#REF!+#REF!+#REF!+#REF!+#REF!+#REF!+#REF!+#REF!+Feb_Williams!V32+#REF! ->  | W32: =#REF!+#REF!+#REF!+#REF!+#REF!+#REF!+#REF!+#REF!+#REF!+#REF!+#REF!+#REF!+#REF!+#REF!+#REF!+#REF!+#REF!+#REF!+#REF!+#REF!+#REF!+#REF!+#REF!+#REF!+#REF!+#REF!+#REF!+#REF!+#REF!+#REF!+#REF!+Feb_Williams!W32+#REF! ->  | X32: =#REF!*0.5 ->  | Y32: =#REF!+#REF!+#REF!+#REF!+#REF!+#REF!+#REF!+#REF!+#REF!+#REF!+#REF!+#REF!+#REF!+#REF!+#REF!+#REF!+#REF!+#REF!+#REF!+#REF!+#REF!+#REF!+#REF!+#REF!+#REF!+#REF!+#REF!+#REF!+#REF!+#REF!+#REF!+Feb_Williams!Y32+#REF! -> 
A33: 27 | B33: Jefferson Davis | C33: =#REF!+#REF!+#REF!+#REF!+#REF!+#REF!+#REF!+#REF!+#REF!+#REF!+#REF!+#REF!+#REF!+#REF!+#REF!+#REF!+#REF!+#REF!+#REF!+#REF!+#REF!+#REF!+#REF!+#REF!+#REF!+#REF!+#REF!+#REF!+#REF!+#REF!+#REF!+Feb_Williams!C33+#REF!+#REF!+#REF! ->  | D33: =#REF!+#REF!+#REF!+#REF!+#REF!+#REF!+#REF!+#REF!+#REF!+#REF!+#REF!+#REF!+#REF!+#REF!+#REF!+#REF!+#REF!+#REF!+#REF!+#REF!+#REF!+#REF!+#REF!+#REF!+#REF!+#REF!+#REF!+#REF!+#REF!+#REF!+#REF!+Feb_Williams!D33+#REF!+#REF!+#REF! ->  | E33: =#REF!+#REF!+#REF!+#REF!+#REF!+#REF!+#REF!+#REF!+#REF!+#REF!+#REF!+#REF!+#REF!+#REF!+#REF!+#REF!+#REF!+#REF!+#REF!+#REF!+#REF!+#REF!+#REF!+#REF!+#REF!+#REF!+#REF!+#REF!+#REF!+#REF!+#REF!+Feb_Williams!E33+#REF!+#REF!+#REF! ->  | F33: =#REF!*0.5 ->  | G33: =#REF!+#REF!+#REF!+#REF!+#REF!+#REF!+#REF!+#REF!+#REF!+#REF!+#REF!+#REF!+#REF!+#REF!+#REF!+#REF!+#REF!+#REF!+#REF!+#REF!+#REF!+#REF!+#REF!+#REF!+#REF!+#REF!+#REF!+#REF!+#REF!+#REF!+#REF!+Feb_Williams!G33+#REF! ->  | H33: =#REF!+#REF!+#REF!+#REF!+#REF!+#REF!+#REF!+#REF!+#REF!+#REF!+#REF!+#REF!+#REF!+#REF!+#REF!+#REF!+#REF!+#REF!+#REF!+#REF!+#REF!+#REF!+#REF!+#REF!+#REF!+#REF!+#REF!+#REF!+#REF!+#REF!+#REF!+Feb_Williams!H33+#REF!+#REF!+#REF! ->  | I33: =#REF!+#REF!+#REF!+#REF!+#REF!+#REF!+#REF!+#REF!+#REF!+#REF!+#REF!+#REF!+#REF!+#REF!+#REF!+#REF!+#REF!+#REF!+#REF!+#REF!+#REF!+#REF!+#REF!+#REF!+#REF!+#REF!+#REF!+#REF!+#REF!+#REF!+#REF!+Feb_Williams!I33+#REF!+#REF!+#REF! ->  | J33: =#REF!+#REF!+#REF!+#REF!+#REF!+#REF!+#REF!+#REF!+#REF!+#REF!+#REF!+#REF!+#REF!+#REF!+#REF!+#REF!+#REF!+#REF!+#REF!+#REF!+#REF!+#REF!+#REF!+#REF!+#REF!+#REF!+#REF!+#REF!+#REF!+#REF!+#REF!+Feb_Williams!J33+#REF!+#REF!+#REF! ->  | K33: =#REF!*0.5 ->  | L33: =#REF!+#REF!+#REF!+#REF!+#REF!+#REF!+#REF!+#REF!+#REF!+#REF!+#REF!+#REF!+#REF!+#REF!+#REF!+#REF!+#REF!+#REF!+#REF!+#REF!+#REF!+#REF!+#REF!+#REF!+#REF!+#REF!+#REF!+#REF!+#REF!+#REF!+#REF!+Feb_Williams!L33+#REF! ->  | O33: =#REF!+#REF!+#REF!+#REF!+#REF!+#REF!+#REF!+#REF!+#REF!+#REF!+#REF!+#REF!+#REF!+#REF!+#REF!+#REF!+#REF!+#REF!+#REF!+#REF!+#REF!+#REF!+#REF!+#REF!+#REF!+#REF!+#REF!+#REF!+#REF!+#REF!+#REF!+Feb_Williams!O33+#REF! ->  | P33: =#REF!*0.5 ->  | Q33: =#REF!+#REF!+#REF!+#REF!+#REF!+#REF!+#REF!+#REF!+#REF!+#REF!+#REF!+#REF!+#REF!+#REF!+#REF!+#REF!+#REF!+#REF!+#REF!+#REF!+#REF!+#REF!+#REF!+#REF!+#REF!+#REF!+#REF!+#REF!+#REF!+#REF!+#REF!+Feb_Williams!Q33+#REF! ->  | T33: =#REF!+#REF!+#REF!+#REF!+#REF!+#REF!+#REF!+#REF!+#REF!+#REF!+#REF!+#REF!+#REF!+#REF!+#REF!+#REF!+#REF!+#REF!+#REF!+#REF!+#REF!+#REF!+#REF!+#REF!+#REF!+#REF!+#REF!+#REF!+#REF!+#REF!+#REF!+Feb_Williams!T33+#REF! ->  | U33: =#REF!*0.5 ->  | V33: =#REF!+#REF!+#REF!+#REF!+#REF!+#REF!+#REF!+#REF!+#REF!+#REF!+#REF!+#REF!+#REF!+#REF!+#REF!+#REF!+#REF!+#REF!+#REF!+#REF!+#REF!+#REF!+#REF!+#REF!+#REF!+#REF!+#REF!+#REF!+#REF!+#REF!+#REF!+Feb_Williams!V33+#REF! ->  | W33: =#REF!+#REF!+#REF!+#REF!+#REF!+#REF!+#REF!+#REF!+#REF!+#REF!+#REF!+#REF!+#REF!+#REF!+#REF!+#REF!+#REF!+#REF!+#REF!+#REF!+#REF!+#REF!+#REF!+#REF!+#REF!+#REF!+#REF!+#REF!+#REF!+#REF!+#REF!+Feb_Williams!W33+#REF! ->  | X33: =#REF!*0.5 ->  | Y33: =#REF!+#REF!+#REF!+#REF!+#REF!+#REF!+#REF!+#REF!+#REF!+#REF!+#REF!+#REF!+#REF!+#REF!+#REF!+#REF!+#REF!+#REF!+#REF!+#REF!+#REF!+#REF!+#REF!+#REF!+#REF!+#REF!+#REF!+#REF!+#REF!+#REF!+#REF!+Feb_Williams!Y33+#REF! -> 
A34: 28 | B34: Lafayette | C34: =#REF!+#REF!+#REF!+#REF!+#REF!+#REF!+#REF!+#REF!+#REF!+#REF!+#REF!+#REF!+#REF!+#REF!+#REF!+#REF!+#REF!+#REF!+#REF!+#REF!+#REF!+#REF!+#REF!+#REF!+#REF!+#REF!+#REF!+#REF!+#REF!+#REF!+#REF!+Feb_Williams!C34+#REF!+#REF!+#REF! ->  | D34: =#REF!+#REF!+#REF!+#REF!+#REF!+#REF!+#REF!+#REF!+#REF!+#REF!+#REF!+#REF!+#REF!+#REF!+#REF!+#REF!+#REF!+#REF!+#REF!+#REF!+#REF!+#REF!+#REF!+#REF!+#REF!+#REF!+#REF!+#REF!+#REF!+#REF!+#REF!+Feb_Williams!D34+#REF!+#REF!+#REF! ->  | E34: =#REF!+#REF!+#REF!+#REF!+#REF!+#REF!+#REF!+#REF!+#REF!+#REF!+#REF!+#REF!+#REF!+#REF!+#REF!+#REF!+#REF!+#REF!+#REF!+#REF!+#REF!+#REF!+#REF!+#REF!+#REF!+#REF!+#REF!+#REF!+#REF!+#REF!+#REF!+Feb_Williams!E34+#REF!+#REF!+#REF! ->  | F34: =#REF!*0.5 ->  | G34: =#REF!+#REF!+#REF!+#REF!+#REF!+#REF!+#REF!+#REF!+#REF!+#REF!+#REF!+#REF!+#REF!+#REF!+#REF!+#REF!+#REF!+#REF!+#REF!+#REF!+#REF!+#REF!+#REF!+#REF!+#REF!+#REF!+#REF!+#REF!+#REF!+#REF!+#REF!+Feb_Williams!G34+#REF! ->  | H34: =#REF!+#REF!+#REF!+#REF!+#REF!+#REF!+#REF!+#REF!+#REF!+#REF!+#REF!+#REF!+#REF!+#REF!+#REF!+#REF!+#REF!+#REF!+#REF!+#REF!+#REF!+#REF!+#REF!+#REF!+#REF!+#REF!+#REF!+#REF!+#REF!+#REF!+#REF!+Feb_Williams!H34+#REF!+#REF!+#REF! ->  | I34: =#REF!+#REF!+#REF!+#REF!+#REF!+#REF!+#REF!+#REF!+#REF!+#REF!+#REF!+#REF!+#REF!+#REF!+#REF!+#REF!+#REF!+#REF!+#REF!+#REF!+#REF!+#REF!+#REF!+#REF!+#REF!+#REF!+#REF!+#REF!+#REF!+#REF!+#REF!+Feb_Williams!I34+#REF!+#REF!+#REF! ->  | J34: =#REF!+#REF!+#REF!+#REF!+#REF!+#REF!+#REF!+#REF!+#REF!+#REF!+#REF!+#REF!+#REF!+#REF!+#REF!+#REF!+#REF!+#REF!+#REF!+#REF!+#REF!+#REF!+#REF!+#REF!+#REF!+#REF!+#REF!+#REF!+#REF!+#REF!+#REF!+Feb_Williams!J34+#REF!+#REF!+#REF! ->  | K34: =#REF!*0.5 ->  | L34: =#REF!+#REF!+#REF!+#REF!+#REF!+#REF!+#REF!+#REF!+#REF!+#REF!+#REF!+#REF!+#REF!+#REF!+#REF!+#REF!+#REF!+#REF!+#REF!+#REF!+#REF!+#REF!+#REF!+#REF!+#REF!+#REF!+#REF!+#REF!+#REF!+#REF!+#REF!+Feb_Williams!L34+#REF! ->  | O34: =#REF!+#REF!+#REF!+#REF!+#REF!+#REF!+#REF!+#REF!+#REF!+#REF!+#REF!+#REF!+#REF!+#REF!+#REF!+#REF!+#REF!+#REF!+#REF!+#REF!+#REF!+#REF!+#REF!+#REF!+#REF!+#REF!+#REF!+#REF!+#REF!+#REF!+#REF!+Feb_Williams!O34+#REF! ->  | P34: =#REF!*0.5 ->  | Q34: =#REF!+#REF!+#REF!+#REF!+#REF!+#REF!+#REF!+#REF!+#REF!+#REF!+#REF!+#REF!+#REF!+#REF!+#REF!+#REF!+#REF!+#REF!+#REF!+#REF!+#REF!+#REF!+#REF!+#REF!+#REF!+#REF!+#REF!+#REF!+#REF!+#REF!+#REF!+Feb_Williams!Q34+#REF! ->  | T34: =#REF!+#REF!+#REF!+#REF!+#REF!+#REF!+#REF!+#REF!+#REF!+#REF!+#REF!+#REF!+#REF!+#REF!+#REF!+#REF!+#REF!+#REF!+#REF!+#REF!+#REF!+#REF!+#REF!+#REF!+#REF!+#REF!+#REF!+#REF!+#REF!+#REF!+#REF!+Feb_Williams!T34+#REF! ->  | U34: =#REF!*0.5 ->  | V34: =#REF!+#REF!+#REF!+#REF!+#REF!+#REF!+#REF!+#REF!+#REF!+#REF!+#REF!+#REF!+#REF!+#REF!+#REF!+#REF!+#REF!+#REF!+#REF!+#REF!+#REF!+#REF!+#REF!+#REF!+#REF!+#REF!+#REF!+#REF!+#REF!+#REF!+#REF!+Feb_Williams!V34+#REF! ->  | W34: =#REF!+#REF!+#REF!+#REF!+#REF!+#REF!+#REF!+#REF!+#REF!+#REF!+#REF!+#REF!+#REF!+#REF!+#REF!+#REF!+#REF!+#REF!+#REF!+#REF!+#REF!+#REF!+#REF!+#REF!+#REF!+#REF!+#REF!+#REF!+#REF!+#REF!+#REF!+Feb_Williams!W34+#REF! ->  | X34: =#REF!*0.5 ->  | Y34: =#REF!+#REF!+#REF!+#REF!+#REF!+#REF!+#REF!+#REF!+#REF!+#REF!+#REF!+#REF!+#REF!+#REF!+#REF!+#REF!+#REF!+#REF!+#REF!+#REF!+#REF!+#REF!+#REF!+#REF!+#REF!+#REF!+#REF!+#REF!+#REF!+#REF!+#REF!+Feb_Williams!Y34+#REF! -> 
A35: 29 | B35: Lafourche | C35: =#REF!+#REF!+#REF!+#REF!+#REF!+#REF!+#REF!+#REF!+#REF!+#REF!+#REF!+#REF!+#REF!+#REF!+#REF!+#REF!+#REF!+#REF!+#REF!+#REF!+#REF!+#REF!+#REF!+#REF!+#REF!+#REF!+#REF!+#REF!+#REF!+#REF!+#REF!+Feb_Williams!C35+#REF!+#REF!+#REF! ->  | D35: =#REF!+#REF!+#REF!+#REF!+#REF!+#REF!+#REF!+#REF!+#REF!+#REF!+#REF!+#REF!+#REF!+#REF!+#REF!+#REF!+#REF!+#REF!+#REF!+#REF!+#REF!+#REF!+#REF!+#REF!+#REF!+#REF!+#REF!+#REF!+#REF!+#REF!+#REF!+Feb_Williams!D35+#REF!+#REF!+#REF! ->  | E35: =#REF!+#REF!+#REF!+#REF!+#REF!+#REF!+#REF!+#REF!+#REF!+#REF!+#REF!+#REF!+#REF!+#REF!+#REF!+#REF!+#REF!+#REF!+#REF!+#REF!+#REF!+#REF!+#REF!+#REF!+#REF!+#REF!+#REF!+#REF!+#REF!+#REF!+#REF!+Feb_Williams!E35+#REF!+#REF!+#REF! ->  | F35: =#REF!*0.5 ->  | G35: =#REF!+#REF!+#REF!+#REF!+#REF!+#REF!+#REF!+#REF!+#REF!+#REF!+#REF!+#REF!+#REF!+#REF!+#REF!+#REF!+#REF!+#REF!+#REF!+#REF!+#REF!+#REF!+#REF!+#REF!+#REF!+#REF!+#REF!+#REF!+#REF!+#REF!+#REF!+Feb_Williams!G35+#REF! ->  | H35: =#REF!+#REF!+#REF!+#REF!+#REF!+#REF!+#REF!+#REF!+#REF!+#REF!+#REF!+#REF!+#REF!+#REF!+#REF!+#REF!+#REF!+#REF!+#REF!+#REF!+#REF!+#REF!+#REF!+#REF!+#REF!+#REF!+#REF!+#REF!+#REF!+#REF!+#REF!+Feb_Williams!H35+#REF!+#REF!+#REF! ->  | I35: =#REF!+#REF!+#REF!+#REF!+#REF!+#REF!+#REF!+#REF!+#REF!+#REF!+#REF!+#REF!+#REF!+#REF!+#REF!+#REF!+#REF!+#REF!+#REF!+#REF!+#REF!+#REF!+#REF!+#REF!+#REF!+#REF!+#REF!+#REF!+#REF!+#REF!+#REF!+Feb_Williams!I35+#REF!+#REF!+#REF! ->  | J35: =#REF!+#REF!+#REF!+#REF!+#REF!+#REF!+#REF!+#REF!+#REF!+#REF!+#REF!+#REF!+#REF!+#REF!+#REF!+#REF!+#REF!+#REF!+#REF!+#REF!+#REF!+#REF!+#REF!+#REF!+#REF!+#REF!+#REF!+#REF!+#REF!+#REF!+#REF!+Feb_Williams!J35+#REF!+#REF!+#REF! ->  | K35: =#REF!*0.5 ->  | L35: =#REF!+#REF!+#REF!+#REF!+#REF!+#REF!+#REF!+#REF!+#REF!+#REF!+#REF!+#REF!+#REF!+#REF!+#REF!+#REF!+#REF!+#REF!+#REF!+#REF!+#REF!+#REF!+#REF!+#REF!+#REF!+#REF!+#REF!+#REF!+#REF!+#REF!+#REF!+Feb_Williams!L35+#REF! ->  | O35: =#REF!+#REF!+#REF!+#REF!+#REF!+#REF!+#REF!+#REF!+#REF!+#REF!+#REF!+#REF!+#REF!+#REF!+#REF!+#REF!+#REF!+#REF!+#REF!+#REF!+#REF!+#REF!+#REF!+#REF!+#REF!+#REF!+#REF!+#REF!+#REF!+#REF!+#REF!+Feb_Williams!O35+#REF! ->  | P35: =#REF!*0.5 ->  | Q35: =#REF!+#REF!+#REF!+#REF!+#REF!+#REF!+#REF!+#REF!+#REF!+#REF!+#REF!+#REF!+#REF!+#REF!+#REF!+#REF!+#REF!+#REF!+#REF!+#REF!+#REF!+#REF!+#REF!+#REF!+#REF!+#REF!+#REF!+#REF!+#REF!+#REF!+#REF!+Feb_Williams!Q35+#REF! ->  | T35: =#REF!+#REF!+#REF!+#REF!+#REF!+#REF!+#REF!+#REF!+#REF!+#REF!+#REF!+#REF!+#REF!+#REF!+#REF!+#REF!+#REF!+#REF!+#REF!+#REF!+#REF!+#REF!+#REF!+#REF!+#REF!+#REF!+#REF!+#REF!+#REF!+#REF!+#REF!+Feb_Williams!T35+#REF! ->  | U35: =#REF!*0.5 ->  | V35: =#REF!+#REF!+#REF!+#REF!+#REF!+#REF!+#REF!+#REF!+#REF!+#REF!+#REF!+#REF!+#REF!+#REF!+#REF!+#REF!+#REF!+#REF!+#REF!+#REF!+#REF!+#REF!+#REF!+#REF!+#REF!+#REF!+#REF!+#REF!+#REF!+#REF!+#REF!+Feb_Williams!V35+#REF! ->  | W35: =#REF!+#REF!+#REF!+#REF!+#REF!+#REF!+#REF!+#REF!+#REF!+#REF!+#REF!+#REF!+#REF!+#REF!+#REF!+#REF!+#REF!+#REF!+#REF!+#REF!+#REF!+#REF!+#REF!+#REF!+#REF!+#REF!+#REF!+#REF!+#REF!+#REF!+#REF!+Feb_Williams!W35+#REF! ->  | X35: =#REF!*0.5 ->  | Y35: =#REF!+#REF!+#REF!+#REF!+#REF!+#REF!+#REF!+#REF!+#REF!+#REF!+#REF!+#REF!+#REF!+#REF!+#REF!+#REF!+#REF!+#REF!+#REF!+#REF!+#REF!+#REF!+#REF!+#REF!+#REF!+#REF!+#REF!+#REF!+#REF!+#REF!+#REF!+Feb_Williams!Y35+#REF! -> 
A36: 30 | B36: LaSalle | C36: =#REF!+#REF!+#REF!+#REF!+#REF!+#REF!+#REF!+#REF!+#REF!+#REF!+#REF!+#REF!+#REF!+#REF!+#REF!+#REF!+#REF!+#REF!+#REF!+#REF!+#REF!+#REF!+#REF!+#REF!+#REF!+#REF!+#REF!+#REF!+#REF!+#REF!+#REF!+Feb_Williams!C36+#REF!+#REF!+#REF! ->  | D36: =#REF!+#REF!+#REF!+#REF!+#REF!+#REF!+#REF!+#REF!+#REF!+#REF!+#REF!+#REF!+#REF!+#REF!+#REF!+#REF!+#REF!+#REF!+#REF!+#REF!+#REF!+#REF!+#REF!+#REF!+#REF!+#REF!+#REF!+#REF!+#REF!+#REF!+#REF!+Feb_Williams!D36+#REF!+#REF!+#REF! ->  | E36: =#REF!+#REF!+#REF!+#REF!+#REF!+#REF!+#REF!+#REF!+#REF!+#REF!+#REF!+#REF!+#REF!+#REF!+#REF!+#REF!+#REF!+#REF!+#REF!+#REF!+#REF!+#REF!+#REF!+#REF!+#REF!+#REF!+#REF!+#REF!+#REF!+#REF!+#REF!+Feb_Williams!E36+#REF!+#REF!+#REF! ->  | F36: =#REF!*0.5 ->  | G36: =#REF!+#REF!+#REF!+#REF!+#REF!+#REF!+#REF!+#REF!+#REF!+#REF!+#REF!+#REF!+#REF!+#REF!+#REF!+#REF!+#REF!+#REF!+#REF!+#REF!+#REF!+#REF!+#REF!+#REF!+#REF!+#REF!+#REF!+#REF!+#REF!+#REF!+#REF!+Feb_Williams!G36+#REF! ->  | H36: =#REF!+#REF!+#REF!+#REF!+#REF!+#REF!+#REF!+#REF!+#REF!+#REF!+#REF!+#REF!+#REF!+#REF!+#REF!+#REF!+#REF!+#REF!+#REF!+#REF!+#REF!+#REF!+#REF!+#REF!+#REF!+#REF!+#REF!+#REF!+#REF!+#REF!+#REF!+Feb_Williams!H36+#REF!+#REF!+#REF! ->  | I36: =#REF!+#REF!+#REF!+#REF!+#REF!+#REF!+#REF!+#REF!+#REF!+#REF!+#REF!+#REF!+#REF!+#REF!+#REF!+#REF!+#REF!+#REF!+#REF!+#REF!+#REF!+#REF!+#REF!+#REF!+#REF!+#REF!+#REF!+#REF!+#REF!+#REF!+#REF!+Feb_Williams!I36+#REF!+#REF!+#REF! ->  | J36: =#REF!+#REF!+#REF!+#REF!+#REF!+#REF!+#REF!+#REF!+#REF!+#REF!+#REF!+#REF!+#REF!+#REF!+#REF!+#REF!+#REF!+#REF!+#REF!+#REF!+#REF!+#REF!+#REF!+#REF!+#REF!+#REF!+#REF!+#REF!+#REF!+#REF!+#REF!+Feb_Williams!J36+#REF!+#REF!+#REF! ->  | K36: =#REF!*0.5 ->  | L36: =#REF!+#REF!+#REF!+#REF!+#REF!+#REF!+#REF!+#REF!+#REF!+#REF!+#REF!+#REF!+#REF!+#REF!+#REF!+#REF!+#REF!+#REF!+#REF!+#REF!+#REF!+#REF!+#REF!+#REF!+#REF!+#REF!+#REF!+#REF!+#REF!+#REF!+#REF!+Feb_Williams!L36+#REF! ->  | O36: =#REF!+#REF!+#REF!+#REF!+#REF!+#REF!+#REF!+#REF!+#REF!+#REF!+#REF!+#REF!+#REF!+#REF!+#REF!+#REF!+#REF!+#REF!+#REF!+#REF!+#REF!+#REF!+#REF!+#REF!+#REF!+#REF!+#REF!+#REF!+#REF!+#REF!+#REF!+Feb_Williams!O36+#REF! ->  | P36: =#REF!*0.5 ->  | Q36: =#REF!+#REF!+#REF!+#REF!+#REF!+#REF!+#REF!+#REF!+#REF!+#REF!+#REF!+#REF!+#REF!+#REF!+#REF!+#REF!+#REF!+#REF!+#REF!+#REF!+#REF!+#REF!+#REF!+#REF!+#REF!+#REF!+#REF!+#REF!+#REF!+#REF!+#REF!+Feb_Williams!Q36+#REF! ->  | T36: =#REF!+#REF!+#REF!+#REF!+#REF!+#REF!+#REF!+#REF!+#REF!+#REF!+#REF!+#REF!+#REF!+#REF!+#REF!+#REF!+#REF!+#REF!+#REF!+#REF!+#REF!+#REF!+#REF!+#REF!+#REF!+#REF!+#REF!+#REF!+#REF!+#REF!+#REF!+Feb_Williams!T36+#REF! ->  | U36: =#REF!*0.5 ->  | V36: =#REF!+#REF!+#REF!+#REF!+#REF!+#REF!+#REF!+#REF!+#REF!+#REF!+#REF!+#REF!+#REF!+#REF!+#REF!+#REF!+#REF!+#REF!+#REF!+#REF!+#REF!+#REF!+#REF!+#REF!+#REF!+#REF!+#REF!+#REF!+#REF!+#REF!+#REF!+Feb_Williams!V36+#REF! ->  | W36: =#REF!+#REF!+#REF!+#REF!+#REF!+#REF!+#REF!+#REF!+#REF!+#REF!+#REF!+#REF!+#REF!+#REF!+#REF!+#REF!+#REF!+#REF!+#REF!+#REF!+#REF!+#REF!+#REF!+#REF!+#REF!+#REF!+#REF!+#REF!+#REF!+#REF!+#REF!+Feb_Williams!W36+#REF! ->  | X36: =#REF!*0.5 ->  | Y36: =#REF!+#REF!+#REF!+#REF!+#REF!+#REF!+#REF!+#REF!+#REF!+#REF!+#REF!+#REF!+#REF!+#REF!+#REF!+#REF!+#REF!+#REF!+#REF!+#REF!+#REF!+#REF!+#REF!+#REF!+#REF!+#REF!+#REF!+#REF!+#REF!+#REF!+#REF!+Feb_Williams!Y36+#REF! -> 
A37: 31 | B37: Lincoln | C37: =#REF!+#REF!+#REF!+#REF!+#REF!+#REF!+#REF!+#REF!+#REF!+#REF!+#REF!+#REF!+#REF!+#REF!+#REF!+#REF!+#REF!+#REF!+#REF!+#REF!+#REF!+#REF!+#REF!+#REF!+#REF!+#REF!+#REF!+#REF!+#REF!+#REF!+#REF!+Feb_Williams!C37+#REF!+#REF!+#REF! ->  | D37: =#REF!+#REF!+#REF!+#REF!+#REF!+#REF!+#REF!+#REF!+#REF!+#REF!+#REF!+#REF!+#REF!+#REF!+#REF!+#REF!+#REF!+#REF!+#REF!+#REF!+#REF!+#REF!+#REF!+#REF!+#REF!+#REF!+#REF!+#REF!+#REF!+#REF!+#REF!+Feb_Williams!D37+#REF!+#REF!+#REF! ->  | E37: =#REF!+#REF!+#REF!+#REF!+#REF!+#REF!+#REF!+#REF!+#REF!+#REF!+#REF!+#REF!+#REF!+#REF!+#REF!+#REF!+#REF!+#REF!+#REF!+#REF!+#REF!+#REF!+#REF!+#REF!+#REF!+#REF!+#REF!+#REF!+#REF!+#REF!+#REF!+Feb_Williams!E37+#REF!+#REF!+#REF! ->  | F37: =#REF!*0.5 ->  | G37: =#REF!+#REF!+#REF!+#REF!+#REF!+#REF!+#REF!+#REF!+#REF!+#REF!+#REF!+#REF!+#REF!+#REF!+#REF!+#REF!+#REF!+#REF!+#REF!+#REF!+#REF!+#REF!+#REF!+#REF!+#REF!+#REF!+#REF!+#REF!+#REF!+#REF!+#REF!+Feb_Williams!G37+#REF! ->  | H37: =#REF!+#REF!+#REF!+#REF!+#REF!+#REF!+#REF!+#REF!+#REF!+#REF!+#REF!+#REF!+#REF!+#REF!+#REF!+#REF!+#REF!+#REF!+#REF!+#REF!+#REF!+#REF!+#REF!+#REF!+#REF!+#REF!+#REF!+#REF!+#REF!+#REF!+#REF!+Feb_Williams!H37+#REF!+#REF!+#REF! ->  | I37: =#REF!+#REF!+#REF!+#REF!+#REF!+#REF!+#REF!+#REF!+#REF!+#REF!+#REF!+#REF!+#REF!+#REF!+#REF!+#REF!+#REF!+#REF!+#REF!+#REF!+#REF!+#REF!+#REF!+#REF!+#REF!+#REF!+#REF!+#REF!+#REF!+#REF!+#REF!+Feb_Williams!I37+#REF!+#REF!+#REF! ->  | J37: =#REF!+#REF!+#REF!+#REF!+#REF!+#REF!+#REF!+#REF!+#REF!+#REF!+#REF!+#REF!+#REF!+#REF!+#REF!+#REF!+#REF!+#REF!+#REF!+#REF!+#REF!+#REF!+#REF!+#REF!+#REF!+#REF!+#REF!+#REF!+#REF!+#REF!+#REF!+Feb_Williams!J37+#REF!+#REF!+#REF! ->  | K37: =#REF!*0.5 ->  | L37: =#REF!+#REF!+#REF!+#REF!+#REF!+#REF!+#REF!+#REF!+#REF!+#REF!+#REF!+#REF!+#REF!+#REF!+#REF!+#REF!+#REF!+#REF!+#REF!+#REF!+#REF!+#REF!+#REF!+#REF!+#REF!+#REF!+#REF!+#REF!+#REF!+#REF!+#REF!+Feb_Williams!L37+#REF! ->  | O37: =#REF!+#REF!+#REF!+#REF!+#REF!+#REF!+#REF!+#REF!+#REF!+#REF!+#REF!+#REF!+#REF!+#REF!+#REF!+#REF!+#REF!+#REF!+#REF!+#REF!+#REF!+#REF!+#REF!+#REF!+#REF!+#REF!+#REF!+#REF!+#REF!+#REF!+#REF!+Feb_Williams!O37+#REF! ->  | P37: =#REF!*0.5 ->  | Q37: =#REF!+#REF!+#REF!+#REF!+#REF!+#REF!+#REF!+#REF!+#REF!+#REF!+#REF!+#REF!+#REF!+#REF!+#REF!+#REF!+#REF!+#REF!+#REF!+#REF!+#REF!+#REF!+#REF!+#REF!+#REF!+#REF!+#REF!+#REF!+#REF!+#REF!+#REF!+Feb_Williams!Q37+#REF! ->  | T37: =#REF!+#REF!+#REF!+#REF!+#REF!+#REF!+#REF!+#REF!+#REF!+#REF!+#REF!+#REF!+#REF!+#REF!+#REF!+#REF!+#REF!+#REF!+#REF!+#REF!+#REF!+#REF!+#REF!+#REF!+#REF!+#REF!+#REF!+#REF!+#REF!+#REF!+#REF!+Feb_Williams!T37+#REF! ->  | U37: =#REF!*0.5 ->  | V37: =#REF!+#REF!+#REF!+#REF!+#REF!+#REF!+#REF!+#REF!+#REF!+#REF!+#REF!+#REF!+#REF!+#REF!+#REF!+#REF!+#REF!+#REF!+#REF!+#REF!+#REF!+#REF!+#REF!+#REF!+#REF!+#REF!+#REF!+#REF!+#REF!+#REF!+#REF!+Feb_Williams!V37+#REF! ->  | W37: =#REF!+#REF!+#REF!+#REF!+#REF!+#REF!+#REF!+#REF!+#REF!+#REF!+#REF!+#REF!+#REF!+#REF!+#REF!+#REF!+#REF!+#REF!+#REF!+#REF!+#REF!+#REF!+#REF!+#REF!+#REF!+#REF!+#REF!+#REF!+#REF!+#REF!+#REF!+Feb_Williams!W37+#REF! ->  | X37: =#REF!*0.5 ->  | Y37: =#REF!+#REF!+#REF!+#REF!+#REF!+#REF!+#REF!+#REF!+#REF!+#REF!+#REF!+#REF!+#REF!+#REF!+#REF!+#REF!+#REF!+#REF!+#REF!+#REF!+#REF!+#REF!+#REF!+#REF!+#REF!+#REF!+#REF!+#REF!+#REF!+#REF!+#REF!+Feb_Williams!Y37+#REF! -> 
A38: 32 | B38: Livingston | C38: =#REF!+#REF!+#REF!+#REF!+#REF!+#REF!+#REF!+#REF!+#REF!+#REF!+#REF!+#REF!+#REF!+#REF!+#REF!+#REF!+#REF!+#REF!+#REF!+#REF!+#REF!+#REF!+#REF!+#REF!+#REF!+#REF!+#REF!+#REF!+#REF!+#REF!+#REF!+Feb_Williams!C38+#REF!+#REF!+#REF! ->  | D38: =#REF!+#REF!+#REF!+#REF!+#REF!+#REF!+#REF!+#REF!+#REF!+#REF!+#REF!+#REF!+#REF!+#REF!+#REF!+#REF!+#REF!+#REF!+#REF!+#REF!+#REF!+#REF!+#REF!+#REF!+#REF!+#REF!+#REF!+#REF!+#REF!+#REF!+#REF!+Feb_Williams!D38+#REF!+#REF!+#REF! ->  | E38: =#REF!+#REF!+#REF!+#REF!+#REF!+#REF!+#REF!+#REF!+#REF!+#REF!+#REF!+#REF!+#REF!+#REF!+#REF!+#REF!+#REF!+#REF!+#REF!+#REF!+#REF!+#REF!+#REF!+#REF!+#REF!+#REF!+#REF!+#REF!+#REF!+#REF!+#REF!+Feb_Williams!E38+#REF!+#REF!+#REF! ->  | F38: =#REF!*0.5 ->  | G38: =#REF!+#REF!+#REF!+#REF!+#REF!+#REF!+#REF!+#REF!+#REF!+#REF!+#REF!+#REF!+#REF!+#REF!+#REF!+#REF!+#REF!+#REF!+#REF!+#REF!+#REF!+#REF!+#REF!+#REF!+#REF!+#REF!+#REF!+#REF!+#REF!+#REF!+#REF!+Feb_Williams!G38+#REF! ->  | H38: =#REF!+#REF!+#REF!+#REF!+#REF!+#REF!+#REF!+#REF!+#REF!+#REF!+#REF!+#REF!+#REF!+#REF!+#REF!+#REF!+#REF!+#REF!+#REF!+#REF!+#REF!+#REF!+#REF!+#REF!+#REF!+#REF!+#REF!+#REF!+#REF!+#REF!+#REF!+Feb_Williams!H38+#REF!+#REF!+#REF! ->  | I38: =#REF!+#REF!+#REF!+#REF!+#REF!+#REF!+#REF!+#REF!+#REF!+#REF!+#REF!+#REF!+#REF!+#REF!+#REF!+#REF!+#REF!+#REF!+#REF!+#REF!+#REF!+#REF!+#REF!+#REF!+#REF!+#REF!+#REF!+#REF!+#REF!+#REF!+#REF!+Feb_Williams!I38+#REF!+#REF!+#REF! ->  | J38: =#REF!+#REF!+#REF!+#REF!+#REF!+#REF!+#REF!+#REF!+#REF!+#REF!+#REF!+#REF!+#REF!+#REF!+#REF!+#REF!+#REF!+#REF!+#REF!+#REF!+#REF!+#REF!+#REF!+#REF!+#REF!+#REF!+#REF!+#REF!+#REF!+#REF!+#REF!+Feb_Williams!J38+#REF!+#REF!+#REF! ->  | K38: =#REF!*0.5 ->  | L38: =#REF!+#REF!+#REF!+#REF!+#REF!+#REF!+#REF!+#REF!+#REF!+#REF!+#REF!+#REF!+#REF!+#REF!+#REF!+#REF!+#REF!+#REF!+#REF!+#REF!+#REF!+#REF!+#REF!+#REF!+#REF!+#REF!+#REF!+#REF!+#REF!+#REF!+#REF!+Feb_Williams!L38+#REF! ->  | O38: =#REF!+#REF!+#REF!+#REF!+#REF!+#REF!+#REF!+#REF!+#REF!+#REF!+#REF!+#REF!+#REF!+#REF!+#REF!+#REF!+#REF!+#REF!+#REF!+#REF!+#REF!+#REF!+#REF!+#REF!+#REF!+#REF!+#REF!+#REF!+#REF!+#REF!+#REF!+Feb_Williams!O38+#REF! ->  | P38: =#REF!*0.5 ->  | Q38: =#REF!+#REF!+#REF!+#REF!+#REF!+#REF!+#REF!+#REF!+#REF!+#REF!+#REF!+#REF!+#REF!+#REF!+#REF!+#REF!+#REF!+#REF!+#REF!+#REF!+#REF!+#REF!+#REF!+#REF!+#REF!+#REF!+#REF!+#REF!+#REF!+#REF!+#REF!+Feb_Williams!Q38+#REF! ->  | T38: =#REF!+#REF!+#REF!+#REF!+#REF!+#REF!+#REF!+#REF!+#REF!+#REF!+#REF!+#REF!+#REF!+#REF!+#REF!+#REF!+#REF!+#REF!+#REF!+#REF!+#REF!+#REF!+#REF!+#REF!+#REF!+#REF!+#REF!+#REF!+#REF!+#REF!+#REF!+Feb_Williams!T38+#REF! ->  | U38: =#REF!*0.5 ->  | V38: =#REF!+#REF!+#REF!+#REF!+#REF!+#REF!+#REF!+#REF!+#REF!+#REF!+#REF!+#REF!+#REF!+#REF!+#REF!+#REF!+#REF!+#REF!+#REF!+#REF!+#REF!+#REF!+#REF!+#REF!+#REF!+#REF!+#REF!+#REF!+#REF!+#REF!+#REF!+Feb_Williams!V38+#REF! ->  | W38: =#REF!+#REF!+#REF!+#REF!+#REF!+#REF!+#REF!+#REF!+#REF!+#REF!+#REF!+#REF!+#REF!+#REF!+#REF!+#REF!+#REF!+#REF!+#REF!+#REF!+#REF!+#REF!+#REF!+#REF!+#REF!+#REF!+#REF!+#REF!+#REF!+#REF!+#REF!+Feb_Williams!W38+#REF! ->  | X38: =#REF!*0.5 ->  | Y38: =#REF!+#REF!+#REF!+#REF!+#REF!+#REF!+#REF!+#REF!+#REF!+#REF!+#REF!+#REF!+#REF!+#REF!+#REF!+#REF!+#REF!+#REF!+#REF!+#REF!+#REF!+#REF!+#REF!+#REF!+#REF!+#REF!+#REF!+#REF!+#REF!+#REF!+#REF!+Feb_Williams!Y38+#REF! -> 
A39: 33 | B39: Madison | C39: =#REF!+#REF!+#REF!+#REF!+#REF!+#REF!+#REF!+#REF!+#REF!+#REF!+#REF!+#REF!+#REF!+#REF!+#REF!+#REF!+#REF!+#REF!+#REF!+#REF!+#REF!+#REF!+#REF!+#REF!+#REF!+#REF!+#REF!+#REF!+#REF!+#REF!+#REF!+Feb_Williams!C39+#REF!+#REF!+#REF! ->  | D39: =#REF!+#REF!+#REF!+#REF!+#REF!+#REF!+#REF!+#REF!+#REF!+#REF!+#REF!+#REF!+#REF!+#REF!+#REF!+#REF!+#REF!+#REF!+#REF!+#REF!+#REF!+#REF!+#REF!+#REF!+#REF!+#REF!+#REF!+#REF!+#REF!+#REF!+#REF!+Feb_Williams!D39+#REF!+#REF!+#REF! ->  | E39: =#REF!+#REF!+#REF!+#REF!+#REF!+#REF!+#REF!+#REF!+#REF!+#REF!+#REF!+#REF!+#REF!+#REF!+#REF!+#REF!+#REF!+#REF!+#REF!+#REF!+#REF!+#REF!+#REF!+#REF!+#REF!+#REF!+#REF!+#REF!+#REF!+#REF!+#REF!+Feb_Williams!E39+#REF!+#REF!+#REF! ->  | F39: =#REF!*0.5 ->  | G39: =#REF!+#REF!+#REF!+#REF!+#REF!+#REF!+#REF!+#REF!+#REF!+#REF!+#REF!+#REF!+#REF!+#REF!+#REF!+#REF!+#REF!+#REF!+#REF!+#REF!+#REF!+#REF!+#REF!+#REF!+#REF!+#REF!+#REF!+#REF!+#REF!+#REF!+#REF!+Feb_Williams!G39+#REF! ->  | H39: =#REF!+#REF!+#REF!+#REF!+#REF!+#REF!+#REF!+#REF!+#REF!+#REF!+#REF!+#REF!+#REF!+#REF!+#REF!+#REF!+#REF!+#REF!+#REF!+#REF!+#REF!+#REF!+#REF!+#REF!+#REF!+#REF!+#REF!+#REF!+#REF!+#REF!+#REF!+Feb_Williams!H39+#REF!+#REF!+#REF! ->  | I39: =#REF!+#REF!+#REF!+#REF!+#REF!+#REF!+#REF!+#REF!+#REF!+#REF!+#REF!+#REF!+#REF!+#REF!+#REF!+#REF!+#REF!+#REF!+#REF!+#REF!+#REF!+#REF!+#REF!+#REF!+#REF!+#REF!+#REF!+#REF!+#REF!+#REF!+#REF!+Feb_Williams!I39+#REF!+#REF!+#REF! ->  | J39: =#REF!+#REF!+#REF!+#REF!+#REF!+#REF!+#REF!+#REF!+#REF!+#REF!+#REF!+#REF!+#REF!+#REF!+#REF!+#REF!+#REF!+#REF!+#REF!+#REF!+#REF!+#REF!+#REF!+#REF!+#REF!+#REF!+#REF!+#REF!+#REF!+#REF!+#REF!+Feb_Williams!J39+#REF!+#REF!+#REF! ->  | K39: =#REF!*0.5 ->  | L39: =#REF!+#REF!+#REF!+#REF!+#REF!+#REF!+#REF!+#REF!+#REF!+#REF!+#REF!+#REF!+#REF!+#REF!+#REF!+#REF!+#REF!+#REF!+#REF!+#REF!+#REF!+#REF!+#REF!+#REF!+#REF!+#REF!+#REF!+#REF!+#REF!+#REF!+#REF!+Feb_Williams!L39+#REF! ->  | O39: =#REF!+#REF!+#REF!+#REF!+#REF!+#REF!+#REF!+#REF!+#REF!+#REF!+#REF!+#REF!+#REF!+#REF!+#REF!+#REF!+#REF!+#REF!+#REF!+#REF!+#REF!+#REF!+#REF!+#REF!+#REF!+#REF!+#REF!+#REF!+#REF!+#REF!+#REF!+Feb_Williams!O39+#REF! ->  | P39: =#REF!*0.5 ->  | Q39: =#REF!+#REF!+#REF!+#REF!+#REF!+#REF!+#REF!+#REF!+#REF!+#REF!+#REF!+#REF!+#REF!+#REF!+#REF!+#REF!+#REF!+#REF!+#REF!+#REF!+#REF!+#REF!+#REF!+#REF!+#REF!+#REF!+#REF!+#REF!+#REF!+#REF!+#REF!+Feb_Williams!Q39+#REF! ->  | T39: =#REF!+#REF!+#REF!+#REF!+#REF!+#REF!+#REF!+#REF!+#REF!+#REF!+#REF!+#REF!+#REF!+#REF!+#REF!+#REF!+#REF!+#REF!+#REF!+#REF!+#REF!+#REF!+#REF!+#REF!+#REF!+#REF!+#REF!+#REF!+#REF!+#REF!+#REF!+Feb_Williams!T39+#REF! ->  | U39: =#REF!*0.5 ->  | V39: =#REF!+#REF!+#REF!+#REF!+#REF!+#REF!+#REF!+#REF!+#REF!+#REF!+#REF!+#REF!+#REF!+#REF!+#REF!+#REF!+#REF!+#REF!+#REF!+#REF!+#REF!+#REF!+#REF!+#REF!+#REF!+#REF!+#REF!+#REF!+#REF!+#REF!+#REF!+Feb_Williams!V39+#REF! ->  | W39: =#REF!+#REF!+#REF!+#REF!+#REF!+#REF!+#REF!+#REF!+#REF!+#REF!+#REF!+#REF!+#REF!+#REF!+#REF!+#REF!+#REF!+#REF!+#REF!+#REF!+#REF!+#REF!+#REF!+#REF!+#REF!+#REF!+#REF!+#REF!+#REF!+#REF!+#REF!+Feb_Williams!W39+#REF! ->  | X39: =#REF!*0.5 ->  | Y39: =#REF!+#REF!+#REF!+#REF!+#REF!+#REF!+#REF!+#REF!+#REF!+#REF!+#REF!+#REF!+#REF!+#REF!+#REF!+#REF!+#REF!+#REF!+#REF!+#REF!+#REF!+#REF!+#REF!+#REF!+#REF!+#REF!+#REF!+#REF!+#REF!+#REF!+#REF!+Feb_Williams!Y39+#REF! -> 
A40: 34 | B40: Morehouse | C40: =#REF!+#REF!+#REF!+#REF!+#REF!+#REF!+#REF!+#REF!+#REF!+#REF!+#REF!+#REF!+#REF!+#REF!+#REF!+#REF!+#REF!+#REF!+#REF!+#REF!+#REF!+#REF!+#REF!+#REF!+#REF!+#REF!+#REF!+#REF!+#REF!+#REF!+#REF!+Feb_Williams!C40+#REF!+#REF!+#REF! ->  | D40: =#REF!+#REF!+#REF!+#REF!+#REF!+#REF!+#REF!+#REF!+#REF!+#REF!+#REF!+#REF!+#REF!+#REF!+#REF!+#REF!+#REF!+#REF!+#REF!+#REF!+#REF!+#REF!+#REF!+#REF!+#REF!+#REF!+#REF!+#REF!+#REF!+#REF!+#REF!+Feb_Williams!D40+#REF!+#REF!+#REF! ->  | E40: =#REF!+#REF!+#REF!+#REF!+#REF!+#REF!+#REF!+#REF!+#REF!+#REF!+#REF!+#REF!+#REF!+#REF!+#REF!+#REF!+#REF!+#REF!+#REF!+#REF!+#REF!+#REF!+#REF!+#REF!+#REF!+#REF!+#REF!+#REF!+#REF!+#REF!+#REF!+Feb_Williams!E40+#REF!+#REF!+#REF! ->  | F40: =#REF!*0.5 ->  | G40: =#REF!+#REF!+#REF!+#REF!+#REF!+#REF!+#REF!+#REF!+#REF!+#REF!+#REF!+#REF!+#REF!+#REF!+#REF!+#REF!+#REF!+#REF!+#REF!+#REF!+#REF!+#REF!+#REF!+#REF!+#REF!+#REF!+#REF!+#REF!+#REF!+#REF!+#REF!+Feb_Williams!G40+#REF! ->  | H40: =#REF!+#REF!+#REF!+#REF!+#REF!+#REF!+#REF!+#REF!+#REF!+#REF!+#REF!+#REF!+#REF!+#REF!+#REF!+#REF!+#REF!+#REF!+#REF!+#REF!+#REF!+#REF!+#REF!+#REF!+#REF!+#REF!+#REF!+#REF!+#REF!+#REF!+#REF!+Feb_Williams!H40+#REF!+#REF!+#REF! ->  | I40: =#REF!+#REF!+#REF!+#REF!+#REF!+#REF!+#REF!+#REF!+#REF!+#REF!+#REF!+#REF!+#REF!+#REF!+#REF!+#REF!+#REF!+#REF!+#REF!+#REF!+#REF!+#REF!+#REF!+#REF!+#REF!+#REF!+#REF!+#REF!+#REF!+#REF!+#REF!+Feb_Williams!I40+#REF!+#REF!+#REF! ->  | J40: =#REF!+#REF!+#REF!+#REF!+#REF!+#REF!+#REF!+#REF!+#REF!+#REF!+#REF!+#REF!+#REF!+#REF!+#REF!+#REF!+#REF!+#REF!+#REF!+#REF!+#REF!+#REF!+#REF!+#REF!+#REF!+#REF!+#REF!+#REF!+#REF!+#REF!+#REF!+Feb_Williams!J40+#REF!+#REF!+#REF! ->  | K40: =#REF!*0.5 ->  | L40: =#REF!+#REF!+#REF!+#REF!+#REF!+#REF!+#REF!+#REF!+#REF!+#REF!+#REF!+#REF!+#REF!+#REF!+#REF!+#REF!+#REF!+#REF!+#REF!+#REF!+#REF!+#REF!+#REF!+#REF!+#REF!+#REF!+#REF!+#REF!+#REF!+#REF!+#REF!+Feb_Williams!L40+#REF! ->  | O40: =#REF!+#REF!+#REF!+#REF!+#REF!+#REF!+#REF!+#REF!+#REF!+#REF!+#REF!+#REF!+#REF!+#REF!+#REF!+#REF!+#REF!+#REF!+#REF!+#REF!+#REF!+#REF!+#REF!+#REF!+#REF!+#REF!+#REF!+#REF!+#REF!+#REF!+#REF!+Feb_Williams!O40+#REF! ->  | P40: =#REF!*0.5 ->  | Q40: =#REF!+#REF!+#REF!+#REF!+#REF!+#REF!+#REF!+#REF!+#REF!+#REF!+#REF!+#REF!+#REF!+#REF!+#REF!+#REF!+#REF!+#REF!+#REF!+#REF!+#REF!+#REF!+#REF!+#REF!+#REF!+#REF!+#REF!+#REF!+#REF!+#REF!+#REF!+Feb_Williams!Q40+#REF! ->  | T40: =#REF!+#REF!+#REF!+#REF!+#REF!+#REF!+#REF!+#REF!+#REF!+#REF!+#REF!+#REF!+#REF!+#REF!+#REF!+#REF!+#REF!+#REF!+#REF!+#REF!+#REF!+#REF!+#REF!+#REF!+#REF!+#REF!+#REF!+#REF!+#REF!+#REF!+#REF!+Feb_Williams!T40+#REF! ->  | U40: =#REF!*0.5 ->  | V40: =#REF!+#REF!+#REF!+#REF!+#REF!+#REF!+#REF!+#REF!+#REF!+#REF!+#REF!+#REF!+#REF!+#REF!+#REF!+#REF!+#REF!+#REF!+#REF!+#REF!+#REF!+#REF!+#REF!+#REF!+#REF!+#REF!+#REF!+#REF!+#REF!+#REF!+#REF!+Feb_Williams!V40+#REF! ->  | W40: =#REF!+#REF!+#REF!+#REF!+#REF!+#REF!+#REF!+#REF!+#REF!+#REF!+#REF!+#REF!+#REF!+#REF!+#REF!+#REF!+#REF!+#REF!+#REF!+#REF!+#REF!+#REF!+#REF!+#REF!+#REF!+#REF!+#REF!+#REF!+#REF!+#REF!+#REF!+Feb_Williams!W40+#REF! ->  | X40: =#REF!*0.5 ->  | Y40: =#REF!+#REF!+#REF!+#REF!+#REF!+#REF!+#REF!+#REF!+#REF!+#REF!+#REF!+#REF!+#REF!+#REF!+#REF!+#REF!+#REF!+#REF!+#REF!+#REF!+#REF!+#REF!+#REF!+#REF!+#REF!+#REF!+#REF!+#REF!+#REF!+#REF!+#REF!+Feb_Williams!Y40+#REF! -> 
A41: 35 | B41: Natchitoches | C41: =#REF!+#REF!+#REF!+#REF!+#REF!+#REF!+#REF!+#REF!+#REF!+#REF!+#REF!+#REF!+#REF!+#REF!+#REF!+#REF!+#REF!+#REF!+#REF!+#REF!+#REF!+#REF!+#REF!+#REF!+#REF!+#REF!+#REF!+#REF!+#REF!+#REF!+#REF!+Feb_Williams!C41+#REF!+#REF!+#REF! ->  | D41: =#REF!+#REF!+#REF!+#REF!+#REF!+#REF!+#REF!+#REF!+#REF!+#REF!+#REF!+#REF!+#REF!+#REF!+#REF!+#REF!+#REF!+#REF!+#REF!+#REF!+#REF!+#REF!+#REF!+#REF!+#REF!+#REF!+#REF!+#REF!+#REF!+#REF!+#REF!+Feb_Williams!D41+#REF!+#REF!+#REF! ->  | E41: =#REF!+#REF!+#REF!+#REF!+#REF!+#REF!+#REF!+#REF!+#REF!+#REF!+#REF!+#REF!+#REF!+#REF!+#REF!+#REF!+#REF!+#REF!+#REF!+#REF!+#REF!+#REF!+#REF!+#REF!+#REF!+#REF!+#REF!+#REF!+#REF!+#REF!+#REF!+Feb_Williams!E41+#REF!+#REF!+#REF! ->  | F41: =#REF!*0.5 ->  | G41: =#REF!+#REF!+#REF!+#REF!+#REF!+#REF!+#REF!+#REF!+#REF!+#REF!+#REF!+#REF!+#REF!+#REF!+#REF!+#REF!+#REF!+#REF!+#REF!+#REF!+#REF!+#REF!+#REF!+#REF!+#REF!+#REF!+#REF!+#REF!+#REF!+#REF!+#REF!+Feb_Williams!G41+#REF! ->  | H41: =#REF!+#REF!+#REF!+#REF!+#REF!+#REF!+#REF!+#REF!+#REF!+#REF!+#REF!+#REF!+#REF!+#REF!+#REF!+#REF!+#REF!+#REF!+#REF!+#REF!+#REF!+#REF!+#REF!+#REF!+#REF!+#REF!+#REF!+#REF!+#REF!+#REF!+#REF!+Feb_Williams!H41+#REF!+#REF!+#REF! ->  | I41: =#REF!+#REF!+#REF!+#REF!+#REF!+#REF!+#REF!+#REF!+#REF!+#REF!+#REF!+#REF!+#REF!+#REF!+#REF!+#REF!+#REF!+#REF!+#REF!+#REF!+#REF!+#REF!+#REF!+#REF!+#REF!+#REF!+#REF!+#REF!+#REF!+#REF!+#REF!+Feb_Williams!I41+#REF!+#REF!+#REF! ->  | J41: =#REF!+#REF!+#REF!+#REF!+#REF!+#REF!+#REF!+#REF!+#REF!+#REF!+#REF!+#REF!+#REF!+#REF!+#REF!+#REF!+#REF!+#REF!+#REF!+#REF!+#REF!+#REF!+#REF!+#REF!+#REF!+#REF!+#REF!+#REF!+#REF!+#REF!+#REF!+Feb_Williams!J41+#REF!+#REF!+#REF! ->  | K41: =#REF!*0.5 ->  | L41: =#REF!+#REF!+#REF!+#REF!+#REF!+#REF!+#REF!+#REF!+#REF!+#REF!+#REF!+#REF!+#REF!+#REF!+#REF!+#REF!+#REF!+#REF!+#REF!+#REF!+#REF!+#REF!+#REF!+#REF!+#REF!+#REF!+#REF!+#REF!+#REF!+#REF!+#REF!+Feb_Williams!L41+#REF! ->  | O41: =#REF!+#REF!+#REF!+#REF!+#REF!+#REF!+#REF!+#REF!+#REF!+#REF!+#REF!+#REF!+#REF!+#REF!+#REF!+#REF!+#REF!+#REF!+#REF!+#REF!+#REF!+#REF!+#REF!+#REF!+#REF!+#REF!+#REF!+#REF!+#REF!+#REF!+#REF!+Feb_Williams!O41+#REF! ->  | P41: =#REF!*0.5 ->  | Q41: =#REF!+#REF!+#REF!+#REF!+#REF!+#REF!+#REF!+#REF!+#REF!+#REF!+#REF!+#REF!+#REF!+#REF!+#REF!+#REF!+#REF!+#REF!+#REF!+#REF!+#REF!+#REF!+#REF!+#REF!+#REF!+#REF!+#REF!+#REF!+#REF!+#REF!+#REF!+Feb_Williams!Q41+#REF! ->  | T41: =#REF!+#REF!+#REF!+#REF!+#REF!+#REF!+#REF!+#REF!+#REF!+#REF!+#REF!+#REF!+#REF!+#REF!+#REF!+#REF!+#REF!+#REF!+#REF!+#REF!+#REF!+#REF!+#REF!+#REF!+#REF!+#REF!+#REF!+#REF!+#REF!+#REF!+#REF!+Feb_Williams!T41+#REF! ->  | U41: =#REF!*0.5 ->  | V41: =#REF!+#REF!+#REF!+#REF!+#REF!+#REF!+#REF!+#REF!+#REF!+#REF!+#REF!+#REF!+#REF!+#REF!+#REF!+#REF!+#REF!+#REF!+#REF!+#REF!+#REF!+#REF!+#REF!+#REF!+#REF!+#REF!+#REF!+#REF!+#REF!+#REF!+#REF!+Feb_Williams!V41+#REF! ->  | W41: =#REF!+#REF!+#REF!+#REF!+#REF!+#REF!+#REF!+#REF!+#REF!+#REF!+#REF!+#REF!+#REF!+#REF!+#REF!+#REF!+#REF!+#REF!+#REF!+#REF!+#REF!+#REF!+#REF!+#REF!+#REF!+#REF!+#REF!+#REF!+#REF!+#REF!+#REF!+Feb_Williams!W41+#REF! ->  | X41: =#REF!*0.5 ->  | Y41: =#REF!+#REF!+#REF!+#REF!+#REF!+#REF!+#REF!+#REF!+#REF!+#REF!+#REF!+#REF!+#REF!+#REF!+#REF!+#REF!+#REF!+#REF!+#REF!+#REF!+#REF!+#REF!+#REF!+#REF!+#REF!+#REF!+#REF!+#REF!+#REF!+#REF!+#REF!+Feb_Williams!Y41+#REF! -> 
A42: 36 | B42: Orleans | C42: =#REF!+#REF!+#REF!+#REF!+#REF!+#REF!+#REF!+#REF!+#REF!+#REF!+#REF!+#REF!+#REF!+#REF!+#REF!+#REF!+#REF!+#REF!+#REF!+#REF!+#REF!+#REF!+#REF!+#REF!+#REF!+#REF!+#REF!+#REF!+#REF!+#REF!+#REF!+Feb_Williams!C42+#REF!+#REF!+#REF! ->  | D42: =#REF!+#REF!+#REF!+#REF!+#REF!+#REF!+#REF!+#REF!+#REF!+#REF!+#REF!+#REF!+#REF!+#REF!+#REF!+#REF!+#REF!+#REF!+#REF!+#REF!+#REF!+#REF!+#REF!+#REF!+#REF!+#REF!+#REF!+#REF!+#REF!+#REF!+#REF!+Feb_Williams!D42+#REF!+#REF!+#REF! ->  | E42: =#REF!+#REF!+#REF!+#REF!+#REF!+#REF!+#REF!+#REF!+#REF!+#REF!+#REF!+#REF!+#REF!+#REF!+#REF!+#REF!+#REF!+#REF!+#REF!+#REF!+#REF!+#REF!+#REF!+#REF!+#REF!+#REF!+#REF!+#REF!+#REF!+#REF!+#REF!+Feb_Williams!E42+#REF!+#REF!+#REF! ->  | F42: =#REF!*0.5 ->  | G42: =#REF!+#REF!+#REF!+#REF!+#REF!+#REF!+#REF!+#REF!+#REF!+#REF!+#REF!+#REF!+#REF!+#REF!+#REF!+#REF!+#REF!+#REF!+#REF!+#REF!+#REF!+#REF!+#REF!+#REF!+#REF!+#REF!+#REF!+#REF!+#REF!+#REF!+#REF!+Feb_Williams!G42+#REF! ->  | H42: =#REF!+#REF!+#REF!+#REF!+#REF!+#REF!+#REF!+#REF!+#REF!+#REF!+#REF!+#REF!+#REF!+#REF!+#REF!+#REF!+#REF!+#REF!+#REF!+#REF!+#REF!+#REF!+#REF!+#REF!+#REF!+#REF!+#REF!+#REF!+#REF!+#REF!+#REF!+Feb_Williams!H42+#REF!+#REF!+#REF! ->  | I42: =#REF!+#REF!+#REF!+#REF!+#REF!+#REF!+#REF!+#REF!+#REF!+#REF!+#REF!+#REF!+#REF!+#REF!+#REF!+#REF!+#REF!+#REF!+#REF!+#REF!+#REF!+#REF!+#REF!+#REF!+#REF!+#REF!+#REF!+#REF!+#REF!+#REF!+#REF!+Feb_Williams!I42+#REF!+#REF!+#REF! ->  | J42: =#REF!+#REF!+#REF!+#REF!+#REF!+#REF!+#REF!+#REF!+#REF!+#REF!+#REF!+#REF!+#REF!+#REF!+#REF!+#REF!+#REF!+#REF!+#REF!+#REF!+#REF!+#REF!+#REF!+#REF!+#REF!+#REF!+#REF!+#REF!+#REF!+#REF!+#REF!+Feb_Williams!J42+#REF!+#REF!+#REF! ->  | K42: =#REF!*0.5 ->  | L42: =#REF!+#REF!+#REF!+#REF!+#REF!+#REF!+#REF!+#REF!+#REF!+#REF!+#REF!+#REF!+#REF!+#REF!+#REF!+#REF!+#REF!+#REF!+#REF!+#REF!+#REF!+#REF!+#REF!+#REF!+#REF!+#REF!+#REF!+#REF!+#REF!+#REF!+#REF!+Feb_Williams!L42+#REF! ->  | O42: =#REF!+#REF!+#REF!+#REF!+#REF!+#REF!+#REF!+#REF!+#REF!+#REF!+#REF!+#REF!+#REF!+#REF!+#REF!+#REF!+#REF!+#REF!+#REF!+#REF!+#REF!+#REF!+#REF!+#REF!+#REF!+#REF!+#REF!+#REF!+#REF!+#REF!+#REF!+Feb_Williams!O42+#REF! ->  | P42: =#REF!*0.5 ->  | Q42: =#REF!+#REF!+#REF!+#REF!+#REF!+#REF!+#REF!+#REF!+#REF!+#REF!+#REF!+#REF!+#REF!+#REF!+#REF!+#REF!+#REF!+#REF!+#REF!+#REF!+#REF!+#REF!+#REF!+#REF!+#REF!+#REF!+#REF!+#REF!+#REF!+#REF!+#REF!+Feb_Williams!Q42+#REF! ->  | T42: =#REF!+#REF!+#REF!+#REF!+#REF!+#REF!+#REF!+#REF!+#REF!+#REF!+#REF!+#REF!+#REF!+#REF!+#REF!+#REF!+#REF!+#REF!+#REF!+#REF!+#REF!+#REF!+#REF!+#REF!+#REF!+#REF!+#REF!+#REF!+#REF!+#REF!+#REF!+Feb_Williams!T42+#REF! ->  | U42: =#REF!*0.5 ->  | V42: =#REF!+#REF!+#REF!+#REF!+#REF!+#REF!+#REF!+#REF!+#REF!+#REF!+#REF!+#REF!+#REF!+#REF!+#REF!+#REF!+#REF!+#REF!+#REF!+#REF!+#REF!+#REF!+#REF!+#REF!+#REF!+#REF!+#REF!+#REF!+#REF!+#REF!+#REF!+Feb_Williams!V42+#REF! ->  | W42: =#REF!+#REF!+#REF!+#REF!+#REF!+#REF!+#REF!+#REF!+#REF!+#REF!+#REF!+#REF!+#REF!+#REF!+#REF!+#REF!+#REF!+#REF!+#REF!+#REF!+#REF!+#REF!+#REF!+#REF!+#REF!+#REF!+#REF!+#REF!+#REF!+#REF!+#REF!+Feb_Williams!W42+#REF! ->  | X42: =#REF!*0.5 ->  | Y42: =#REF!+#REF!+#REF!+#REF!+#REF!+#REF!+#REF!+#REF!+#REF!+#REF!+#REF!+#REF!+#REF!+#REF!+#REF!+#REF!+#REF!+#REF!+#REF!+#REF!+#REF!+#REF!+#REF!+#REF!+#REF!+#REF!+#REF!+#REF!+#REF!+#REF!+#REF!+Feb_Williams!Y42+#REF! -> 
A43: 37 | B43: Ouachita | C43: =#REF!+#REF!+#REF!+#REF!+#REF!+#REF!+#REF!+#REF!+#REF!+#REF!+#REF!+#REF!+#REF!+#REF!+#REF!+#REF!+#REF!+#REF!+#REF!+#REF!+#REF!+#REF!+#REF!+#REF!+#REF!+#REF!+#REF!+#REF!+#REF!+#REF!+#REF!+Feb_Williams!C43+#REF!+#REF!+#REF! ->  | D43: =#REF!+#REF!+#REF!+#REF!+#REF!+#REF!+#REF!+#REF!+#REF!+#REF!+#REF!+#REF!+#REF!+#REF!+#REF!+#REF!+#REF!+#REF!+#REF!+#REF!+#REF!+#REF!+#REF!+#REF!+#REF!+#REF!+#REF!+#REF!+#REF!+#REF!+#REF!+Feb_Williams!D43+#REF!+#REF!+#REF! ->  | E43: =#REF!+#REF!+#REF!+#REF!+#REF!+#REF!+#REF!+#REF!+#REF!+#REF!+#REF!+#REF!+#REF!+#REF!+#REF!+#REF!+#REF!+#REF!+#REF!+#REF!+#REF!+#REF!+#REF!+#REF!+#REF!+#REF!+#REF!+#REF!+#REF!+#REF!+#REF!+Feb_Williams!E43+#REF!+#REF!+#REF! ->  | F43: =#REF!*0.5 ->  | G43: =#REF!+#REF!+#REF!+#REF!+#REF!+#REF!+#REF!+#REF!+#REF!+#REF!+#REF!+#REF!+#REF!+#REF!+#REF!+#REF!+#REF!+#REF!+#REF!+#REF!+#REF!+#REF!+#REF!+#REF!+#REF!+#REF!+#REF!+#REF!+#REF!+#REF!+#REF!+Feb_Williams!G43+#REF! ->  | H43: =#REF!+#REF!+#REF!+#REF!+#REF!+#REF!+#REF!+#REF!+#REF!+#REF!+#REF!+#REF!+#REF!+#REF!+#REF!+#REF!+#REF!+#REF!+#REF!+#REF!+#REF!+#REF!+#REF!+#REF!+#REF!+#REF!+#REF!+#REF!+#REF!+#REF!+#REF!+Feb_Williams!H43+#REF!+#REF!+#REF! ->  | I43: =#REF!+#REF!+#REF!+#REF!+#REF!+#REF!+#REF!+#REF!+#REF!+#REF!+#REF!+#REF!+#REF!+#REF!+#REF!+#REF!+#REF!+#REF!+#REF!+#REF!+#REF!+#REF!+#REF!+#REF!+#REF!+#REF!+#REF!+#REF!+#REF!+#REF!+#REF!+Feb_Williams!I43+#REF!+#REF!+#REF! ->  | J43: =#REF!+#REF!+#REF!+#REF!+#REF!+#REF!+#REF!+#REF!+#REF!+#REF!+#REF!+#REF!+#REF!+#REF!+#REF!+#REF!+#REF!+#REF!+#REF!+#REF!+#REF!+#REF!+#REF!+#REF!+#REF!+#REF!+#REF!+#REF!+#REF!+#REF!+#REF!+Feb_Williams!J43+#REF!+#REF!+#REF! ->  | K43: =#REF!*0.5 ->  | L43: =#REF!+#REF!+#REF!+#REF!+#REF!+#REF!+#REF!+#REF!+#REF!+#REF!+#REF!+#REF!+#REF!+#REF!+#REF!+#REF!+#REF!+#REF!+#REF!+#REF!+#REF!+#REF!+#REF!+#REF!+#REF!+#REF!+#REF!+#REF!+#REF!+#REF!+#REF!+Feb_Williams!L43+#REF! ->  | O43: =#REF!+#REF!+#REF!+#REF!+#REF!+#REF!+#REF!+#REF!+#REF!+#REF!+#REF!+#REF!+#REF!+#REF!+#REF!+#REF!+#REF!+#REF!+#REF!+#REF!+#REF!+#REF!+#REF!+#REF!+#REF!+#REF!+#REF!+#REF!+#REF!+#REF!+#REF!+Feb_Williams!O43+#REF! ->  | P43: =#REF!*0.5 ->  | Q43: =#REF!+#REF!+#REF!+#REF!+#REF!+#REF!+#REF!+#REF!+#REF!+#REF!+#REF!+#REF!+#REF!+#REF!+#REF!+#REF!+#REF!+#REF!+#REF!+#REF!+#REF!+#REF!+#REF!+#REF!+#REF!+#REF!+#REF!+#REF!+#REF!+#REF!+#REF!+Feb_Williams!Q43+#REF! ->  | T43: =#REF!+#REF!+#REF!+#REF!+#REF!+#REF!+#REF!+#REF!+#REF!+#REF!+#REF!+#REF!+#REF!+#REF!+#REF!+#REF!+#REF!+#REF!+#REF!+#REF!+#REF!+#REF!+#REF!+#REF!+#REF!+#REF!+#REF!+#REF!+#REF!+#REF!+#REF!+Feb_Williams!T43+#REF! ->  | U43: =#REF!*0.5 ->  | V43: =#REF!+#REF!+#REF!+#REF!+#REF!+#REF!+#REF!+#REF!+#REF!+#REF!+#REF!+#REF!+#REF!+#REF!+#REF!+#REF!+#REF!+#REF!+#REF!+#REF!+#REF!+#REF!+#REF!+#REF!+#REF!+#REF!+#REF!+#REF!+#REF!+#REF!+#REF!+Feb_Williams!V43+#REF! ->  | W43: =#REF!+#REF!+#REF!+#REF!+#REF!+#REF!+#REF!+#REF!+#REF!+#REF!+#REF!+#REF!+#REF!+#REF!+#REF!+#REF!+#REF!+#REF!+#REF!+#REF!+#REF!+#REF!+#REF!+#REF!+#REF!+#REF!+#REF!+#REF!+#REF!+#REF!+#REF!+Feb_Williams!W43+#REF! ->  | X43: =#REF!*0.5 ->  | Y43: =#REF!+#REF!+#REF!+#REF!+#REF!+#REF!+#REF!+#REF!+#REF!+#REF!+#REF!+#REF!+#REF!+#REF!+#REF!+#REF!+#REF!+#REF!+#REF!+#REF!+#REF!+#REF!+#REF!+#REF!+#REF!+#REF!+#REF!+#REF!+#REF!+#REF!+#REF!+Feb_Williams!Y43+#REF! -> 
A44: 38 | B44: Plaquemines | C44: =#REF!+#REF!+#REF!+#REF!+#REF!+#REF!+#REF!+#REF!+#REF!+#REF!+#REF!+#REF!+#REF!+#REF!+#REF!+#REF!+#REF!+#REF!+#REF!+#REF!+#REF!+#REF!+#REF!+#REF!+#REF!+#REF!+#REF!+#REF!+#REF!+#REF!+#REF!+Feb_Williams!C44+#REF!+#REF!+#REF! ->  | D44: =#REF!+#REF!+#REF!+#REF!+#REF!+#REF!+#REF!+#REF!+#REF!+#REF!+#REF!+#REF!+#REF!+#REF!+#REF!+#REF!+#REF!+#REF!+#REF!+#REF!+#REF!+#REF!+#REF!+#REF!+#REF!+#REF!+#REF!+#REF!+#REF!+#REF!+#REF!+Feb_Williams!D44+#REF!+#REF!+#REF! ->  | E44: =#REF!+#REF!+#REF!+#REF!+#REF!+#REF!+#REF!+#REF!+#REF!+#REF!+#REF!+#REF!+#REF!+#REF!+#REF!+#REF!+#REF!+#REF!+#REF!+#REF!+#REF!+#REF!+#REF!+#REF!+#REF!+#REF!+#REF!+#REF!+#REF!+#REF!+#REF!+Feb_Williams!E44+#REF!+#REF!+#REF! ->  | F44: =#REF!*0.5 ->  | G44: =#REF!+#REF!+#REF!+#REF!+#REF!+#REF!+#REF!+#REF!+#REF!+#REF!+#REF!+#REF!+#REF!+#REF!+#REF!+#REF!+#REF!+#REF!+#REF!+#REF!+#REF!+#REF!+#REF!+#REF!+#REF!+#REF!+#REF!+#REF!+#REF!+#REF!+#REF!+Feb_Williams!G44+#REF! ->  | H44: =#REF!+#REF!+#REF!+#REF!+#REF!+#REF!+#REF!+#REF!+#REF!+#REF!+#REF!+#REF!+#REF!+#REF!+#REF!+#REF!+#REF!+#REF!+#REF!+#REF!+#REF!+#REF!+#REF!+#REF!+#REF!+#REF!+#REF!+#REF!+#REF!+#REF!+#REF!+Feb_Williams!H44+#REF!+#REF!+#REF! ->  | I44: =#REF!+#REF!+#REF!+#REF!+#REF!+#REF!+#REF!+#REF!+#REF!+#REF!+#REF!+#REF!+#REF!+#REF!+#REF!+#REF!+#REF!+#REF!+#REF!+#REF!+#REF!+#REF!+#REF!+#REF!+#REF!+#REF!+#REF!+#REF!+#REF!+#REF!+#REF!+Feb_Williams!I44+#REF!+#REF!+#REF! ->  | J44: =#REF!+#REF!+#REF!+#REF!+#REF!+#REF!+#REF!+#REF!+#REF!+#REF!+#REF!+#REF!+#REF!+#REF!+#REF!+#REF!+#REF!+#REF!+#REF!+#REF!+#REF!+#REF!+#REF!+#REF!+#REF!+#REF!+#REF!+#REF!+#REF!+#REF!+#REF!+Feb_Williams!J44+#REF!+#REF!+#REF! ->  | K44: =#REF!*0.5 ->  | L44: =#REF!+#REF!+#REF!+#REF!+#REF!+#REF!+#REF!+#REF!+#REF!+#REF!+#REF!+#REF!+#REF!+#REF!+#REF!+#REF!+#REF!+#REF!+#REF!+#REF!+#REF!+#REF!+#REF!+#REF!+#REF!+#REF!+#REF!+#REF!+#REF!+#REF!+#REF!+Feb_Williams!L44+#REF! ->  | O44: =#REF!+#REF!+#REF!+#REF!+#REF!+#REF!+#REF!+#REF!+#REF!+#REF!+#REF!+#REF!+#REF!+#REF!+#REF!+#REF!+#REF!+#REF!+#REF!+#REF!+#REF!+#REF!+#REF!+#REF!+#REF!+#REF!+#REF!+#REF!+#REF!+#REF!+#REF!+Feb_Williams!O44+#REF! ->  | P44: =#REF!*0.5 ->  | Q44: =#REF!+#REF!+#REF!+#REF!+#REF!+#REF!+#REF!+#REF!+#REF!+#REF!+#REF!+#REF!+#REF!+#REF!+#REF!+#REF!+#REF!+#REF!+#REF!+#REF!+#REF!+#REF!+#REF!+#REF!+#REF!+#REF!+#REF!+#REF!+#REF!+#REF!+#REF!+Feb_Williams!Q44+#REF! ->  | T44: =#REF!+#REF!+#REF!+#REF!+#REF!+#REF!+#REF!+#REF!+#REF!+#REF!+#REF!+#REF!+#REF!+#REF!+#REF!+#REF!+#REF!+#REF!+#REF!+#REF!+#REF!+#REF!+#REF!+#REF!+#REF!+#REF!+#REF!+#REF!+#REF!+#REF!+#REF!+Feb_Williams!T44+#REF! ->  | U44: =#REF!*0.5 ->  | V44: =#REF!+#REF!+#REF!+#REF!+#REF!+#REF!+#REF!+#REF!+#REF!+#REF!+#REF!+#REF!+#REF!+#REF!+#REF!+#REF!+#REF!+#REF!+#REF!+#REF!+#REF!+#REF!+#REF!+#REF!+#REF!+#REF!+#REF!+#REF!+#REF!+#REF!+#REF!+Feb_Williams!V44+#REF! ->  | W44: =#REF!+#REF!+#REF!+#REF!+#REF!+#REF!+#REF!+#REF!+#REF!+#REF!+#REF!+#REF!+#REF!+#REF!+#REF!+#REF!+#REF!+#REF!+#REF!+#REF!+#REF!+#REF!+#REF!+#REF!+#REF!+#REF!+#REF!+#REF!+#REF!+#REF!+#REF!+Feb_Williams!W44+#REF! ->  | X44: =#REF!*0.5 ->  | Y44: =#REF!+#REF!+#REF!+#REF!+#REF!+#REF!+#REF!+#REF!+#REF!+#REF!+#REF!+#REF!+#REF!+#REF!+#REF!+#REF!+#REF!+#REF!+#REF!+#REF!+#REF!+#REF!+#REF!+#REF!+#REF!+#REF!+#REF!+#REF!+#REF!+#REF!+#REF!+Feb_Williams!Y44+#REF! -> 
A45: 39 | B45: Pointe Coupee | C45: =#REF!+#REF!+#REF!+#REF!+#REF!+#REF!+#REF!+#REF!+#REF!+#REF!+#REF!+#REF!+#REF!+#REF!+#REF!+#REF!+#REF!+#REF!+#REF!+#REF!+#REF!+#REF!+#REF!+#REF!+#REF!+#REF!+#REF!+#REF!+#REF!+#REF!+#REF!+Feb_Williams!C45+#REF!+#REF!+#REF! ->  | D45: =#REF!+#REF!+#REF!+#REF!+#REF!+#REF!+#REF!+#REF!+#REF!+#REF!+#REF!+#REF!+#REF!+#REF!+#REF!+#REF!+#REF!+#REF!+#REF!+#REF!+#REF!+#REF!+#REF!+#REF!+#REF!+#REF!+#REF!+#REF!+#REF!+#REF!+#REF!+Feb_Williams!D45+#REF!+#REF!+#REF! ->  | E45: =#REF!+#REF!+#REF!+#REF!+#REF!+#REF!+#REF!+#REF!+#REF!+#REF!+#REF!+#REF!+#REF!+#REF!+#REF!+#REF!+#REF!+#REF!+#REF!+#REF!+#REF!+#REF!+#REF!+#REF!+#REF!+#REF!+#REF!+#REF!+#REF!+#REF!+#REF!+Feb_Williams!E45+#REF!+#REF!+#REF! ->  | F45: =#REF!*0.5 ->  | G45: =#REF!+#REF!+#REF!+#REF!+#REF!+#REF!+#REF!+#REF!+#REF!+#REF!+#REF!+#REF!+#REF!+#REF!+#REF!+#REF!+#REF!+#REF!+#REF!+#REF!+#REF!+#REF!+#REF!+#REF!+#REF!+#REF!+#REF!+#REF!+#REF!+#REF!+#REF!+Feb_Williams!G45+#REF! ->  | H45: =#REF!+#REF!+#REF!+#REF!+#REF!+#REF!+#REF!+#REF!+#REF!+#REF!+#REF!+#REF!+#REF!+#REF!+#REF!+#REF!+#REF!+#REF!+#REF!+#REF!+#REF!+#REF!+#REF!+#REF!+#REF!+#REF!+#REF!+#REF!+#REF!+#REF!+#REF!+Feb_Williams!H45+#REF!+#REF!+#REF! ->  | I45: =#REF!+#REF!+#REF!+#REF!+#REF!+#REF!+#REF!+#REF!+#REF!+#REF!+#REF!+#REF!+#REF!+#REF!+#REF!+#REF!+#REF!+#REF!+#REF!+#REF!+#REF!+#REF!+#REF!+#REF!+#REF!+#REF!+#REF!+#REF!+#REF!+#REF!+#REF!+Feb_Williams!I45+#REF!+#REF!+#REF! ->  | J45: =#REF!+#REF!+#REF!+#REF!+#REF!+#REF!+#REF!+#REF!+#REF!+#REF!+#REF!+#REF!+#REF!+#REF!+#REF!+#REF!+#REF!+#REF!+#REF!+#REF!+#REF!+#REF!+#REF!+#REF!+#REF!+#REF!+#REF!+#REF!+#REF!+#REF!+#REF!+Feb_Williams!J45+#REF!+#REF!+#REF! ->  | K45: =#REF!*0.5 ->  | L45: =#REF!+#REF!+#REF!+#REF!+#REF!+#REF!+#REF!+#REF!+#REF!+#REF!+#REF!+#REF!+#REF!+#REF!+#REF!+#REF!+#REF!+#REF!+#REF!+#REF!+#REF!+#REF!+#REF!+#REF!+#REF!+#REF!+#REF!+#REF!+#REF!+#REF!+#REF!+Feb_Williams!L45+#REF! ->  | O45: =#REF!+#REF!+#REF!+#REF!+#REF!+#REF!+#REF!+#REF!+#REF!+#REF!+#REF!+#REF!+#REF!+#REF!+#REF!+#REF!+#REF!+#REF!+#REF!+#REF!+#REF!+#REF!+#REF!+#REF!+#REF!+#REF!+#REF!+#REF!+#REF!+#REF!+#REF!+Feb_Williams!O45+#REF! ->  | P45: =#REF!*0.5 ->  | Q45: =#REF!+#REF!+#REF!+#REF!+#REF!+#REF!+#REF!+#REF!+#REF!+#REF!+#REF!+#REF!+#REF!+#REF!+#REF!+#REF!+#REF!+#REF!+#REF!+#REF!+#REF!+#REF!+#REF!+#REF!+#REF!+#REF!+#REF!+#REF!+#REF!+#REF!+#REF!+Feb_Williams!Q45+#REF! ->  | T45: =#REF!+#REF!+#REF!+#REF!+#REF!+#REF!+#REF!+#REF!+#REF!+#REF!+#REF!+#REF!+#REF!+#REF!+#REF!+#REF!+#REF!+#REF!+#REF!+#REF!+#REF!+#REF!+#REF!+#REF!+#REF!+#REF!+#REF!+#REF!+#REF!+#REF!+#REF!+Feb_Williams!T45+#REF! ->  | U45: =#REF!*0.5 ->  | V45: =#REF!+#REF!+#REF!+#REF!+#REF!+#REF!+#REF!+#REF!+#REF!+#REF!+#REF!+#REF!+#REF!+#REF!+#REF!+#REF!+#REF!+#REF!+#REF!+#REF!+#REF!+#REF!+#REF!+#REF!+#REF!+#REF!+#REF!+#REF!+#REF!+#REF!+#REF!+Feb_Williams!V45+#REF! ->  | W45: =#REF!+#REF!+#REF!+#REF!+#REF!+#REF!+#REF!+#REF!+#REF!+#REF!+#REF!+#REF!+#REF!+#REF!+#REF!+#REF!+#REF!+#REF!+#REF!+#REF!+#REF!+#REF!+#REF!+#REF!+#REF!+#REF!+#REF!+#REF!+#REF!+#REF!+#REF!+Feb_Williams!W45+#REF! ->  | X45: =#REF!*0.5 ->  | Y45: =#REF!+#REF!+#REF!+#REF!+#REF!+#REF!+#REF!+#REF!+#REF!+#REF!+#REF!+#REF!+#REF!+#REF!+#REF!+#REF!+#REF!+#REF!+#REF!+#REF!+#REF!+#REF!+#REF!+#REF!+#REF!+#REF!+#REF!+#REF!+#REF!+#REF!+#REF!+Feb_Williams!Y45+#REF! -> 
A46: 40 | B46: Rapides | C46: =#REF!+#REF!+#REF!+#REF!+#REF!+#REF!+#REF!+#REF!+#REF!+#REF!+#REF!+#REF!+#REF!+#REF!+#REF!+#REF!+#REF!+#REF!+#REF!+#REF!+#REF!+#REF!+#REF!+#REF!+#REF!+#REF!+#REF!+#REF!+#REF!+#REF!+#REF!+Feb_Williams!C46+#REF!+#REF!+#REF! ->  | D46: =#REF!+#REF!+#REF!+#REF!+#REF!+#REF!+#REF!+#REF!+#REF!+#REF!+#REF!+#REF!+#REF!+#REF!+#REF!+#REF!+#REF!+#REF!+#REF!+#REF!+#REF!+#REF!+#REF!+#REF!+#REF!+#REF!+#REF!+#REF!+#REF!+#REF!+#REF!+Feb_Williams!D46+#REF!+#REF!+#REF! ->  | E46: =#REF!+#REF!+#REF!+#REF!+#REF!+#REF!+#REF!+#REF!+#REF!+#REF!+#REF!+#REF!+#REF!+#REF!+#REF!+#REF!+#REF!+#REF!+#REF!+#REF!+#REF!+#REF!+#REF!+#REF!+#REF!+#REF!+#REF!+#REF!+#REF!+#REF!+#REF!+Feb_Williams!E46+#REF!+#REF!+#REF! ->  | F46: =#REF!*0.5 ->  | G46: =#REF!+#REF!+#REF!+#REF!+#REF!+#REF!+#REF!+#REF!+#REF!+#REF!+#REF!+#REF!+#REF!+#REF!+#REF!+#REF!+#REF!+#REF!+#REF!+#REF!+#REF!+#REF!+#REF!+#REF!+#REF!+#REF!+#REF!+#REF!+#REF!+#REF!+#REF!+Feb_Williams!G46+#REF! ->  | H46: =#REF!+#REF!+#REF!+#REF!+#REF!+#REF!+#REF!+#REF!+#REF!+#REF!+#REF!+#REF!+#REF!+#REF!+#REF!+#REF!+#REF!+#REF!+#REF!+#REF!+#REF!+#REF!+#REF!+#REF!+#REF!+#REF!+#REF!+#REF!+#REF!+#REF!+#REF!+Feb_Williams!H46+#REF!+#REF!+#REF! ->  | I46: =#REF!+#REF!+#REF!+#REF!+#REF!+#REF!+#REF!+#REF!+#REF!+#REF!+#REF!+#REF!+#REF!+#REF!+#REF!+#REF!+#REF!+#REF!+#REF!+#REF!+#REF!+#REF!+#REF!+#REF!+#REF!+#REF!+#REF!+#REF!+#REF!+#REF!+#REF!+Feb_Williams!I46+#REF!+#REF!+#REF! ->  | J46: =#REF!+#REF!+#REF!+#REF!+#REF!+#REF!+#REF!+#REF!+#REF!+#REF!+#REF!+#REF!+#REF!+#REF!+#REF!+#REF!+#REF!+#REF!+#REF!+#REF!+#REF!+#REF!+#REF!+#REF!+#REF!+#REF!+#REF!+#REF!+#REF!+#REF!+#REF!+Feb_Williams!J46+#REF!+#REF!+#REF! ->  | K46: =#REF!*0.5 ->  | L46: =#REF!+#REF!+#REF!+#REF!+#REF!+#REF!+#REF!+#REF!+#REF!+#REF!+#REF!+#REF!+#REF!+#REF!+#REF!+#REF!+#REF!+#REF!+#REF!+#REF!+#REF!+#REF!+#REF!+#REF!+#REF!+#REF!+#REF!+#REF!+#REF!+#REF!+#REF!+Feb_Williams!L46+#REF! ->  | O46: =#REF!+#REF!+#REF!+#REF!+#REF!+#REF!+#REF!+#REF!+#REF!+#REF!+#REF!+#REF!+#REF!+#REF!+#REF!+#REF!+#REF!+#REF!+#REF!+#REF!+#REF!+#REF!+#REF!+#REF!+#REF!+#REF!+#REF!+#REF!+#REF!+#REF!+#REF!+Feb_Williams!O46+#REF! ->  | P46: =#REF!*0.5 ->  | Q46: =#REF!+#REF!+#REF!+#REF!+#REF!+#REF!+#REF!+#REF!+#REF!+#REF!+#REF!+#REF!+#REF!+#REF!+#REF!+#REF!+#REF!+#REF!+#REF!+#REF!+#REF!+#REF!+#REF!+#REF!+#REF!+#REF!+#REF!+#REF!+#REF!+#REF!+#REF!+Feb_Williams!Q46+#REF! ->  | T46: =#REF!+#REF!+#REF!+#REF!+#REF!+#REF!+#REF!+#REF!+#REF!+#REF!+#REF!+#REF!+#REF!+#REF!+#REF!+#REF!+#REF!+#REF!+#REF!+#REF!+#REF!+#REF!+#REF!+#REF!+#REF!+#REF!+#REF!+#REF!+#REF!+#REF!+#REF!+Feb_Williams!T46+#REF! ->  | U46: =#REF!*0.5 ->  | V46: =#REF!+#REF!+#REF!+#REF!+#REF!+#REF!+#REF!+#REF!+#REF!+#REF!+#REF!+#REF!+#REF!+#REF!+#REF!+#REF!+#REF!+#REF!+#REF!+#REF!+#REF!+#REF!+#REF!+#REF!+#REF!+#REF!+#REF!+#REF!+#REF!+#REF!+#REF!+Feb_Williams!V46+#REF! ->  | W46: =#REF!+#REF!+#REF!+#REF!+#REF!+#REF!+#REF!+#REF!+#REF!+#REF!+#REF!+#REF!+#REF!+#REF!+#REF!+#REF!+#REF!+#REF!+#REF!+#REF!+#REF!+#REF!+#REF!+#REF!+#REF!+#REF!+#REF!+#REF!+#REF!+#REF!+#REF!+Feb_Williams!W46+#REF! ->  | X46: =#REF!*0.5 ->  | Y46: =#REF!+#REF!+#REF!+#REF!+#REF!+#REF!+#REF!+#REF!+#REF!+#REF!+#REF!+#REF!+#REF!+#REF!+#REF!+#REF!+#REF!+#REF!+#REF!+#REF!+#REF!+#REF!+#REF!+#REF!+#REF!+#REF!+#REF!+#REF!+#REF!+#REF!+#REF!+Feb_Williams!Y46+#REF! -> 
A47: 41 | B47: Red River | C47: =#REF!+#REF!+#REF!+#REF!+#REF!+#REF!+#REF!+#REF!+#REF!+#REF!+#REF!+#REF!+#REF!+#REF!+#REF!+#REF!+#REF!+#REF!+#REF!+#REF!+#REF!+#REF!+#REF!+#REF!+#REF!+#REF!+#REF!+#REF!+#REF!+#REF!+#REF!+Feb_Williams!C47+#REF!+#REF!+#REF! ->  | D47: =#REF!+#REF!+#REF!+#REF!+#REF!+#REF!+#REF!+#REF!+#REF!+#REF!+#REF!+#REF!+#REF!+#REF!+#REF!+#REF!+#REF!+#REF!+#REF!+#REF!+#REF!+#REF!+#REF!+#REF!+#REF!+#REF!+#REF!+#REF!+#REF!+#REF!+#REF!+Feb_Williams!D47+#REF!+#REF!+#REF! ->  | E47: =#REF!+#REF!+#REF!+#REF!+#REF!+#REF!+#REF!+#REF!+#REF!+#REF!+#REF!+#REF!+#REF!+#REF!+#REF!+#REF!+#REF!+#REF!+#REF!+#REF!+#REF!+#REF!+#REF!+#REF!+#REF!+#REF!+#REF!+#REF!+#REF!+#REF!+#REF!+Feb_Williams!E47+#REF!+#REF!+#REF! ->  | F47: =#REF!*0.5 ->  | G47: =#REF!+#REF!+#REF!+#REF!+#REF!+#REF!+#REF!+#REF!+#REF!+#REF!+#REF!+#REF!+#REF!+#REF!+#REF!+#REF!+#REF!+#REF!+#REF!+#REF!+#REF!+#REF!+#REF!+#REF!+#REF!+#REF!+#REF!+#REF!+#REF!+#REF!+#REF!+Feb_Williams!G47+#REF! ->  | H47: =#REF!+#REF!+#REF!+#REF!+#REF!+#REF!+#REF!+#REF!+#REF!+#REF!+#REF!+#REF!+#REF!+#REF!+#REF!+#REF!+#REF!+#REF!+#REF!+#REF!+#REF!+#REF!+#REF!+#REF!+#REF!+#REF!+#REF!+#REF!+#REF!+#REF!+#REF!+Feb_Williams!H47+#REF!+#REF!+#REF! ->  | I47: =#REF!+#REF!+#REF!+#REF!+#REF!+#REF!+#REF!+#REF!+#REF!+#REF!+#REF!+#REF!+#REF!+#REF!+#REF!+#REF!+#REF!+#REF!+#REF!+#REF!+#REF!+#REF!+#REF!+#REF!+#REF!+#REF!+#REF!+#REF!+#REF!+#REF!+#REF!+Feb_Williams!I47+#REF!+#REF!+#REF! ->  | J47: =#REF!+#REF!+#REF!+#REF!+#REF!+#REF!+#REF!+#REF!+#REF!+#REF!+#REF!+#REF!+#REF!+#REF!+#REF!+#REF!+#REF!+#REF!+#REF!+#REF!+#REF!+#REF!+#REF!+#REF!+#REF!+#REF!+#REF!+#REF!+#REF!+#REF!+#REF!+Feb_Williams!J47+#REF!+#REF!+#REF! ->  | K47: =#REF!*0.5 ->  | L47: =#REF!+#REF!+#REF!+#REF!+#REF!+#REF!+#REF!+#REF!+#REF!+#REF!+#REF!+#REF!+#REF!+#REF!+#REF!+#REF!+#REF!+#REF!+#REF!+#REF!+#REF!+#REF!+#REF!+#REF!+#REF!+#REF!+#REF!+#REF!+#REF!+#REF!+#REF!+Feb_Williams!L47+#REF! ->  | O47: =#REF!+#REF!+#REF!+#REF!+#REF!+#REF!+#REF!+#REF!+#REF!+#REF!+#REF!+#REF!+#REF!+#REF!+#REF!+#REF!+#REF!+#REF!+#REF!+#REF!+#REF!+#REF!+#REF!+#REF!+#REF!+#REF!+#REF!+#REF!+#REF!+#REF!+#REF!+Feb_Williams!O47+#REF! ->  | P47: =#REF!*0.5 ->  | Q47: =#REF!+#REF!+#REF!+#REF!+#REF!+#REF!+#REF!+#REF!+#REF!+#REF!+#REF!+#REF!+#REF!+#REF!+#REF!+#REF!+#REF!+#REF!+#REF!+#REF!+#REF!+#REF!+#REF!+#REF!+#REF!+#REF!+#REF!+#REF!+#REF!+#REF!+#REF!+Feb_Williams!Q47+#REF! ->  | T47: =#REF!+#REF!+#REF!+#REF!+#REF!+#REF!+#REF!+#REF!+#REF!+#REF!+#REF!+#REF!+#REF!+#REF!+#REF!+#REF!+#REF!+#REF!+#REF!+#REF!+#REF!+#REF!+#REF!+#REF!+#REF!+#REF!+#REF!+#REF!+#REF!+#REF!+#REF!+Feb_Williams!T47+#REF! ->  | U47: =#REF!*0.5 ->  | V47: =#REF!+#REF!+#REF!+#REF!+#REF!+#REF!+#REF!+#REF!+#REF!+#REF!+#REF!+#REF!+#REF!+#REF!+#REF!+#REF!+#REF!+#REF!+#REF!+#REF!+#REF!+#REF!+#REF!+#REF!+#REF!+#REF!+#REF!+#REF!+#REF!+#REF!+#REF!+Feb_Williams!V47+#REF! ->  | W47: =#REF!+#REF!+#REF!+#REF!+#REF!+#REF!+#REF!+#REF!+#REF!+#REF!+#REF!+#REF!+#REF!+#REF!+#REF!+#REF!+#REF!+#REF!+#REF!+#REF!+#REF!+#REF!+#REF!+#REF!+#REF!+#REF!+#REF!+#REF!+#REF!+#REF!+#REF!+Feb_Williams!W47+#REF! ->  | X47: =#REF!*0.5 ->  | Y47: =#REF!+#REF!+#REF!+#REF!+#REF!+#REF!+#REF!+#REF!+#REF!+#REF!+#REF!+#REF!+#REF!+#REF!+#REF!+#REF!+#REF!+#REF!+#REF!+#REF!+#REF!+#REF!+#REF!+#REF!+#REF!+#REF!+#REF!+#REF!+#REF!+#REF!+#REF!+Feb_Williams!Y47+#REF! -> 
A48: 42 | B48: Richland | C48: =#REF!+#REF!+#REF!+#REF!+#REF!+#REF!+#REF!+#REF!+#REF!+#REF!+#REF!+#REF!+#REF!+#REF!+#REF!+#REF!+#REF!+#REF!+#REF!+#REF!+#REF!+#REF!+#REF!+#REF!+#REF!+#REF!+#REF!+#REF!+#REF!+#REF!+#REF!+Feb_Williams!C48+#REF!+#REF!+#REF! ->  | D48: =#REF!+#REF!+#REF!+#REF!+#REF!+#REF!+#REF!+#REF!+#REF!+#REF!+#REF!+#REF!+#REF!+#REF!+#REF!+#REF!+#REF!+#REF!+#REF!+#REF!+#REF!+#REF!+#REF!+#REF!+#REF!+#REF!+#REF!+#REF!+#REF!+#REF!+#REF!+Feb_Williams!D48+#REF!+#REF!+#REF! ->  | E48: =#REF!+#REF!+#REF!+#REF!+#REF!+#REF!+#REF!+#REF!+#REF!+#REF!+#REF!+#REF!+#REF!+#REF!+#REF!+#REF!+#REF!+#REF!+#REF!+#REF!+#REF!+#REF!+#REF!+#REF!+#REF!+#REF!+#REF!+#REF!+#REF!+#REF!+#REF!+Feb_Williams!E48+#REF!+#REF!+#REF! ->  | F48: =#REF!*0.5 ->  | G48: =#REF!+#REF!+#REF!+#REF!+#REF!+#REF!+#REF!+#REF!+#REF!+#REF!+#REF!+#REF!+#REF!+#REF!+#REF!+#REF!+#REF!+#REF!+#REF!+#REF!+#REF!+#REF!+#REF!+#REF!+#REF!+#REF!+#REF!+#REF!+#REF!+#REF!+#REF!+Feb_Williams!G48+#REF! ->  | H48: =#REF!+#REF!+#REF!+#REF!+#REF!+#REF!+#REF!+#REF!+#REF!+#REF!+#REF!+#REF!+#REF!+#REF!+#REF!+#REF!+#REF!+#REF!+#REF!+#REF!+#REF!+#REF!+#REF!+#REF!+#REF!+#REF!+#REF!+#REF!+#REF!+#REF!+#REF!+Feb_Williams!H48+#REF!+#REF!+#REF! ->  | I48: =#REF!+#REF!+#REF!+#REF!+#REF!+#REF!+#REF!+#REF!+#REF!+#REF!+#REF!+#REF!+#REF!+#REF!+#REF!+#REF!+#REF!+#REF!+#REF!+#REF!+#REF!+#REF!+#REF!+#REF!+#REF!+#REF!+#REF!+#REF!+#REF!+#REF!+#REF!+Feb_Williams!I48+#REF!+#REF!+#REF! ->  | J48: =#REF!+#REF!+#REF!+#REF!+#REF!+#REF!+#REF!+#REF!+#REF!+#REF!+#REF!+#REF!+#REF!+#REF!+#REF!+#REF!+#REF!+#REF!+#REF!+#REF!+#REF!+#REF!+#REF!+#REF!+#REF!+#REF!+#REF!+#REF!+#REF!+#REF!+#REF!+Feb_Williams!J48+#REF!+#REF!+#REF! ->  | K48: =#REF!*0.5 ->  | L48: =#REF!+#REF!+#REF!+#REF!+#REF!+#REF!+#REF!+#REF!+#REF!+#REF!+#REF!+#REF!+#REF!+#REF!+#REF!+#REF!+#REF!+#REF!+#REF!+#REF!+#REF!+#REF!+#REF!+#REF!+#REF!+#REF!+#REF!+#REF!+#REF!+#REF!+#REF!+Feb_Williams!L48+#REF! ->  | O48: =#REF!+#REF!+#REF!+#REF!+#REF!+#REF!+#REF!+#REF!+#REF!+#REF!+#REF!+#REF!+#REF!+#REF!+#REF!+#REF!+#REF!+#REF!+#REF!+#REF!+#REF!+#REF!+#REF!+#REF!+#REF!+#REF!+#REF!+#REF!+#REF!+#REF!+#REF!+Feb_Williams!O48+#REF! ->  | P48: =#REF!*0.5 ->  | Q48: =#REF!+#REF!+#REF!+#REF!+#REF!+#REF!+#REF!+#REF!+#REF!+#REF!+#REF!+#REF!+#REF!+#REF!+#REF!+#REF!+#REF!+#REF!+#REF!+#REF!+#REF!+#REF!+#REF!+#REF!+#REF!+#REF!+#REF!+#REF!+#REF!+#REF!+#REF!+Feb_Williams!Q48+#REF! ->  | T48: =#REF!+#REF!+#REF!+#REF!+#REF!+#REF!+#REF!+#REF!+#REF!+#REF!+#REF!+#REF!+#REF!+#REF!+#REF!+#REF!+#REF!+#REF!+#REF!+#REF!+#REF!+#REF!+#REF!+#REF!+#REF!+#REF!+#REF!+#REF!+#REF!+#REF!+#REF!+Feb_Williams!T48+#REF! ->  | U48: =#REF!*0.5 ->  | V48: =#REF!+#REF!+#REF!+#REF!+#REF!+#REF!+#REF!+#REF!+#REF!+#REF!+#REF!+#REF!+#REF!+#REF!+#REF!+#REF!+#REF!+#REF!+#REF!+#REF!+#REF!+#REF!+#REF!+#REF!+#REF!+#REF!+#REF!+#REF!+#REF!+#REF!+#REF!+Feb_Williams!V48+#REF! ->  | W48: =#REF!+#REF!+#REF!+#REF!+#REF!+#REF!+#REF!+#REF!+#REF!+#REF!+#REF!+#REF!+#REF!+#REF!+#REF!+#REF!+#REF!+#REF!+#REF!+#REF!+#REF!+#REF!+#REF!+#REF!+#REF!+#REF!+#REF!+#REF!+#REF!+#REF!+#REF!+Feb_Williams!W48+#REF! ->  | X48: =#REF!*0.5 ->  | Y48: =#REF!+#REF!+#REF!+#REF!+#REF!+#REF!+#REF!+#REF!+#REF!+#REF!+#REF!+#REF!+#REF!+#REF!+#REF!+#REF!+#REF!+#REF!+#REF!+#REF!+#REF!+#REF!+#REF!+#REF!+#REF!+#REF!+#REF!+#REF!+#REF!+#REF!+#REF!+Feb_Williams!Y48+#REF! -> 
A49: 43 | B49: Sabine | C49: =#REF!+#REF!+#REF!+#REF!+#REF!+#REF!+#REF!+#REF!+#REF!+#REF!+#REF!+#REF!+#REF!+#REF!+#REF!+#REF!+#REF!+#REF!+#REF!+#REF!+#REF!+#REF!+#REF!+#REF!+#REF!+#REF!+#REF!+#REF!+#REF!+#REF!+#REF!+Feb_Williams!C49+#REF!+#REF!+#REF! ->  | D49: =#REF!+#REF!+#REF!+#REF!+#REF!+#REF!+#REF!+#REF!+#REF!+#REF!+#REF!+#REF!+#REF!+#REF!+#REF!+#REF!+#REF!+#REF!+#REF!+#REF!+#REF!+#REF!+#REF!+#REF!+#REF!+#REF!+#REF!+#REF!+#REF!+#REF!+#REF!+Feb_Williams!D49+#REF!+#REF!+#REF! ->  | E49: =#REF!+#REF!+#REF!+#REF!+#REF!+#REF!+#REF!+#REF!+#REF!+#REF!+#REF!+#REF!+#REF!+#REF!+#REF!+#REF!+#REF!+#REF!+#REF!+#REF!+#REF!+#REF!+#REF!+#REF!+#REF!+#REF!+#REF!+#REF!+#REF!+#REF!+#REF!+Feb_Williams!E49+#REF!+#REF!+#REF! ->  | F49: =#REF!*0.5 ->  | G49: =#REF!+#REF!+#REF!+#REF!+#REF!+#REF!+#REF!+#REF!+#REF!+#REF!+#REF!+#REF!+#REF!+#REF!+#REF!+#REF!+#REF!+#REF!+#REF!+#REF!+#REF!+#REF!+#REF!+#REF!+#REF!+#REF!+#REF!+#REF!+#REF!+#REF!+#REF!+Feb_Williams!G49+#REF! ->  | H49: =#REF!+#REF!+#REF!+#REF!+#REF!+#REF!+#REF!+#REF!+#REF!+#REF!+#REF!+#REF!+#REF!+#REF!+#REF!+#REF!+#REF!+#REF!+#REF!+#REF!+#REF!+#REF!+#REF!+#REF!+#REF!+#REF!+#REF!+#REF!+#REF!+#REF!+#REF!+Feb_Williams!H49+#REF!+#REF!+#REF! ->  | I49: =#REF!+#REF!+#REF!+#REF!+#REF!+#REF!+#REF!+#REF!+#REF!+#REF!+#REF!+#REF!+#REF!+#REF!+#REF!+#REF!+#REF!+#REF!+#REF!+#REF!+#REF!+#REF!+#REF!+#REF!+#REF!+#REF!+#REF!+#REF!+#REF!+#REF!+#REF!+Feb_Williams!I49+#REF!+#REF!+#REF! ->  | J49: =#REF!+#REF!+#REF!+#REF!+#REF!+#REF!+#REF!+#REF!+#REF!+#REF!+#REF!+#REF!+#REF!+#REF!+#REF!+#REF!+#REF!+#REF!+#REF!+#REF!+#REF!+#REF!+#REF!+#REF!+#REF!+#REF!+#REF!+#REF!+#REF!+#REF!+#REF!+Feb_Williams!J49+#REF!+#REF!+#REF! ->  | K49: =#REF!*0.5 ->  | L49: =#REF!+#REF!+#REF!+#REF!+#REF!+#REF!+#REF!+#REF!+#REF!+#REF!+#REF!+#REF!+#REF!+#REF!+#REF!+#REF!+#REF!+#REF!+#REF!+#REF!+#REF!+#REF!+#REF!+#REF!+#REF!+#REF!+#REF!+#REF!+#REF!+#REF!+#REF!+Feb_Williams!L49+#REF! ->  | O49: =#REF!+#REF!+#REF!+#REF!+#REF!+#REF!+#REF!+#REF!+#REF!+#REF!+#REF!+#REF!+#REF!+#REF!+#REF!+#REF!+#REF!+#REF!+#REF!+#REF!+#REF!+#REF!+#REF!+#REF!+#REF!+#REF!+#REF!+#REF!+#REF!+#REF!+#REF!+Feb_Williams!O49+#REF! ->  | P49: =#REF!*0.5 ->  | Q49: =#REF!+#REF!+#REF!+#REF!+#REF!+#REF!+#REF!+#REF!+#REF!+#REF!+#REF!+#REF!+#REF!+#REF!+#REF!+#REF!+#REF!+#REF!+#REF!+#REF!+#REF!+#REF!+#REF!+#REF!+#REF!+#REF!+#REF!+#REF!+#REF!+#REF!+#REF!+Feb_Williams!Q49+#REF! ->  | T49: =#REF!+#REF!+#REF!+#REF!+#REF!+#REF!+#REF!+#REF!+#REF!+#REF!+#REF!+#REF!+#REF!+#REF!+#REF!+#REF!+#REF!+#REF!+#REF!+#REF!+#REF!+#REF!+#REF!+#REF!+#REF!+#REF!+#REF!+#REF!+#REF!+#REF!+#REF!+Feb_Williams!T49+#REF! ->  | U49: =#REF!*0.5 ->  | V49: =#REF!+#REF!+#REF!+#REF!+#REF!+#REF!+#REF!+#REF!+#REF!+#REF!+#REF!+#REF!+#REF!+#REF!+#REF!+#REF!+#REF!+#REF!+#REF!+#REF!+#REF!+#REF!+#REF!+#REF!+#REF!+#REF!+#REF!+#REF!+#REF!+#REF!+#REF!+Feb_Williams!V49+#REF! ->  | W49: =#REF!+#REF!+#REF!+#REF!+#REF!+#REF!+#REF!+#REF!+#REF!+#REF!+#REF!+#REF!+#REF!+#REF!+#REF!+#REF!+#REF!+#REF!+#REF!+#REF!+#REF!+#REF!+#REF!+#REF!+#REF!+#REF!+#REF!+#REF!+#REF!+#REF!+#REF!+Feb_Williams!W49+#REF! ->  | X49: =#REF!*0.5 ->  | Y49: =#REF!+#REF!+#REF!+#REF!+#REF!+#REF!+#REF!+#REF!+#REF!+#REF!+#REF!+#REF!+#REF!+#REF!+#REF!+#REF!+#REF!+#REF!+#REF!+#REF!+#REF!+#REF!+#REF!+#REF!+#REF!+#REF!+#REF!+#REF!+#REF!+#REF!+#REF!+Feb_Williams!Y49+#REF! -> 
A50: 44 | B50: St. Bernard | C50: =#REF!+#REF!+#REF!+#REF!+#REF!+#REF!+#REF!+#REF!+#REF!+#REF!+#REF!+#REF!+#REF!+#REF!+#REF!+#REF!+#REF!+#REF!+#REF!+#REF!+#REF!+#REF!+#REF!+#REF!+#REF!+#REF!+#REF!+#REF!+#REF!+#REF!+#REF!+Feb_Williams!C50+#REF!+#REF!+#REF! ->  | D50: =#REF!+#REF!+#REF!+#REF!+#REF!+#REF!+#REF!+#REF!+#REF!+#REF!+#REF!+#REF!+#REF!+#REF!+#REF!+#REF!+#REF!+#REF!+#REF!+#REF!+#REF!+#REF!+#REF!+#REF!+#REF!+#REF!+#REF!+#REF!+#REF!+#REF!+#REF!+Feb_Williams!D50+#REF!+#REF!+#REF! ->  | E50: =#REF!+#REF!+#REF!+#REF!+#REF!+#REF!+#REF!+#REF!+#REF!+#REF!+#REF!+#REF!+#REF!+#REF!+#REF!+#REF!+#REF!+#REF!+#REF!+#REF!+#REF!+#REF!+#REF!+#REF!+#REF!+#REF!+#REF!+#REF!+#REF!+#REF!+#REF!+Feb_Williams!E50+#REF!+#REF!+#REF! ->  | F50: =#REF!*0.5 ->  | G50: =#REF!+#REF!+#REF!+#REF!+#REF!+#REF!+#REF!+#REF!+#REF!+#REF!+#REF!+#REF!+#REF!+#REF!+#REF!+#REF!+#REF!+#REF!+#REF!+#REF!+#REF!+#REF!+#REF!+#REF!+#REF!+#REF!+#REF!+#REF!+#REF!+#REF!+#REF!+Feb_Williams!G50+#REF! ->  | H50: =#REF!+#REF!+#REF!+#REF!+#REF!+#REF!+#REF!+#REF!+#REF!+#REF!+#REF!+#REF!+#REF!+#REF!+#REF!+#REF!+#REF!+#REF!+#REF!+#REF!+#REF!+#REF!+#REF!+#REF!+#REF!+#REF!+#REF!+#REF!+#REF!+#REF!+#REF!+Feb_Williams!H50+#REF!+#REF!+#REF! ->  | I50: =#REF!+#REF!+#REF!+#REF!+#REF!+#REF!+#REF!+#REF!+#REF!+#REF!+#REF!+#REF!+#REF!+#REF!+#REF!+#REF!+#REF!+#REF!+#REF!+#REF!+#REF!+#REF!+#REF!+#REF!+#REF!+#REF!+#REF!+#REF!+#REF!+#REF!+#REF!+Feb_Williams!I50+#REF!+#REF!+#REF! ->  | J50: =#REF!+#REF!+#REF!+#REF!+#REF!+#REF!+#REF!+#REF!+#REF!+#REF!+#REF!+#REF!+#REF!+#REF!+#REF!+#REF!+#REF!+#REF!+#REF!+#REF!+#REF!+#REF!+#REF!+#REF!+#REF!+#REF!+#REF!+#REF!+#REF!+#REF!+#REF!+Feb_Williams!J50+#REF!+#REF!+#REF! ->  | K50: =#REF!*0.5 ->  | L50: =#REF!+#REF!+#REF!+#REF!+#REF!+#REF!+#REF!+#REF!+#REF!+#REF!+#REF!+#REF!+#REF!+#REF!+#REF!+#REF!+#REF!+#REF!+#REF!+#REF!+#REF!+#REF!+#REF!+#REF!+#REF!+#REF!+#REF!+#REF!+#REF!+#REF!+#REF!+Feb_Williams!L50+#REF! ->  | O50: =#REF!+#REF!+#REF!+#REF!+#REF!+#REF!+#REF!+#REF!+#REF!+#REF!+#REF!+#REF!+#REF!+#REF!+#REF!+#REF!+#REF!+#REF!+#REF!+#REF!+#REF!+#REF!+#REF!+#REF!+#REF!+#REF!+#REF!+#REF!+#REF!+#REF!+#REF!+Feb_Williams!O50+#REF! ->  | P50: =#REF!*0.5 ->  | Q50: =#REF!+#REF!+#REF!+#REF!+#REF!+#REF!+#REF!+#REF!+#REF!+#REF!+#REF!+#REF!+#REF!+#REF!+#REF!+#REF!+#REF!+#REF!+#REF!+#REF!+#REF!+#REF!+#REF!+#REF!+#REF!+#REF!+#REF!+#REF!+#REF!+#REF!+#REF!+Feb_Williams!Q50+#REF! ->  | T50: =#REF!+#REF!+#REF!+#REF!+#REF!+#REF!+#REF!+#REF!+#REF!+#REF!+#REF!+#REF!+#REF!+#REF!+#REF!+#REF!+#REF!+#REF!+#REF!+#REF!+#REF!+#REF!+#REF!+#REF!+#REF!+#REF!+#REF!+#REF!+#REF!+#REF!+#REF!+Feb_Williams!T50+#REF! ->  | U50: =#REF!*0.5 ->  | V50: =#REF!+#REF!+#REF!+#REF!+#REF!+#REF!+#REF!+#REF!+#REF!+#REF!+#REF!+#REF!+#REF!+#REF!+#REF!+#REF!+#REF!+#REF!+#REF!+#REF!+#REF!+#REF!+#REF!+#REF!+#REF!+#REF!+#REF!+#REF!+#REF!+#REF!+#REF!+Feb_Williams!V50+#REF! ->  | W50: =#REF!+#REF!+#REF!+#REF!+#REF!+#REF!+#REF!+#REF!+#REF!+#REF!+#REF!+#REF!+#REF!+#REF!+#REF!+#REF!+#REF!+#REF!+#REF!+#REF!+#REF!+#REF!+#REF!+#REF!+#REF!+#REF!+#REF!+#REF!+#REF!+#REF!+#REF!+Feb_Williams!W50+#REF! ->  | X50: =#REF!*0.5 ->  | Y50: =#REF!+#REF!+#REF!+#REF!+#REF!+#REF!+#REF!+#REF!+#REF!+#REF!+#REF!+#REF!+#REF!+#REF!+#REF!+#REF!+#REF!+#REF!+#REF!+#REF!+#REF!+#REF!+#REF!+#REF!+#REF!+#REF!+#REF!+#REF!+#REF!+#REF!+#REF!+Feb_Williams!Y50+#REF! -> 
A51: 45 | B51: St. Charles | C51: =#REF!+#REF!+#REF!+#REF!+#REF!+#REF!+#REF!+#REF!+#REF!+#REF!+#REF!+#REF!+#REF!+#REF!+#REF!+#REF!+#REF!+#REF!+#REF!+#REF!+#REF!+#REF!+#REF!+#REF!+#REF!+#REF!+#REF!+#REF!+#REF!+#REF!+#REF!+Feb_Williams!C51+#REF!+#REF!+#REF! ->  | D51: =#REF!+#REF!+#REF!+#REF!+#REF!+#REF!+#REF!+#REF!+#REF!+#REF!+#REF!+#REF!+#REF!+#REF!+#REF!+#REF!+#REF!+#REF!+#REF!+#REF!+#REF!+#REF!+#REF!+#REF!+#REF!+#REF!+#REF!+#REF!+#REF!+#REF!+#REF!+Feb_Williams!D51+#REF!+#REF!+#REF! ->  | E51: =#REF!+#REF!+#REF!+#REF!+#REF!+#REF!+#REF!+#REF!+#REF!+#REF!+#REF!+#REF!+#REF!+#REF!+#REF!+#REF!+#REF!+#REF!+#REF!+#REF!+#REF!+#REF!+#REF!+#REF!+#REF!+#REF!+#REF!+#REF!+#REF!+#REF!+#REF!+Feb_Williams!E51+#REF!+#REF!+#REF! ->  | F51: =#REF!*0.5 ->  | G51: =#REF!+#REF!+#REF!+#REF!+#REF!+#REF!+#REF!+#REF!+#REF!+#REF!+#REF!+#REF!+#REF!+#REF!+#REF!+#REF!+#REF!+#REF!+#REF!+#REF!+#REF!+#REF!+#REF!+#REF!+#REF!+#REF!+#REF!+#REF!+#REF!+#REF!+#REF!+Feb_Williams!G51+#REF! ->  | H51: =#REF!+#REF!+#REF!+#REF!+#REF!+#REF!+#REF!+#REF!+#REF!+#REF!+#REF!+#REF!+#REF!+#REF!+#REF!+#REF!+#REF!+#REF!+#REF!+#REF!+#REF!+#REF!+#REF!+#REF!+#REF!+#REF!+#REF!+#REF!+#REF!+#REF!+#REF!+Feb_Williams!H51+#REF!+#REF!+#REF! ->  | I51: =#REF!+#REF!+#REF!+#REF!+#REF!+#REF!+#REF!+#REF!+#REF!+#REF!+#REF!+#REF!+#REF!+#REF!+#REF!+#REF!+#REF!+#REF!+#REF!+#REF!+#REF!+#REF!+#REF!+#REF!+#REF!+#REF!+#REF!+#REF!+#REF!+#REF!+#REF!+Feb_Williams!I51+#REF!+#REF!+#REF! ->  | J51: =#REF!+#REF!+#REF!+#REF!+#REF!+#REF!+#REF!+#REF!+#REF!+#REF!+#REF!+#REF!+#REF!+#REF!+#REF!+#REF!+#REF!+#REF!+#REF!+#REF!+#REF!+#REF!+#REF!+#REF!+#REF!+#REF!+#REF!+#REF!+#REF!+#REF!+#REF!+Feb_Williams!J51+#REF!+#REF!+#REF! ->  | K51: =#REF!*0.5 ->  | L51: =#REF!+#REF!+#REF!+#REF!+#REF!+#REF!+#REF!+#REF!+#REF!+#REF!+#REF!+#REF!+#REF!+#REF!+#REF!+#REF!+#REF!+#REF!+#REF!+#REF!+#REF!+#REF!+#REF!+#REF!+#REF!+#REF!+#REF!+#REF!+#REF!+#REF!+#REF!+Feb_Williams!L51+#REF! ->  | O51: =#REF!+#REF!+#REF!+#REF!+#REF!+#REF!+#REF!+#REF!+#REF!+#REF!+#REF!+#REF!+#REF!+#REF!+#REF!+#REF!+#REF!+#REF!+#REF!+#REF!+#REF!+#REF!+#REF!+#REF!+#REF!+#REF!+#REF!+#REF!+#REF!+#REF!+#REF!+Feb_Williams!O51+#REF! ->  | P51: =#REF!*0.5 ->  | Q51: =#REF!+#REF!+#REF!+#REF!+#REF!+#REF!+#REF!+#REF!+#REF!+#REF!+#REF!+#REF!+#REF!+#REF!+#REF!+#REF!+#REF!+#REF!+#REF!+#REF!+#REF!+#REF!+#REF!+#REF!+#REF!+#REF!+#REF!+#REF!+#REF!+#REF!+#REF!+Feb_Williams!Q51+#REF! ->  | T51: =#REF!+#REF!+#REF!+#REF!+#REF!+#REF!+#REF!+#REF!+#REF!+#REF!+#REF!+#REF!+#REF!+#REF!+#REF!+#REF!+#REF!+#REF!+#REF!+#REF!+#REF!+#REF!+#REF!+#REF!+#REF!+#REF!+#REF!+#REF!+#REF!+#REF!+#REF!+Feb_Williams!T51+#REF! ->  | U51: =#REF!*0.5 ->  | V51: =#REF!+#REF!+#REF!+#REF!+#REF!+#REF!+#REF!+#REF!+#REF!+#REF!+#REF!+#REF!+#REF!+#REF!+#REF!+#REF!+#REF!+#REF!+#REF!+#REF!+#REF!+#REF!+#REF!+#REF!+#REF!+#REF!+#REF!+#REF!+#REF!+#REF!+#REF!+Feb_Williams!V51+#REF! ->  | W51: =#REF!+#REF!+#REF!+#REF!+#REF!+#REF!+#REF!+#REF!+#REF!+#REF!+#REF!+#REF!+#REF!+#REF!+#REF!+#REF!+#REF!+#REF!+#REF!+#REF!+#REF!+#REF!+#REF!+#REF!+#REF!+#REF!+#REF!+#REF!+#REF!+#REF!+#REF!+Feb_Williams!W51+#REF! ->  | X51: =#REF!*0.5 ->  | Y51: =#REF!+#REF!+#REF!+#REF!+#REF!+#REF!+#REF!+#REF!+#REF!+#REF!+#REF!+#REF!+#REF!+#REF!+#REF!+#REF!+#REF!+#REF!+#REF!+#REF!+#REF!+#REF!+#REF!+#REF!+#REF!+#REF!+#REF!+#REF!+#REF!+#REF!+#REF!+Feb_Williams!Y51+#REF! -> 
A52: 46 | B52: St. Helena | C52: =#REF!+#REF!+#REF!+#REF!+#REF!+#REF!+#REF!+#REF!+#REF!+#REF!+#REF!+#REF!+#REF!+#REF!+#REF!+#REF!+#REF!+#REF!+#REF!+#REF!+#REF!+#REF!+#REF!+#REF!+#REF!+#REF!+#REF!+#REF!+#REF!+#REF!+#REF!+Feb_Williams!C52+#REF!+#REF!+#REF! ->  | D52: =#REF!+#REF!+#REF!+#REF!+#REF!+#REF!+#REF!+#REF!+#REF!+#REF!+#REF!+#REF!+#REF!+#REF!+#REF!+#REF!+#REF!+#REF!+#REF!+#REF!+#REF!+#REF!+#REF!+#REF!+#REF!+#REF!+#REF!+#REF!+#REF!+#REF!+#REF!+Feb_Williams!D52+#REF!+#REF!+#REF! ->  | E52: =#REF!+#REF!+#REF!+#REF!+#REF!+#REF!+#REF!+#REF!+#REF!+#REF!+#REF!+#REF!+#REF!+#REF!+#REF!+#REF!+#REF!+#REF!+#REF!+#REF!+#REF!+#REF!+#REF!+#REF!+#REF!+#REF!+#REF!+#REF!+#REF!+#REF!+#REF!+Feb_Williams!E52+#REF!+#REF!+#REF! ->  | F52: =#REF!*0.5 ->  | G52: =#REF!+#REF!+#REF!+#REF!+#REF!+#REF!+#REF!+#REF!+#REF!+#REF!+#REF!+#REF!+#REF!+#REF!+#REF!+#REF!+#REF!+#REF!+#REF!+#REF!+#REF!+#REF!+#REF!+#REF!+#REF!+#REF!+#REF!+#REF!+#REF!+#REF!+#REF!+Feb_Williams!G52+#REF! ->  | H52: =#REF!+#REF!+#REF!+#REF!+#REF!+#REF!+#REF!+#REF!+#REF!+#REF!+#REF!+#REF!+#REF!+#REF!+#REF!+#REF!+#REF!+#REF!+#REF!+#REF!+#REF!+#REF!+#REF!+#REF!+#REF!+#REF!+#REF!+#REF!+#REF!+#REF!+#REF!+Feb_Williams!H52+#REF!+#REF!+#REF! ->  | I52: =#REF!+#REF!+#REF!+#REF!+#REF!+#REF!+#REF!+#REF!+#REF!+#REF!+#REF!+#REF!+#REF!+#REF!+#REF!+#REF!+#REF!+#REF!+#REF!+#REF!+#REF!+#REF!+#REF!+#REF!+#REF!+#REF!+#REF!+#REF!+#REF!+#REF!+#REF!+Feb_Williams!I52+#REF!+#REF!+#REF! ->  | J52: =#REF!+#REF!+#REF!+#REF!+#REF!+#REF!+#REF!+#REF!+#REF!+#REF!+#REF!+#REF!+#REF!+#REF!+#REF!+#REF!+#REF!+#REF!+#REF!+#REF!+#REF!+#REF!+#REF!+#REF!+#REF!+#REF!+#REF!+#REF!+#REF!+#REF!+#REF!+Feb_Williams!J52+#REF!+#REF!+#REF! ->  | K52: =#REF!*0.5 ->  | L52: =#REF!+#REF!+#REF!+#REF!+#REF!+#REF!+#REF!+#REF!+#REF!+#REF!+#REF!+#REF!+#REF!+#REF!+#REF!+#REF!+#REF!+#REF!+#REF!+#REF!+#REF!+#REF!+#REF!+#REF!+#REF!+#REF!+#REF!+#REF!+#REF!+#REF!+#REF!+Feb_Williams!L52+#REF! ->  | O52: =#REF!+#REF!+#REF!+#REF!+#REF!+#REF!+#REF!+#REF!+#REF!+#REF!+#REF!+#REF!+#REF!+#REF!+#REF!+#REF!+#REF!+#REF!+#REF!+#REF!+#REF!+#REF!+#REF!+#REF!+#REF!+#REF!+#REF!+#REF!+#REF!+#REF!+#REF!+Feb_Williams!O52+#REF! ->  | P52: =#REF!*0.5 ->  | Q52: =#REF!+#REF!+#REF!+#REF!+#REF!+#REF!+#REF!+#REF!+#REF!+#REF!+#REF!+#REF!+#REF!+#REF!+#REF!+#REF!+#REF!+#REF!+#REF!+#REF!+#REF!+#REF!+#REF!+#REF!+#REF!+#REF!+#REF!+#REF!+#REF!+#REF!+#REF!+Feb_Williams!Q52+#REF! ->  | T52: =#REF!+#REF!+#REF!+#REF!+#REF!+#REF!+#REF!+#REF!+#REF!+#REF!+#REF!+#REF!+#REF!+#REF!+#REF!+#REF!+#REF!+#REF!+#REF!+#REF!+#REF!+#REF!+#REF!+#REF!+#REF!+#REF!+#REF!+#REF!+#REF!+#REF!+#REF!+Feb_Williams!T52+#REF! ->  | U52: =#REF!*0.5 ->  | V52: =#REF!+#REF!+#REF!+#REF!+#REF!+#REF!+#REF!+#REF!+#REF!+#REF!+#REF!+#REF!+#REF!+#REF!+#REF!+#REF!+#REF!+#REF!+#REF!+#REF!+#REF!+#REF!+#REF!+#REF!+#REF!+#REF!+#REF!+#REF!+#REF!+#REF!+#REF!+Feb_Williams!V52+#REF! ->  | W52: =#REF!+#REF!+#REF!+#REF!+#REF!+#REF!+#REF!+#REF!+#REF!+#REF!+#REF!+#REF!+#REF!+#REF!+#REF!+#REF!+#REF!+#REF!+#REF!+#REF!+#REF!+#REF!+#REF!+#REF!+#REF!+#REF!+#REF!+#REF!+#REF!+#REF!+#REF!+Feb_Williams!W52+#REF! ->  | X52: =#REF!*0.5 ->  | Y52: =#REF!+#REF!+#REF!+#REF!+#REF!+#REF!+#REF!+#REF!+#REF!+#REF!+#REF!+#REF!+#REF!+#REF!+#REF!+#REF!+#REF!+#REF!+#REF!+#REF!+#REF!+#REF!+#REF!+#REF!+#REF!+#REF!+#REF!+#REF!+#REF!+#REF!+#REF!+Feb_Williams!Y52+#REF! -> 
A53: 47 | B53: St. James | C53: =#REF!+#REF!+#REF!+#REF!+#REF!+#REF!+#REF!+#REF!+#REF!+#REF!+#REF!+#REF!+#REF!+#REF!+#REF!+#REF!+#REF!+#REF!+#REF!+#REF!+#REF!+#REF!+#REF!+#REF!+#REF!+#REF!+#REF!+#REF!+#REF!+#REF!+#REF!+Feb_Williams!C53+#REF!+#REF!+#REF! ->  | D53: =#REF!+#REF!+#REF!+#REF!+#REF!+#REF!+#REF!+#REF!+#REF!+#REF!+#REF!+#REF!+#REF!+#REF!+#REF!+#REF!+#REF!+#REF!+#REF!+#REF!+#REF!+#REF!+#REF!+#REF!+#REF!+#REF!+#REF!+#REF!+#REF!+#REF!+#REF!+Feb_Williams!D53+#REF!+#REF!+#REF! ->  | E53: =#REF!+#REF!+#REF!+#REF!+#REF!+#REF!+#REF!+#REF!+#REF!+#REF!+#REF!+#REF!+#REF!+#REF!+#REF!+#REF!+#REF!+#REF!+#REF!+#REF!+#REF!+#REF!+#REF!+#REF!+#REF!+#REF!+#REF!+#REF!+#REF!+#REF!+#REF!+Feb_Williams!E53+#REF!+#REF!+#REF! ->  | F53: =#REF!*0.5 ->  | G53: =#REF!+#REF!+#REF!+#REF!+#REF!+#REF!+#REF!+#REF!+#REF!+#REF!+#REF!+#REF!+#REF!+#REF!+#REF!+#REF!+#REF!+#REF!+#REF!+#REF!+#REF!+#REF!+#REF!+#REF!+#REF!+#REF!+#REF!+#REF!+#REF!+#REF!+#REF!+Feb_Williams!G53+#REF! ->  | H53: =#REF!+#REF!+#REF!+#REF!+#REF!+#REF!+#REF!+#REF!+#REF!+#REF!+#REF!+#REF!+#REF!+#REF!+#REF!+#REF!+#REF!+#REF!+#REF!+#REF!+#REF!+#REF!+#REF!+#REF!+#REF!+#REF!+#REF!+#REF!+#REF!+#REF!+#REF!+Feb_Williams!H53+#REF!+#REF!+#REF! ->  | I53: =#REF!+#REF!+#REF!+#REF!+#REF!+#REF!+#REF!+#REF!+#REF!+#REF!+#REF!+#REF!+#REF!+#REF!+#REF!+#REF!+#REF!+#REF!+#REF!+#REF!+#REF!+#REF!+#REF!+#REF!+#REF!+#REF!+#REF!+#REF!+#REF!+#REF!+#REF!+Feb_Williams!I53+#REF!+#REF!+#REF! ->  | J53: =#REF!+#REF!+#REF!+#REF!+#REF!+#REF!+#REF!+#REF!+#REF!+#REF!+#REF!+#REF!+#REF!+#REF!+#REF!+#REF!+#REF!+#REF!+#REF!+#REF!+#REF!+#REF!+#REF!+#REF!+#REF!+#REF!+#REF!+#REF!+#REF!+#REF!+#REF!+Feb_Williams!J53+#REF!+#REF!+#REF! ->  | K53: =#REF!*0.5 ->  | L53: =#REF!+#REF!+#REF!+#REF!+#REF!+#REF!+#REF!+#REF!+#REF!+#REF!+#REF!+#REF!+#REF!+#REF!+#REF!+#REF!+#REF!+#REF!+#REF!+#REF!+#REF!+#REF!+#REF!+#REF!+#REF!+#REF!+#REF!+#REF!+#REF!+#REF!+#REF!+Feb_Williams!L53+#REF! ->  | O53: =#REF!+#REF!+#REF!+#REF!+#REF!+#REF!+#REF!+#REF!+#REF!+#REF!+#REF!+#REF!+#REF!+#REF!+#REF!+#REF!+#REF!+#REF!+#REF!+#REF!+#REF!+#REF!+#REF!+#REF!+#REF!+#REF!+#REF!+#REF!+#REF!+#REF!+#REF!+Feb_Williams!O53+#REF! ->  | P53: =#REF!*0.5 ->  | Q53: =#REF!+#REF!+#REF!+#REF!+#REF!+#REF!+#REF!+#REF!+#REF!+#REF!+#REF!+#REF!+#REF!+#REF!+#REF!+#REF!+#REF!+#REF!+#REF!+#REF!+#REF!+#REF!+#REF!+#REF!+#REF!+#REF!+#REF!+#REF!+#REF!+#REF!+#REF!+Feb_Williams!Q53+#REF! ->  | T53: =#REF!+#REF!+#REF!+#REF!+#REF!+#REF!+#REF!+#REF!+#REF!+#REF!+#REF!+#REF!+#REF!+#REF!+#REF!+#REF!+#REF!+#REF!+#REF!+#REF!+#REF!+#REF!+#REF!+#REF!+#REF!+#REF!+#REF!+#REF!+#REF!+#REF!+#REF!+Feb_Williams!T53+#REF! ->  | U53: =#REF!*0.5 ->  | V53: =#REF!+#REF!+#REF!+#REF!+#REF!+#REF!+#REF!+#REF!+#REF!+#REF!+#REF!+#REF!+#REF!+#REF!+#REF!+#REF!+#REF!+#REF!+#REF!+#REF!+#REF!+#REF!+#REF!+#REF!+#REF!+#REF!+#REF!+#REF!+#REF!+#REF!+#REF!+Feb_Williams!V53+#REF! ->  | W53: =#REF!+#REF!+#REF!+#REF!+#REF!+#REF!+#REF!+#REF!+#REF!+#REF!+#REF!+#REF!+#REF!+#REF!+#REF!+#REF!+#REF!+#REF!+#REF!+#REF!+#REF!+#REF!+#REF!+#REF!+#REF!+#REF!+#REF!+#REF!+#REF!+#REF!+#REF!+Feb_Williams!W53+#REF! ->  | X53: =#REF!*0.5 ->  | Y53: =#REF!+#REF!+#REF!+#REF!+#REF!+#REF!+#REF!+#REF!+#REF!+#REF!+#REF!+#REF!+#REF!+#REF!+#REF!+#REF!+#REF!+#REF!+#REF!+#REF!+#REF!+#REF!+#REF!+#REF!+#REF!+#REF!+#REF!+#REF!+#REF!+#REF!+#REF!+Feb_Williams!Y53+#REF! -> 
A54: 48 | B54: St. John the Baptist | C54: =#REF!+#REF!+#REF!+#REF!+#REF!+#REF!+#REF!+#REF!+#REF!+#REF!+#REF!+#REF!+#REF!+#REF!+#REF!+#REF!+#REF!+#REF!+#REF!+#REF!+#REF!+#REF!+#REF!+#REF!+#REF!+#REF!+#REF!+#REF!+#REF!+#REF!+#REF!+Feb_Williams!C54+#REF!+#REF!+#REF! ->  | D54: =#REF!+#REF!+#REF!+#REF!+#REF!+#REF!+#REF!+#REF!+#REF!+#REF!+#REF!+#REF!+#REF!+#REF!+#REF!+#REF!+#REF!+#REF!+#REF!+#REF!+#REF!+#REF!+#REF!+#REF!+#REF!+#REF!+#REF!+#REF!+#REF!+#REF!+#REF!+Feb_Williams!D54+#REF!+#REF!+#REF! ->  | E54: =#REF!+#REF!+#REF!+#REF!+#REF!+#REF!+#REF!+#REF!+#REF!+#REF!+#REF!+#REF!+#REF!+#REF!+#REF!+#REF!+#REF!+#REF!+#REF!+#REF!+#REF!+#REF!+#REF!+#REF!+#REF!+#REF!+#REF!+#REF!+#REF!+#REF!+#REF!+Feb_Williams!E54+#REF!+#REF!+#REF! ->  | F54: =#REF!*0.5 ->  | G54: =#REF!+#REF!+#REF!+#REF!+#REF!+#REF!+#REF!+#REF!+#REF!+#REF!+#REF!+#REF!+#REF!+#REF!+#REF!+#REF!+#REF!+#REF!+#REF!+#REF!+#REF!+#REF!+#REF!+#REF!+#REF!+#REF!+#REF!+#REF!+#REF!+#REF!+#REF!+Feb_Williams!G54+#REF! ->  | H54: =#REF!+#REF!+#REF!+#REF!+#REF!+#REF!+#REF!+#REF!+#REF!+#REF!+#REF!+#REF!+#REF!+#REF!+#REF!+#REF!+#REF!+#REF!+#REF!+#REF!+#REF!+#REF!+#REF!+#REF!+#REF!+#REF!+#REF!+#REF!+#REF!+#REF!+#REF!+Feb_Williams!H54+#REF!+#REF!+#REF! ->  | I54: =#REF!+#REF!+#REF!+#REF!+#REF!+#REF!+#REF!+#REF!+#REF!+#REF!+#REF!+#REF!+#REF!+#REF!+#REF!+#REF!+#REF!+#REF!+#REF!+#REF!+#REF!+#REF!+#REF!+#REF!+#REF!+#REF!+#REF!+#REF!+#REF!+#REF!+#REF!+Feb_Williams!I54+#REF!+#REF!+#REF! ->  | J54: =#REF!+#REF!+#REF!+#REF!+#REF!+#REF!+#REF!+#REF!+#REF!+#REF!+#REF!+#REF!+#REF!+#REF!+#REF!+#REF!+#REF!+#REF!+#REF!+#REF!+#REF!+#REF!+#REF!+#REF!+#REF!+#REF!+#REF!+#REF!+#REF!+#REF!+#REF!+Feb_Williams!J54+#REF!+#REF!+#REF! ->  | K54: =#REF!*0.5 ->  | L54: =#REF!+#REF!+#REF!+#REF!+#REF!+#REF!+#REF!+#REF!+#REF!+#REF!+#REF!+#REF!+#REF!+#REF!+#REF!+#REF!+#REF!+#REF!+#REF!+#REF!+#REF!+#REF!+#REF!+#REF!+#REF!+#REF!+#REF!+#REF!+#REF!+#REF!+#REF!+Feb_Williams!L54+#REF! ->  | O54: =#REF!+#REF!+#REF!+#REF!+#REF!+#REF!+#REF!+#REF!+#REF!+#REF!+#REF!+#REF!+#REF!+#REF!+#REF!+#REF!+#REF!+#REF!+#REF!+#REF!+#REF!+#REF!+#REF!+#REF!+#REF!+#REF!+#REF!+#REF!+#REF!+#REF!+#REF!+Feb_Williams!O54+#REF! ->  | P54: =#REF!*0.5 ->  | Q54: =#REF!+#REF!+#REF!+#REF!+#REF!+#REF!+#REF!+#REF!+#REF!+#REF!+#REF!+#REF!+#REF!+#REF!+#REF!+#REF!+#REF!+#REF!+#REF!+#REF!+#REF!+#REF!+#REF!+#REF!+#REF!+#REF!+#REF!+#REF!+#REF!+#REF!+#REF!+Feb_Williams!Q54+#REF! ->  | T54: =#REF!+#REF!+#REF!+#REF!+#REF!+#REF!+#REF!+#REF!+#REF!+#REF!+#REF!+#REF!+#REF!+#REF!+#REF!+#REF!+#REF!+#REF!+#REF!+#REF!+#REF!+#REF!+#REF!+#REF!+#REF!+#REF!+#REF!+#REF!+#REF!+#REF!+#REF!+Feb_Williams!T54+#REF! ->  | U54: =#REF!*0.5 ->  | V54: =#REF!+#REF!+#REF!+#REF!+#REF!+#REF!+#REF!+#REF!+#REF!+#REF!+#REF!+#REF!+#REF!+#REF!+#REF!+#REF!+#REF!+#REF!+#REF!+#REF!+#REF!+#REF!+#REF!+#REF!+#REF!+#REF!+#REF!+#REF!+#REF!+#REF!+#REF!+Feb_Williams!V54+#REF! ->  | W54: =#REF!+#REF!+#REF!+#REF!+#REF!+#REF!+#REF!+#REF!+#REF!+#REF!+#REF!+#REF!+#REF!+#REF!+#REF!+#REF!+#REF!+#REF!+#REF!+#REF!+#REF!+#REF!+#REF!+#REF!+#REF!+#REF!+#REF!+#REF!+#REF!+#REF!+#REF!+Feb_Williams!W54+#REF! ->  | X54: =#REF!*0.5 ->  | Y54: =#REF!+#REF!+#REF!+#REF!+#REF!+#REF!+#REF!+#REF!+#REF!+#REF!+#REF!+#REF!+#REF!+#REF!+#REF!+#REF!+#REF!+#REF!+#REF!+#REF!+#REF!+#REF!+#REF!+#REF!+#REF!+#REF!+#REF!+#REF!+#REF!+#REF!+#REF!+Feb_Williams!Y54+#REF! -> 
A55: 49 | B55: St. Landry | C55: =#REF!+#REF!+#REF!+#REF!+#REF!+#REF!+#REF!+#REF!+#REF!+#REF!+#REF!+#REF!+#REF!+#REF!+#REF!+#REF!+#REF!+#REF!+#REF!+#REF!+#REF!+#REF!+#REF!+#REF!+#REF!+#REF!+#REF!+#REF!+#REF!+#REF!+#REF!+Feb_Williams!C55+#REF!+#REF!+#REF! ->  | D55: =#REF!+#REF!+#REF!+#REF!+#REF!+#REF!+#REF!+#REF!+#REF!+#REF!+#REF!+#REF!+#REF!+#REF!+#REF!+#REF!+#REF!+#REF!+#REF!+#REF!+#REF!+#REF!+#REF!+#REF!+#REF!+#REF!+#REF!+#REF!+#REF!+#REF!+#REF!+Feb_Williams!D55+#REF!+#REF!+#REF! ->  | E55: =#REF!+#REF!+#REF!+#REF!+#REF!+#REF!+#REF!+#REF!+#REF!+#REF!+#REF!+#REF!+#REF!+#REF!+#REF!+#REF!+#REF!+#REF!+#REF!+#REF!+#REF!+#REF!+#REF!+#REF!+#REF!+#REF!+#REF!+#REF!+#REF!+#REF!+#REF!+Feb_Williams!E55+#REF!+#REF!+#REF! ->  | F55: =#REF!*0.5 ->  | G55: =#REF!+#REF!+#REF!+#REF!+#REF!+#REF!+#REF!+#REF!+#REF!+#REF!+#REF!+#REF!+#REF!+#REF!+#REF!+#REF!+#REF!+#REF!+#REF!+#REF!+#REF!+#REF!+#REF!+#REF!+#REF!+#REF!+#REF!+#REF!+#REF!+#REF!+#REF!+Feb_Williams!G55+#REF! ->  | H55: =#REF!+#REF!+#REF!+#REF!+#REF!+#REF!+#REF!+#REF!+#REF!+#REF!+#REF!+#REF!+#REF!+#REF!+#REF!+#REF!+#REF!+#REF!+#REF!+#REF!+#REF!+#REF!+#REF!+#REF!+#REF!+#REF!+#REF!+#REF!+#REF!+#REF!+#REF!+Feb_Williams!H55+#REF!+#REF!+#REF! ->  | I55: =#REF!+#REF!+#REF!+#REF!+#REF!+#REF!+#REF!+#REF!+#REF!+#REF!+#REF!+#REF!+#REF!+#REF!+#REF!+#REF!+#REF!+#REF!+#REF!+#REF!+#REF!+#REF!+#REF!+#REF!+#REF!+#REF!+#REF!+#REF!+#REF!+#REF!+#REF!+Feb_Williams!I55+#REF!+#REF!+#REF! ->  | J55: =#REF!+#REF!+#REF!+#REF!+#REF!+#REF!+#REF!+#REF!+#REF!+#REF!+#REF!+#REF!+#REF!+#REF!+#REF!+#REF!+#REF!+#REF!+#REF!+#REF!+#REF!+#REF!+#REF!+#REF!+#REF!+#REF!+#REF!+#REF!+#REF!+#REF!+#REF!+Feb_Williams!J55+#REF!+#REF!+#REF! ->  | K55: =#REF!*0.5 ->  | L55: =#REF!+#REF!+#REF!+#REF!+#REF!+#REF!+#REF!+#REF!+#REF!+#REF!+#REF!+#REF!+#REF!+#REF!+#REF!+#REF!+#REF!+#REF!+#REF!+#REF!+#REF!+#REF!+#REF!+#REF!+#REF!+#REF!+#REF!+#REF!+#REF!+#REF!+#REF!+Feb_Williams!L55+#REF! ->  | O55: =#REF!+#REF!+#REF!+#REF!+#REF!+#REF!+#REF!+#REF!+#REF!+#REF!+#REF!+#REF!+#REF!+#REF!+#REF!+#REF!+#REF!+#REF!+#REF!+#REF!+#REF!+#REF!+#REF!+#REF!+#REF!+#REF!+#REF!+#REF!+#REF!+#REF!+#REF!+Feb_Williams!O55+#REF! ->  | P55: =#REF!*0.5 ->  | Q55: =#REF!+#REF!+#REF!+#REF!+#REF!+#REF!+#REF!+#REF!+#REF!+#REF!+#REF!+#REF!+#REF!+#REF!+#REF!+#REF!+#REF!+#REF!+#REF!+#REF!+#REF!+#REF!+#REF!+#REF!+#REF!+#REF!+#REF!+#REF!+#REF!+#REF!+#REF!+Feb_Williams!Q55+#REF! ->  | T55: =#REF!+#REF!+#REF!+#REF!+#REF!+#REF!+#REF!+#REF!+#REF!+#REF!+#REF!+#REF!+#REF!+#REF!+#REF!+#REF!+#REF!+#REF!+#REF!+#REF!+#REF!+#REF!+#REF!+#REF!+#REF!+#REF!+#REF!+#REF!+#REF!+#REF!+#REF!+Feb_Williams!T55+#REF! ->  | U55: =#REF!*0.5 ->  | V55: =#REF!+#REF!+#REF!+#REF!+#REF!+#REF!+#REF!+#REF!+#REF!+#REF!+#REF!+#REF!+#REF!+#REF!+#REF!+#REF!+#REF!+#REF!+#REF!+#REF!+#REF!+#REF!+#REF!+#REF!+#REF!+#REF!+#REF!+#REF!+#REF!+#REF!+#REF!+Feb_Williams!V55+#REF! ->  | W55: =#REF!+#REF!+#REF!+#REF!+#REF!+#REF!+#REF!+#REF!+#REF!+#REF!+#REF!+#REF!+#REF!+#REF!+#REF!+#REF!+#REF!+#REF!+#REF!+#REF!+#REF!+#REF!+#REF!+#REF!+#REF!+#REF!+#REF!+#REF!+#REF!+#REF!+#REF!+Feb_Williams!W55+#REF! ->  | X55: =#REF!*0.5 ->  | Y55: =#REF!+#REF!+#REF!+#REF!+#REF!+#REF!+#REF!+#REF!+#REF!+#REF!+#REF!+#REF!+#REF!+#REF!+#REF!+#REF!+#REF!+#REF!+#REF!+#REF!+#REF!+#REF!+#REF!+#REF!+#REF!+#REF!+#REF!+#REF!+#REF!+#REF!+#REF!+Feb_Williams!Y55+#REF! -> 
A56: 50 | B56: St. Martin | C56: =#REF!+#REF!+#REF!+#REF!+#REF!+#REF!+#REF!+#REF!+#REF!+#REF!+#REF!+#REF!+#REF!+#REF!+#REF!+#REF!+#REF!+#REF!+#REF!+#REF!+#REF!+#REF!+#REF!+#REF!+#REF!+#REF!+#REF!+#REF!+#REF!+#REF!+#REF!+Feb_Williams!C56+#REF!+#REF!+#REF! ->  | D56: =#REF!+#REF!+#REF!+#REF!+#REF!+#REF!+#REF!+#REF!+#REF!+#REF!+#REF!+#REF!+#REF!+#REF!+#REF!+#REF!+#REF!+#REF!+#REF!+#REF!+#REF!+#REF!+#REF!+#REF!+#REF!+#REF!+#REF!+#REF!+#REF!+#REF!+#REF!+Feb_Williams!D56+#REF!+#REF!+#REF! ->  | E56: =#REF!+#REF!+#REF!+#REF!+#REF!+#REF!+#REF!+#REF!+#REF!+#REF!+#REF!+#REF!+#REF!+#REF!+#REF!+#REF!+#REF!+#REF!+#REF!+#REF!+#REF!+#REF!+#REF!+#REF!+#REF!+#REF!+#REF!+#REF!+#REF!+#REF!+#REF!+Feb_Williams!E56+#REF!+#REF!+#REF! ->  | F56: =#REF!*0.5 ->  | G56: =#REF!+#REF!+#REF!+#REF!+#REF!+#REF!+#REF!+#REF!+#REF!+#REF!+#REF!+#REF!+#REF!+#REF!+#REF!+#REF!+#REF!+#REF!+#REF!+#REF!+#REF!+#REF!+#REF!+#REF!+#REF!+#REF!+#REF!+#REF!+#REF!+#REF!+#REF!+Feb_Williams!G56+#REF! ->  | H56: =#REF!+#REF!+#REF!+#REF!+#REF!+#REF!+#REF!+#REF!+#REF!+#REF!+#REF!+#REF!+#REF!+#REF!+#REF!+#REF!+#REF!+#REF!+#REF!+#REF!+#REF!+#REF!+#REF!+#REF!+#REF!+#REF!+#REF!+#REF!+#REF!+#REF!+#REF!+Feb_Williams!H56+#REF!+#REF!+#REF! ->  | I56: =#REF!+#REF!+#REF!+#REF!+#REF!+#REF!+#REF!+#REF!+#REF!+#REF!+#REF!+#REF!+#REF!+#REF!+#REF!+#REF!+#REF!+#REF!+#REF!+#REF!+#REF!+#REF!+#REF!+#REF!+#REF!+#REF!+#REF!+#REF!+#REF!+#REF!+#REF!+Feb_Williams!I56+#REF!+#REF!+#REF! ->  | J56: =#REF!+#REF!+#REF!+#REF!+#REF!+#REF!+#REF!+#REF!+#REF!+#REF!+#REF!+#REF!+#REF!+#REF!+#REF!+#REF!+#REF!+#REF!+#REF!+#REF!+#REF!+#REF!+#REF!+#REF!+#REF!+#REF!+#REF!+#REF!+#REF!+#REF!+#REF!+Feb_Williams!J56+#REF!+#REF!+#REF! ->  | K56: =#REF!*0.5 ->  | L56: =#REF!+#REF!+#REF!+#REF!+#REF!+#REF!+#REF!+#REF!+#REF!+#REF!+#REF!+#REF!+#REF!+#REF!+#REF!+#REF!+#REF!+#REF!+#REF!+#REF!+#REF!+#REF!+#REF!+#REF!+#REF!+#REF!+#REF!+#REF!+#REF!+#REF!+#REF!+Feb_Williams!L56+#REF! ->  | O56: =#REF!+#REF!+#REF!+#REF!+#REF!+#REF!+#REF!+#REF!+#REF!+#REF!+#REF!+#REF!+#REF!+#REF!+#REF!+#REF!+#REF!+#REF!+#REF!+#REF!+#REF!+#REF!+#REF!+#REF!+#REF!+#REF!+#REF!+#REF!+#REF!+#REF!+#REF!+Feb_Williams!O56+#REF! ->  | P56: =#REF!*0.5 ->  | Q56: =#REF!+#REF!+#REF!+#REF!+#REF!+#REF!+#REF!+#REF!+#REF!+#REF!+#REF!+#REF!+#REF!+#REF!+#REF!+#REF!+#REF!+#REF!+#REF!+#REF!+#REF!+#REF!+#REF!+#REF!+#REF!+#REF!+#REF!+#REF!+#REF!+#REF!+#REF!+Feb_Williams!Q56+#REF! ->  | T56: =#REF!+#REF!+#REF!+#REF!+#REF!+#REF!+#REF!+#REF!+#REF!+#REF!+#REF!+#REF!+#REF!+#REF!+#REF!+#REF!+#REF!+#REF!+#REF!+#REF!+#REF!+#REF!+#REF!+#REF!+#REF!+#REF!+#REF!+#REF!+#REF!+#REF!+#REF!+Feb_Williams!T56+#REF! ->  | U56: =#REF!*0.5 ->  | V56: =#REF!+#REF!+#REF!+#REF!+#REF!+#REF!+#REF!+#REF!+#REF!+#REF!+#REF!+#REF!+#REF!+#REF!+#REF!+#REF!+#REF!+#REF!+#REF!+#REF!+#REF!+#REF!+#REF!+#REF!+#REF!+#REF!+#REF!+#REF!+#REF!+#REF!+#REF!+Feb_Williams!V56+#REF! ->  | W56: =#REF!+#REF!+#REF!+#REF!+#REF!+#REF!+#REF!+#REF!+#REF!+#REF!+#REF!+#REF!+#REF!+#REF!+#REF!+#REF!+#REF!+#REF!+#REF!+#REF!+#REF!+#REF!+#REF!+#REF!+#REF!+#REF!+#REF!+#REF!+#REF!+#REF!+#REF!+Feb_Williams!W56+#REF! ->  | X56: =#REF!*0.5 ->  | Y56: =#REF!+#REF!+#REF!+#REF!+#REF!+#REF!+#REF!+#REF!+#REF!+#REF!+#REF!+#REF!+#REF!+#REF!+#REF!+#REF!+#REF!+#REF!+#REF!+#REF!+#REF!+#REF!+#REF!+#REF!+#REF!+#REF!+#REF!+#REF!+#REF!+#REF!+#REF!+Feb_Williams!Y56+#REF! -> 
A57: 51 | B57: St. Mary | C57: =#REF!+#REF!+#REF!+#REF!+#REF!+#REF!+#REF!+#REF!+#REF!+#REF!+#REF!+#REF!+#REF!+#REF!+#REF!+#REF!+#REF!+#REF!+#REF!+#REF!+#REF!+#REF!+#REF!+#REF!+#REF!+#REF!+#REF!+#REF!+#REF!+#REF!+#REF!+Feb_Williams!C57+#REF!+#REF!+#REF! ->  | D57: =#REF!+#REF!+#REF!+#REF!+#REF!+#REF!+#REF!+#REF!+#REF!+#REF!+#REF!+#REF!+#REF!+#REF!+#REF!+#REF!+#REF!+#REF!+#REF!+#REF!+#REF!+#REF!+#REF!+#REF!+#REF!+#REF!+#REF!+#REF!+#REF!+#REF!+#REF!+Feb_Williams!D57+#REF!+#REF!+#REF! ->  | E57: =#REF!+#REF!+#REF!+#REF!+#REF!+#REF!+#REF!+#REF!+#REF!+#REF!+#REF!+#REF!+#REF!+#REF!+#REF!+#REF!+#REF!+#REF!+#REF!+#REF!+#REF!+#REF!+#REF!+#REF!+#REF!+#REF!+#REF!+#REF!+#REF!+#REF!+#REF!+Feb_Williams!E57+#REF!+#REF!+#REF! ->  | F57: =#REF!*0.5 ->  | G57: =#REF!+#REF!+#REF!+#REF!+#REF!+#REF!+#REF!+#REF!+#REF!+#REF!+#REF!+#REF!+#REF!+#REF!+#REF!+#REF!+#REF!+#REF!+#REF!+#REF!+#REF!+#REF!+#REF!+#REF!+#REF!+#REF!+#REF!+#REF!+#REF!+#REF!+#REF!+Feb_Williams!G57+#REF! ->  | H57: =#REF!+#REF!+#REF!+#REF!+#REF!+#REF!+#REF!+#REF!+#REF!+#REF!+#REF!+#REF!+#REF!+#REF!+#REF!+#REF!+#REF!+#REF!+#REF!+#REF!+#REF!+#REF!+#REF!+#REF!+#REF!+#REF!+#REF!+#REF!+#REF!+#REF!+#REF!+Feb_Williams!H57+#REF!+#REF!+#REF! ->  | I57: =#REF!+#REF!+#REF!+#REF!+#REF!+#REF!+#REF!+#REF!+#REF!+#REF!+#REF!+#REF!+#REF!+#REF!+#REF!+#REF!+#REF!+#REF!+#REF!+#REF!+#REF!+#REF!+#REF!+#REF!+#REF!+#REF!+#REF!+#REF!+#REF!+#REF!+#REF!+Feb_Williams!I57+#REF!+#REF!+#REF! ->  | J57: =#REF!+#REF!+#REF!+#REF!+#REF!+#REF!+#REF!+#REF!+#REF!+#REF!+#REF!+#REF!+#REF!+#REF!+#REF!+#REF!+#REF!+#REF!+#REF!+#REF!+#REF!+#REF!+#REF!+#REF!+#REF!+#REF!+#REF!+#REF!+#REF!+#REF!+#REF!+Feb_Williams!J57+#REF!+#REF!+#REF! ->  | K57: =#REF!*0.5 ->  | L57: =#REF!+#REF!+#REF!+#REF!+#REF!+#REF!+#REF!+#REF!+#REF!+#REF!+#REF!+#REF!+#REF!+#REF!+#REF!+#REF!+#REF!+#REF!+#REF!+#REF!+#REF!+#REF!+#REF!+#REF!+#REF!+#REF!+#REF!+#REF!+#REF!+#REF!+#REF!+Feb_Williams!L57+#REF! ->  | O57: =#REF!+#REF!+#REF!+#REF!+#REF!+#REF!+#REF!+#REF!+#REF!+#REF!+#REF!+#REF!+#REF!+#REF!+#REF!+#REF!+#REF!+#REF!+#REF!+#REF!+#REF!+#REF!+#REF!+#REF!+#REF!+#REF!+#REF!+#REF!+#REF!+#REF!+#REF!+Feb_Williams!O57+#REF! ->  | P57: =#REF!*0.5 ->  | Q57: =#REF!+#REF!+#REF!+#REF!+#REF!+#REF!+#REF!+#REF!+#REF!+#REF!+#REF!+#REF!+#REF!+#REF!+#REF!+#REF!+#REF!+#REF!+#REF!+#REF!+#REF!+#REF!+#REF!+#REF!+#REF!+#REF!+#REF!+#REF!+#REF!+#REF!+#REF!+Feb_Williams!Q57+#REF! ->  | T57: =#REF!+#REF!+#REF!+#REF!+#REF!+#REF!+#REF!+#REF!+#REF!+#REF!+#REF!+#REF!+#REF!+#REF!+#REF!+#REF!+#REF!+#REF!+#REF!+#REF!+#REF!+#REF!+#REF!+#REF!+#REF!+#REF!+#REF!+#REF!+#REF!+#REF!+#REF!+Feb_Williams!T57+#REF! ->  | U57: =#REF!*0.5 ->  | V57: =#REF!+#REF!+#REF!+#REF!+#REF!+#REF!+#REF!+#REF!+#REF!+#REF!+#REF!+#REF!+#REF!+#REF!+#REF!+#REF!+#REF!+#REF!+#REF!+#REF!+#REF!+#REF!+#REF!+#REF!+#REF!+#REF!+#REF!+#REF!+#REF!+#REF!+#REF!+Feb_Williams!V57+#REF! ->  | W57: =#REF!+#REF!+#REF!+#REF!+#REF!+#REF!+#REF!+#REF!+#REF!+#REF!+#REF!+#REF!+#REF!+#REF!+#REF!+#REF!+#REF!+#REF!+#REF!+#REF!+#REF!+#REF!+#REF!+#REF!+#REF!+#REF!+#REF!+#REF!+#REF!+#REF!+#REF!+Feb_Williams!W57+#REF! ->  | X57: =#REF!*0.5 ->  | Y57: =#REF!+#REF!+#REF!+#REF!+#REF!+#REF!+#REF!+#REF!+#REF!+#REF!+#REF!+#REF!+#REF!+#REF!+#REF!+#REF!+#REF!+#REF!+#REF!+#REF!+#REF!+#REF!+#REF!+#REF!+#REF!+#REF!+#REF!+#REF!+#REF!+#REF!+#REF!+Feb_Williams!Y57+#REF! -> 
A58: 52 | B58: St. Tammany | C58: =#REF!+#REF!+#REF!+#REF!+#REF!+#REF!+#REF!+#REF!+#REF!+#REF!+#REF!+#REF!+#REF!+#REF!+#REF!+#REF!+#REF!+#REF!+#REF!+#REF!+#REF!+#REF!+#REF!+#REF!+#REF!+#REF!+#REF!+#REF!+#REF!+#REF!+#REF!+Feb_Williams!C58+#REF!+#REF!+#REF! ->  | D58: =#REF!+#REF!+#REF!+#REF!+#REF!+#REF!+#REF!+#REF!+#REF!+#REF!+#REF!+#REF!+#REF!+#REF!+#REF!+#REF!+#REF!+#REF!+#REF!+#REF!+#REF!+#REF!+#REF!+#REF!+#REF!+#REF!+#REF!+#REF!+#REF!+#REF!+#REF!+Feb_Williams!D58+#REF!+#REF!+#REF! ->  | E58: =#REF!+#REF!+#REF!+#REF!+#REF!+#REF!+#REF!+#REF!+#REF!+#REF!+#REF!+#REF!+#REF!+#REF!+#REF!+#REF!+#REF!+#REF!+#REF!+#REF!+#REF!+#REF!+#REF!+#REF!+#REF!+#REF!+#REF!+#REF!+#REF!+#REF!+#REF!+Feb_Williams!E58+#REF!+#REF!+#REF! ->  | F58: =#REF!*0.5 ->  | G58: =#REF!+#REF!+#REF!+#REF!+#REF!+#REF!+#REF!+#REF!+#REF!+#REF!+#REF!+#REF!+#REF!+#REF!+#REF!+#REF!+#REF!+#REF!+#REF!+#REF!+#REF!+#REF!+#REF!+#REF!+#REF!+#REF!+#REF!+#REF!+#REF!+#REF!+#REF!+Feb_Williams!G58+#REF! ->  | H58: =#REF!+#REF!+#REF!+#REF!+#REF!+#REF!+#REF!+#REF!+#REF!+#REF!+#REF!+#REF!+#REF!+#REF!+#REF!+#REF!+#REF!+#REF!+#REF!+#REF!+#REF!+#REF!+#REF!+#REF!+#REF!+#REF!+#REF!+#REF!+#REF!+#REF!+#REF!+Feb_Williams!H58+#REF!+#REF!+#REF! ->  | I58: =#REF!+#REF!+#REF!+#REF!+#REF!+#REF!+#REF!+#REF!+#REF!+#REF!+#REF!+#REF!+#REF!+#REF!+#REF!+#REF!+#REF!+#REF!+#REF!+#REF!+#REF!+#REF!+#REF!+#REF!+#REF!+#REF!+#REF!+#REF!+#REF!+#REF!+#REF!+Feb_Williams!I58+#REF!+#REF!+#REF! ->  | J58: =#REF!+#REF!+#REF!+#REF!+#REF!+#REF!+#REF!+#REF!+#REF!+#REF!+#REF!+#REF!+#REF!+#REF!+#REF!+#REF!+#REF!+#REF!+#REF!+#REF!+#REF!+#REF!+#REF!+#REF!+#REF!+#REF!+#REF!+#REF!+#REF!+#REF!+#REF!+Feb_Williams!J58+#REF!+#REF!+#REF! ->  | K58: =#REF!*0.5 ->  | L58: =#REF!+#REF!+#REF!+#REF!+#REF!+#REF!+#REF!+#REF!+#REF!+#REF!+#REF!+#REF!+#REF!+#REF!+#REF!+#REF!+#REF!+#REF!+#REF!+#REF!+#REF!+#REF!+#REF!+#REF!+#REF!+#REF!+#REF!+#REF!+#REF!+#REF!+#REF!+Feb_Williams!L58+#REF! ->  | O58: =#REF!+#REF!+#REF!+#REF!+#REF!+#REF!+#REF!+#REF!+#REF!+#REF!+#REF!+#REF!+#REF!+#REF!+#REF!+#REF!+#REF!+#REF!+#REF!+#REF!+#REF!+#REF!+#REF!+#REF!+#REF!+#REF!+#REF!+#REF!+#REF!+#REF!+#REF!+Feb_Williams!O58+#REF! ->  | P58: =#REF!*0.5 ->  | Q58: =#REF!+#REF!+#REF!+#REF!+#REF!+#REF!+#REF!+#REF!+#REF!+#REF!+#REF!+#REF!+#REF!+#REF!+#REF!+#REF!+#REF!+#REF!+#REF!+#REF!+#REF!+#REF!+#REF!+#REF!+#REF!+#REF!+#REF!+#REF!+#REF!+#REF!+#REF!+Feb_Williams!Q58+#REF! ->  | T58: =#REF!+#REF!+#REF!+#REF!+#REF!+#REF!+#REF!+#REF!+#REF!+#REF!+#REF!+#REF!+#REF!+#REF!+#REF!+#REF!+#REF!+#REF!+#REF!+#REF!+#REF!+#REF!+#REF!+#REF!+#REF!+#REF!+#REF!+#REF!+#REF!+#REF!+#REF!+Feb_Williams!T58+#REF! ->  | U58: =#REF!*0.5 ->  | V58: =#REF!+#REF!+#REF!+#REF!+#REF!+#REF!+#REF!+#REF!+#REF!+#REF!+#REF!+#REF!+#REF!+#REF!+#REF!+#REF!+#REF!+#REF!+#REF!+#REF!+#REF!+#REF!+#REF!+#REF!+#REF!+#REF!+#REF!+#REF!+#REF!+#REF!+#REF!+Feb_Williams!V58+#REF! ->  | W58: =#REF!+#REF!+#REF!+#REF!+#REF!+#REF!+#REF!+#REF!+#REF!+#REF!+#REF!+#REF!+#REF!+#REF!+#REF!+#REF!+#REF!+#REF!+#REF!+#REF!+#REF!+#REF!+#REF!+#REF!+#REF!+#REF!+#REF!+#REF!+#REF!+#REF!+#REF!+Feb_Williams!W58+#REF! ->  | X58: =#REF!*0.5 ->  | Y58: =#REF!+#REF!+#REF!+#REF!+#REF!+#REF!+#REF!+#REF!+#REF!+#REF!+#REF!+#REF!+#REF!+#REF!+#REF!+#REF!+#REF!+#REF!+#REF!+#REF!+#REF!+#REF!+#REF!+#REF!+#REF!+#REF!+#REF!+#REF!+#REF!+#REF!+#REF!+Feb_Williams!Y58+#REF! -> 
A59: 53 | B59: Tangipahoa | C59: =#REF!+#REF!+#REF!+#REF!+#REF!+#REF!+#REF!+#REF!+#REF!+#REF!+#REF!+#REF!+#REF!+#REF!+#REF!+#REF!+#REF!+#REF!+#REF!+#REF!+#REF!+#REF!+#REF!+#REF!+#REF!+#REF!+#REF!+#REF!+#REF!+#REF!+#REF!+Feb_Williams!C59+#REF!+#REF!+#REF! ->  | D59: =#REF!+#REF!+#REF!+#REF!+#REF!+#REF!+#REF!+#REF!+#REF!+#REF!+#REF!+#REF!+#REF!+#REF!+#REF!+#REF!+#REF!+#REF!+#REF!+#REF!+#REF!+#REF!+#REF!+#REF!+#REF!+#REF!+#REF!+#REF!+#REF!+#REF!+#REF!+Feb_Williams!D59+#REF!+#REF!+#REF! ->  | E59: =#REF!+#REF!+#REF!+#REF!+#REF!+#REF!+#REF!+#REF!+#REF!+#REF!+#REF!+#REF!+#REF!+#REF!+#REF!+#REF!+#REF!+#REF!+#REF!+#REF!+#REF!+#REF!+#REF!+#REF!+#REF!+#REF!+#REF!+#REF!+#REF!+#REF!+#REF!+Feb_Williams!E59+#REF!+#REF!+#REF! ->  | F59: =#REF!*0.5 ->  | G59: =#REF!+#REF!+#REF!+#REF!+#REF!+#REF!+#REF!+#REF!+#REF!+#REF!+#REF!+#REF!+#REF!+#REF!+#REF!+#REF!+#REF!+#REF!+#REF!+#REF!+#REF!+#REF!+#REF!+#REF!+#REF!+#REF!+#REF!+#REF!+#REF!+#REF!+#REF!+Feb_Williams!G59+#REF! ->  | H59: =#REF!+#REF!+#REF!+#REF!+#REF!+#REF!+#REF!+#REF!+#REF!+#REF!+#REF!+#REF!+#REF!+#REF!+#REF!+#REF!+#REF!+#REF!+#REF!+#REF!+#REF!+#REF!+#REF!+#REF!+#REF!+#REF!+#REF!+#REF!+#REF!+#REF!+#REF!+Feb_Williams!H59+#REF!+#REF!+#REF! ->  | I59: =#REF!+#REF!+#REF!+#REF!+#REF!+#REF!+#REF!+#REF!+#REF!+#REF!+#REF!+#REF!+#REF!+#REF!+#REF!+#REF!+#REF!+#REF!+#REF!+#REF!+#REF!+#REF!+#REF!+#REF!+#REF!+#REF!+#REF!+#REF!+#REF!+#REF!+#REF!+Feb_Williams!I59+#REF!+#REF!+#REF! ->  | J59: =#REF!+#REF!+#REF!+#REF!+#REF!+#REF!+#REF!+#REF!+#REF!+#REF!+#REF!+#REF!+#REF!+#REF!+#REF!+#REF!+#REF!+#REF!+#REF!+#REF!+#REF!+#REF!+#REF!+#REF!+#REF!+#REF!+#REF!+#REF!+#REF!+#REF!+#REF!+Feb_Williams!J59+#REF!+#REF!+#REF! ->  | K59: =#REF!*0.5 ->  | L59: =#REF!+#REF!+#REF!+#REF!+#REF!+#REF!+#REF!+#REF!+#REF!+#REF!+#REF!+#REF!+#REF!+#REF!+#REF!+#REF!+#REF!+#REF!+#REF!+#REF!+#REF!+#REF!+#REF!+#REF!+#REF!+#REF!+#REF!+#REF!+#REF!+#REF!+#REF!+Feb_Williams!L59+#REF! ->  | O59: =#REF!+#REF!+#REF!+#REF!+#REF!+#REF!+#REF!+#REF!+#REF!+#REF!+#REF!+#REF!+#REF!+#REF!+#REF!+#REF!+#REF!+#REF!+#REF!+#REF!+#REF!+#REF!+#REF!+#REF!+#REF!+#REF!+#REF!+#REF!+#REF!+#REF!+#REF!+Feb_Williams!O59+#REF! ->  | P59: =#REF!*0.5 ->  | Q59: =#REF!+#REF!+#REF!+#REF!+#REF!+#REF!+#REF!+#REF!+#REF!+#REF!+#REF!+#REF!+#REF!+#REF!+#REF!+#REF!+#REF!+#REF!+#REF!+#REF!+#REF!+#REF!+#REF!+#REF!+#REF!+#REF!+#REF!+#REF!+#REF!+#REF!+#REF!+Feb_Williams!Q59+#REF! ->  | T59: =#REF!+#REF!+#REF!+#REF!+#REF!+#REF!+#REF!+#REF!+#REF!+#REF!+#REF!+#REF!+#REF!+#REF!+#REF!+#REF!+#REF!+#REF!+#REF!+#REF!+#REF!+#REF!+#REF!+#REF!+#REF!+#REF!+#REF!+#REF!+#REF!+#REF!+#REF!+Feb_Williams!T59+#REF! ->  | U59: =#REF!*0.5 ->  | V59: =#REF!+#REF!+#REF!+#REF!+#REF!+#REF!+#REF!+#REF!+#REF!+#REF!+#REF!+#REF!+#REF!+#REF!+#REF!+#REF!+#REF!+#REF!+#REF!+#REF!+#REF!+#REF!+#REF!+#REF!+#REF!+#REF!+#REF!+#REF!+#REF!+#REF!+#REF!+Feb_Williams!V59+#REF! ->  | W59: =#REF!+#REF!+#REF!+#REF!+#REF!+#REF!+#REF!+#REF!+#REF!+#REF!+#REF!+#REF!+#REF!+#REF!+#REF!+#REF!+#REF!+#REF!+#REF!+#REF!+#REF!+#REF!+#REF!+#REF!+#REF!+#REF!+#REF!+#REF!+#REF!+#REF!+#REF!+Feb_Williams!W59+#REF! ->  | X59: =#REF!*0.5 ->  | Y59: =#REF!+#REF!+#REF!+#REF!+#REF!+#REF!+#REF!+#REF!+#REF!+#REF!+#REF!+#REF!+#REF!+#REF!+#REF!+#REF!+#REF!+#REF!+#REF!+#REF!+#REF!+#REF!+#REF!+#REF!+#REF!+#REF!+#REF!+#REF!+#REF!+#REF!+#REF!+Feb_Williams!Y59+#REF! -> 
A60: 54 | B60: Tensas | C60: =#REF!+#REF!+#REF!+#REF!+#REF!+#REF!+#REF!+#REF!+#REF!+#REF!+#REF!+#REF!+#REF!+#REF!+#REF!+#REF!+#REF!+#REF!+#REF!+#REF!+#REF!+#REF!+#REF!+#REF!+#REF!+#REF!+#REF!+#REF!+#REF!+#REF!+#REF!+Feb_Williams!C60+#REF!+#REF!+#REF! ->  | D60: =#REF!+#REF!+#REF!+#REF!+#REF!+#REF!+#REF!+#REF!+#REF!+#REF!+#REF!+#REF!+#REF!+#REF!+#REF!+#REF!+#REF!+#REF!+#REF!+#REF!+#REF!+#REF!+#REF!+#REF!+#REF!+#REF!+#REF!+#REF!+#REF!+#REF!+#REF!+Feb_Williams!D60+#REF!+#REF!+#REF! ->  | E60: =#REF!+#REF!+#REF!+#REF!+#REF!+#REF!+#REF!+#REF!+#REF!+#REF!+#REF!+#REF!+#REF!+#REF!+#REF!+#REF!+#REF!+#REF!+#REF!+#REF!+#REF!+#REF!+#REF!+#REF!+#REF!+#REF!+#REF!+#REF!+#REF!+#REF!+#REF!+Feb_Williams!E60+#REF!+#REF!+#REF! ->  | F60: =#REF!*0.5 ->  | G60: =#REF!+#REF!+#REF!+#REF!+#REF!+#REF!+#REF!+#REF!+#REF!+#REF!+#REF!+#REF!+#REF!+#REF!+#REF!+#REF!+#REF!+#REF!+#REF!+#REF!+#REF!+#REF!+#REF!+#REF!+#REF!+#REF!+#REF!+#REF!+#REF!+#REF!+#REF!+Feb_Williams!G60+#REF! ->  | H60: =#REF!+#REF!+#REF!+#REF!+#REF!+#REF!+#REF!+#REF!+#REF!+#REF!+#REF!+#REF!+#REF!+#REF!+#REF!+#REF!+#REF!+#REF!+#REF!+#REF!+#REF!+#REF!+#REF!+#REF!+#REF!+#REF!+#REF!+#REF!+#REF!+#REF!+#REF!+Feb_Williams!H60+#REF!+#REF!+#REF! ->  | I60: =#REF!+#REF!+#REF!+#REF!+#REF!+#REF!+#REF!+#REF!+#REF!+#REF!+#REF!+#REF!+#REF!+#REF!+#REF!+#REF!+#REF!+#REF!+#REF!+#REF!+#REF!+#REF!+#REF!+#REF!+#REF!+#REF!+#REF!+#REF!+#REF!+#REF!+#REF!+Feb_Williams!I60+#REF!+#REF!+#REF! ->  | J60: =#REF!+#REF!+#REF!+#REF!+#REF!+#REF!+#REF!+#REF!+#REF!+#REF!+#REF!+#REF!+#REF!+#REF!+#REF!+#REF!+#REF!+#REF!+#REF!+#REF!+#REF!+#REF!+#REF!+#REF!+#REF!+#REF!+#REF!+#REF!+#REF!+#REF!+#REF!+Feb_Williams!J60+#REF!+#REF!+#REF! ->  | K60: =#REF!*0.5 ->  | L60: =#REF!+#REF!+#REF!+#REF!+#REF!+#REF!+#REF!+#REF!+#REF!+#REF!+#REF!+#REF!+#REF!+#REF!+#REF!+#REF!+#REF!+#REF!+#REF!+#REF!+#REF!+#REF!+#REF!+#REF!+#REF!+#REF!+#REF!+#REF!+#REF!+#REF!+#REF!+Feb_Williams!L60+#REF! ->  | O60: =#REF!+#REF!+#REF!+#REF!+#REF!+#REF!+#REF!+#REF!+#REF!+#REF!+#REF!+#REF!+#REF!+#REF!+#REF!+#REF!+#REF!+#REF!+#REF!+#REF!+#REF!+#REF!+#REF!+#REF!+#REF!+#REF!+#REF!+#REF!+#REF!+#REF!+#REF!+Feb_Williams!O60+#REF! ->  | P60: =#REF!*0.5 ->  | Q60: =#REF!+#REF!+#REF!+#REF!+#REF!+#REF!+#REF!+#REF!+#REF!+#REF!+#REF!+#REF!+#REF!+#REF!+#REF!+#REF!+#REF!+#REF!+#REF!+#REF!+#REF!+#REF!+#REF!+#REF!+#REF!+#REF!+#REF!+#REF!+#REF!+#REF!+#REF!+Feb_Williams!Q60+#REF! ->  | T60: =#REF!+#REF!+#REF!+#REF!+#REF!+#REF!+#REF!+#REF!+#REF!+#REF!+#REF!+#REF!+#REF!+#REF!+#REF!+#REF!+#REF!+#REF!+#REF!+#REF!+#REF!+#REF!+#REF!+#REF!+#REF!+#REF!+#REF!+#REF!+#REF!+#REF!+#REF!+Feb_Williams!T60+#REF! ->  | U60: =#REF!*0.5 ->  | V60: =#REF!+#REF!+#REF!+#REF!+#REF!+#REF!+#REF!+#REF!+#REF!+#REF!+#REF!+#REF!+#REF!+#REF!+#REF!+#REF!+#REF!+#REF!+#REF!+#REF!+#REF!+#REF!+#REF!+#REF!+#REF!+#REF!+#REF!+#REF!+#REF!+#REF!+#REF!+Feb_Williams!V60+#REF! ->  | W60: =#REF!+#REF!+#REF!+#REF!+#REF!+#REF!+#REF!+#REF!+#REF!+#REF!+#REF!+#REF!+#REF!+#REF!+#REF!+#REF!+#REF!+#REF!+#REF!+#REF!+#REF!+#REF!+#REF!+#REF!+#REF!+#REF!+#REF!+#REF!+#REF!+#REF!+#REF!+Feb_Williams!W60+#REF! ->  | X60: =#REF!*0.5 ->  | Y60: =#REF!+#REF!+#REF!+#REF!+#REF!+#REF!+#REF!+#REF!+#REF!+#REF!+#REF!+#REF!+#REF!+#REF!+#REF!+#REF!+#REF!+#REF!+#REF!+#REF!+#REF!+#REF!+#REF!+#REF!+#REF!+#REF!+#REF!+#REF!+#REF!+#REF!+#REF!+Feb_Williams!Y60+#REF! -> 
A61: 55 | B61: Terrebonne | C61: =#REF!+#REF!+#REF!+#REF!+#REF!+#REF!+#REF!+#REF!+#REF!+#REF!+#REF!+#REF!+#REF!+#REF!+#REF!+#REF!+#REF!+#REF!+#REF!+#REF!+#REF!+#REF!+#REF!+#REF!+#REF!+#REF!+#REF!+#REF!+#REF!+#REF!+#REF!+Feb_Williams!C61+#REF!+#REF!+#REF! ->  | D61: =#REF!+#REF!+#REF!+#REF!+#REF!+#REF!+#REF!+#REF!+#REF!+#REF!+#REF!+#REF!+#REF!+#REF!+#REF!+#REF!+#REF!+#REF!+#REF!+#REF!+#REF!+#REF!+#REF!+#REF!+#REF!+#REF!+#REF!+#REF!+#REF!+#REF!+#REF!+Feb_Williams!D61+#REF!+#REF!+#REF! ->  | E61: =#REF!+#REF!+#REF!+#REF!+#REF!+#REF!+#REF!+#REF!+#REF!+#REF!+#REF!+#REF!+#REF!+#REF!+#REF!+#REF!+#REF!+#REF!+#REF!+#REF!+#REF!+#REF!+#REF!+#REF!+#REF!+#REF!+#REF!+#REF!+#REF!+#REF!+#REF!+Feb_Williams!E61+#REF!+#REF!+#REF! ->  | F61: =#REF!*0.5 ->  | G61: =#REF!+#REF!+#REF!+#REF!+#REF!+#REF!+#REF!+#REF!+#REF!+#REF!+#REF!+#REF!+#REF!+#REF!+#REF!+#REF!+#REF!+#REF!+#REF!+#REF!+#REF!+#REF!+#REF!+#REF!+#REF!+#REF!+#REF!+#REF!+#REF!+#REF!+#REF!+Feb_Williams!G61+#REF! ->  | H61: =#REF!+#REF!+#REF!+#REF!+#REF!+#REF!+#REF!+#REF!+#REF!+#REF!+#REF!+#REF!+#REF!+#REF!+#REF!+#REF!+#REF!+#REF!+#REF!+#REF!+#REF!+#REF!+#REF!+#REF!+#REF!+#REF!+#REF!+#REF!+#REF!+#REF!+#REF!+Feb_Williams!H61+#REF!+#REF!+#REF! ->  | I61: =#REF!+#REF!+#REF!+#REF!+#REF!+#REF!+#REF!+#REF!+#REF!+#REF!+#REF!+#REF!+#REF!+#REF!+#REF!+#REF!+#REF!+#REF!+#REF!+#REF!+#REF!+#REF!+#REF!+#REF!+#REF!+#REF!+#REF!+#REF!+#REF!+#REF!+#REF!+Feb_Williams!I61+#REF!+#REF!+#REF! ->  | J61: =#REF!+#REF!+#REF!+#REF!+#REF!+#REF!+#REF!+#REF!+#REF!+#REF!+#REF!+#REF!+#REF!+#REF!+#REF!+#REF!+#REF!+#REF!+#REF!+#REF!+#REF!+#REF!+#REF!+#REF!+#REF!+#REF!+#REF!+#REF!+#REF!+#REF!+#REF!+Feb_Williams!J61+#REF!+#REF!+#REF! ->  | K61: =#REF!*0.5 ->  | L61: =#REF!+#REF!+#REF!+#REF!+#REF!+#REF!+#REF!+#REF!+#REF!+#REF!+#REF!+#REF!+#REF!+#REF!+#REF!+#REF!+#REF!+#REF!+#REF!+#REF!+#REF!+#REF!+#REF!+#REF!+#REF!+#REF!+#REF!+#REF!+#REF!+#REF!+#REF!+Feb_Williams!L61+#REF! ->  | O61: =#REF!+#REF!+#REF!+#REF!+#REF!+#REF!+#REF!+#REF!+#REF!+#REF!+#REF!+#REF!+#REF!+#REF!+#REF!+#REF!+#REF!+#REF!+#REF!+#REF!+#REF!+#REF!+#REF!+#REF!+#REF!+#REF!+#REF!+#REF!+#REF!+#REF!+#REF!+Feb_Williams!O61+#REF! ->  | P61: =#REF!*0.5 ->  | Q61: =#REF!+#REF!+#REF!+#REF!+#REF!+#REF!+#REF!+#REF!+#REF!+#REF!+#REF!+#REF!+#REF!+#REF!+#REF!+#REF!+#REF!+#REF!+#REF!+#REF!+#REF!+#REF!+#REF!+#REF!+#REF!+#REF!+#REF!+#REF!+#REF!+#REF!+#REF!+Feb_Williams!Q61+#REF! ->  | T61: =#REF!+#REF!+#REF!+#REF!+#REF!+#REF!+#REF!+#REF!+#REF!+#REF!+#REF!+#REF!+#REF!+#REF!+#REF!+#REF!+#REF!+#REF!+#REF!+#REF!+#REF!+#REF!+#REF!+#REF!+#REF!+#REF!+#REF!+#REF!+#REF!+#REF!+#REF!+Feb_Williams!T61+#REF! ->  | U61: =#REF!*0.5 ->  | V61: =#REF!+#REF!+#REF!+#REF!+#REF!+#REF!+#REF!+#REF!+#REF!+#REF!+#REF!+#REF!+#REF!+#REF!+#REF!+#REF!+#REF!+#REF!+#REF!+#REF!+#REF!+#REF!+#REF!+#REF!+#REF!+#REF!+#REF!+#REF!+#REF!+#REF!+#REF!+Feb_Williams!V61+#REF! ->  | W61: =#REF!+#REF!+#REF!+#REF!+#REF!+#REF!+#REF!+#REF!+#REF!+#REF!+#REF!+#REF!+#REF!+#REF!+#REF!+#REF!+#REF!+#REF!+#REF!+#REF!+#REF!+#REF!+#REF!+#REF!+#REF!+#REF!+#REF!+#REF!+#REF!+#REF!+#REF!+Feb_Williams!W61+#REF! ->  | X61: =#REF!*0.5 ->  | Y61: =#REF!+#REF!+#REF!+#REF!+#REF!+#REF!+#REF!+#REF!+#REF!+#REF!+#REF!+#REF!+#REF!+#REF!+#REF!+#REF!+#REF!+#REF!+#REF!+#REF!+#REF!+#REF!+#REF!+#REF!+#REF!+#REF!+#REF!+#REF!+#REF!+#REF!+#REF!+Feb_Williams!Y61+#REF! -> 
A62: 56 | B62: Union | C62: =#REF!+#REF!+#REF!+#REF!+#REF!+#REF!+#REF!+#REF!+#REF!+#REF!+#REF!+#REF!+#REF!+#REF!+#REF!+#REF!+#REF!+#REF!+#REF!+#REF!+#REF!+#REF!+#REF!+#REF!+#REF!+#REF!+#REF!+#REF!+#REF!+#REF!+#REF!+Feb_Williams!C62+#REF!+#REF!+#REF! ->  | D62: =#REF!+#REF!+#REF!+#REF!+#REF!+#REF!+#REF!+#REF!+#REF!+#REF!+#REF!+#REF!+#REF!+#REF!+#REF!+#REF!+#REF!+#REF!+#REF!+#REF!+#REF!+#REF!+#REF!+#REF!+#REF!+#REF!+#REF!+#REF!+#REF!+#REF!+#REF!+Feb_Williams!D62+#REF!+#REF!+#REF! ->  | E62: =#REF!+#REF!+#REF!+#REF!+#REF!+#REF!+#REF!+#REF!+#REF!+#REF!+#REF!+#REF!+#REF!+#REF!+#REF!+#REF!+#REF!+#REF!+#REF!+#REF!+#REF!+#REF!+#REF!+#REF!+#REF!+#REF!+#REF!+#REF!+#REF!+#REF!+#REF!+Feb_Williams!E62+#REF!+#REF!+#REF! ->  | F62: =#REF!*0.5 ->  | G62: =#REF!+#REF!+#REF!+#REF!+#REF!+#REF!+#REF!+#REF!+#REF!+#REF!+#REF!+#REF!+#REF!+#REF!+#REF!+#REF!+#REF!+#REF!+#REF!+#REF!+#REF!+#REF!+#REF!+#REF!+#REF!+#REF!+#REF!+#REF!+#REF!+#REF!+#REF!+Feb_Williams!G62+#REF! ->  | H62: =#REF!+#REF!+#REF!+#REF!+#REF!+#REF!+#REF!+#REF!+#REF!+#REF!+#REF!+#REF!+#REF!+#REF!+#REF!+#REF!+#REF!+#REF!+#REF!+#REF!+#REF!+#REF!+#REF!+#REF!+#REF!+#REF!+#REF!+#REF!+#REF!+#REF!+#REF!+Feb_Williams!H62+#REF!+#REF!+#REF! ->  | I62: =#REF!+#REF!+#REF!+#REF!+#REF!+#REF!+#REF!+#REF!+#REF!+#REF!+#REF!+#REF!+#REF!+#REF!+#REF!+#REF!+#REF!+#REF!+#REF!+#REF!+#REF!+#REF!+#REF!+#REF!+#REF!+#REF!+#REF!+#REF!+#REF!+#REF!+#REF!+Feb_Williams!I62+#REF!+#REF!+#REF! ->  | J62: =#REF!+#REF!+#REF!+#REF!+#REF!+#REF!+#REF!+#REF!+#REF!+#REF!+#REF!+#REF!+#REF!+#REF!+#REF!+#REF!+#REF!+#REF!+#REF!+#REF!+#REF!+#REF!+#REF!+#REF!+#REF!+#REF!+#REF!+#REF!+#REF!+#REF!+#REF!+Feb_Williams!J62+#REF!+#REF!+#REF! ->  | K62: =#REF!*0.5 ->  | L62: =#REF!+#REF!+#REF!+#REF!+#REF!+#REF!+#REF!+#REF!+#REF!+#REF!+#REF!+#REF!+#REF!+#REF!+#REF!+#REF!+#REF!+#REF!+#REF!+#REF!+#REF!+#REF!+#REF!+#REF!+#REF!+#REF!+#REF!+#REF!+#REF!+#REF!+#REF!+Feb_Williams!L62+#REF! ->  | O62: =#REF!+#REF!+#REF!+#REF!+#REF!+#REF!+#REF!+#REF!+#REF!+#REF!+#REF!+#REF!+#REF!+#REF!+#REF!+#REF!+#REF!+#REF!+#REF!+#REF!+#REF!+#REF!+#REF!+#REF!+#REF!+#REF!+#REF!+#REF!+#REF!+#REF!+#REF!+Feb_Williams!O62+#REF! ->  | P62: =#REF!*0.5 ->  | Q62: =#REF!+#REF!+#REF!+#REF!+#REF!+#REF!+#REF!+#REF!+#REF!+#REF!+#REF!+#REF!+#REF!+#REF!+#REF!+#REF!+#REF!+#REF!+#REF!+#REF!+#REF!+#REF!+#REF!+#REF!+#REF!+#REF!+#REF!+#REF!+#REF!+#REF!+#REF!+Feb_Williams!Q62+#REF! ->  | T62: =#REF!+#REF!+#REF!+#REF!+#REF!+#REF!+#REF!+#REF!+#REF!+#REF!+#REF!+#REF!+#REF!+#REF!+#REF!+#REF!+#REF!+#REF!+#REF!+#REF!+#REF!+#REF!+#REF!+#REF!+#REF!+#REF!+#REF!+#REF!+#REF!+#REF!+#REF!+Feb_Williams!T62+#REF! ->  | U62: =#REF!*0.5 ->  | V62: =#REF!+#REF!+#REF!+#REF!+#REF!+#REF!+#REF!+#REF!+#REF!+#REF!+#REF!+#REF!+#REF!+#REF!+#REF!+#REF!+#REF!+#REF!+#REF!+#REF!+#REF!+#REF!+#REF!+#REF!+#REF!+#REF!+#REF!+#REF!+#REF!+#REF!+#REF!+Feb_Williams!V62+#REF! ->  | W62: =#REF!+#REF!+#REF!+#REF!+#REF!+#REF!+#REF!+#REF!+#REF!+#REF!+#REF!+#REF!+#REF!+#REF!+#REF!+#REF!+#REF!+#REF!+#REF!+#REF!+#REF!+#REF!+#REF!+#REF!+#REF!+#REF!+#REF!+#REF!+#REF!+#REF!+#REF!+Feb_Williams!W62+#REF! ->  | X62: =#REF!*0.5 ->  | Y62: =#REF!+#REF!+#REF!+#REF!+#REF!+#REF!+#REF!+#REF!+#REF!+#REF!+#REF!+#REF!+#REF!+#REF!+#REF!+#REF!+#REF!+#REF!+#REF!+#REF!+#REF!+#REF!+#REF!+#REF!+#REF!+#REF!+#REF!+#REF!+#REF!+#REF!+#REF!+Feb_Williams!Y62+#REF! -> 
A63: 57 | B63: Vermilion | C63: =#REF!+#REF!+#REF!+#REF!+#REF!+#REF!+#REF!+#REF!+#REF!+#REF!+#REF!+#REF!+#REF!+#REF!+#REF!+#REF!+#REF!+#REF!+#REF!+#REF!+#REF!+#REF!+#REF!+#REF!+#REF!+#REF!+#REF!+#REF!+#REF!+#REF!+#REF!+Feb_Williams!C63+#REF!+#REF!+#REF! ->  | D63: =#REF!+#REF!+#REF!+#REF!+#REF!+#REF!+#REF!+#REF!+#REF!+#REF!+#REF!+#REF!+#REF!+#REF!+#REF!+#REF!+#REF!+#REF!+#REF!+#REF!+#REF!+#REF!+#REF!+#REF!+#REF!+#REF!+#REF!+#REF!+#REF!+#REF!+#REF!+Feb_Williams!D63+#REF!+#REF!+#REF! ->  | E63: =#REF!+#REF!+#REF!+#REF!+#REF!+#REF!+#REF!+#REF!+#REF!+#REF!+#REF!+#REF!+#REF!+#REF!+#REF!+#REF!+#REF!+#REF!+#REF!+#REF!+#REF!+#REF!+#REF!+#REF!+#REF!+#REF!+#REF!+#REF!+#REF!+#REF!+#REF!+Feb_Williams!E63+#REF!+#REF!+#REF! ->  | F63: =#REF!*0.5 ->  | G63: =#REF!+#REF!+#REF!+#REF!+#REF!+#REF!+#REF!+#REF!+#REF!+#REF!+#REF!+#REF!+#REF!+#REF!+#REF!+#REF!+#REF!+#REF!+#REF!+#REF!+#REF!+#REF!+#REF!+#REF!+#REF!+#REF!+#REF!+#REF!+#REF!+#REF!+#REF!+Feb_Williams!G63+#REF! ->  | H63: =#REF!+#REF!+#REF!+#REF!+#REF!+#REF!+#REF!+#REF!+#REF!+#REF!+#REF!+#REF!+#REF!+#REF!+#REF!+#REF!+#REF!+#REF!+#REF!+#REF!+#REF!+#REF!+#REF!+#REF!+#REF!+#REF!+#REF!+#REF!+#REF!+#REF!+#REF!+Feb_Williams!H63+#REF!+#REF!+#REF! ->  | I63: =#REF!+#REF!+#REF!+#REF!+#REF!+#REF!+#REF!+#REF!+#REF!+#REF!+#REF!+#REF!+#REF!+#REF!+#REF!+#REF!+#REF!+#REF!+#REF!+#REF!+#REF!+#REF!+#REF!+#REF!+#REF!+#REF!+#REF!+#REF!+#REF!+#REF!+#REF!+Feb_Williams!I63+#REF!+#REF!+#REF! ->  | J63: =#REF!+#REF!+#REF!+#REF!+#REF!+#REF!+#REF!+#REF!+#REF!+#REF!+#REF!+#REF!+#REF!+#REF!+#REF!+#REF!+#REF!+#REF!+#REF!+#REF!+#REF!+#REF!+#REF!+#REF!+#REF!+#REF!+#REF!+#REF!+#REF!+#REF!+#REF!+Feb_Williams!J63+#REF!+#REF!+#REF! ->  | K63: =#REF!*0.5 ->  | L63: =#REF!+#REF!+#REF!+#REF!+#REF!+#REF!+#REF!+#REF!+#REF!+#REF!+#REF!+#REF!+#REF!+#REF!+#REF!+#REF!+#REF!+#REF!+#REF!+#REF!+#REF!+#REF!+#REF!+#REF!+#REF!+#REF!+#REF!+#REF!+#REF!+#REF!+#REF!+Feb_Williams!L63+#REF! ->  | O63: =#REF!+#REF!+#REF!+#REF!+#REF!+#REF!+#REF!+#REF!+#REF!+#REF!+#REF!+#REF!+#REF!+#REF!+#REF!+#REF!+#REF!+#REF!+#REF!+#REF!+#REF!+#REF!+#REF!+#REF!+#REF!+#REF!+#REF!+#REF!+#REF!+#REF!+#REF!+Feb_Williams!O63+#REF! ->  | P63: =#REF!*0.5 ->  | Q63: =#REF!+#REF!+#REF!+#REF!+#REF!+#REF!+#REF!+#REF!+#REF!+#REF!+#REF!+#REF!+#REF!+#REF!+#REF!+#REF!+#REF!+#REF!+#REF!+#REF!+#REF!+#REF!+#REF!+#REF!+#REF!+#REF!+#REF!+#REF!+#REF!+#REF!+#REF!+Feb_Williams!Q63+#REF! ->  | T63: =#REF!+#REF!+#REF!+#REF!+#REF!+#REF!+#REF!+#REF!+#REF!+#REF!+#REF!+#REF!+#REF!+#REF!+#REF!+#REF!+#REF!+#REF!+#REF!+#REF!+#REF!+#REF!+#REF!+#REF!+#REF!+#REF!+#REF!+#REF!+#REF!+#REF!+#REF!+Feb_Williams!T63+#REF! ->  | U63: =#REF!*0.5 ->  | V63: =#REF!+#REF!+#REF!+#REF!+#REF!+#REF!+#REF!+#REF!+#REF!+#REF!+#REF!+#REF!+#REF!+#REF!+#REF!+#REF!+#REF!+#REF!+#REF!+#REF!+#REF!+#REF!+#REF!+#REF!+#REF!+#REF!+#REF!+#REF!+#REF!+#REF!+#REF!+Feb_Williams!V63+#REF! ->  | W63: =#REF!+#REF!+#REF!+#REF!+#REF!+#REF!+#REF!+#REF!+#REF!+#REF!+#REF!+#REF!+#REF!+#REF!+#REF!+#REF!+#REF!+#REF!+#REF!+#REF!+#REF!+#REF!+#REF!+#REF!+#REF!+#REF!+#REF!+#REF!+#REF!+#REF!+#REF!+Feb_Williams!W63+#REF! ->  | X63: =#REF!*0.5 ->  | Y63: =#REF!+#REF!+#REF!+#REF!+#REF!+#REF!+#REF!+#REF!+#REF!+#REF!+#REF!+#REF!+#REF!+#REF!+#REF!+#REF!+#REF!+#REF!+#REF!+#REF!+#REF!+#REF!+#REF!+#REF!+#REF!+#REF!+#REF!+#REF!+#REF!+#REF!+#REF!+Feb_Williams!Y63+#REF! -> 
A64: 58 | B64: Vernon | C64: =#REF!+#REF!+#REF!+#REF!+#REF!+#REF!+#REF!+#REF!+#REF!+#REF!+#REF!+#REF!+#REF!+#REF!+#REF!+#REF!+#REF!+#REF!+#REF!+#REF!+#REF!+#REF!+#REF!+#REF!+#REF!+#REF!+#REF!+#REF!+#REF!+#REF!+#REF!+Feb_Williams!C64+#REF!+#REF!+#REF! ->  | D64: =#REF!+#REF!+#REF!+#REF!+#REF!+#REF!+#REF!+#REF!+#REF!+#REF!+#REF!+#REF!+#REF!+#REF!+#REF!+#REF!+#REF!+#REF!+#REF!+#REF!+#REF!+#REF!+#REF!+#REF!+#REF!+#REF!+#REF!+#REF!+#REF!+#REF!+#REF!+Feb_Williams!D64+#REF!+#REF!+#REF! ->  | E64: =#REF!+#REF!+#REF!+#REF!+#REF!+#REF!+#REF!+#REF!+#REF!+#REF!+#REF!+#REF!+#REF!+#REF!+#REF!+#REF!+#REF!+#REF!+#REF!+#REF!+#REF!+#REF!+#REF!+#REF!+#REF!+#REF!+#REF!+#REF!+#REF!+#REF!+#REF!+Feb_Williams!E64+#REF!+#REF!+#REF! ->  | F64: =#REF!*0.5 ->  | G64: =#REF!+#REF!+#REF!+#REF!+#REF!+#REF!+#REF!+#REF!+#REF!+#REF!+#REF!+#REF!+#REF!+#REF!+#REF!+#REF!+#REF!+#REF!+#REF!+#REF!+#REF!+#REF!+#REF!+#REF!+#REF!+#REF!+#REF!+#REF!+#REF!+#REF!+#REF!+Feb_Williams!G64+#REF! ->  | H64: =#REF!+#REF!+#REF!+#REF!+#REF!+#REF!+#REF!+#REF!+#REF!+#REF!+#REF!+#REF!+#REF!+#REF!+#REF!+#REF!+#REF!+#REF!+#REF!+#REF!+#REF!+#REF!+#REF!+#REF!+#REF!+#REF!+#REF!+#REF!+#REF!+#REF!+#REF!+Feb_Williams!H64+#REF!+#REF!+#REF! ->  | I64: =#REF!+#REF!+#REF!+#REF!+#REF!+#REF!+#REF!+#REF!+#REF!+#REF!+#REF!+#REF!+#REF!+#REF!+#REF!+#REF!+#REF!+#REF!+#REF!+#REF!+#REF!+#REF!+#REF!+#REF!+#REF!+#REF!+#REF!+#REF!+#REF!+#REF!+#REF!+Feb_Williams!I64+#REF!+#REF!+#REF! ->  | J64: =#REF!+#REF!+#REF!+#REF!+#REF!+#REF!+#REF!+#REF!+#REF!+#REF!+#REF!+#REF!+#REF!+#REF!+#REF!+#REF!+#REF!+#REF!+#REF!+#REF!+#REF!+#REF!+#REF!+#REF!+#REF!+#REF!+#REF!+#REF!+#REF!+#REF!+#REF!+Feb_Williams!J64+#REF!+#REF!+#REF! ->  | K64: =#REF!*0.5 ->  | L64: =#REF!+#REF!+#REF!+#REF!+#REF!+#REF!+#REF!+#REF!+#REF!+#REF!+#REF!+#REF!+#REF!+#REF!+#REF!+#REF!+#REF!+#REF!+#REF!+#REF!+#REF!+#REF!+#REF!+#REF!+#REF!+#REF!+#REF!+#REF!+#REF!+#REF!+#REF!+Feb_Williams!L64+#REF! ->  | O64: =#REF!+#REF!+#REF!+#REF!+#REF!+#REF!+#REF!+#REF!+#REF!+#REF!+#REF!+#REF!+#REF!+#REF!+#REF!+#REF!+#REF!+#REF!+#REF!+#REF!+#REF!+#REF!+#REF!+#REF!+#REF!+#REF!+#REF!+#REF!+#REF!+#REF!+#REF!+Feb_Williams!O64+#REF! ->  | P64: =#REF!*0.5 ->  | Q64: =#REF!+#REF!+#REF!+#REF!+#REF!+#REF!+#REF!+#REF!+#REF!+#REF!+#REF!+#REF!+#REF!+#REF!+#REF!+#REF!+#REF!+#REF!+#REF!+#REF!+#REF!+#REF!+#REF!+#REF!+#REF!+#REF!+#REF!+#REF!+#REF!+#REF!+#REF!+Feb_Williams!Q64+#REF! ->  | T64: =#REF!+#REF!+#REF!+#REF!+#REF!+#REF!+#REF!+#REF!+#REF!+#REF!+#REF!+#REF!+#REF!+#REF!+#REF!+#REF!+#REF!+#REF!+#REF!+#REF!+#REF!+#REF!+#REF!+#REF!+#REF!+#REF!+#REF!+#REF!+#REF!+#REF!+#REF!+Feb_Williams!T64+#REF! ->  | U64: =#REF!*0.5 ->  | V64: =#REF!+#REF!+#REF!+#REF!+#REF!+#REF!+#REF!+#REF!+#REF!+#REF!+#REF!+#REF!+#REF!+#REF!+#REF!+#REF!+#REF!+#REF!+#REF!+#REF!+#REF!+#REF!+#REF!+#REF!+#REF!+#REF!+#REF!+#REF!+#REF!+#REF!+#REF!+Feb_Williams!V64+#REF! ->  | W64: =#REF!+#REF!+#REF!+#REF!+#REF!+#REF!+#REF!+#REF!+#REF!+#REF!+#REF!+#REF!+#REF!+#REF!+#REF!+#REF!+#REF!+#REF!+#REF!+#REF!+#REF!+#REF!+#REF!+#REF!+#REF!+#REF!+#REF!+#REF!+#REF!+#REF!+#REF!+Feb_Williams!W64+#REF! ->  | X64: =#REF!*0.5 ->  | Y64: =#REF!+#REF!+#REF!+#REF!+#REF!+#REF!+#REF!+#REF!+#REF!+#REF!+#REF!+#REF!+#REF!+#REF!+#REF!+#REF!+#REF!+#REF!+#REF!+#REF!+#REF!+#REF!+#REF!+#REF!+#REF!+#REF!+#REF!+#REF!+#REF!+#REF!+#REF!+Feb_Williams!Y64+#REF! -> 
A65: 59 | B65: Washington | C65: =#REF!+#REF!+#REF!+#REF!+#REF!+#REF!+#REF!+#REF!+#REF!+#REF!+#REF!+#REF!+#REF!+#REF!+#REF!+#REF!+#REF!+#REF!+#REF!+#REF!+#REF!+#REF!+#REF!+#REF!+#REF!+#REF!+#REF!+#REF!+#REF!+#REF!+#REF!+Feb_Williams!C65+#REF!+#REF!+#REF! ->  | D65: =#REF!+#REF!+#REF!+#REF!+#REF!+#REF!+#REF!+#REF!+#REF!+#REF!+#REF!+#REF!+#REF!+#REF!+#REF!+#REF!+#REF!+#REF!+#REF!+#REF!+#REF!+#REF!+#REF!+#REF!+#REF!+#REF!+#REF!+#REF!+#REF!+#REF!+#REF!+Feb_Williams!D65+#REF!+#REF!+#REF! ->  | E65: =#REF!+#REF!+#REF!+#REF!+#REF!+#REF!+#REF!+#REF!+#REF!+#REF!+#REF!+#REF!+#REF!+#REF!+#REF!+#REF!+#REF!+#REF!+#REF!+#REF!+#REF!+#REF!+#REF!+#REF!+#REF!+#REF!+#REF!+#REF!+#REF!+#REF!+#REF!+Feb_Williams!E65+#REF!+#REF!+#REF! ->  | F65: =#REF!*0.5 ->  | G65: =#REF!+#REF!+#REF!+#REF!+#REF!+#REF!+#REF!+#REF!+#REF!+#REF!+#REF!+#REF!+#REF!+#REF!+#REF!+#REF!+#REF!+#REF!+#REF!+#REF!+#REF!+#REF!+#REF!+#REF!+#REF!+#REF!+#REF!+#REF!+#REF!+#REF!+#REF!+Feb_Williams!G65+#REF! ->  | H65: =#REF!+#REF!+#REF!+#REF!+#REF!+#REF!+#REF!+#REF!+#REF!+#REF!+#REF!+#REF!+#REF!+#REF!+#REF!+#REF!+#REF!+#REF!+#REF!+#REF!+#REF!+#REF!+#REF!+#REF!+#REF!+#REF!+#REF!+#REF!+#REF!+#REF!+#REF!+Feb_Williams!H65+#REF!+#REF!+#REF! ->  | I65: =#REF!+#REF!+#REF!+#REF!+#REF!+#REF!+#REF!+#REF!+#REF!+#REF!+#REF!+#REF!+#REF!+#REF!+#REF!+#REF!+#REF!+#REF!+#REF!+#REF!+#REF!+#REF!+#REF!+#REF!+#REF!+#REF!+#REF!+#REF!+#REF!+#REF!+#REF!+Feb_Williams!I65+#REF!+#REF!+#REF! ->  | J65: =#REF!+#REF!+#REF!+#REF!+#REF!+#REF!+#REF!+#REF!+#REF!+#REF!+#REF!+#REF!+#REF!+#REF!+#REF!+#REF!+#REF!+#REF!+#REF!+#REF!+#REF!+#REF!+#REF!+#REF!+#REF!+#REF!+#REF!+#REF!+#REF!+#REF!+#REF!+Feb_Williams!J65+#REF!+#REF!+#REF! ->  | K65: =#REF!*0.5 ->  | L65: =#REF!+#REF!+#REF!+#REF!+#REF!+#REF!+#REF!+#REF!+#REF!+#REF!+#REF!+#REF!+#REF!+#REF!+#REF!+#REF!+#REF!+#REF!+#REF!+#REF!+#REF!+#REF!+#REF!+#REF!+#REF!+#REF!+#REF!+#REF!+#REF!+#REF!+#REF!+Feb_Williams!L65+#REF! ->  | O65: =#REF!+#REF!+#REF!+#REF!+#REF!+#REF!+#REF!+#REF!+#REF!+#REF!+#REF!+#REF!+#REF!+#REF!+#REF!+#REF!+#REF!+#REF!+#REF!+#REF!+#REF!+#REF!+#REF!+#REF!+#REF!+#REF!+#REF!+#REF!+#REF!+#REF!+#REF!+Feb_Williams!O65+#REF! ->  | P65: =#REF!*0.5 ->  | Q65: =#REF!+#REF!+#REF!+#REF!+#REF!+#REF!+#REF!+#REF!+#REF!+#REF!+#REF!+#REF!+#REF!+#REF!+#REF!+#REF!+#REF!+#REF!+#REF!+#REF!+#REF!+#REF!+#REF!+#REF!+#REF!+#REF!+#REF!+#REF!+#REF!+#REF!+#REF!+Feb_Williams!Q65+#REF! ->  | T65: =#REF!+#REF!+#REF!+#REF!+#REF!+#REF!+#REF!+#REF!+#REF!+#REF!+#REF!+#REF!+#REF!+#REF!+#REF!+#REF!+#REF!+#REF!+#REF!+#REF!+#REF!+#REF!+#REF!+#REF!+#REF!+#REF!+#REF!+#REF!+#REF!+#REF!+#REF!+Feb_Williams!T65+#REF! ->  | U65: =#REF!*0.5 ->  | V65: =#REF!+#REF!+#REF!+#REF!+#REF!+#REF!+#REF!+#REF!+#REF!+#REF!+#REF!+#REF!+#REF!+#REF!+#REF!+#REF!+#REF!+#REF!+#REF!+#REF!+#REF!+#REF!+#REF!+#REF!+#REF!+#REF!+#REF!+#REF!+#REF!+#REF!+#REF!+Feb_Williams!V65+#REF! ->  | W65: =#REF!+#REF!+#REF!+#REF!+#REF!+#REF!+#REF!+#REF!+#REF!+#REF!+#REF!+#REF!+#REF!+#REF!+#REF!+#REF!+#REF!+#REF!+#REF!+#REF!+#REF!+#REF!+#REF!+#REF!+#REF!+#REF!+#REF!+#REF!+#REF!+#REF!+#REF!+Feb_Williams!W65+#REF! ->  | X65: =#REF!*0.5 ->  | Y65: =#REF!+#REF!+#REF!+#REF!+#REF!+#REF!+#REF!+#REF!+#REF!+#REF!+#REF!+#REF!+#REF!+#REF!+#REF!+#REF!+#REF!+#REF!+#REF!+#REF!+#REF!+#REF!+#REF!+#REF!+#REF!+#REF!+#REF!+#REF!+#REF!+#REF!+#REF!+Feb_Williams!Y65+#REF! -> 
A66: 60 | B66: Webster | C66: =#REF!+#REF!+#REF!+#REF!+#REF!+#REF!+#REF!+#REF!+#REF!+#REF!+#REF!+#REF!+#REF!+#REF!+#REF!+#REF!+#REF!+#REF!+#REF!+#REF!+#REF!+#REF!+#REF!+#REF!+#REF!+#REF!+#REF!+#REF!+#REF!+#REF!+#REF!+Feb_Williams!C66+#REF!+#REF!+#REF! ->  | D66: =#REF!+#REF!+#REF!+#REF!+#REF!+#REF!+#REF!+#REF!+#REF!+#REF!+#REF!+#REF!+#REF!+#REF!+#REF!+#REF!+#REF!+#REF!+#REF!+#REF!+#REF!+#REF!+#REF!+#REF!+#REF!+#REF!+#REF!+#REF!+#REF!+#REF!+#REF!+Feb_Williams!D66+#REF!+#REF!+#REF! ->  | E66: =#REF!+#REF!+#REF!+#REF!+#REF!+#REF!+#REF!+#REF!+#REF!+#REF!+#REF!+#REF!+#REF!+#REF!+#REF!+#REF!+#REF!+#REF!+#REF!+#REF!+#REF!+#REF!+#REF!+#REF!+#REF!+#REF!+#REF!+#REF!+#REF!+#REF!+#REF!+Feb_Williams!E66+#REF!+#REF!+#REF! ->  | F66: =#REF!*0.5 ->  | G66: =#REF!+#REF!+#REF!+#REF!+#REF!+#REF!+#REF!+#REF!+#REF!+#REF!+#REF!+#REF!+#REF!+#REF!+#REF!+#REF!+#REF!+#REF!+#REF!+#REF!+#REF!+#REF!+#REF!+#REF!+#REF!+#REF!+#REF!+#REF!+#REF!+#REF!+#REF!+Feb_Williams!G66+#REF! ->  | H66: =#REF!+#REF!+#REF!+#REF!+#REF!+#REF!+#REF!+#REF!+#REF!+#REF!+#REF!+#REF!+#REF!+#REF!+#REF!+#REF!+#REF!+#REF!+#REF!+#REF!+#REF!+#REF!+#REF!+#REF!+#REF!+#REF!+#REF!+#REF!+#REF!+#REF!+#REF!+Feb_Williams!H66+#REF!+#REF!+#REF! ->  | I66: =#REF!+#REF!+#REF!+#REF!+#REF!+#REF!+#REF!+#REF!+#REF!+#REF!+#REF!+#REF!+#REF!+#REF!+#REF!+#REF!+#REF!+#REF!+#REF!+#REF!+#REF!+#REF!+#REF!+#REF!+#REF!+#REF!+#REF!+#REF!+#REF!+#REF!+#REF!+Feb_Williams!I66+#REF!+#REF!+#REF! ->  | J66: =#REF!+#REF!+#REF!+#REF!+#REF!+#REF!+#REF!+#REF!+#REF!+#REF!+#REF!+#REF!+#REF!+#REF!+#REF!+#REF!+#REF!+#REF!+#REF!+#REF!+#REF!+#REF!+#REF!+#REF!+#REF!+#REF!+#REF!+#REF!+#REF!+#REF!+#REF!+Feb_Williams!J66+#REF!+#REF!+#REF! ->  | K66: =#REF!*0.5 ->  | L66: =#REF!+#REF!+#REF!+#REF!+#REF!+#REF!+#REF!+#REF!+#REF!+#REF!+#REF!+#REF!+#REF!+#REF!+#REF!+#REF!+#REF!+#REF!+#REF!+#REF!+#REF!+#REF!+#REF!+#REF!+#REF!+#REF!+#REF!+#REF!+#REF!+#REF!+#REF!+Feb_Williams!L66+#REF! ->  | O66: =#REF!+#REF!+#REF!+#REF!+#REF!+#REF!+#REF!+#REF!+#REF!+#REF!+#REF!+#REF!+#REF!+#REF!+#REF!+#REF!+#REF!+#REF!+#REF!+#REF!+#REF!+#REF!+#REF!+#REF!+#REF!+#REF!+#REF!+#REF!+#REF!+#REF!+#REF!+Feb_Williams!O66+#REF! ->  | P66: =#REF!*0.5 ->  | Q66: =#REF!+#REF!+#REF!+#REF!+#REF!+#REF!+#REF!+#REF!+#REF!+#REF!+#REF!+#REF!+#REF!+#REF!+#REF!+#REF!+#REF!+#REF!+#REF!+#REF!+#REF!+#REF!+#REF!+#REF!+#REF!+#REF!+#REF!+#REF!+#REF!+#REF!+#REF!+Feb_Williams!Q66+#REF! ->  | T66: =#REF!+#REF!+#REF!+#REF!+#REF!+#REF!+#REF!+#REF!+#REF!+#REF!+#REF!+#REF!+#REF!+#REF!+#REF!+#REF!+#REF!+#REF!+#REF!+#REF!+#REF!+#REF!+#REF!+#REF!+#REF!+#REF!+#REF!+#REF!+#REF!+#REF!+#REF!+Feb_Williams!T66+#REF! ->  | U66: =#REF!*0.5 ->  | V66: =#REF!+#REF!+#REF!+#REF!+#REF!+#REF!+#REF!+#REF!+#REF!+#REF!+#REF!+#REF!+#REF!+#REF!+#REF!+#REF!+#REF!+#REF!+#REF!+#REF!+#REF!+#REF!+#REF!+#REF!+#REF!+#REF!+#REF!+#REF!+#REF!+#REF!+#REF!+Feb_Williams!V66+#REF! ->  | W66: =#REF!+#REF!+#REF!+#REF!+#REF!+#REF!+#REF!+#REF!+#REF!+#REF!+#REF!+#REF!+#REF!+#REF!+#REF!+#REF!+#REF!+#REF!+#REF!+#REF!+#REF!+#REF!+#REF!+#REF!+#REF!+#REF!+#REF!+#REF!+#REF!+#REF!+#REF!+Feb_Williams!W66+#REF! ->  | X66: =#REF!*0.5 ->  | Y66: =#REF!+#REF!+#REF!+#REF!+#REF!+#REF!+#REF!+#REF!+#REF!+#REF!+#REF!+#REF!+#REF!+#REF!+#REF!+#REF!+#REF!+#REF!+#REF!+#REF!+#REF!+#REF!+#REF!+#REF!+#REF!+#REF!+#REF!+#REF!+#REF!+#REF!+#REF!+Feb_Williams!Y66+#REF! -> 
A67: 61 | B67: West Baton Rouge | C67: =#REF!+#REF!+#REF!+#REF!+#REF!+#REF!+#REF!+#REF!+#REF!+#REF!+#REF!+#REF!+#REF!+#REF!+#REF!+#REF!+#REF!+#REF!+#REF!+#REF!+#REF!+#REF!+#REF!+#REF!+#REF!+#REF!+#REF!+#REF!+#REF!+#REF!+#REF!+Feb_Williams!C67+#REF!+#REF!+#REF! ->  | D67: =#REF!+#REF!+#REF!+#REF!+#REF!+#REF!+#REF!+#REF!+#REF!+#REF!+#REF!+#REF!+#REF!+#REF!+#REF!+#REF!+#REF!+#REF!+#REF!+#REF!+#REF!+#REF!+#REF!+#REF!+#REF!+#REF!+#REF!+#REF!+#REF!+#REF!+#REF!+Feb_Williams!D67+#REF!+#REF!+#REF! ->  | E67: =#REF!+#REF!+#REF!+#REF!+#REF!+#REF!+#REF!+#REF!+#REF!+#REF!+#REF!+#REF!+#REF!+#REF!+#REF!+#REF!+#REF!+#REF!+#REF!+#REF!+#REF!+#REF!+#REF!+#REF!+#REF!+#REF!+#REF!+#REF!+#REF!+#REF!+#REF!+Feb_Williams!E67+#REF!+#REF!+#REF! ->  | F67: =#REF!*0.5 ->  | G67: =#REF!+#REF!+#REF!+#REF!+#REF!+#REF!+#REF!+#REF!+#REF!+#REF!+#REF!+#REF!+#REF!+#REF!+#REF!+#REF!+#REF!+#REF!+#REF!+#REF!+#REF!+#REF!+#REF!+#REF!+#REF!+#REF!+#REF!+#REF!+#REF!+#REF!+#REF!+Feb_Williams!G67+#REF! ->  | H67: =#REF!+#REF!+#REF!+#REF!+#REF!+#REF!+#REF!+#REF!+#REF!+#REF!+#REF!+#REF!+#REF!+#REF!+#REF!+#REF!+#REF!+#REF!+#REF!+#REF!+#REF!+#REF!+#REF!+#REF!+#REF!+#REF!+#REF!+#REF!+#REF!+#REF!+#REF!+Feb_Williams!H67+#REF!+#REF!+#REF! ->  | I67: =#REF!+#REF!+#REF!+#REF!+#REF!+#REF!+#REF!+#REF!+#REF!+#REF!+#REF!+#REF!+#REF!+#REF!+#REF!+#REF!+#REF!+#REF!+#REF!+#REF!+#REF!+#REF!+#REF!+#REF!+#REF!+#REF!+#REF!+#REF!+#REF!+#REF!+#REF!+Feb_Williams!I67+#REF!+#REF!+#REF! ->  | J67: =#REF!+#REF!+#REF!+#REF!+#REF!+#REF!+#REF!+#REF!+#REF!+#REF!+#REF!+#REF!+#REF!+#REF!+#REF!+#REF!+#REF!+#REF!+#REF!+#REF!+#REF!+#REF!+#REF!+#REF!+#REF!+#REF!+#REF!+#REF!+#REF!+#REF!+#REF!+Feb_Williams!J67+#REF!+#REF!+#REF! ->  | K67: =#REF!*0.5 ->  | L67: =#REF!+#REF!+#REF!+#REF!+#REF!+#REF!+#REF!+#REF!+#REF!+#REF!+#REF!+#REF!+#REF!+#REF!+#REF!+#REF!+#REF!+#REF!+#REF!+#REF!+#REF!+#REF!+#REF!+#REF!+#REF!+#REF!+#REF!+#REF!+#REF!+#REF!+#REF!+Feb_Williams!L67+#REF! ->  | O67: =#REF!+#REF!+#REF!+#REF!+#REF!+#REF!+#REF!+#REF!+#REF!+#REF!+#REF!+#REF!+#REF!+#REF!+#REF!+#REF!+#REF!+#REF!+#REF!+#REF!+#REF!+#REF!+#REF!+#REF!+#REF!+#REF!+#REF!+#REF!+#REF!+#REF!+#REF!+Feb_Williams!O67+#REF! ->  | P67: =#REF!*0.5 ->  | Q67: =#REF!+#REF!+#REF!+#REF!+#REF!+#REF!+#REF!+#REF!+#REF!+#REF!+#REF!+#REF!+#REF!+#REF!+#REF!+#REF!+#REF!+#REF!+#REF!+#REF!+#REF!+#REF!+#REF!+#REF!+#REF!+#REF!+#REF!+#REF!+#REF!+#REF!+#REF!+Feb_Williams!Q67+#REF! ->  | T67: =#REF!+#REF!+#REF!+#REF!+#REF!+#REF!+#REF!+#REF!+#REF!+#REF!+#REF!+#REF!+#REF!+#REF!+#REF!+#REF!+#REF!+#REF!+#REF!+#REF!+#REF!+#REF!+#REF!+#REF!+#REF!+#REF!+#REF!+#REF!+#REF!+#REF!+#REF!+Feb_Williams!T67+#REF! ->  | U67: =#REF!*0.5 ->  | V67: =#REF!+#REF!+#REF!+#REF!+#REF!+#REF!+#REF!+#REF!+#REF!+#REF!+#REF!+#REF!+#REF!+#REF!+#REF!+#REF!+#REF!+#REF!+#REF!+#REF!+#REF!+#REF!+#REF!+#REF!+#REF!+#REF!+#REF!+#REF!+#REF!+#REF!+#REF!+Feb_Williams!V67+#REF! ->  | W67: =#REF!+#REF!+#REF!+#REF!+#REF!+#REF!+#REF!+#REF!+#REF!+#REF!+#REF!+#REF!+#REF!+#REF!+#REF!+#REF!+#REF!+#REF!+#REF!+#REF!+#REF!+#REF!+#REF!+#REF!+#REF!+#REF!+#REF!+#REF!+#REF!+#REF!+#REF!+Feb_Williams!W67+#REF! ->  | X67: =#REF!*0.5 ->  | Y67: =#REF!+#REF!+#REF!+#REF!+#REF!+#REF!+#REF!+#REF!+#REF!+#REF!+#REF!+#REF!+#REF!+#REF!+#REF!+#REF!+#REF!+#REF!+#REF!+#REF!+#REF!+#REF!+#REF!+#REF!+#REF!+#REF!+#REF!+#REF!+#REF!+#REF!+#REF!+Feb_Williams!Y67+#REF! -> 
A68: 62 | B68: West Carroll | C68: =#REF!+#REF!+#REF!+#REF!+#REF!+#REF!+#REF!+#REF!+#REF!+#REF!+#REF!+#REF!+#REF!+#REF!+#REF!+#REF!+#REF!+#REF!+#REF!+#REF!+#REF!+#REF!+#REF!+#REF!+#REF!+#REF!+#REF!+#REF!+#REF!+#REF!+#REF!+Feb_Williams!C68+#REF!+#REF!+#REF! ->  | D68: =#REF!+#REF!+#REF!+#REF!+#REF!+#REF!+#REF!+#REF!+#REF!+#REF!+#REF!+#REF!+#REF!+#REF!+#REF!+#REF!+#REF!+#REF!+#REF!+#REF!+#REF!+#REF!+#REF!+#REF!+#REF!+#REF!+#REF!+#REF!+#REF!+#REF!+#REF!+Feb_Williams!D68+#REF!+#REF!+#REF! ->  | E68: =#REF!+#REF!+#REF!+#REF!+#REF!+#REF!+#REF!+#REF!+#REF!+#REF!+#REF!+#REF!+#REF!+#REF!+#REF!+#REF!+#REF!+#REF!+#REF!+#REF!+#REF!+#REF!+#REF!+#REF!+#REF!+#REF!+#REF!+#REF!+#REF!+#REF!+#REF!+Feb_Williams!E68+#REF!+#REF!+#REF! ->  | F68: =#REF!*0.5 ->  | G68: =#REF!+#REF!+#REF!+#REF!+#REF!+#REF!+#REF!+#REF!+#REF!+#REF!+#REF!+#REF!+#REF!+#REF!+#REF!+#REF!+#REF!+#REF!+#REF!+#REF!+#REF!+#REF!+#REF!+#REF!+#REF!+#REF!+#REF!+#REF!+#REF!+#REF!+#REF!+Feb_Williams!G68+#REF! ->  | H68: =#REF!+#REF!+#REF!+#REF!+#REF!+#REF!+#REF!+#REF!+#REF!+#REF!+#REF!+#REF!+#REF!+#REF!+#REF!+#REF!+#REF!+#REF!+#REF!+#REF!+#REF!+#REF!+#REF!+#REF!+#REF!+#REF!+#REF!+#REF!+#REF!+#REF!+#REF!+Feb_Williams!H68+#REF!+#REF!+#REF! ->  | I68: =#REF!+#REF!+#REF!+#REF!+#REF!+#REF!+#REF!+#REF!+#REF!+#REF!+#REF!+#REF!+#REF!+#REF!+#REF!+#REF!+#REF!+#REF!+#REF!+#REF!+#REF!+#REF!+#REF!+#REF!+#REF!+#REF!+#REF!+#REF!+#REF!+#REF!+#REF!+Feb_Williams!I68+#REF!+#REF!+#REF! ->  | J68: =#REF!+#REF!+#REF!+#REF!+#REF!+#REF!+#REF!+#REF!+#REF!+#REF!+#REF!+#REF!+#REF!+#REF!+#REF!+#REF!+#REF!+#REF!+#REF!+#REF!+#REF!+#REF!+#REF!+#REF!+#REF!+#REF!+#REF!+#REF!+#REF!+#REF!+#REF!+Feb_Williams!J68+#REF!+#REF!+#REF! ->  | K68: =#REF!*0.5 ->  | L68: =#REF!+#REF!+#REF!+#REF!+#REF!+#REF!+#REF!+#REF!+#REF!+#REF!+#REF!+#REF!+#REF!+#REF!+#REF!+#REF!+#REF!+#REF!+#REF!+#REF!+#REF!+#REF!+#REF!+#REF!+#REF!+#REF!+#REF!+#REF!+#REF!+#REF!+#REF!+Feb_Williams!L68+#REF! ->  | O68: =#REF!+#REF!+#REF!+#REF!+#REF!+#REF!+#REF!+#REF!+#REF!+#REF!+#REF!+#REF!+#REF!+#REF!+#REF!+#REF!+#REF!+#REF!+#REF!+#REF!+#REF!+#REF!+#REF!+#REF!+#REF!+#REF!+#REF!+#REF!+#REF!+#REF!+#REF!+Feb_Williams!O68+#REF! ->  | P68: =#REF!*0.5 ->  | Q68: =#REF!+#REF!+#REF!+#REF!+#REF!+#REF!+#REF!+#REF!+#REF!+#REF!+#REF!+#REF!+#REF!+#REF!+#REF!+#REF!+#REF!+#REF!+#REF!+#REF!+#REF!+#REF!+#REF!+#REF!+#REF!+#REF!+#REF!+#REF!+#REF!+#REF!+#REF!+Feb_Williams!Q68+#REF! ->  | T68: =#REF!+#REF!+#REF!+#REF!+#REF!+#REF!+#REF!+#REF!+#REF!+#REF!+#REF!+#REF!+#REF!+#REF!+#REF!+#REF!+#REF!+#REF!+#REF!+#REF!+#REF!+#REF!+#REF!+#REF!+#REF!+#REF!+#REF!+#REF!+#REF!+#REF!+#REF!+Feb_Williams!T68+#REF! ->  | U68: =#REF!*0.5 ->  | V68: =#REF!+#REF!+#REF!+#REF!+#REF!+#REF!+#REF!+#REF!+#REF!+#REF!+#REF!+#REF!+#REF!+#REF!+#REF!+#REF!+#REF!+#REF!+#REF!+#REF!+#REF!+#REF!+#REF!+#REF!+#REF!+#REF!+#REF!+#REF!+#REF!+#REF!+#REF!+Feb_Williams!V68+#REF! ->  | W68: =#REF!+#REF!+#REF!+#REF!+#REF!+#REF!+#REF!+#REF!+#REF!+#REF!+#REF!+#REF!+#REF!+#REF!+#REF!+#REF!+#REF!+#REF!+#REF!+#REF!+#REF!+#REF!+#REF!+#REF!+#REF!+#REF!+#REF!+#REF!+#REF!+#REF!+#REF!+Feb_Williams!W68+#REF! ->  | X68: =#REF!*0.5 ->  | Y68: =#REF!+#REF!+#REF!+#REF!+#REF!+#REF!+#REF!+#REF!+#REF!+#REF!+#REF!+#REF!+#REF!+#REF!+#REF!+#REF!+#REF!+#REF!+#REF!+#REF!+#REF!+#REF!+#REF!+#REF!+#REF!+#REF!+#REF!+#REF!+#REF!+#REF!+#REF!+Feb_Williams!Y68+#REF! -> 
A69: 63 | B69: West Feliciana | C69: =#REF!+#REF!+#REF!+#REF!+#REF!+#REF!+#REF!+#REF!+#REF!+#REF!+#REF!+#REF!+#REF!+#REF!+#REF!+#REF!+#REF!+#REF!+#REF!+#REF!+#REF!+#REF!+#REF!+#REF!+#REF!+#REF!+#REF!+#REF!+#REF!+#REF!+#REF!+Feb_Williams!C69+#REF!+#REF!+#REF! ->  | D69: =#REF!+#REF!+#REF!+#REF!+#REF!+#REF!+#REF!+#REF!+#REF!+#REF!+#REF!+#REF!+#REF!+#REF!+#REF!+#REF!+#REF!+#REF!+#REF!+#REF!+#REF!+#REF!+#REF!+#REF!+#REF!+#REF!+#REF!+#REF!+#REF!+#REF!+#REF!+Feb_Williams!D69+#REF!+#REF!+#REF! ->  | E69: =#REF!+#REF!+#REF!+#REF!+#REF!+#REF!+#REF!+#REF!+#REF!+#REF!+#REF!+#REF!+#REF!+#REF!+#REF!+#REF!+#REF!+#REF!+#REF!+#REF!+#REF!+#REF!+#REF!+#REF!+#REF!+#REF!+#REF!+#REF!+#REF!+#REF!+#REF!+Feb_Williams!E69+#REF!+#REF!+#REF! ->  | F69: =#REF!*0.5 ->  | G69: =#REF!+#REF!+#REF!+#REF!+#REF!+#REF!+#REF!+#REF!+#REF!+#REF!+#REF!+#REF!+#REF!+#REF!+#REF!+#REF!+#REF!+#REF!+#REF!+#REF!+#REF!+#REF!+#REF!+#REF!+#REF!+#REF!+#REF!+#REF!+#REF!+#REF!+#REF!+Feb_Williams!G69+#REF! ->  | H69: =#REF!+#REF!+#REF!+#REF!+#REF!+#REF!+#REF!+#REF!+#REF!+#REF!+#REF!+#REF!+#REF!+#REF!+#REF!+#REF!+#REF!+#REF!+#REF!+#REF!+#REF!+#REF!+#REF!+#REF!+#REF!+#REF!+#REF!+#REF!+#REF!+#REF!+#REF!+Feb_Williams!H69+#REF!+#REF!+#REF! ->  | I69: =#REF!+#REF!+#REF!+#REF!+#REF!+#REF!+#REF!+#REF!+#REF!+#REF!+#REF!+#REF!+#REF!+#REF!+#REF!+#REF!+#REF!+#REF!+#REF!+#REF!+#REF!+#REF!+#REF!+#REF!+#REF!+#REF!+#REF!+#REF!+#REF!+#REF!+#REF!+Feb_Williams!I69+#REF!+#REF!+#REF! ->  | J69: =#REF!+#REF!+#REF!+#REF!+#REF!+#REF!+#REF!+#REF!+#REF!+#REF!+#REF!+#REF!+#REF!+#REF!+#REF!+#REF!+#REF!+#REF!+#REF!+#REF!+#REF!+#REF!+#REF!+#REF!+#REF!+#REF!+#REF!+#REF!+#REF!+#REF!+#REF!+Feb_Williams!J69+#REF!+#REF!+#REF! ->  | K69: =#REF!*0.5 ->  | L69: =#REF!+#REF!+#REF!+#REF!+#REF!+#REF!+#REF!+#REF!+#REF!+#REF!+#REF!+#REF!+#REF!+#REF!+#REF!+#REF!+#REF!+#REF!+#REF!+#REF!+#REF!+#REF!+#REF!+#REF!+#REF!+#REF!+#REF!+#REF!+#REF!+#REF!+#REF!+Feb_Williams!L69+#REF! ->  | O69: =#REF!+#REF!+#REF!+#REF!+#REF!+#REF!+#REF!+#REF!+#REF!+#REF!+#REF!+#REF!+#REF!+#REF!+#REF!+#REF!+#REF!+#REF!+#REF!+#REF!+#REF!+#REF!+#REF!+#REF!+#REF!+#REF!+#REF!+#REF!+#REF!+#REF!+#REF!+Feb_Williams!O69+#REF! ->  | P69: =#REF!*0.5 ->  | Q69: =#REF!+#REF!+#REF!+#REF!+#REF!+#REF!+#REF!+#REF!+#REF!+#REF!+#REF!+#REF!+#REF!+#REF!+#REF!+#REF!+#REF!+#REF!+#REF!+#REF!+#REF!+#REF!+#REF!+#REF!+#REF!+#REF!+#REF!+#REF!+#REF!+#REF!+#REF!+Feb_Williams!Q69+#REF! ->  | T69: =#REF!+#REF!+#REF!+#REF!+#REF!+#REF!+#REF!+#REF!+#REF!+#REF!+#REF!+#REF!+#REF!+#REF!+#REF!+#REF!+#REF!+#REF!+#REF!+#REF!+#REF!+#REF!+#REF!+#REF!+#REF!+#REF!+#REF!+#REF!+#REF!+#REF!+#REF!+Feb_Williams!T69+#REF! ->  | U69: =#REF!*0.5 ->  | V69: =#REF!+#REF!+#REF!+#REF!+#REF!+#REF!+#REF!+#REF!+#REF!+#REF!+#REF!+#REF!+#REF!+#REF!+#REF!+#REF!+#REF!+#REF!+#REF!+#REF!+#REF!+#REF!+#REF!+#REF!+#REF!+#REF!+#REF!+#REF!+#REF!+#REF!+#REF!+Feb_Williams!V69+#REF! ->  | W69: =#REF!+#REF!+#REF!+#REF!+#REF!+#REF!+#REF!+#REF!+#REF!+#REF!+#REF!+#REF!+#REF!+#REF!+#REF!+#REF!+#REF!+#REF!+#REF!+#REF!+#REF!+#REF!+#REF!+#REF!+#REF!+#REF!+#REF!+#REF!+#REF!+#REF!+#REF!+Feb_Williams!W69+#REF! ->  | X69: =#REF!*0.5 ->  | Y69: =#REF!+#REF!+#REF!+#REF!+#REF!+#REF!+#REF!+#REF!+#REF!+#REF!+#REF!+#REF!+#REF!+#REF!+#REF!+#REF!+#REF!+#REF!+#REF!+#REF!+#REF!+#REF!+#REF!+#REF!+#REF!+#REF!+#REF!+#REF!+#REF!+#REF!+#REF!+Feb_Williams!Y69+#REF! -> 
A70: 64 | B70: Winn | C70: =#REF!+#REF!+#REF!+#REF!+#REF!+#REF!+#REF!+#REF!+#REF!+#REF!+#REF!+#REF!+#REF!+#REF!+#REF!+#REF!+#REF!+#REF!+#REF!+#REF!+#REF!+#REF!+#REF!+#REF!+#REF!+#REF!+#REF!+#REF!+#REF!+#REF!+#REF!+Feb_Williams!C70+#REF!+#REF!+#REF! ->  | D70: =#REF!+#REF!+#REF!+#REF!+#REF!+#REF!+#REF!+#REF!+#REF!+#REF!+#REF!+#REF!+#REF!+#REF!+#REF!+#REF!+#REF!+#REF!+#REF!+#REF!+#REF!+#REF!+#REF!+#REF!+#REF!+#REF!+#REF!+#REF!+#REF!+#REF!+#REF!+Feb_Williams!D70+#REF!+#REF!+#REF! ->  | E70: =#REF!+#REF!+#REF!+#REF!+#REF!+#REF!+#REF!+#REF!+#REF!+#REF!+#REF!+#REF!+#REF!+#REF!+#REF!+#REF!+#REF!+#REF!+#REF!+#REF!+#REF!+#REF!+#REF!+#REF!+#REF!+#REF!+#REF!+#REF!+#REF!+#REF!+#REF!+Feb_Williams!E70+#REF!+#REF!+#REF! ->  | F70: =#REF!*0.5 ->  | G70: =#REF!+#REF!+#REF!+#REF!+#REF!+#REF!+#REF!+#REF!+#REF!+#REF!+#REF!+#REF!+#REF!+#REF!+#REF!+#REF!+#REF!+#REF!+#REF!+#REF!+#REF!+#REF!+#REF!+#REF!+#REF!+#REF!+#REF!+#REF!+#REF!+#REF!+#REF!+Feb_Williams!G70+#REF! ->  | H70: =#REF!+#REF!+#REF!+#REF!+#REF!+#REF!+#REF!+#REF!+#REF!+#REF!+#REF!+#REF!+#REF!+#REF!+#REF!+#REF!+#REF!+#REF!+#REF!+#REF!+#REF!+#REF!+#REF!+#REF!+#REF!+#REF!+#REF!+#REF!+#REF!+#REF!+#REF!+Feb_Williams!H70+#REF!+#REF!+#REF! ->  | I70: =#REF!+#REF!+#REF!+#REF!+#REF!+#REF!+#REF!+#REF!+#REF!+#REF!+#REF!+#REF!+#REF!+#REF!+#REF!+#REF!+#REF!+#REF!+#REF!+#REF!+#REF!+#REF!+#REF!+#REF!+#REF!+#REF!+#REF!+#REF!+#REF!+#REF!+#REF!+Feb_Williams!I70+#REF!+#REF!+#REF! ->  | J70: =#REF!+#REF!+#REF!+#REF!+#REF!+#REF!+#REF!+#REF!+#REF!+#REF!+#REF!+#REF!+#REF!+#REF!+#REF!+#REF!+#REF!+#REF!+#REF!+#REF!+#REF!+#REF!+#REF!+#REF!+#REF!+#REF!+#REF!+#REF!+#REF!+#REF!+#REF!+Feb_Williams!J70+#REF!+#REF!+#REF! ->  | K70: =#REF!*0.5 ->  | L70: =#REF!+#REF!+#REF!+#REF!+#REF!+#REF!+#REF!+#REF!+#REF!+#REF!+#REF!+#REF!+#REF!+#REF!+#REF!+#REF!+#REF!+#REF!+#REF!+#REF!+#REF!+#REF!+#REF!+#REF!+#REF!+#REF!+#REF!+#REF!+#REF!+#REF!+#REF!+Feb_Williams!L70+#REF! ->  | O70: =#REF!+#REF!+#REF!+#REF!+#REF!+#REF!+#REF!+#REF!+#REF!+#REF!+#REF!+#REF!+#REF!+#REF!+#REF!+#REF!+#REF!+#REF!+#REF!+#REF!+#REF!+#REF!+#REF!+#REF!+#REF!+#REF!+#REF!+#REF!+#REF!+#REF!+#REF!+Feb_Williams!O70+#REF! ->  | P70: =#REF!*0.5 ->  | Q70: =#REF!+#REF!+#REF!+#REF!+#REF!+#REF!+#REF!+#REF!+#REF!+#REF!+#REF!+#REF!+#REF!+#REF!+#REF!+#REF!+#REF!+#REF!+#REF!+#REF!+#REF!+#REF!+#REF!+#REF!+#REF!+#REF!+#REF!+#REF!+#REF!+#REF!+#REF!+Feb_Williams!Q70+#REF! ->  | T70: =#REF!+#REF!+#REF!+#REF!+#REF!+#REF!+#REF!+#REF!+#REF!+#REF!+#REF!+#REF!+#REF!+#REF!+#REF!+#REF!+#REF!+#REF!+#REF!+#REF!+#REF!+#REF!+#REF!+#REF!+#REF!+#REF!+#REF!+#REF!+#REF!+#REF!+#REF!+Feb_Williams!T70+#REF! ->  | U70: =#REF!*0.5 ->  | V70: =#REF!+#REF!+#REF!+#REF!+#REF!+#REF!+#REF!+#REF!+#REF!+#REF!+#REF!+#REF!+#REF!+#REF!+#REF!+#REF!+#REF!+#REF!+#REF!+#REF!+#REF!+#REF!+#REF!+#REF!+#REF!+#REF!+#REF!+#REF!+#REF!+#REF!+#REF!+Feb_Williams!V70+#REF! ->  | W70: =#REF!+#REF!+#REF!+#REF!+#REF!+#REF!+#REF!+#REF!+#REF!+#REF!+#REF!+#REF!+#REF!+#REF!+#REF!+#REF!+#REF!+#REF!+#REF!+#REF!+#REF!+#REF!+#REF!+#REF!+#REF!+#REF!+#REF!+#REF!+#REF!+#REF!+#REF!+Feb_Williams!W70+#REF! ->  | X70: =#REF!*0.5 ->  | Y70: =#REF!+#REF!+#REF!+#REF!+#REF!+#REF!+#REF!+#REF!+#REF!+#REF!+#REF!+#REF!+#REF!+#REF!+#REF!+#REF!+#REF!+#REF!+#REF!+#REF!+#REF!+#REF!+#REF!+#REF!+#REF!+#REF!+#REF!+#REF!+#REF!+#REF!+#REF!+Feb_Williams!Y70+#REF! -> 
A71: 65 | B71: City of Monroe | C71: =#REF!+#REF!+#REF!+#REF!+#REF!+#REF!+#REF!+#REF!+#REF!+#REF!+#REF!+#REF!+#REF!+#REF!+#REF!+#REF!+#REF!+#REF!+#REF!+#REF!+#REF!+#REF!+#REF!+#REF!+#REF!+#REF!+#REF!+#REF!+#REF!+#REF!+#REF!+Feb_Williams!C71+#REF!+#REF!+#REF! ->  | D71: =#REF!+#REF!+#REF!+#REF!+#REF!+#REF!+#REF!+#REF!+#REF!+#REF!+#REF!+#REF!+#REF!+#REF!+#REF!+#REF!+#REF!+#REF!+#REF!+#REF!+#REF!+#REF!+#REF!+#REF!+#REF!+#REF!+#REF!+#REF!+#REF!+#REF!+#REF!+Feb_Williams!D71+#REF!+#REF!+#REF! ->  | E71: =#REF!+#REF!+#REF!+#REF!+#REF!+#REF!+#REF!+#REF!+#REF!+#REF!+#REF!+#REF!+#REF!+#REF!+#REF!+#REF!+#REF!+#REF!+#REF!+#REF!+#REF!+#REF!+#REF!+#REF!+#REF!+#REF!+#REF!+#REF!+#REF!+#REF!+#REF!+Feb_Williams!E71+#REF!+#REF!+#REF! ->  | F71: =#REF!*0.5 ->  | G71: =#REF!+#REF!+#REF!+#REF!+#REF!+#REF!+#REF!+#REF!+#REF!+#REF!+#REF!+#REF!+#REF!+#REF!+#REF!+#REF!+#REF!+#REF!+#REF!+#REF!+#REF!+#REF!+#REF!+#REF!+#REF!+#REF!+#REF!+#REF!+#REF!+#REF!+#REF!+Feb_Williams!G71+#REF! ->  | H71: =#REF!+#REF!+#REF!+#REF!+#REF!+#REF!+#REF!+#REF!+#REF!+#REF!+#REF!+#REF!+#REF!+#REF!+#REF!+#REF!+#REF!+#REF!+#REF!+#REF!+#REF!+#REF!+#REF!+#REF!+#REF!+#REF!+#REF!+#REF!+#REF!+#REF!+#REF!+Feb_Williams!H71+#REF!+#REF!+#REF! ->  | I71: =#REF!+#REF!+#REF!+#REF!+#REF!+#REF!+#REF!+#REF!+#REF!+#REF!+#REF!+#REF!+#REF!+#REF!+#REF!+#REF!+#REF!+#REF!+#REF!+#REF!+#REF!+#REF!+#REF!+#REF!+#REF!+#REF!+#REF!+#REF!+#REF!+#REF!+#REF!+Feb_Williams!I71+#REF!+#REF!+#REF! ->  | J71: =#REF!+#REF!+#REF!+#REF!+#REF!+#REF!+#REF!+#REF!+#REF!+#REF!+#REF!+#REF!+#REF!+#REF!+#REF!+#REF!+#REF!+#REF!+#REF!+#REF!+#REF!+#REF!+#REF!+#REF!+#REF!+#REF!+#REF!+#REF!+#REF!+#REF!+#REF!+Feb_Williams!J71+#REF!+#REF!+#REF! ->  | K71: =#REF!*0.5 ->  | L71: =#REF!+#REF!+#REF!+#REF!+#REF!+#REF!+#REF!+#REF!+#REF!+#REF!+#REF!+#REF!+#REF!+#REF!+#REF!+#REF!+#REF!+#REF!+#REF!+#REF!+#REF!+#REF!+#REF!+#REF!+#REF!+#REF!+#REF!+#REF!+#REF!+#REF!+#REF!+Feb_Williams!L71+#REF! ->  | O71: =#REF!+#REF!+#REF!+#REF!+#REF!+#REF!+#REF!+#REF!+#REF!+#REF!+#REF!+#REF!+#REF!+#REF!+#REF!+#REF!+#REF!+#REF!+#REF!+#REF!+#REF!+#REF!+#REF!+#REF!+#REF!+#REF!+#REF!+#REF!+#REF!+#REF!+#REF!+Feb_Williams!O71+#REF! ->  | P71: =#REF!*0.5 ->  | Q71: =#REF!+#REF!+#REF!+#REF!+#REF!+#REF!+#REF!+#REF!+#REF!+#REF!+#REF!+#REF!+#REF!+#REF!+#REF!+#REF!+#REF!+#REF!+#REF!+#REF!+#REF!+#REF!+#REF!+#REF!+#REF!+#REF!+#REF!+#REF!+#REF!+#REF!+#REF!+Feb_Williams!Q71+#REF! ->  | T71: =#REF!+#REF!+#REF!+#REF!+#REF!+#REF!+#REF!+#REF!+#REF!+#REF!+#REF!+#REF!+#REF!+#REF!+#REF!+#REF!+#REF!+#REF!+#REF!+#REF!+#REF!+#REF!+#REF!+#REF!+#REF!+#REF!+#REF!+#REF!+#REF!+#REF!+#REF!+Feb_Williams!T71+#REF! ->  | U71: =#REF!*0.5 ->  | V71: =#REF!+#REF!+#REF!+#REF!+#REF!+#REF!+#REF!+#REF!+#REF!+#REF!+#REF!+#REF!+#REF!+#REF!+#REF!+#REF!+#REF!+#REF!+#REF!+#REF!+#REF!+#REF!+#REF!+#REF!+#REF!+#REF!+#REF!+#REF!+#REF!+#REF!+#REF!+Feb_Williams!V71+#REF! ->  | W71: =#REF!+#REF!+#REF!+#REF!+#REF!+#REF!+#REF!+#REF!+#REF!+#REF!+#REF!+#REF!+#REF!+#REF!+#REF!+#REF!+#REF!+#REF!+#REF!+#REF!+#REF!+#REF!+#REF!+#REF!+#REF!+#REF!+#REF!+#REF!+#REF!+#REF!+#REF!+Feb_Williams!W71+#REF! ->  | X71: =#REF!*0.5 ->  | Y71: =#REF!+#REF!+#REF!+#REF!+#REF!+#REF!+#REF!+#REF!+#REF!+#REF!+#REF!+#REF!+#REF!+#REF!+#REF!+#REF!+#REF!+#REF!+#REF!+#REF!+#REF!+#REF!+#REF!+#REF!+#REF!+#REF!+#REF!+#REF!+#REF!+#REF!+#REF!+Feb_Williams!Y71+#REF! -> 
A72: 66 | B72: City of Bogalusa | C72: =#REF!+#REF!+#REF!+#REF!+#REF!+#REF!+#REF!+#REF!+#REF!+#REF!+#REF!+#REF!+#REF!+#REF!+#REF!+#REF!+#REF!+#REF!+#REF!+#REF!+#REF!+#REF!+#REF!+#REF!+#REF!+#REF!+#REF!+#REF!+#REF!+#REF!+#REF!+Feb_Williams!C72+#REF!+#REF!+#REF! ->  | D72: =#REF!+#REF!+#REF!+#REF!+#REF!+#REF!+#REF!+#REF!+#REF!+#REF!+#REF!+#REF!+#REF!+#REF!+#REF!+#REF!+#REF!+#REF!+#REF!+#REF!+#REF!+#REF!+#REF!+#REF!+#REF!+#REF!+#REF!+#REF!+#REF!+#REF!+#REF!+Feb_Williams!D72+#REF!+#REF!+#REF! ->  | E72: =#REF!+#REF!+#REF!+#REF!+#REF!+#REF!+#REF!+#REF!+#REF!+#REF!+#REF!+#REF!+#REF!+#REF!+#REF!+#REF!+#REF!+#REF!+#REF!+#REF!+#REF!+#REF!+#REF!+#REF!+#REF!+#REF!+#REF!+#REF!+#REF!+#REF!+#REF!+Feb_Williams!E72+#REF!+#REF!+#REF! ->  | F72: =#REF!*0.5 ->  | G72: =#REF!+#REF!+#REF!+#REF!+#REF!+#REF!+#REF!+#REF!+#REF!+#REF!+#REF!+#REF!+#REF!+#REF!+#REF!+#REF!+#REF!+#REF!+#REF!+#REF!+#REF!+#REF!+#REF!+#REF!+#REF!+#REF!+#REF!+#REF!+#REF!+#REF!+#REF!+Feb_Williams!G72+#REF! ->  | H72: =#REF!+#REF!+#REF!+#REF!+#REF!+#REF!+#REF!+#REF!+#REF!+#REF!+#REF!+#REF!+#REF!+#REF!+#REF!+#REF!+#REF!+#REF!+#REF!+#REF!+#REF!+#REF!+#REF!+#REF!+#REF!+#REF!+#REF!+#REF!+#REF!+#REF!+#REF!+Feb_Williams!H72+#REF!+#REF!+#REF! ->  | I72: =#REF!+#REF!+#REF!+#REF!+#REF!+#REF!+#REF!+#REF!+#REF!+#REF!+#REF!+#REF!+#REF!+#REF!+#REF!+#REF!+#REF!+#REF!+#REF!+#REF!+#REF!+#REF!+#REF!+#REF!+#REF!+#REF!+#REF!+#REF!+#REF!+#REF!+#REF!+Feb_Williams!I72+#REF!+#REF!+#REF! ->  | J72: =#REF!+#REF!+#REF!+#REF!+#REF!+#REF!+#REF!+#REF!+#REF!+#REF!+#REF!+#REF!+#REF!+#REF!+#REF!+#REF!+#REF!+#REF!+#REF!+#REF!+#REF!+#REF!+#REF!+#REF!+#REF!+#REF!+#REF!+#REF!+#REF!+#REF!+#REF!+Feb_Williams!J72+#REF!+#REF!+#REF! ->  | K72: =#REF!*0.5 ->  | L72: =#REF!+#REF!+#REF!+#REF!+#REF!+#REF!+#REF!+#REF!+#REF!+#REF!+#REF!+#REF!+#REF!+#REF!+#REF!+#REF!+#REF!+#REF!+#REF!+#REF!+#REF!+#REF!+#REF!+#REF!+#REF!+#REF!+#REF!+#REF!+#REF!+#REF!+#REF!+Feb_Williams!L72+#REF! ->  | O72: =#REF!+#REF!+#REF!+#REF!+#REF!+#REF!+#REF!+#REF!+#REF!+#REF!+#REF!+#REF!+#REF!+#REF!+#REF!+#REF!+#REF!+#REF!+#REF!+#REF!+#REF!+#REF!+#REF!+#REF!+#REF!+#REF!+#REF!+#REF!+#REF!+#REF!+#REF!+Feb_Williams!O72+#REF! ->  | P72: =#REF!*0.5 ->  | Q72: =#REF!+#REF!+#REF!+#REF!+#REF!+#REF!+#REF!+#REF!+#REF!+#REF!+#REF!+#REF!+#REF!+#REF!+#REF!+#REF!+#REF!+#REF!+#REF!+#REF!+#REF!+#REF!+#REF!+#REF!+#REF!+#REF!+#REF!+#REF!+#REF!+#REF!+#REF!+Feb_Williams!Q72+#REF! ->  | T72: =#REF!+#REF!+#REF!+#REF!+#REF!+#REF!+#REF!+#REF!+#REF!+#REF!+#REF!+#REF!+#REF!+#REF!+#REF!+#REF!+#REF!+#REF!+#REF!+#REF!+#REF!+#REF!+#REF!+#REF!+#REF!+#REF!+#REF!+#REF!+#REF!+#REF!+#REF!+Feb_Williams!T72+#REF! ->  | U72: =#REF!*0.5 ->  | V72: =#REF!+#REF!+#REF!+#REF!+#REF!+#REF!+#REF!+#REF!+#REF!+#REF!+#REF!+#REF!+#REF!+#REF!+#REF!+#REF!+#REF!+#REF!+#REF!+#REF!+#REF!+#REF!+#REF!+#REF!+#REF!+#REF!+#REF!+#REF!+#REF!+#REF!+#REF!+Feb_Williams!V72+#REF! ->  | W72: =#REF!+#REF!+#REF!+#REF!+#REF!+#REF!+#REF!+#REF!+#REF!+#REF!+#REF!+#REF!+#REF!+#REF!+#REF!+#REF!+#REF!+#REF!+#REF!+#REF!+#REF!+#REF!+#REF!+#REF!+#REF!+#REF!+#REF!+#REF!+#REF!+#REF!+#REF!+Feb_Williams!W72+#REF! ->  | X72: =#REF!*0.5 ->  | Y72: =#REF!+#REF!+#REF!+#REF!+#REF!+#REF!+#REF!+#REF!+#REF!+#REF!+#REF!+#REF!+#REF!+#REF!+#REF!+#REF!+#REF!+#REF!+#REF!+#REF!+#REF!+#REF!+#REF!+#REF!+#REF!+#REF!+#REF!+#REF!+#REF!+#REF!+#REF!+Feb_Williams!Y72+#REF! ->  | AB72: =E72=(D72-C72) ->  | AC72: =J72=(I72-H72) ->  | AD72: =O72=(N72-M72) ->  | AE72: =T72=(S72-R72) -> 
